Workbook

Sheet Исходные данные (hidden)
A1: 25 | B1: 50 | C1: 300 | D1: 400 | E1: 150 | F1: 100 | G1: 100 | H1: 100 | I1: 100 | J1: 100 | K1: 100 | L1: 100 | M1: 100 | N1: 100 | O1: 100 | P1: 100 | Q1: 200 | R1: 100 | S1: 100 | T1: 60 | U1: 60 | V1: 60 | W1: 60 | X1: 60 | Y1: 60 | Z1: 60 | AA1: 60 | AB1: 60 | AC1: 60 | AD1: 60 | AE1: 60 | AF1: 60 | AG1: 60 | AH1: 60 | AI1: 60 | AJ1: 60 | AK1: 25
A2: 95B8996E-A92E-40F2-8A9B-251AB1F004D4
B3: Исходные данные для расчета НМЦ
B5: № п/п | C5: Параметры | D5: Значение | I5: 5.50 | P5: Округление | Q5: Не использовать
B6: 1 | C6: 2 | D6: 3
B7: 1 | C7: Уникальный номер в РПЗ общества | D7: 2000350438 (680-20-КС(ТЗ))
B8: 2 | C8: Дата формирования ТЗ | D8: 2020-08-10 | F8: Приложение | I8: Значение
B9: 3 | C9: Дата расчета НМЦ | D9: 2020-08-20 | F9: 1 | I9: 2
B10: 4 | C10: Вид договорной цены | D10: Твердая цена | F10: Исходные данные | I10: Проверено
B11: 5 | C11: Способ проведения закупки | D11: Конкурентная закупка | F11: Ведомость объема работ | I11: Проверено
B12: 6 | C12: Метод определения НМЦ | D12: Базисно-индексный метод | F12: Ежеднев. возка и перевозка вахт | I12: Проверено
B13: 7 | C13: Источники ценовой информации | D13: ПСД | F13: Перебазировка | I13: Проверено
B14: 8 | C14: Срок строительства | D14: 10.03.2021 - 30.06.2021 | F14: Реестр МТР | I14: Проверено
B15: 9 | C15: Период для прогнозного уровня цен | D15: =YEAR(LEFT(D14,FIND(" ",D14) - 1)) -> 2021 | F15: Общий статус | I15: =IF(I10="Проверено",IF(I11="Проверено",IF(I12="Проверено",IF(I13="Проверено",IF(I14="Проверено","Проверено","Ошибка"),"Ошибка"),"Ошибка")),"Ошибка") -> Проверено
B16: 10 | C16: Шифр проекта | D16: 1980615/0880Д
B17: 11 | C17: Разработчик проекта | D17: ООО «РН-УфаНИПИнефть»
B18: 12 | C18: Вид работ | D18: Капитальное строительство
B19: 13 | C19: Наименование лота | D19: Строительство объектов энергетики Правдинского региона
B21: № п/п | C21: Технический код объекта | D21: Наименование объекта (не использовать символ *) | E21: Регион строительства | F21: Код Объекта | G21: Сроки строительства | I21: Объемы строительства | K21: Транспортировка щебня | N21: Транспортировка песка | Q21: Краткое наименование объекта (не более 25 символов, не использовать: : , \ , / , ? , * , [ , ] ) | R21: Направление деятельности | S21: Доп. признак | T21: Номер расчета | U21: Итог | V21: =D15 -> 2021 | Z21: =V21+1 -> 2022 | AD21: =Z21+1 -> 2023 | AH21: =AD21+1 -> 2024
G22: Дата начала | H22: Дата окончания | I22: Единица измерения | J22: Количество | K22: 1 Класс | L22: 2 Класс | M22: 3 Класс | N22: 1 Класс | O22: 2 Класс | P22: 3 Класс | V22: I кв | W22: II кв | X22: III кв | Y22: IV кв | Z22: I кв | AA22: II кв | AB22: III кв | AC22: IV кв | AD22: I кв | AE22: II кв | AF22: III кв | AG22: IV кв | AH22: I кв | AI22: II кв | AJ22: III кв | AK22: IV кв
B23: 1 | C23: 2 | D23: 3 | E23: 4 | F23: 5 | G23: 6 | H23: 7 | I23: 8 | J23: 9 | K23: 10 | L23: 11 | M23: 12 | N23: 13 | O23: 14 | P23: 15 | Q23: 16 | R23: 17 | S23: 18 | T23: 19 | U23: 20 | V23: 21 | W23: 22 | X23: 23 | Y23: 24 | Z23: 25 | AA23: 26 | AB23: 27 | AC23: 28 | AD23: 29 | AE23: 30 | AF23: 31 | AG23: 32 | AH23: 33 | AI23: 34 | AJ23: 35 | AK23: 36
B24: C10 | C24: C45 | D24: C11 | E24: C12 | F24: C13 | G24: C14 | H24: C15 | I24: C16 | J24: C17 | K24: C37 | L24: C38 | M24: C39 | N24: C40 | O24: C41 | P24: C42 | Q24: C18 | R24: C19 | S24: C43 | T24: C44 | U24: C36 | V24: C20 | W24: C21 | X24: C22 | Y24: C23 | Z24: C24 | AA24: C25 | AB24: C26 | AC24: C27 | AD24: C28 | AE24: C29 | AF24: C30 | AG24: C31 | AH24: C32 | AI24: C33 | AJ24: C34 | AK24: C35
B25: 1 | C25: 5D57A968-2E2D-47A8-B7F4-6C635AF194C3 | D25: ВЛ 6 кВ на куст 3129.1 (габ.110 кВ) Приразломное м/р. | E25: Правдинский | F25: КС00091309 | G25: 10.03.2021 | H25: 30.06.2021 | I25: м | J25: 1980 | K25: 93 | L25: 0 | M25: 0 | N25: 0 | O25: 31 | P25: 0 | Q25: ВЛ 6 на куст 3129.1 | R25: Объекты энергетики | S25: - | T25: 1 | U25: =SUM(V25:AK25) -> 1 | V25: 0.1 | W25: 0.9 | AL25: =VLOOKUP(R25,activityDirections!$A$2:$B$8,2,0) -> 0.0809
B26: 2 | C26: AEEAB128-A9D6-4DE1-ACE9-6CD791FCF82A | D26: ВЛ 6 кВ на куст 3129.2 (габ. 6 кВ) Приразломное м/р. | E26: Правдинский | F26: КС00091313 | G26: 10.03.2021 | H26: 30.06.2021 | I26: м | J26: 520 | K26: 93 | L26: 0 | M26: 0 | N26: 0 | O26: 31 | P26: 0 | Q26: ВЛ 6 на куст 3129.2 | R26: Объекты энергетики | S26: - | T26: 1 | U26: =SUM(V26:AK26) -> 1 | V26: 0.1 | W26: 0.9 | AL26: =VLOOKUP(R26,activityDirections!$A$2:$B$8,2,0) -> 0.0809
D30: Ответственный исполнитель | G30: Вед. Специалист ОСОЭ УКС | I30: Волостников Н.А.
G31: должность | I31: Ф.И.О.
D33: Ответственный исполнитель ОСП | G33: Главный специалист | I33: Еременко С.В.
G34: должность | I34: Ф.И.О.
D36: Ответственный исполнитель ОЦП по КВ | G36: Ведущий специалист | I36: Берестова А.В.
G37: должность | I37: Ф.И.О.
D39: Ответственный исполнитель ОЦП по КВ ТМЦ Подрядчика | G39: Главный специалист | I39: Федотов Е.А.
G40: должность | I40: Ф.И.О.

Sheet activityDirections (hidden)
A1: activity_direction | B1: factor | J1: sheet_name | K1: button_name | O1: TRUE
A2: Трубопроводное строительство | B2: 0.1064 | J2: Исходные данные | K2: checkSheet
A3: Объекты энергетики | B3: 0.0809 | J3: Исходные данные | K3: unloadMaterial
A4: Площадочное строительство и объекты инфраструктуры | B4: 0.0583 | J4: Исходные данные | K4: loadMaterial
A5: Обустройство кустов скважин | B5: 0.0613 | J5: Исходные данные | K5: addRow_new
A6: Объекты подготовительных работ, транспортного строительства и кустовых площадок | B6: 0.0835 | J6: Исходные данные | K6: removeRow_new
A7: Мосты | B7: 0.0851 | J7: Исходные данные | K7: updateTemplates
A8: Объекты КИП | B8: 0.0583 | J8: Исходные данные | K8: calculationImport
J9: НМЦ - ВЛ 6 на куст 3129.1 | K9: Button 1
J10: НМЦ - ВЛ 6 на куст 3129.1 | K10: Button 2
J11: НМЦ - ВЛ 6 на куст 3129.1 | K11: Button 3
A12: price_type | J12: НМЦ - ВЛ 6 на куст 3129.1 | K12: Button 4
A13: Твердая цена | J13: НМЦ - ВЛ 6 на куст 3129.1 | K13: Button 5
A14: Приблизительная цена | J14: НМЦ - ВЛ 6 на куст 3129.1 | K14: Button 6
A15: Максимальная / предельная цена | J15: НМЦ - ВЛ 6 на куст 3129.1 | K15: Button 7
J16: НМЦ - ВЛ 6 на куст 3129.1 | K16: Button 8
A17: additional feature | J17: НМЦ - ВЛ 6 на куст 3129.1 | K17: Button 9
A18: - | J18: НМЦ - ВЛ 6 на куст 3129.1 | K18: Button 10
A19: Мосты | J19: НМЦ - ВЛ 6 на куст 3129.1 | K19: Button 11
J20: НМЦ - ВЛ 6 на куст 3129.1 | K20: Button 12
J21: НМЦ - ВЛ 6 на куст 3129.2 | K21: Button 1
J22: НМЦ - ВЛ 6 на куст 3129.2 | K22: Button 2
J23: НМЦ - ВЛ 6 на куст 3129.2 | K23: Button 3
A24: purchase_method | J24: НМЦ - ВЛ 6 на куст 3129.2 | K24: Button 4
A25: Конкурентная закупка | J25: НМЦ - ВЛ 6 на куст 3129.2 | K25: Button 5
A26: Неконкурентная закупка | J26: НМЦ - ВЛ 6 на куст 3129.2 | K26: Button 6
A27: Мелкая закупка | J27: НМЦ - ВЛ 6 на куст 3129.2 | K27: Button 7
J28: НМЦ - ВЛ 6 на куст 3129.2 | K28: Button 8
A29: price_method | J29: НМЦ - ВЛ 6 на куст 3129.2 | K29: Button 9
A30: Базисно-индексный метод | J30: НМЦ - ВЛ 6 на куст 3129.2 | K30: Button 10
J31: НМЦ - ВЛ 6 на куст 3129.2 | K31: Button 11
A32: road_class | J32: НМЦ - ВЛ 6 на куст 3129.2 | K32: Button 12
A33: Не предусмотрено | J33: Ежеднев. возка и перевозка вахт | K33: checkSheet
A34: 1 класс | J34: Перебазировка | K34: Ins
A35: 2 класс | J35: Перебазировка | K35: Del
A36: 3 класс | J36: Перебазировка | K36: InsMany
J37: Перебазировка | K37: checkSheet
A38: unit
A39: км
A40: м
A41: м2
A42: м3
A43: 1000 м3
A44: т
A45: шт
A46: скважина
A47: система
A48: га
A49: пог.м
A56: dev
A57: ОАО «ТомскНИПИнефть»
A58: ООО «РН-УфаНИПИнефть»
A59: ООО «РН-СахалинНИПИморнефть»
A60: ООО «СамараНИПИнефть»
A61: ПАО «Гипротюменнефтегаз»
A62: ООО ИК "Сибинтек"
A65: work
A66: Капитальное строительство
A67: Капитальный ремонт
A69: users
A70: TAUshakova | B70: Ушакова Татьяна Андреевнва
A71: SMDavydov | B71: Давыдов Сергей Михайлович
A72: AGSivak | B72: Сивак Александр Григорьевич
A73: FedotovEA | B73: Федотов Евгений Александрович
A74: ShinkarenkoRR | B74: Шинкаренко Райфа Рашитовна
A75: RRMarganova | B75: Марганова Рузиля Рашитовна
A76: MordvinovaKS | B76: Мордвинова Кристина Сергеевна
A77: KuznecovaNB | B77: Кузнецова Наталья Борисовна
A78: gridunovaes | B78: Гридунова Евгения Сергеевна
A79: Куртханова Анна Артемовна | B79: Куртханова Анна Артемовна
A80: ChervyakovaOV | B80: Червякова Ольга Владимировна
A81: MustafinaGR2 | B81: Мустафина Гузель Равиловна
A82: SAOsipova-ung | B82: Осипова Светлана Анатольевна
A83: ESVolkova2-ung | B83: Волкова Екатерина Сергеевна
A84: EAShvytkina | B84: Швыткина Эльвира Альфавиевна
A85: OvsannicovaIA | B85: Овсянникова Ирина Анатольевна
A86: VagizovaEE | B86: Вагизова Елена Евгеньевна
A87: VodovatovaAV | B87: Водоватова Анна Валерьевна
A88: MazharIA | B88: Мажар Ирина Анатольевна
A89: PraporovaOA | B89: Прапорова Ольга Александровна
A90: PervuhinaNV | B90: Первухина Наталия Владимировна
A91: AVBerestova | B91: Берестова Алина Владимировна
A92: PahotinaEA | B92: Пахотина Елена Анатольевна
A93: GolodnikovSV | B93: Голодников Сергей Васильевич
A94: ShmelevaIL | B94: Шмелева Ирина Леонтьевна
A95: IAEvchenko | B95: Евченко Иван Александрович
A96: SaitovaMA | B96: Саитова Мария Александровна
A97: GoncharovaNV | B97: Гончарова Наталия Владимировна
A98: ZyryanovaSA | B98: Зырянова Светлана Анатольевна
A99: NasedkinaTN | B99: Наседкина Татьяна Николаевна
A100: shumovain | B100: Шумова Ирина Николаевна
A101: SuprunTE | B101: Супрун Татьяна Евгеньевна
A102: KalashnikovaEA | B102: Калашникова Елена Александровна
A103: TimofeevaAI | B103: Тимофеева Александра Игоревна
A104: VoronkovaYA | B104: Воронкова Яна Александровна
A105: KvacheginaSA | B105: Квачегина Светлана Александровна
A106: DASorokina-ung | B106: Сорокина Дарья Алексеевна
A107: DodonovaAA
A108: MakarenkovSD
A109: KoadaDY
A110: nigmatullinrr-ung
A111: RRGaynullin
A112: AVKochurov-ung
A113: RybalkoEA
A114: HaziahmetovaEA
A115: NovikovaMI
A116: ManakovaOV
A117: ESReshetnikova
A118: Demakova_GN
A119: GazievaEI
A120: ParhomenkoNG
A121: DVZaloga
A122: EYVorokutova2

Sheet Сопроводительная записка (hidden)
A1: 25 | I1: 25
A2: 95B8996E-A92E-40F2-8A9B-251AB1F004D4
A3: B329BF19-5028-446C-89F7-75C77ACB972A | B3: Сопроводительная записка
B4: Обоснование начальной (максимальной) цены договора (цены лота)
B6: ="Предмет договора: "&'Исходные данные'!workType -> Предмет договора: Капитальное строительство | H6: ='Исходные данные'!lotNumber -> 2000350438 (680-20-КС(ТЗ))
A8: 5D57A968-2E2D-47A8-B7F4-6C635AF194C3 | B8: ='Исходные данные'!$D$25 & " " & 'Исходные данные'!$E$25 & " (" & 'Исходные данные'!$F$25 & ")" -> ВЛ 6 кВ на куст 3129.1 (габ.110 кВ) Приразломное м/р. Правдинский (КС00091309)
A9: AEEAB128-A9D6-4DE1-ACE9-6CD791FCF82A | B9: ='Исходные данные'!$D$26 & " " & 'Исходные данные'!$E$26 & " (" & 'Исходные данные'!$F$26 & ")" -> ВЛ 6 кВ на куст 3129.2 (габ. 6 кВ) Приразломное м/р. Правдинский (КС00091313)
B10: (данные из РПЗ)
B11: ="Вид договорной цены: "&'Исходные данные'!typecontractprice -> Вид договорной цены: Твердая цена
B12: (данные из РПЗ)
B13: ="Уникальный номер в РПЗ общества: "&'Исходные данные'!lotNumber -> Уникальный номер в РПЗ общества: 2000350438 (680-20-КС(ТЗ))
B14: (данные из РПЗ)
B15: ="Способ проведения закупки: "&'Исходные данные'!methodprocurement -> Способ проведения закупки: Конкурентная закупка
B16: (данные из РПЗ)
B17: ="Метод определения НМЦ: " &'Исходные данные'!methoddeterminingNMS -> Метод определения НМЦ: Базисно-индексный метод
B18: (рыночная стоимость, договора-аналоги, тарифный метод, ресурсный метод, базисно-индексный метод)
B19: ="Источники ценовой информации: "&'Исходные данные'!sourcespriceinformation -> Источники ценовой информации: ПСД
B20: (цены закупок предыдущих периодов; оферентные цены; цены технико-коммерческих предложений; прейскурантные цены; справочные цены публикуемые в информационно-справочных изданиях, специализированных журналах, статистических и аналитических обзорах; сметы (расчеты) составленные на основе утвержденных методических и нормативных документов, публичные оферты только для мелкой закупки)
B21: ="Срок строительства : "& 'Исходные данные'!termconstruction -> Срок строительства : 10.03.2021 - 30.06.2021
B22: ="Дата расчета НМЦ: "& TEXT('Исходные данные'!calculationdate,"ДД.ММ.ГГГГ") -> Дата расчета НМЦ: 20.08.2020
B24: № п/п | C24: Наименование услуги | D24: Единица измерения | E24: Количество | F24: Номер договора | G24: Предлагаемая НМЦ (Лота) руб. с НДС | H24: % снижения (увеличения)
F25: Цена 201_ года, руб. с НДС | G25: период, указанный в РПЗ
B26: 1 | C26: 2 | D26: 3 | E26: 4 | F26: 5 | G26: 6 | H26: 7
B27: C10 | C27: C11 | D27: C12 | E27: C13 | F27: C14 | G27: C15 | H27: C16
A28: 5D57A968-2E2D-47A8-B7F4-6C635AF194C3 | B28: ='Исходные данные'!$B$25 -> 1 | C28: ='Исходные данные'!$D$25 & " " & 'Исходные данные'!$E$25 & " (" & 'Исходные данные'!$F$25 & ")" -> ВЛ 6 кВ на куст 3129.1 (габ.110 кВ) Приразломное м/р. Правдинский (КС00091309) | D28: ='Исходные данные'!$I$25 -> м | E28: ='Исходные данные'!$J$25 -> 1980
C29: ="Стоимость с НДС "&'Ценовые нормативы'!Nds*100&"%, всего" -> Стоимость с НДС 20%, всего | D29: руб. | G29: =G31+G33+G34 -> 
C30: в том числе:
C31: Услуги и ТМЦ Подрядчика | D31: руб. | G31: =(СМР!F15+СМР!F18) -> 
C32: в том числе ТМЦ Подрядчика | G32: =СМР!F18 -> 0
C33: Справочно, ТМЦ обеспечения Заказчика | D33: руб. | G33: =СМР!F21 -> 23513197.63
C34: Прочие затраты Заказчика (непредвиденные затраты), лимит | D34: руб. | G34: =СМР!F24 -> 
A36: AEEAB128-A9D6-4DE1-ACE9-6CD791FCF82A | B36: ='Исходные данные'!$B$26 -> 2 | C36: ='Исходные данные'!$D$26 & " " & 'Исходные данные'!$E$26 & " (" & 'Исходные данные'!$F$26 & ")" -> ВЛ 6 кВ на куст 3129.2 (габ. 6 кВ) Приразломное м/р. Правдинский (КС00091313) | D36: ='Исходные данные'!$I$26 -> м | E36: ='Исходные данные'!$J$26 -> 520
C37: ="Стоимость с НДС "&'Ценовые нормативы'!Nds*100&"%, всего" -> Стоимость с НДС 20%, всего | D37: руб. | G37: =G39+G41+G42 -> 
C38: в том числе:
C39: Услуги и ТМЦ Подрядчика | D39: руб. | G39: =(СМР!F16+СМР!F19) -> 
C40: в том числе ТМЦ Подрядчика | G40: =СМР!F19 -> 0
C41: Справочно, ТМЦ обеспечения Заказчика | D41: руб. | G41: =СМР!F22 -> 3383124.79
C42: Прочие затраты Заказчика (непредвиденные затраты), лимит | D42: руб. | G42: =СМР!F25 -> 
C44: ="Итого по лоту " &'Исходные данные'!lotNumber -> Итого по лоту 2000350438 (680-20-КС(ТЗ)) | G44: =$G$31+$G$39 -> 
B49: № п/п | C49: Наименование статьи и № стр. в формате Экономика и КВ 9.1 | D49: Единица измерения | E49: ='Исходные данные'!D15 -> 2021 | F49: =E49+1 -> 2022 | G49: =F49+1 -> 2023 | H49: Итого
B50: 1 | C50: 2 | D50: 3 | E50: 4 | F50: 5 | G50: 6 | H50: 7
B51: C10 | C51: C11 | D51: C12 | E51: C13 | F51: C14 | G51: C15 | H51: C16
A52: 5D57A968-2E2D-47A8-B7F4-6C635AF194C3 | B52: ='Исходные данные'!$B$25 -> 1 | C52: ='Исходные данные'!$D$25 & " " & 'Исходные данные'!$E$25 & " (" & 'Исходные данные'!$F$25 & ")" -> ВЛ 6 кВ на куст 3129.1 (габ.110 кВ) Приразломное м/р. Правдинский (КС00091309)
C53: ="Стоимость с НДС "&'Ценовые нормативы'!Nds*100&"%, всего" -> Стоимость с НДС 20%, всего | D53: руб. | E53: =SUM(E55:E58) -> 0 | F53: =SUM(F55:F58) -> 0 | G53: =SUM(G55:G58) -> 0 | H53: =SUM(E53:G53) -> 0
C54: в том числе:
C55: Услуги и ТМЦ Подрядчика | D55: руб. | H55: =SUM(E55:G55) -> 0
C56: в том числе ТМЦ Подрядчика
C57: Справочно, ТМЦ обеспечения Заказчика | D57: руб. | H57: =SUM(E57:G57) -> 0
C58: Прочие затраты Заказчика (непредвиденные затраты), лимит | D58: руб. | H58: =SUM(E58:G58) -> 0
A60: AEEAB128-A9D6-4DE1-ACE9-6CD791FCF82A | B60: ='Исходные данные'!$B$26 -> 2 | C60: ='Исходные данные'!$D$26 & " " & 'Исходные данные'!$E$26 & " (" & 'Исходные данные'!$F$26 & ")" -> ВЛ 6 кВ на куст 3129.2 (габ. 6 кВ) Приразломное м/р. Правдинский (КС00091313)
C61: ="Стоимость с НДС "&'Ценовые нормативы'!Nds*100&"%, всего" -> Стоимость с НДС 20%, всего | D61: руб. | E61: =SUM(E63:E66) -> 0 | F61: =SUM(F63:F66) -> 0 | G61: =SUM(G63:G66) -> 0 | H61: =SUM(E61:G61) -> 0
C62: в том числе:
C63: Услуги и ТМЦ Подрядчика | D63: руб. | H63: =SUM(E63:G63) -> 0
C64: в том числе ТМЦ Подрядчика
C65: Справочно, ТМЦ обеспечения Заказчика | D65: руб. | H65: =SUM(E65:G65) -> 0
C66: Прочие затраты Заказчика (непредвиденные затраты), лимит | D66: руб. | H66: =SUM(E66:G66) -> 0
C68: ="Итого по лоту " &'Исходные данные'!lotNumber -> Итого по лоту 2000350438 (680-20-КС(ТЗ)) | H68: =$H$55+$H$63 -> 0
C70: Откл. РПЗ от БП (-) снижение, (+) превышение
C73: И.о. руководителя Службы стандартизации бизнеса, ценообразования и договорной работы | G73: О.Г. Верхоланцева
C75: Начальник Управления ценовой политики | G75: А.Ю. Топал
C77: Начальник ОЦП по КВ | G77: И.А. Овсянникова
C79: Начальник ОЦЭ | G79: Н.Б. Кузнецова
C81: Начальник ПЭО УТПСиУКВ | G81: Г.Н. Гордеева
C83: Начальник
C85: ='Исходные данные'!executor & " - " & 'Исходные данные'!executorPosition -> Ответственный исполнитель - Вед. Специалист ОСОЭ УКС | G85: ='Исходные данные'!executorFio -> Волостников Н.А.
C87: ='Исходные данные'!executor2 & " - " & 'Исходные данные'!executor2Position -> Ответственный исполнитель ОЦП по КВ - Ведущий специалист | G87: ='Исходные данные'!executor2Fio -> Берестова А.В.
C89: ='Исходные данные'!executor3 & " - " & 'Исходные данные'!executor3Position -> Ответственный исполнитель ОЦП по КВ ТМЦ Подрядчика - Главный специалист | G89: ='Исходные данные'!executor3Fio -> Федотов Е.А.

Sheet noteTemplate (hidden)
B1: ="Стоимость с НДС "&'Ценовые нормативы'!Nds*100&"%, всего" -> Стоимость с НДС 20%, всего | C1: руб. | F1: =F3+F5+F6 -> 0
B2: в том числе:
B3: Услуги и ТМЦ Подрядчика | C3: руб.
B4: в том числе ТМЦ Подрядчика
B5: Справочно, ТМЦ обеспечения Заказчика | C5: руб.
B6: Прочие затраты Заказчика (непредвиденные затраты), лимит | C6: руб.
B10: ="Стоимость с НДС "&'Ценовые нормативы'!Nds*100&"%, всего" -> Стоимость с НДС 20%, всего | C10: руб. | D10: =SUM(D12:D15) -> 0 | E10: =SUM(E12:E15) -> 0 | F10: =SUM(F12:F15) -> 0 | G10: =SUM(D10:F10) -> 0
B11: в том числе:
B12: Услуги и ТМЦ Подрядчика | C12: руб. | G12: =SUM(D12:F12) -> 0
B13: в том числе ТМЦ Подрядчика
B14: Справочно, ТМЦ обеспечения Заказчика | C14: руб. | G14: =SUM(D14:F14) -> 0
B15: Прочие затраты Заказчика (непредвиденные затраты), лимит | C15: руб. | G15: =SUM(D15:F15) -> 0

Sheet Ведомость объема работ (hidden)
A3: 95B8996E-A92E-40F2-8A9B-251AB1F004D4
C4: Ведомость объема работ | L4: TRUE
C5: ='Исходные данные'!D19 -> Строительство объектов энергетики Правдинского региона
D6: Шифр проекта | E6: ='Исходные данные'!projectcode -> 1980615/0880Д | K6: ='Исходные данные'!lotNumber -> 2000350438 (680-20-КС(ТЗ))
D7: Разработчик проекта | E7: ='Исходные данные'!projectdeveloper -> ООО «РН-УфаНИПИнефть»
D8: Заказчик | E8: ООО "РН-Юганскнефтегаз"
C10: № п/п | D10: Обоснование (№ЛС) | E10: Виды работ и затрат | F10: Единица измерения | G10: Количество | H10: Объем выполняемых работ по ЛС | I10: Примечание | J10: Название файла локальной сметы | K10: Раздел
C11: 1 | D11: 2 | E11: 3 | F11: 4 | G11: 5 | H11: 6 | I11: 7 | J11: 8 | K11: 9
A12: object_code | B12: outlay_code | C12: C10 | D12: C11 | E12: C12 | F12: C13 | G12: C14 | H12: C15 | I12: C17 | J12: C18 | K12: C16
A13: 5D57A968-2E2D-47A8-B7F4-6C635AF194C3 | C13: ='Исходные данные'!$D$25 & " " & 'Исходные данные'!$E$25 & " (" & 'Исходные данные'!$F$25 & ")" -> ВЛ 6 кВ на куст 3129.1 (габ.110 кВ) Приразломное м/р. Правдинский (КС00091309)
B14: 100 | C14: 1 | D14: 01-04-01-01 | E14: Рубка леса , ВЛ 6 кВ на куст 3129.1 (объект 017.170.001-01) | F14: комплекс работ | G14: 1 | H14: учесть следующий объем работ: | J14: 1980615_0880Д-Р-017.170.001-СМ-01-ЛС_01-04-01-01_(17110) | K14: Глава 1 Лес
B15: 103 | C15: 2 | D15: 04-01-01 | E15: Двухцепная ВЛ 6 кВ, ВЛ 6 кВ на куст 3129.1 (объект 017.170.001-01) | F15: комплекс работ | G15: 1 | H15: позиции с п.14 по п.17; с п.23 по п.112; с п.118 по п.122 по смете в полном объеме. По остальным позициям учесть следующий объем работ: | J15: 1980615_0880Д-Р-017.170.001-СМ-01-ЛС_04-01-01_(13400) | K15: Глава 2-7
B16: 109 | C16: 3 | D16: 04-01-02 | E16: Кабельная линия 6 кВ, ВЛ 6 кВ на куст 3129.1 (объект 017.170.001-01) | F16: комплекс работ | G16: 1 | H16: Учесть весь объем предусмотренный сметой | J16: 1980615_0880Д-Р-017.170.001-СМ-01-ЛС_04-01-02_(13410) | K16: Глава 2-7
B17: 110 | C17: 4 | D17: 08-04-01-01 | E17: Устройство зимника, ВЛ 6 кВ на куст 3129.1 (объект 017.170.001-01) | F17: комплекс работ | G17: 1 | H17: Учесть весь объем предусмотренный сметой | J17: 1980615_0880Д-Р-017.170.001-СМ-01-ЛСР_08-04-01-01_(17050) | K17: Глава 9
B18: 111 | C18: 5 | D18: 08-04-01-02 | E18: Устройство лежневой дороги , ВЛ 6 кВ на куст 3129.1 (объект 017.170.001-01) | F18: комплекс работ | G18: 1 | H18: Учесть весь объем предусмотренный сметой | J18: 1980615_0880Д-Р-017.170.001-СМ-01-ЛСР_08-04-01-02_(17060) | K18: Глава 8 ВЗиС
B19: 112 | C19: 6 | D19: 08-04-01-03 К=5 | E19: Монтажная площадка из лежневого настила под анкерные опоры . На 1 шт. Всего 5 шт., ВЛ 6 кВ на куст 3129.1 (объект 017.170.001-01) | F19: комплекс работ | G19: 1 | H19: Учесть весь объем предусмотренный сметой | J19: 1980615_0880Д-Р-017.170.001-СМ-01-ЛСР_08-04-01-03_(17070) | K19: Глава 8 ВЗиС
B20: 113 | C20: 7 | D20: 08-04-01-04 К=7 | E20: Монтажная площадка из лежневого настила под промежуточные опоры . На 1 шт. Всего 7 шт., ВЛ 6 кВ на куст 3129.1 (объект 017.170.001-01 | F20: комплекс работ | G20: 1 | H20: Учесть весь объем предусмотренный сметой | J20: 1980615_0880Д-Р-017.170.001-СМ-01-ЛСР_08-04-01-04_(17080) | K20: Глава 8 ВЗиС
B21: 115 | C21: 8 | D21: 09-04-01-01 | E21: Первоначальная очистка от снега территории строительства , ВЛ 6 кВ на куст 3029.1 (объект 017.170.001-01) | F21: комплекс работ | G21: 1 | H21: учесть следующий объем работ: | J21: 1980615_0880Д-Р-017.170.001-СМ-01-ЛСР_09-04-01-01_(17100) | K21: Глава 9
B22: 118 | C22: 9 | D22: 09-04-01-02 | E22: Пусконаладочные работы ВЛ 6 кВ, ВЛ 6 кВ на куст 3129.1 (объект 017.170.001-01) | F22: комплекс работ | G22: 1 | H22: Учесть весь объем предусмотренный сметой | J22: 1980615_0880Д-Р-017.170.001-СМ-01-ЛСР_09-04-01-02_(17030) | K22: ПНР
B23: 119 | C23: 10 | D23: 09-04-01-03 | E23: Пусконаладочные работы КЛ 6 кВ, ВЛ 6 кВ на куст 3129.1 (объект 017.170.001-01) | F23: комплекс работ | G23: 1 | H23: Учесть весь объем предусмотренный сметой | J23: 1980615_0880Д-Р-017.170.001-СМ-01-ЛСР_09-04-01-03_(17040) | K23: ПНР
A24: AEEAB128-A9D6-4DE1-ACE9-6CD791FCF82A | C24: ='Исходные данные'!$D$26 & " " & 'Исходные данные'!$E$26 & " (" & 'Исходные данные'!$F$26 & ")" -> ВЛ 6 кВ на куст 3129.2 (габ. 6 кВ) Приразломное м/р. Правдинский (КС00091313)
B25: 100 | C25: 1 | D25: 01-04-02-01 | E25: Рубка леса , ВЛ 6 кВ на куст 3129.2 (объект 017.170.001-02) | F25: комплекс работ | G25: 1 | H25: Учесть весь объем предусмотренный сметой | J25: 1980615_0880Д-Р-017.170.001-СМ-02-ЛС_01-04-02-01_(16080) | K25: Глава 1 Лес
B26: 101 | C26: 2 | D26: 04-02-01 | E26: Одноцепная ВЛ 6 кВ , ВЛ 6 кВ на куст 3129.2 (объект 017.170.001-02) | F26: комплекс работ | G26: 1 | H26: позиции с п.1 по п.8; с п.17 по п.20; с п.26 по п.79 по смете в полном объеме. Учесть следующий объем работ: | J26: 1980615_0880Д-Р-017.170.001-СМ-02-ЛС_04-02-01_(13420) | K26: Глава 2-7
B27: 114 | C27: 3 | D27: 08-04-02-01 | E27: Устройство лежневой дороги , ВЛ 6 кВ на куст 3129.2 (объект 017.170.001-02) | F27: комплекс работ | G27: 1 | H27: Учесть весь объем предусмотренный сметой | J27: 1980615_0880Д-Р-017.170.001-СМ-02-ЛСР_08-04-02-01_(16060) | K27: Глава 8 ВЗиС
B28: 116 | C28: 4 | D28: 09-04-02-01 | E28: Пусконаладочные работы, ВЛ 6 кВ на куст 3129.2 (объект 017.170.001-02) | F28: комплекс работ | G28: 1 | H28: Учесть весь объем предусмотренный сметой | J28: 1980615_0880Д-Р-017.170.001-СМ-02-ЛСР_09-04-02-01_(16050) | K28: ПНР
E32: ='Исходные данные'!executor&"_______________________" -> Ответственный исполнитель_______________________ | F32: ='Исходные данные'!executorPosition -> Вед. Специалист ОСОЭ УКС | H32: ='Исходные данные'!executorFio -> Волостников Н.А.
F33: должность | H33: Ф.И.О.

Sheet workSections (hidden)
A1: section
A2: Глава 1 Лес
A3: Глава 1 Прочие
A4: Глава 2-7
A5: Глава 8 ВЗиС
A6: Глава 8 Зимник
A7: Глава 9
A8: ПНР
A9: Испытание свай
A10: Врезка
A11: Разница в стоимости электроэнергии

Sheet Требования к расчету (hidden)
A3: 95B8996E-A92E-40F2-8A9B-251AB1F004D4
A4: 44F0DDE4-406B-4C0C-A16C-0277CC39E372 | B4: Требования к расчету стоимости лота
B5: Строительство объектов энергетики Правдинского региона
M6: 2000350438 (680-20-КС(ТЗ))
A7: 5D57A968-2E2D-47A8-B7F4-6C635AF194C3 | B7: ВЛ 6 кВ на куст 3129.1 (габ.110 кВ) Приразломное м/р. Правдинский (КС00091309)
A8: AEEAB128-A9D6-4DE1-ACE9-6CD791FCF82A | B8: ВЛ 6 кВ на куст 3129.2 (габ. 6 кВ) Приразломное м/р. Правдинский (КС00091313)
B10: Срок строительства : 10.03.2021 - 30.06.2021
B12: № п/п | C12: Наименование
B13: 1 | C13: 2
B14: 1 | C14: Стоимость работ и услуг формируется на основании ТЗ и базисной стоимости услуг пересчетом в текущие цены с помощью индексов.
B15: 2 | C15: Стоимость СМР и ПНР в текущем уровне цен определяется с накладными расходами и сметной прибылью согласно сметной документации, разработанной проектантом, с применением письма Минрегионразвития от 27.11.2012г. №2536-ИП/12/ГС.
B16: 3 | C16: Лимитированные затраты по объектам, входящим в проект «Обустройство … месторождения», определяются в соответствии со ССР / объектными сметами; по объектам, входящим в проект «ВЛ..», затраты на ВЗиС определяются согласно нормам 2.5-2.7 Таблицы 1 Приложения 1 ГСН 81-05-01-2001 г. и затраты на зимнее удорожание по ГСН 81-05-02-2007». Нормы, определенные по ГСН не должны превышать нормы, предусмотренные сметной документацией.
B17: 4 | C17: В расчет НМЦ необходимо включать часть резерва средств на непредвиденные работы и затраты по норме, не превышающей предусмотренную в Сводном сметном расчете (рекомендуется 50% от норматива, учтенного Сводным сметным расчетом), т.е в затраты Подрядчика включать 1,5 %.
B18: 5 | C18: Для начисления лимитированных и прочих затрат используется сметная стоимость МТР пересчетом в текущий уровень цен с помощью индекса на МТР, соответствующего Приложению 1 настоящего Распоряжения. Из полученной базы для начисления лимитированных необходимо исключить 50% стоимости ТМЦ поставки Заказчика со среднесложившимся индексом (формула указана в Приложении ... "Расчет стоимости")
B19: 6 | C19: Прочие затраты подрядчика – перевозка рабочих, затраты, связанные с осуществлением работ вахтовым методом, определяются на основе расчета, но не выше лимита, предусмотренного СД на данный объект.
B20: 7 | C20: Затраты на перебазировку строительной техники определяются на основании расчета, но не выше лимита, предусмотренного СД на данный объект, приведенному к текущему уровню цен. При этом необходимо исключить затраты, учтённые в единичных расценках на ЭММ на перебазировку техники согласно «Указаниям по применению территориальных единичных расценок на строительные и специальные строительные работы».
B21: 8 | C21: Затраты на страхование строительных рисков для объектов строительства относятся к затратам Заказчика.
B22: 9 | C22: На стоимость материалов и оборудования, приобретаемых Подрядчиком, начисляются заготовительно-складские расходы в следующем размере: - материалы (за исключением металлоконструкций) – 2%; - металлоконструкции - 0,75%; - оборудование - 1,2%;
B23: 10 | C23: Если предусмотрены работы по бурению лидерных скважин под забивку свай на основании ТЕР-2001 ХМАО сборника 4, то стоимость работ по погружению свай в лидерные скважины с последующей забивкой их в плотные грунты, рассчитывать с использованием коэффициента 0,71 к расценкам сборника 5 на погружение свай (без учета стоимости свай).
B24: 11 | C24: Стоимость работ при укладке и демонтаже временного лежневого проезда (настила) рассчитывать от базисной стоимости услуг пересчетом в текущие цены с помощью индексов, соответствующих Приложению 1 настоящего Распоряжения. Стоимость в базисном уровне цен не должна превышать стоимость по СД.
C25: Наименование | D25: Единица измерения | E25: Количество | F25: Стоимость за единицу | G25: Основная зарплата | H25: Эксплуатация машин | I25: Зарплата машинистов | J25: Материалы | K25: Трудозатраты рабочих | L25: НР | M25: СП
C26: Устройство лежневого настила | D26: 1м2 | E26: 1 | F26: 161.29 | G26: 8.48 | H26: 6.25 | I26: 1.13 | J26: 134.16 | K26: 0.32 | L26: 8.07 | M26: 4.33
C27: Демонтаж лежневого настила | D27: 1м2 | E27: 1 | F27: 21.694 | G27: 6.784 | H27: 5 | I27: 0.904 | K27: 0.256 | L27: 6.45 | M27: 3.46
B28: 12 | C28: Стоимость работ по монтажу блок-боксов определять по расценкам ГЭСН 2001-25 с привязкой по нормативам к базе 2001г.
B29: 13 | C29: Для объекта, обеспеченного 100% РД расчет затрат на транспортировку навалочных грузов (песок, щебень) выполнять на расстояние, указанное в СД. Для объекта, необеспеченного 100% РД, расчет затрат на транспортировку навалочных грузов (песок, щебень) выполнять на расстояние указанные в ТЗ, транспортной схеме.
B30: 14 | C30: Оплата затрат по водоотливу, предусмотренному СД, производится по фактическому использованию техники, но не выше лимита предусмотренного ЛС.
B31: 15 | C31: Стоимость работ на ремонт и содержание дорог формируется на основании ПСД с включением затрат в главу 9 ССРСС.
B32: 16 | C32: Формирование затрат по наклонно-направленному бурению (ННБ) определяется в соответствии со сметной документацией, т.е. с применением расценок СНБ (редакция 2014).
B33: 17 | C33: Транспортные затраты на привозные материалы определяются расчетным путем на основании %, предусмотренного СД, и не выше сметного лимита (дополнительные затраты на доставку материалов до объекта).
B34: 18 | C34: На этапе формирования ТЗ и стоимости МТР нормы расхода шнека при шнековом бурении ГЭСН (ТЕР)-2001-4 «Скважины» определять согласно указанным нормам расхода материалов на свайные работы (письмо К от 28.08.2018 исх.№ ЭЛ-12998). Количество не должно превышать объем, предусмотренный СД.
C35: Наименование норматива | D35: Наименование работ | L35: Единицы измерения | M35: Рекомендованный расход
C36: ГЭСН 04-01-037-хх | D36: Шнековое бурение скважин станками типа ЛБУ-50 глубиной бурения до 10 м в грунтах группы: 1-4 | L36: 100 м
D37: Шнек | L37: шт. | M37: 0.17
D38: Долота | L38: шт. | M38: 0.31
C39: ГЭСН 04-01-038-хх | D39: Шнековое бурение скважин станками типа ЛБУ-50 глубиной бурения до 20 м в грунтах группы: 1-4 | L39: 100 м
D40: Шнек | L40: шт. | M40: 0.34
D41: Долота | L41: шт. | M41: 0.31
C42: ГЭСН 04-01-039-хх | D42: Шнековое бурение скважин станками типа ЛБУ-50 глубиной бурения до 30 м в грунтах группы: 1-4 | L42: 100 м
D43: Шнек | L43: шт. | M43: 0.43
D44: Долота | L44: шт. | M44: 0.31
C45: ГЭСН 04-01-040-хх | D45: Шнековое бурение скважин станками типа СО-2 глубиной бурения до 6 м в грунтах группы: 1-3 | L45: 100 м
D46: Шнек | L46: шт. | M46: 0.09
D47: Долота | L47: шт. | M47: 0.31
C48: ГЭСН 04-01-041-хх | D48: Шнековое бурение скважин станками типа СО-2 глубиной бурения до 12 м в грунтах группы: 1-3 | L48: 100 м
D49: Шнек | L49: шт. | M49: 0.17
D50: Долота | L50: шт. | M50: 0.31
C51: ГЭСН 04-01-042-хх | D51: Шнековое бурение скважин станками типа СО-2 глубиной бурения до 18 м в грунтах группы: 1-3 | L51: 100 м
D52: Шнек | L52: шт. | M52: 0.26
D53: Долота | L53: шт. | M53: 0.31
C54: ГЭСН 04-01-043-хх | D54: Шнековое бурение скважин станками типа СО-2 глубиной бурения до 24 м в грунтах группы: 1-3 | L54: 100 м
D55: Шнек | L55: шт. | M55: 0.34
D56: Долота | L56: шт. | M56: 0.31
C57: Приемка и списание (количества) шнеков буровых (ШБ) осуществляется на основе подтверждающего документа утвержденного руководителем Заказчика – (акт на количество отработанных шнеков буровых по факту, согласно тех. паспорта с указанием марки и диаметра шнеков с визой представителя Подрядчика, представителя контролирующих органов строительного контроля, уполномоченного представителя Заказчика.)
B58: 19 | C58: Затраты на компенсацию разницы в стоимости электроэнергии, получаемой от дизельной электростанции для включения в расчет стоимости строительства должны быть обоснованы ПОС и учтены в утвержденном Сводном сметном расчете. При отсутствии данных затрат в ПСД, в расчете затраты не учитывать.
B59: 20 | C59: В тех случаях, когда проектно-сметной документацией предусмотрены работы по выдержке трубопроводов под давлением при гидравлическом испытании на прочность и герметичность и при пневматическом испытании на герметичность следует применять коэффициент 0.3 к расценкам сборника №25 "Магистральные трубопроводы".
B60: 21 | C60: Формирование затрат на транспортировку грузов и погрузо-разгрузочных работ в НМЦ производится с использованием базисно-индексного метода от базисного уровня цен 2001 года с применением индекса.
B61: 22 | C61: Возможны дополнения в зависимости от ПСД, вида строительства и т.д.
G65: Ответственный исполнитель ОЦП по КВ | I65: Ведущий специалист | J65: Ведущий специалист | K65: Берестова А.В. | L65: Берестова А.В. | M65: Берестова А.В.
I66: должность | K66: Ф.И.О.

Sheet Ведомость ОР
A3: 95B8996E-A92E-40F2-8A9B-251AB1F004D4
C4: Ведомость объема работ | I4: TRUE
C5: Строительство объектов энергетики Правдинского региона
D6: Шифр проекта | E6: 1980615/0880Д
D7: Разработчик проекта | E7: ООО «РН-УфаНИПИнефть»
D8: Заказчик | E8: ООО "РН-Юганскнефтегаз"
C10: № п/п | D10: Обоснование (№ЛС) | E10: Виды работ и затрат | F10: Единица измерения | G10: Количество | H10: Объем выполняемых работ по ЛС
C11: 1 | D11: 2 | E11: 3 | F11: 4 | G11: 5 | H11: 6
A12: object_code | B12: outlay_code | C12: C10 | D12: C11 | E12: C12 | F12: C13 | G12: C14 | H12: C15
A13: 5D57A968-2E2D-47A8-B7F4-6C635AF194C3 | C13: ВЛ 6 кВ на куст 3129.1 (габ.110 кВ) Приразломное м/р. Правдинский (КС00091309)
B14: 100 | C14: 1 | D14: 01-04-01-01 | E14: Рубка леса , ВЛ 6 кВ на куст 3129.1 (объект 017.170.001-01) | F14: комплекс работ | G14: 1 | H14: Учесть следующий объем работ: п. 9 Расчистка площадей от кустарника и мелколесья машинами глубинной подготовки полей на тракторе мощностью 103 кВт (140 л.с.) - 11,697 га п. 10 Планировка площадей бульдозерами мощностью 79 кВт (108 л.с.) - 116,97 1000 м2 спланированной поверхности за 1 проход бульдозера
E15: Расчистка площадей от кустарника и мелколесья машинами глубинной подготовки полей на тракторе мощностью: 103 кВт (140 л.с.) | F15: 1 га | G15: 11.697 | H15: искл п. 9
E16: Дробление древесно-кустарниковой растительности в щепу | F16: 10 м3 | G16: 15.8 | H16: вкл п.9
B17: 103 | C17: 2 | D17: 04-01-01 | E17: Двухцепная ВЛ 6 кВ, ВЛ 6 кВ на куст 3129.1 (объект 017.170.001-01) | F17: комплекс работ | G17: 1 | H17: позиции с п.14 по п.17; с п.23 по п.112; с п.118 по п.122 по смете в полном объеме. По остальным позициям учесть следующий объем работ: п. 113 Забивка вертикальных заземлителей механизированная на глубину до 5 м - 8 заземлителей п. 114 Горячекатаная арматурная сталь гладкая класса А-I, диаметром 12 мм - 0,04 тн п. 115 Сталь круглая углеродистая обыкновенного качества марки ВСт3пс5-1 диаметром 18 мм . Круг В18 ГОСТ 2590-2006 - 0,1918 тн п. 116 Развозка конструкций и материалов опор ВЛ 0,38-10 кВ по трассе одностоечных железобетонных опор - 3 опоры п. 117 Развозка конструкци й и материалов опор ВЛ 0,38-10 кВ по трассе приставок железобетонных - 7 опор
E18: Перевозка грузов I класса автомобилями бортовыми грузоподъемностью до 5 т на расстояние до 1 км . Перевозка по трассе линейной арматуры,изоляторов, стальных ростверков,оголовков | F18: т | G18: 34.159 | H18: искл п. 121
E19: Перевозка грузов I класса автомобилями бортовыми грузоподъемностью до 5 т на расстояние до 1 км . Перевозка по трассе линейной арматуры,изоляторов, стальных ростверков,оголовков | F19: т | G19: 34.159 | H19: вкл п. 121
E20: Шнек буровой диаметром 300мм ШБ 300х114/1400/200-Т90, цена 10860:3,61.1,13 | F20: шт. | G20: 0.13524 | H20: искл п. 34
E21: Шнек буровой диаметром 300мм ШБ 300х114/1400/200-Т90, цена 10860:3,61.1,13 | F21: шт. | G21: 0.05292 | H21: вкл п. 34
E22: Перевозка грузов I класса автомобилями бортовыми грузоподъемностью до 15 т на расстояние до 1 км. Развозка по трассе опор | F22: т | G22: 72.589 | H22: искл п.122
E23: Перевозка грузов I класса автомобилями бортовыми грузоподъемностью до 15 т на расстояние до 1 км. Развозка по трассе опор | F23: т | G23: 72.589 | H23: вкл п.122
B24: 109 | C24: 3 | D24: 04-01-02 | E24: Кабельная линия 6 кВ, ВЛ 6 кВ на куст 3129.1 (объект 017.170.001-01) | F24: км | G24: 0.07 | H24: Учесть весь объем предусмотренный сметой
B25: 110 | C25: 4 | D25: 08-04-01-01 | E25: Устройство зимника, ВЛ 6 кВ на куст 3129.1 (объект 017.170.001-01) | F25: км | G25: 0.159 | H25: Учесть весь объем предусмотренный сметой
E26: Уборка снега со строительных площадок и дорог бульдозерами с перемещениями на расстояние до 20 м. Надвигание снега на дорожную полосу толщиной 50 см | F26: 1000м3 | G26: 0.7155 | H26: искл п. 2
E27: Уборка снега со строительных площадок и дорог бульдозерами с перемещениями на расстояние до 20 м. Устройство валков из снега | F27: 1000м3 | G27: 0.1352295 | H27: искл п.5
B28: 111 | C28: 5 | D28: 08-04-01-02 | E28: Устройство лежневой дороги , ВЛ 6 кВ на куст 3129.1 (объект 017.170.001-01) | F28: км | G28: 1.688 | H28: Учесть весь объем предусмотренный сметой
E29: Погрузка, разгрузка при автомобильных перевозках леса круглого | F29: т | G29: 238.17 | H29: искл п. 1,2
E30: Погрузка, разгрузка при автомобильных перевозках леса круглого | F30: т | G30: 238.17 | H30: вкл п. 1,2
E31: Перевозка грузов I класса автомобилями бортовыми грузоподъемностью до 15 т на расстояние до 1 км. Перевозка деловой древесины | F31: т | G31: 238.17 | H31: искл п. 3
E32: Перевозка грузов I класса автомобилями бортовыми грузоподъемностью до 15 т на расстояние до 1 км. Перевозка деловой древесины | F32: т | G32: 238.17 | H32: вкл п. 3
E33: Устройство лежневого настила | F33: м2 | G33: 7596 | H33: искл п. 4
E34: Устройство лежневого настила | F34: м2 | G34: 7596 | H34: вкл п. 4
E35: Перевозка грузов автомобилями-самосвалами грузоподъемностью 10 т работающих из карьера на расстояние от 9,5 до 10,0 км | F35: т | G35: 3638.9088 | H35: искл п. 7
E36: Перевозка грузов автомобилями-самосвалами грузоподъемностью 10 т работающих из карьера за каждые 0,5 км св.10 км. Подвозка грунта на 33 км | F36: т | G36: 3638.9088 | H36: искл п.8
E37: Перевозка грузов автомобилями-самосвалами грузоподъемностью 10 т работающих вне карьера на расстояние до 32 км 1 класс груза | F37: т | G37: 3638.9088 | H37: вкл. п. 7
E38: Демонтаж лежневого настила | F38: м2 | G38: 7596 | H38: искл п. 12
E39: Демонтаж лежневого настила | F39: м2 | G39: 7596 | H39: вкл п. 12
B40: 112 | C40: 6 | D40: 08-04-01-03 К=5 | E40: Монтажная площадка из лежневого настила под анкерные опоры . На 1 шт. Всего 5 шт., ВЛ 6 кВ на куст 3129.1 (объект 017.170.001-01) | F40: шт | G40: 5 | H40: Учесть весь объем предусмотренный сметой
E41: Устройство лежневого настила | F41: м2 | G41: 4500 | H41: искл п. 1
E42: Устройство лежневого настила | F42: м2 | G42: 4500 | H42: вкл п. 1
E43: Перевозка грузов автомобилями-самосвалами грузоподъемностью 10 т работающих из карьера на расстояние от 9,5 до 10,0 км | F43: т | G43: =5*436.32 -> 2181.6 | H43: искл п. 3
E44: Перевозка грузов автомобилями-самосвалами грузоподъемностью 10 т работающих из карьера за каждые 0,5 км св.10 км. Подвозка грунта на 33 км | F44: т | G44: =5*436.32 -> 2181.6 | H44: искл п.4
E45: Перевозка грузов автомобилями-самосвалами грузоподъемностью 10 т работающих вне карьера на расстояние до 32 км 1 класс груза | F45: т | G45: =5*436.32 -> 2181.6 | H45: вкл. п. 3
E46: Демонтаж лежневого настила | F46: м2 | G46: 4500 | H46: искл п. 8
E47: Демонтаж лежневого настила | F47: м2 | G47: 4500 | H47: вкл п. 8
B48: 113 | C48: 7 | D48: 08-04-01-04 К=7 | E48: Монтажная площадка из лежневого настила под промежуточные опоры . На 1 шт. Всего 7 шт., ВЛ 6 кВ на куст 3129.1 (объект 017.170.001-01 | F48: шт | G48: 7 | H48: Учесть весь объем предусмотренный сметой
E49: Устройство лежневого настила | F49: м2 | G49: 2625 | H49: искл п.1
E50: Устройство лежневого настила | F50: м2 | G50: 2625 | H50: вкл п.1
E51: Перевозка грузов автомобилями-самосвалами грузоподъемностью 10 т работающих из карьера на расстояние от 9,5 до 10,0 км | F51: т | G51: =7*181.8 -> 1272.6 | H51: искл п.3
E52: Перевозка грузов автомобилями-самосвалами грузоподъемностью 10 т работающих из карьера за каждые 0,5 км св.10 км. Подвозка грунта на 33 км | F52: т | G52: =7*181.8 -> 1272.6 | H52: искл п.4
E53: Перевозка грузов автомобилями-самосвалами грузоподъемностью 10 т работающих вне карьера на расстояние до 32 км 1 класс груза | F53: т | G53: =7*181.8 -> 1272.6 | H53: вкл.п.3
E54: Демонтаж лежневого настила | F54: м2 | G54: 2625 | H54: искл п.8
E55: Демонтаж лежневого настила | F55: м2 | G55: 2625 | H55: искл п.8
B56: 115 | C56: 8 | D56: 09-04-01-01 | E56: Первоначальная очистка от снега территории строительства , ВЛ 6 кВ на куст 3029.1 (объект 017.170.001-01) | F56: комплекс работ | G56: 1 | H56: учесть следующий объем работ: п.1 Уборка снега со строительных площадок и дорог бульдозерами с перемещениями на расстояние до 20 м - 26,06196 - 1000 м3 снега п.2 Уборка снега со строительных площадок и дорог бульдозерами с перемещениями на расстояние на каждые последующие 10 м - 26,06196 - 1000 м3 снега
D57: 08-04-01-01 | E57: Устройство зимника, ВЛ 6 кВ на куст 3129.1 (объект 017.170.001-01)
E58: Уборка снега со строительных площадок и дорог бульдозерами с перемещениями на расстояние до 20 м. Надвигание снега на дорожную полосу толщиной 50 см | F58: 1000м3 | G58: 0.7155 | H58: вкл п. 2
E59: Уборка снега со строительных площадок и дорог бульдозерами с перемещениями на расстояние до 20 м. Устройство валков из снега | F59: 1000м3 | G59: 0.1352295 | H59: вкл п.5
B60: 118 | C60: 9 | D60: 09-04-01-02 | E60: Пусконаладочные работы ВЛ 6 кВ, ВЛ 6 кВ на куст 3129.1 (объект 017.170.001-01) | F60: комплекс работ | G60: 1 | H60: Учесть весь объем предусмотренный сметой
B61: 119 | C61: 10 | D61: 09-04-01-03 | E61: Пусконаладочные работы КЛ 6 кВ, ВЛ 6 кВ на куст 3129.1 (объект 017.170.001-01) | F61: комплекс работ | G61: 1 | H61: Учесть весь объем предусмотренный сметой
A62: AEEAB128-A9D6-4DE1-ACE9-6CD791FCF82A | C62: ВЛ 6 кВ на куст 3129.2 (габ. 6 кВ) Приразломное м/р. Правдинский (КС00091313)
B63: 100 | C63: 1 | D63: 01-04-02-01 | E63: Рубка леса , ВЛ 6 кВ на куст 3129.2 (объект 017.170.001-02) | F63: га | G63: 3.88 | H63: Учесть весь объем предусмотренный сметой
E64: Расчистка площадей от кустарника и мелколесья машинами глубинной подготовки полей на тракторе мощностью 103 кВт (140 л.с.) | F64: 1 га | G64: 3.875 | H64: искл п. 6
E65: Дробление древесно-кустарниковой растительности в щепу | F65: 10 м3 | G65: 5.24 | H65: вкл п.6
B66: 101 | C66: 2 | D66: 04-02-01 | E66: Одноцепная ВЛ 6 кВ , ВЛ 6 кВ на куст 3129.2 (объект 017.170.001-02) | F66: комплекс работ | G66: 1 | H66: позиции с п.1 по п.8; с п.17 по п.20; с п.26 по п.79 по смете в полном объеме. Учесть следующий объем работ: п.9 Бурение ям глубиной до 2 м бурильно-крановыми машинами на тракторе, группа грунтов 1 - 0,12 -100 ям; п.10 Погружение дизель-молотом копровой установки на базе трактора стальных свай шпунтового ряда массой 1 м до 70 кг, длиной свыше 8 м в грунты группы 1- 9,126 тн;п.11 Погружение дизель-молотом копровой установки на базе трактора стальных свай шпунтового ряда массой 1 м свыше 70 кг, длиной свыше 8 м в грунты группы 1-5,4756 тн;п.13 Профили фасонные горячекатаные для шпунтовых свай Л4 и Л5 массой от 50 до 100 кг, сталь марки 16ХГ--14,747616 тн;п.14 Резка обсадных труб наружным диаметром до 168 мм. Наращивание свай- 12 рез;п.15 Сварка обсадных труб наружным диаметром до 168 мм. Наращивание свай-12 сварок. п.16 Трубы бесшовные обсадные из стали группы Д и Б с короткой треугольной резьбой наружный диаметр 168 мм толщина стенки 8.9 мм. Сваи- 420,16 м п. 21 Очистка поверхности щетками. Очистка свай-219,4 м2 п.22 Обеспыливание поверхности. Обеспыливание свай- 219,4 м2 п.23 Окраска металлических огрунтованных поверхностей эмалью КО-88. Окраска труб эмалью КО-198 в 2 слоя-0,18 - 100м2 п.24 Огрунтовка металлических поверхностей за один раз грунтовкой ХС-059 - 2,01 -100м2 п.25 Окраска металлических огрунтованных поверхностей эмалью ХС-759. Окраска в 4 слоя- 2,01-100 м2
E67: Перевозка грузов I класса автомобилями бортовыми грузоподъемностью до 5 т на расстояние до 1 км . Перевозка по трассе стальных ростверков | F67: т | G67: 0.534 | H67: искл п. 77
E68: Перевозка грузов I класса автомобилями бортовыми грузоподъемностью до 5 т на расстояние до 1 км . Перевозка по трассе стальных ростверков | F68: т | G68: 0.534 | H68: вкл п. 77
E69: Перевозка грузов I класса автомобилями бортовыми грузоподъемностью до 15 т на расстояние до 1 км. Развозка по трассе портала | F69: т | G69: 2.662 | H69: искл п.78
E70: Перевозка грузов I класса автомобилями бортовыми грузоподъемностью до 15 т на расстояние до 1 км. Развозка по трассе портала | F70: т | G70: 2.662 | H70: вкл п.78
B71: 114 | C71: 3 | D71: 08-04-02-01 | E71: Устройство лежневой дороги , ВЛ 6 кВ на куст 3129.2 (объект 017.170.001-02) | F71: км | G71: 0.52 | H71: Учесть весь объем предусмотренный сметой
E72: Погрузка, разгрузка при автомобильных перевозках леса круглого | F72: т | G72: 131.98 | H72: искл п. 1,2
E73: Погрузка, разгрузка при автомобильных перевозках леса круглого | F73: т | G73: 131.98 | H73: вкл п. 1,2
E74: Перевозка грузов I класса автомобилями бортовыми грузоподъемностью до 15 т на расстояние до 1 км. Перевозка деловой древесины | F74: т | G74: 131.98 | H74: искл п. 3
E75: Перевозка грузов I класса автомобилями бортовыми грузоподъемностью до 15 т на расстояние до 1 км. Перевозка деловой древесины | F75: т | G75: 131.98 | H75: вкл п. 3
E76: Устройство лежневого настила | F76: м2 | G76: 4160 | H76: искл п.4
E77: Устройство лежневого настила | F77: м2 | G77: 4160 | H77: вкл п.4
E78: Перевозка грузов автомобилями-самосвалами грузоподъемностью 10 т работающих из карьера на расстояние от 9,5 до 10,0 км | F78: т | G78: 2016.768 | H78: искл п.7
E79: Перевозка грузов автомобилями-самосвалами грузоподъемностью 10 т работающих из карьера за каждые 0,5 км св.10 км. Подвозка грунта на 33 км | F79: т | G79: 2016.768 | H79: искл п.8
E80: Перевозка грузов автомобилями-самосвалами грузоподъемностью 10 т работающих вне карьера на расстояние до 32 км 1 класс груза | F80: т | G80: 2016.768 | H80: вкл.п.7
E81: Демонтаж лежневого настила | F81: м2 | G81: 4160 | H81: искл п.12
E82: Демонтаж лежневого настила | F82: м2 | G82: 4160 | H82: вкл п.12
B83: 116 | C83: 4 | D83: 09-04-02-01 | E83: Пусконаладочные работы, ВЛ 6 кВ на куст 3129.2 (объект 017.170.001-02) | F83: комплекс работ | G83: 1 | H83: Учесть весь объем предусмотренный сметой

Sheet Ценовые нормативы (hidden)
A3: 95B8996E-A92E-40F2-8A9B-251AB1F004D4
A4: AAC140DA-C642-4FD7-9815-44843558A1D2 | B4: Ценовые нормативы,
B5: применяемые при расчете Договорной цены
B6: ='Исходные данные'!D19 -> Строительство объектов энергетики Правдинского региона
F7: ='Исходные данные'!lotNumber -> 2000350438 (680-20-КС(ТЗ))
B8: Шифр проекта | C8: ='Исходные данные'!projectcode -> 1980615/0880Д | F8: 5.50
B9: Разработчик проекта | C9: ='Исходные данные'!projectdeveloper -> ООО «РН-УфаНИПИнефть»
B10: Заказчик | C10: ООО "РН-Юганскнефтегаз"
B13: № п/п | C13: Наименование | D13: Единица измерения | E13: Ценовые нормативы | F13: Примечания
B14: 1 | C14: 2 | D14: 3 | E14: 4 | F14: 5
B15: C10 | C15: C11 | D15: C14 | E15: C12 | F15: C13
B16: Для расчета стоимости строительства объекта базисно-индексным методом от ТСНБ-2001 по ХМАО-Югре:
B17: 1 | C17: Индекс оплаты труда основных рабочих и механизаторов СМР | E17: 14.29
B18: 2 | C18: Индекс эксплуатации машин и механизмов СМР | E18: 7.86
B19: 3 | C19: Индекс на перевозку грузов | E19: 6.41
B20: 4 | C20: Индекс МТР (для расчета лимитированных затрат) СМР | E20: 4.16
B21: 5 | C21: Индекс к оплате труда пусконаладочного персонала | E21: 14.29
B22: 6 | C22: Уровень накладных расходов для СМР | E22: согласно МДС 81-34.2004 | F22: В районах Крайнего Севера и местностях, приравненных к ним
B23: 7 | C23: Уровень сметной прибыли для СМР | E23: согласно МДС 81-25.2001
B24: 8 | C24: Коэффициент к накладным расходам для СМР (кроме работ по строительству мостов) | E24: 1 | F24: На основании письма Федерального агентства по строительству и Жилищно-коммунальному хозяйству от 27 ноября 2012 г. N 2536-ИП/12/ГС
B25: 9 | C25: Коэффициент к сметной прибыли для СМР (кроме работ по строительству мостов) | E25: 1
B26: 10 | C26: Коэффициент к накладным расходам для СМР (для работ по строительству мостов) | E26: 1 | F26: На основании письма Федерального агентства по строительству и Жилищно-коммунальному хозяйству от 27 ноября 2012 г. N 2536-ИП/12/ГС
B27: 11 | C27: Коэффициент к сметной прибыли для СМР (для работ по строительству мостов) | E27: 1
B28: 12 | C28: Уровень накладных расходов для ПНР | E28: согласно МДС 81-34.2004 | F28: В районах Крайнего Севера и местностях, приравненных к ним
B29: 13 | C29: Уровень сметной прибыли для ПНР | E29: согласно МДС 81-25.2001
B30: 14 | C30: Средневзвешенный курс евро 2013г. | D30: руб. | E30: 42.19
B31: 15 | C31: НДС | D31: % | E31: 0.2
B32: 16 | C32: Затраты на мобилизацию строительной техники | D32: руб. | E32: =Перебазировка!$R$38+Перебазировка!$R$63 -> 0 | F32: Недопустимо превышение указанной стоимости прочих затрат
B33: 17 | C33: Затраты, связанные с осуществлением работ вахтовым методом | D33: руб. | E33: ='Ежеднев. возка и перевозка вахт'!$N$40+'Ежеднев. возка и перевозка вахт'!$N$45 -> 0
B34: 18 | C34: Затраты по перевозке автомобильным транспортом работников | D34: руб. | E34: ='Ежеднев. возка и перевозка вахт'!$N$38+'Ежеднев. возка и перевозка вахт'!$N$43 -> 0
B35: 19 | C35: Норма затрат на временные здания и сооружения | D35: % | E35: 0.025 | F35: Лимитированные затраты учесть не выше процента, указанного в сборнике сметных норм дополнительных затрат при производстве строительно-монтажных работ в зимнее время и сборнике сметных норм затрат на строительство временных зданий и сооружений (ГСН 81-05-02-2007, ГСН 81-05-01-2001).
B36: 20 | C36: Норма затрат на удорожание работ в зимний период | D36: % | E36: 0.037
B37: 21 | C37: Норма затрат на снегоборьбу | D37: % | E37: 0.004
B38: 22 | C38: Норма затрат на борьбу с гнусом | D38: % | E38: 0.001
B39: 23 | C39: Норматив непредвиденных расходов | D39: % | E39: 0.015 | F39: Не более 50% от норматива, предусмотренного сметной документацией, разработанной проектантом, согласно МДС 81-35.2004
B40: 24 | C40: Индекс на динамическое испытание свай | E40: 2.595
B41: 25 | C41: Индекс МТР для определения текущей стоимости вспомогательных материалов поставки Подрядчика | E41: 4.16 | F41: Текущая стоимость по вспомогательным материалам (малозначимых) раздел II определяется от сметной цены(столбец 18) с применением индекса на МТР. Указывается в приложении "ВПМ по лоту"
B42: 26 | C42: Индекс МТР для определения текущей стоимости оборудования поставки Подрядчика | E42: 5.01
B43: 27 | C43: Индекс на погрузочно-разгрузочные работы | E43: 9.53 | G43: Новый ценовой норматив
B44: 28 | C44: Устройство лежневого настила | D44: руб/м2 | E44: 179.14 | G44: =$B$44&" - "&$C$44&" - "&$E$44 -> 28 - Устройство лежневого настила - 179,14
B45: 29 | C45: Демонтаж лежневого настила | D45: руб/м2 | E45: 143.31 | G45: =$B$45&" - "&$C$45&" - "&$E$45 -> 29 - Демонтаж лежневого настила - 143,31
B46: 30 | C46: Норма затрат на временные здания и сооружения (ВЛ 6 кВ на куст 3129.1 в габ.110кВ) | D46: % | E46: 0.033 | G46: =$B$46&" - "&$C$46&" - "&$E$46 -> 30 - Норма затрат на временные здания и сооружения (ВЛ 6 кВ на куст 3129.1 в габ.110кВ) - 0,033
B47: 31 | C47: Норма затрат на удорожание работ в зимний период (ВЛ 6 кВ на куст 3129.1 в габ.110кВ) | D47: % | E47: 0.017 | G47: =$B$47&" - "&$C$47&" - "&$E$47 -> 31 - Норма затрат на удорожание работ в зимний период (ВЛ 6 кВ на куст 3129.1 в габ.110кВ) - 0,017
C51: ='Исходные данные'!executor2&"_________________________" -> Ответственный исполнитель ОЦП по КВ_________________________ | E51: ='Исходные данные'!executor2Position -> Ведущий специалист | F51: ='Исходные данные'!executor2Fio -> Берестова А.В.
E52: должность | F52: Ф.И.О.

Sheet СМР
B4: 95B8996E-A92E-40F2-8A9B-251AB1F004D4 | C4: Расчет стоимости СМР
C5: ='Исходные данные'!D19 -> Строительство объектов энергетики Правдинского региона
D7: Шифр проекта | E7: 1980615/0880Д | F7: 2000350438 (680-20-КС(ТЗ))
D8: Разработчик проекта | E8: ООО «РН-УфаНИПИнефть» | F8: Срок строительства:
D9: Заказчик | E9: ООО "РН-Юганскнефтегаз" | F9: 10.10.2021 - 28.02.2022
C11: № п/п | D11: Наименование работ и затрат | E11: Ед.изм. | F11: Стоимость в текущих ценах
C12: 1 | D12: 2 | E12: 3 | F12: 4
C13: C10 | D13: C11 | E13: C12 | F13: C14
A14: smr1 | C14: 1 | D14: Услуги подрядчика | E14: руб. | F14: =SUM(F15:F16) -> 
B15: 5D57A968-2E2D-47A8-B7F4-6C635AF194C3 | C15: 1.1 | D15: ВЛ 6 кВ на куст 3129.1 (габ.110 кВ) Приразломное м/р. Правдинский (КС00091309) | E15: руб. | F15: =(НМЦ!AE181+НМЦ!AJ181+НМЦ!AF181+НМЦ!AI181+НМЦ!AG181+НМЦ!AH181)*(1+НМЦ!K165)*1000 -> 
B16: AEEAB128-A9D6-4DE1-ACE9-6CD791FCF82A | C16: 1.2 | D16: ВЛ 6 кВ на куст 3129.2 (габ. 6 кВ) Приразломное м/р. Правдинский (КС00091313) | E16: руб. | F16: =(НМЦ!AE182+НМЦ!AJ182+НМЦ!AF182+НМЦ!AI182+НМЦ!AG182+НМЦ!AH182)*(1+НМЦ!K165)*1000 -> 
A17: smr2 | C17: 2 | D17: Стоимость ТМЦ поставки подрядчика, в.т.ч. | E17: руб. | F17: =SUM(F18:F19) -> 0
B18: 5D57A968-2E2D-47A8-B7F4-6C635AF194C3 | C18: 2.1 | D18: ВЛ 6 кВ на куст 3129.1 (габ.110 кВ) Приразломное м/р. Правдинский (КС00091309) | E18: руб. | F18: =(НМЦ!Q181+НМЦ!R181)*(1+НМЦ!K165)*1000 -> 0
B19: AEEAB128-A9D6-4DE1-ACE9-6CD791FCF82A | C19: 2.2 | D19: ВЛ 6 кВ на куст 3129.2 (габ. 6 кВ) Приразломное м/р. Правдинский (КС00091313) | E19: руб. | F19: =(НМЦ!Q182+НМЦ!R182)*(1+НМЦ!K165)*1000 -> 0
A20: smr3 | C20: 3 | D20: Стоимость ТМЦ обеспечения Заказчика | E20: руб. | F20: =SUM(F21:F22) -> 26896322.42
B21: 5D57A968-2E2D-47A8-B7F4-6C635AF194C3 | C21: 3.1 | D21: ВЛ 6 кВ на куст 3129.1 (габ.110 кВ) Приразломное м/р. Правдинский (КС00091309) | E21: руб. | F21: =(НМЦ!O181+НМЦ!P181)*(1+НМЦ!K165)*1000 -> 23513197.63
B22: AEEAB128-A9D6-4DE1-ACE9-6CD791FCF82A | C22: 3.2 | D22: ВЛ 6 кВ на куст 3129.2 (габ. 6 кВ) Приразломное м/р. Правдинский (КС00091313) | E22: руб. | F22: =(НМЦ!O182+НМЦ!P182)*(1+НМЦ!K165)*1000 -> 3383124.79
A23: smr4 | C23: 4 | D23: Прочие затраты Заказчика | E23: руб. | F23: =SUM(F24:F25) -> 
B24: 5D57A968-2E2D-47A8-B7F4-6C635AF194C3 | C24: 4.1 | D24: ВЛ 6 кВ на куст 3129.1 (габ.110 кВ) Приразломное м/р. Правдинский (КС00091309) | E24: руб. | F24: =(НМЦ!AJ181)*(1+НМЦ!K165)*1000 -> 
B25: AEEAB128-A9D6-4DE1-ACE9-6CD791FCF82A | C25: 4.2 | D25: ВЛ 6 кВ на куст 3129.2 (габ. 6 кВ) Приразломное м/р. Правдинский (КС00091313) | E25: руб. | F25: =(НМЦ!AJ182)*(1+НМЦ!K165)*1000 -> 
A26: smr5 | C26: 5 | D26: Итого затраты Подрядчика, с учетом НДС | E26: руб. | F26: =SUM(F27:F28) -> 
B27: 5D57A968-2E2D-47A8-B7F4-6C635AF194C3 | C27: 5.1 | D27: ВЛ 6 кВ на куст 3129.1 (габ.110 кВ) Приразломное м/р. Правдинский (КС00091309) | E27: руб. | F27: =F15+F18 -> 
B28: AEEAB128-A9D6-4DE1-ACE9-6CD791FCF82A | C28: 5.2 | D28: ВЛ 6 кВ на куст 3129.2 (габ. 6 кВ) Приразломное м/р. Правдинский (КС00091313) | E28: руб. | F28: =F16+F19 -> 
A29: smr6 | C29: 6 | D29: Итого затраты Заказчика, с учетом НДС | E29: руб. | F29: =SUM(F30:F31) -> 
B30: 5D57A968-2E2D-47A8-B7F4-6C635AF194C3 | C30: 6.1 | D30: ВЛ 6 кВ на куст 3129.1 (габ.110 кВ) Приразломное м/р. Правдинский (КС00091309) | E30: руб. | F30: =F21+F24 -> 
B31: AEEAB128-A9D6-4DE1-ACE9-6CD791FCF82A | C31: 6.2 | D31: ВЛ 6 кВ на куст 3129.2 (габ. 6 кВ) Приразломное м/р. Правдинский (КС00091313) | E31: руб. | F31: =F22+F25 -> 
A32: smr7 | C32: 7 | D32: ВСЕГО, с учетом НДС | E32: руб. | F32: =SUM(F33:F34) -> 
B33: 5D57A968-2E2D-47A8-B7F4-6C635AF194C3 | C33: 7.1 | D33: ВЛ 6 кВ на куст 3129.1 (габ.110 кВ) Приразломное м/р. Правдинский (КС00091309) | E33: руб. | F33: =F27+F30 -> 
B34: AEEAB128-A9D6-4DE1-ACE9-6CD791FCF82A | C34: 7.2 | D34: ВЛ 6 кВ на куст 3129.2 (габ. 6 кВ) Приразломное м/р. Правдинский (КС00091313) | E34: руб. | F34: =F28+F31 -> 
D36: Примечание:
C37: 1.Размер затрат на временные здания и сооружения следует определять расчетом с документальным подтверждением в пределах лимита, установленного договором строительного подряда.
C38: 2. При расчетах за выполненные работы затраты, связанные с удорожанием работ в зимний период, следует принимать не более норматива, предусмотренного договором строительного подряда. При производстве работ только в летний период начисление норм дополнительных затрат на производство в зимнее время запрещается.
C39: 3. Затраты, связанные с перевозкой рабочих автотранспортом, следует определять расчетом с документальным подтверждением в пределах лимита, установленного договором строительного подряда.
C40: 4. Компенсацию непредвиденных расходов следует осуществлять в пределах лимита, установленного договором строительного подряда, на основании подтверждающих документов.
C41: 5. Затраты по разделу "Прочие работы и затраты" подлежат возмещению по факту произведенных затрат, с обязательным предоставлением подтверждающих документов.
C42: 6. При завершении работ по наладке в соответствии с проектной документацией и нормативами производится паспортизация оборудования, за которую отвечает организация, проводящая его пусконаладку.

Sheet НМЦ
A5: 95B8996E-A92E-40F2-8A9B-251AB1F004D4 | H5: Расчет стоимости строительства по лоту | N5: Шифр проекта | O5: 1980615/0880Д
H6: Строительство объектов энергетики Правдинского региона | N6: Разработчик проекта | O6: ООО «РН-УфаНИПИнефть»
N7: Заказчик | O7: ООО "РН-Юганскнефтегаз"
O8: 2000350438 (680-20-КС(ТЗ))
G10: № | H10: Обоснование (№ЛС) | I10: Наименование работ и затрат | J10: Единица измерения мощности (км, м3, шт и т.д.) | K10: Количество | L10: Базисный уровень цен 2001г. (ТЕР-ХМАО) | T10: Текущий уровень цен
L11: Стоимость объекта всего, тыс. руб. | M11: в том числе: | T11: Стоимость МТР всего, тыс. руб. | U11: в том числе: | Y11: Оплата труда основных рабочих, тыс.руб. | Z11: Трудозатраты основных рабочих, чел-час | AA11: Затраты на эксплуатацию машин и механизмов, тыс. руб. | AB11: Оплата труда механизаторов, тыс.руб. | AC11: Трудозатраты рабочих-механизаторов, чел-час | AD11: Накладные расходы, тыс. руб. | AE11: Сметная прибыль, тыс. руб. | AF11: Стоимость строительства объекта без учета затрат Заказчика, тыс. руб. | AG11: Общая стоимость строительства объекта (с учетом затрат Заказчика), тыс. руб. | AH11: Полная стоимость с учетом материалов и оборудования поставки Заказчика | AI11: Полная стоимость с учетом материалов и оборудования поставки Заказчика с учетом прочих затрат и НДС
M12: Стоимость оборудования всего, тыс. руб. | N12: Стоимость материалов всего, тыс. руб. | O12: Оплата труда основных рабочих, тыс. руб. | P12: Стоимость ЭММ, тыс. руб. | Q12: в том числе оплата труда механизаторов, тыс. руб. | R12: Накладные расходы, тыс. руб. | S12: Сметная прибыль, тыс. руб. | U12: Поставка Заказчика | W12: Поставка Подрядчика
U13: Стоимость оборудования, тыс. руб. | V13: Стоимость материалов, тыс. руб. | W13: Стоимость оборудования, тыс. руб. | X13: Стоимость материалов, тыс. руб.
G14: 1 | H14: 2 | I14: 3 | J14: 4 | K14: 5 | L14: 6 | M14: 7 | N14: 8 | O14: 9 | P14: 10 | Q14: 11 | R14: 12 | S14: 13 | T14: 14 | U14: 15 | V14: 16 | W14: 17 | X14: 18 | Y14: 19 | Z14: 20 | AA14: 21 | AB14: 22 | AC14: 23 | AD14: 24 | AE14: 25 | AF14: 26 | AG14: 27 | AH14: 28 | AI14: 29
B15: object_code | C15: outlay_code | D15: exception_code | E15: exception_type | F15: exception_mark | G15: C10 | H15: C11 | I15: C12 | J15: C13 | K15: C14 | L15: C15 | M15: C16 | N15: C17 | O15: C18 | P15: C19 | Q15: C20 | R15: C21 | S15: C22 | T15: C23 | U15: C24 | V15: C25 | W15: C26 | X15: C27 | Y15: C28 | Z15: C29 | AA15: C30 | AB15: C31 | AC15: C32 | AD15: C33 | AE15: C34 | AF15: C35 | AG15: C36 | AH15: C37 | AI15: C38
A16: Глава 1-7 | I16: ГЛАВА 1-7. Подготовка территории и основные объекты строительства
A17: Глава 1-7Объект | B17: 5D57A968-2E2D-47A8-B7F4-6C635AF194C3 | G17: 1 | I17: ВЛ 6 кВ на куст 3129.1 (габ.110 кВ) Приразломное м/р. Правдинский (КС00091309)
C18: 5D57A968-2E2D-47A8-B7F4-6C635AF194C3100 | H18: 01-04-01-01 | I18: Рубка леса , ВЛ 6 кВ на куст 3129.1 (объект 017.170.001-01) | J18: комплекс работ | K18: 1 | L18: =M18+N18+O18+P18+R18+S18 -> 145.497 | M18: 0 | N18: 0 | O18: 0 | P18: 127.542 | Q18: 13.712 | R18: 11.721 | S18: 6.234 | Y18: =(O18*$K$210) -> 0 | AA18: =(P18*$K$211) -> 0 | AB18: =(Q18*$K$210) -> 0 | AC18: 316 | AD18: =(R18*$K$210*$K$215) -> 0 | AE18: =(S18*$K$210*$K$216) -> 0 | AF18: =Y18+AA18+AD18+AE18 -> 0
H19: искл п. 9 | I19: Расчистка площадей от кустарника и мелколесья машинами глубинной подготовки полей на тракторе мощностью: 103 кВт (140 л.с.) | J19: 1 га | K19: 11.697 | L19: -137.283 | P19: -121.23 | Q19: -12.444 | R19: -10.453 | S19: -5.6 | Y19: 0 | AA19: =(P19*$K$211) -> 0 | AB19: 0 | AC19: -287 | AD19: 0 | AE19: 0 | AF19: 0
H20: вкл п.9 | I20: Дробление древесно-кустарниковой растительности в щепу | J20: 10 м3 | K20: 15.8 | L20: 7.025 | O20: 0.609 | P20: 4.326 | Q20: 1.011 | R20: 1.361 | S20: 0.729 | Y20: 0 | Z20: 25 | AA20: =(P20*$K$211) -> 0 | AB20: 0 | AC20: 25 | AD20: 0 | AE20: 0 | AF20: 0
C21: 5D57A968-2E2D-47A8-B7F4-6C635AF194C3103 | H21: 04-01-01 | I21: Двухцепная ВЛ 6 кВ, ВЛ 6 кВ на куст 3129.1 (объект 017.170.001-01) | J21: комплекс работ | K21: 1 | L21: 4658.483 | M21: 42.002 | N21: 3849.121 | O21: 138.252 | P21: 332.046 | Q21: 33.515 | R21: 192.089 | S21: 104.973 | Y21: 0 | Z21: 4615 | AA21: =(P21*$K$211) -> 0 | AB21: 0 | AC21: 900 | AD21: 0 | AE21: 0 | AF21: 0
C22: 5D57A968-2E2D-47A8-B7F4-6C635AF194C3103 | D22: 103 | E22: f | H22: искл п. 121 | I22: Перевозка грузов I класса автомобилями бортовыми грузоподъемностью до 5 т на расстояние до 1 км . Перевозка по трассе линейной арматуры,изоляторов, стальных ростверков,оголовков | J22: т | K22: 34.159 | L22: -0.624 | P22: -0.624 | Y22: 0 | AA22: =(P22*$K$211) -> 0 | AB22: 0 | AD22: 0 | AE22: 0 | AF22: 0
C23: 5D57A968-2E2D-47A8-B7F4-6C635AF194C3103 | D23: 103 | E23: s | F23: К | H23: вкл п. 121 | I23: =I22 -> Перевозка грузов I класса автомобилями бортовыми грузоподъемностью до 5 т на расстояние до 1 км . Перевозка по трассе линейной арматуры,изоляторов, стальных ростверков,оголовков | J23: =J22 -> т | K23: =K22 -> 34.159 | L23: 0.624 | P23: =-P22 -> 0.624 | Y23: 0 | AA23: =P23*$K$212 -> 0 | AB23: 0 | AC23: =AC22*-1 -> 0 | AD23: 0 | AE23: 0 | AF23: 0
C24: 5D57A968-2E2D-47A8-B7F4-6C635AF194C3103 | D24: 102 | E24: n | H24: искл п. 34 | I24: Шнек буровой диаметром 300мм ШБ 300х114/1400/200-Т90, цена 10860:3,61.1,13 | J24: шт. | K24: 0.13524 | L24: -0.46 | N24: -0.46 | Y24: 0 | AA24: =(P24*$K$211) -> 0 | AB24: 0 | AD24: 0 | AE24: 0 | AF24: 0
C25: 5D57A968-2E2D-47A8-B7F4-6C635AF194C3103 | D25: 101 | E25: n | H25: вкл п. 34 | I25: Шнек буровой диаметром 300мм ШБ 300х114/1400/200-Т90, цена 10860:3,61.1,13 | J25: шт. | K25: 0.05292 | L25: 0.18 | N25: 0.18 | Y25: 0 | AA25: =(P25*$K$211) -> 0 | AB25: 0 | AD25: 0 | AE25: 0 | AF25: 0
C26: 5D57A968-2E2D-47A8-B7F4-6C635AF194C3103 | D26: 100 | E26: f | H26: искл п.122 | I26: Перевозка грузов I класса автомобилями бортовыми грузоподъемностью до 15 т на расстояние до 1 км. Развозка по трассе опор | J26: т | K26: 72.589 | L26: -1.237 | P26: -1.237 | Y26: 0 | AA26: =(P26*$K$211) -> 0 | AB26: 0 | AD26: 0 | AE26: 0 | AF26: 0
C27: 5D57A968-2E2D-47A8-B7F4-6C635AF194C3103 | D27: 100 | E27: s | F27: К | H27: вкл п.122 | I27: =I26 -> Перевозка грузов I класса автомобилями бортовыми грузоподъемностью до 15 т на расстояние до 1 км. Развозка по трассе опор | J27: =J26 -> т | K27: =K26 -> 72.589 | L27: 1.237 | P27: =-P26 -> 1.237 | Y27: 0 | AA27: =P27*$K$212 -> 0 | AB27: 0 | AD27: 0 | AE27: 0 | AF27: 0
C28: 5D57A968-2E2D-47A8-B7F4-6C635AF194C3109 | H28: 04-01-02 | I28: Кабельная линия 6 кВ, ВЛ 6 кВ на куст 3129.1 (объект 017.170.001-01) | J28: км | K28: 0.07 | L28: 150.254 | N28: 120.026 | O28: 6.353 | P28: 10.808 | Q28: 1.338 | R28: 7.807 | S28: 5.26 | Y28: 0 | Z28: 215 | AA28: =(P28*$K$211) -> 0 | AB28: 0 | AC28: 36 | AD28: 0 | AE28: 0 | AF28: 0
A29: Глава 1-7Объект | B29: AEEAB128-A9D6-4DE1-ACE9-6CD791FCF82A | G29: 2 | I29: ВЛ 6 кВ на куст 3129.2 (габ. 6 кВ) Приразломное м/р. Правдинский (КС00091313)
C30: AEEAB128-A9D6-4DE1-ACE9-6CD791FCF82A100 | H30: 01-04-02-01 | I30: Рубка леса , ВЛ 6 кВ на куст 3129.2 (объект 017.170.001-02) | J30: га | K30: 3.88 | L30: =M30+N30+O30+P30+R30+S30 -> 96.251 | M30: 0 | N30: 0 | O30: 9.83 | P30: 62.907 | Q30: 8.329 | R30: 15.321 | S30: 8.193 | Y30: =(O30*$K$210) -> 0 | Z30: 371 | AA30: =(P30*$K$211) -> 0 | AB30: =(Q30*$K$210) -> 0 | AC30: 192 | AD30: =(R30*$K$210*$K$215) -> 0 | AE30: =(S30*$K$210*$K$216) -> 0 | AF30: =Y30+AA30+AD30+AE30 -> 0
H31: искл п. 6 | I31: Расчистка площадей от кустарника и мелколесья машинами глубинной подготовки полей на тракторе мощностью 103 кВт (140 л.с.) | J31: 1 га | K31: 3.875 | L31: -45.479 | P31: -40.161 | Q31: -4.122 | R31: -3.463 | S31: -1.855 | Y31: =(O31*$K$210) -> 0 | AA31: =(P31*$K$211) -> 0 | AB31: =(Q31*$K$210) -> 0 | AC31: -95 | AD31: =(R31*$K$210*$K$215) -> 0 | AE31: =(S31*$K$210*$K$216) -> 0 | AF31: 0
H32: вкл п.6 | I32: Дробление древесно-кустарниковой растительности в щепу | J32: 10 м3 | K32: 5.24 | L32: 2.33 | O32: 0.202 | P32: 1.435 | Q32: 0.335 | R32: 0.451 | S32: 0.242 | Y32: 0 | Z32: 8 | AA32: 0 | AB32: 0 | AC32: 8 | AD32: 0 | AE32: 0 | AF32: 0
C33: AEEAB128-A9D6-4DE1-ACE9-6CD791FCF82A101 | H33: 04-02-01 | I33: Одноцепная ВЛ 6 кВ , ВЛ 6 кВ на куст 3129.2 (объект 017.170.001-02) | J33: комплекс работ | K33: 1 | L33: 796.469 | M33: 34.902 | N33: 602.568 | O33: 31.915 | P33: 56.657 | Q33: 7.235 | R33: 43.865 | S33: 26.562 | Y33: =(O33*$K$210) -> 0 | Z33: 1098 | AA33: =(P33*$K$211) -> 0 | AB33: =(Q33*$K$210) -> 0 | AC33: 172 | AD33: =(R33*$K$210*$K$215) -> 0 | AE33: =(S33*$K$210*$K$216) -> 0 | AF33: 0
C34: AEEAB128-A9D6-4DE1-ACE9-6CD791FCF82A101 | D34: 101 | E34: f | H34: искл п. 77 | I34: Перевозка грузов I класса автомобилями бортовыми грузоподъемностью до 5 т на расстояние до 1 км . Перевозка по трассе стальных ростверков | J34: т | K34: 0.534 | L34: -0.01 | P34: -0.01 | Y34: =(O34*$K$210) -> 0 | AA34: =(P34*$K$211) -> 0 | AB34: =(Q34*$K$210) -> 0 | AD34: =(R34*$K$210*$K$215) -> 0 | AE34: =(S34*$K$210*$K$216) -> 0 | AF34: 0
C35: AEEAB128-A9D6-4DE1-ACE9-6CD791FCF82A101 | D35: 101 | E35: s | F35: К | H35: вкл п. 77 | I35: =I34 -> Перевозка грузов I класса автомобилями бортовыми грузоподъемностью до 5 т на расстояние до 1 км . Перевозка по трассе стальных ростверков | J35: =J34 -> т | K35: =K34 -> 0.534 | L35: 0.01 | P35: 0.01 | Y35: =(O35*$K$210) -> 0 | Z35: =Z34*-1 -> 0 | AA35: =P35*$K$212 -> 0 | AB35: =(Q35*$K$210) -> 0 | AC35: =AC34*-1 -> 0 | AD35: =(R35*$K$210*$K$215) -> 0 | AE35: =(S35*$K$210*$K$216) -> 0 | AF35: 0
C36: AEEAB128-A9D6-4DE1-ACE9-6CD791FCF82A101 | D36: 100 | E36: f | H36: искл п.78 | I36: Перевозка грузов I класса автомобилями бортовыми грузоподъемностью до 15 т на расстояние до 1 км. Развозка по трассе портала | J36: т | K36: 2.662 | L36: -0.045 | P36: -0.045 | Y36: =(O36*$K$210) -> 0 | AA36: =(P36*$K$211) -> 0 | AB36: =(Q36*$K$210) -> 0 | AD36: =(R36*$K$210*$K$215) -> 0 | AE36: =(S36*$K$210*$K$216) -> 0 | AF36: 0
C37: AEEAB128-A9D6-4DE1-ACE9-6CD791FCF82A101 | D37: 100 | E37: s | F37: К | H37: вкл п.78 | I37: =I36 -> Перевозка грузов I класса автомобилями бортовыми грузоподъемностью до 15 т на расстояние до 1 км. Развозка по трассе портала | J37: =J36 -> т | K37: =K36 -> 2.662 | L37: 0.045 | P37: 0.045 | Y37: =(O37*$K$210) -> 0 | Z37: =Z36*-1 -> 0 | AA37: =P37*$K$212 -> 0 | AB37: =(Q37*$K$210) -> 0 | AC37: =AC36*-1 -> 0 | AD37: =(R37*$K$210*$K$215) -> 0 | AE37: =(S37*$K$210*$K$216) -> 0 | AF37: 0
A38: Глава 1-7Итог | I38: ИТОГО ГЛАВЫ 1-7 Подготовка территории и основные объекты строительства | L38: =SUM(L17:L37) -> 5673.267 | M38: 76.904 | N38: 4571.435 | O38: 187.161 | P38: 434.33 | Q38: 48.909 | R38: 258.699 | S38: 144.738 | Y38: =SUM(Y17:Y37) -> 0 | Z38: 6332 | AA38: 0 | AB38: 0 | AC38: 1267 | AD38: 0 | AE38: 0 | AF38: 0
A40: БлокЛимитбазы1 | I40: Лимит базы 2001г МТР для начисления лимитированных | L40: =M38+N40+O38+P38+R38+S38 -> 5673.267 | N40: =N38 -> 4571.435
H41: 1 | I41: ВЛ 6 кВ на куст 3129.1 (габ.110 кВ) Приразломное м/р. Правдинский (КС00091309) | L41: =M41+N41+O41+P41+R41+S41 -> 4823.696 | M41: =SUM(M18:M28) -> 42.002 | N41: =SUM(N18:N28) -> 3968.867 | O41: 145.214 | P41: 353.492 | Q41: 37.132 | R41: 202.525 | S41: 111.596 | AF41: =SUM(AF18:AF28) -> 0
H42: 2 | I42: ВЛ 6 кВ на куст 3129.2 (габ. 6 кВ) Приразломное м/р. Правдинский (КС00091313) | L42: =M42+N42+O42+P42+R42+S42 -> 849.571 | M42: =SUM(M30:M37) -> 34.902 | N42: =SUM(N30:N37) -> 602.568 | O42: 41.947 | P42: 80.838 | Q42: 11.777 | R42: 56.174 | S42: 33.142 | AF42: =SUM(AF30:AF37) -> 0
A44: Глава 8 | I44: ГЛАВА 8. Временные здания и сооружения
A45: Глава 8 ВЗиС | H45: ГСН 81-05-01-2001 | I45: Временные здания и сооружения ВЛ 6 кВ на куст 3129.1 (габ.110 кВ) Приразломное м/р. Правдинский (КС00091309) | K45: =$K$232 -> 0 | L45: =(L41-M41)*K45 -> 0 | AF45: =(AF41*K45)+(N41*K45*$K$213) -> 0
A46: Глава 8 ВЗиС | H46: ГСН 81-05-01-2001 | I46: Временные здания и сооружения ВЛ 6 кВ на куст 3129.2 (габ. 6 кВ) Приразломное м/р. Правдинский (КС00091313) | K46: =$K$221 -> 0 | L46: =(L42-M42)*K46 -> 0 | AF46: =(AF42*K46)+(N42*K46*$K$213) -> 0
A47: Глава 8Объект | B47: 5D57A968-2E2D-47A8-B7F4-6C635AF194C3 | G47: 1 | I47: ВЛ 6 кВ на куст 3129.1 (габ.110 кВ) Приразломное м/р. Правдинский (КС00091309)
C48: 5D57A968-2E2D-47A8-B7F4-6C635AF194C3111 | H48: 08-04-01-02 | I48: Устройство лежневой дороги , ВЛ 6 кВ на куст 3129.1 (объект 017.170.001-01) | J48: комплекс работ | K48: 1 | L48: =M48+N48+O48+P48+R48+S48 -> 1684.918 | M48: 0 | N48: 949.029 | O48: 119.111 | P48: 434.14 | Q48: 20.838 | R48: 118.84 | S48: 63.798 | Y48: =(O48*$K$210) -> 0 | Z48: 3958 | AA48: =(P48*$K$211) -> 0 | AB48: =(Q48*$K$210) -> 0 | AC48: 679 | AD48: =(R48*$K$210*$K$215) -> 0 | AE48: =(S48*$K$210*$K$216) -> 0 | AF48: =Y48+AA48+AD48+AE48 -> 0
C49: 5D57A968-2E2D-47A8-B7F4-6C635AF194C3111 | D49: 105 | E49: f | H49: искл п. 1,2 | I49: Погрузка, разгрузка при автомобильных перевозках леса круглого | J49: т | K49: 238.17 | L49: -16.43 | O49: -3.178 | P49: -6.522 | Q49: -1.028 | R49: -4.206 | S49: -2.524 | Y49: =(O49*$K$210) -> 0 | Z49: -118 | AA49: =(P49*$K$211) -> 0 | AB49: =(Q49*$K$210) -> 0 | AC49: -30 | AD49: =(R49*$K$210*$K$215) -> 0 | AE49: =(S49*$K$210*$K$216) -> 0 | AF49: 0
C50: 5D57A968-2E2D-47A8-B7F4-6C635AF194C3111 | D50: 105 | E50: s | F50: Е | H50: вкл п. 1,2 | I50: =I49 -> Погрузка, разгрузка при автомобильных перевозках леса круглого | J50: =J49 -> т | K50: =K49 -> 238.17 | L50: 16.43 | P50: =-L49 -> 16.43 | Z50: 118 | AA50: =P50*$K$229 -> 0 | AC50: 30 | AF50: =Y50+AA50+AD50+AE50 -> 0
C51: 5D57A968-2E2D-47A8-B7F4-6C635AF194C3111 | D51: 104 | E51: f | H51: искл п. 3 | I51: Перевозка грузов I класса автомобилями бортовыми грузоподъемностью до 15 т на расстояние до 1 км. Перевозка деловой древесины | J51: т | K51: 238.17 | L51: -4.059 | P51: -4.059 | Y51: =(O51*$K$210) -> 0 | AA51: =(P51*$K$211) -> 0 | AB51: =(Q51*$K$210) -> 0 | AD51: =(R51*$K$210*$K$215) -> 0 | AE51: =(S51*$K$210*$K$216) -> 0 | AF51: 0
C52: 5D57A968-2E2D-47A8-B7F4-6C635AF194C3111 | D52: 104 | E52: s | F52: К | H52: вкл п. 3 | I52: =I51 -> Перевозка грузов I класса автомобилями бортовыми грузоподъемностью до 15 т на расстояние до 1 км. Перевозка деловой древесины | J52: =J51 -> т | K52: =K51 -> 238.17 | L52: 4.059 | P52: =-P51 -> 4.059 | Y52: 0 | Z52: =Z51*-1 -> 0 | AA52: =P52*$K$212 -> 0 | AB52: 0 | AC52: =AC51*-1 -> 0 | AD52: 0 | AE52: 0 | AF52: 0
C53: 5D57A968-2E2D-47A8-B7F4-6C635AF194C3111 | D53: 103 | E53: f | H53: искл п. 4 | I53: Устройство лежневого настила | J53: м2 | K53: 7596 | L53: -215.887 | O53: -64.262 | P53: -57.654 | Q53: -8.583 | R53: -61.19 | S53: -32.781 | Y53: 0 | Z53: -2127 | AA53: =(P53*$K$211) -> 0 | AB53: 0 | AC53: -304 | AD53: 0 | AE53: 0 | AF53: 0
C54: 5D57A968-2E2D-47A8-B7F4-6C635AF194C3111 | D54: 103 | E54: s | F54: Л | H54: вкл п. 4 | I54: =НМЦ!$I$230 -> Устройство лежневого настила | J54: =J53 -> м2 | K54: =K53 -> 7596 | L54: 0 | Y54: 0 | Z54: =K54*0.229 -> 1739.484 | AA54: =(P54*$K$211) -> 0 | AB54: 0 | AC54: =K54*0.0036 -> 27.3456 | AD54: 0 | AE54: 0 | AF54: =K54*НМЦ!$K$230/1000 -> 0
C55: 5D57A968-2E2D-47A8-B7F4-6C635AF194C3111 | D55: 102 | E55: n | H55: искл п. 7 | I55: Перевозка грузов автомобилями-самосвалами грузоподъемностью 10 т работающих из карьера на расстояние от 9,5 до 10,0 км | J55: т | K55: 3638.9088 | L55: -90.718 | P55: -90.718 | Y55: 0 | AA55: =(P55*$K$211) -> 0 | AB55: 0 | AD55: 0 | AE55: 0 | AF55: =Y55+AA55+AD55+AE55 -> 0
C56: 5D57A968-2E2D-47A8-B7F4-6C635AF194C3111 | D56: 101 | E56: f | H56: искл п.8 | I56: Перевозка грузов автомобилями-самосвалами грузоподъемностью 10 т работающих из карьера за каждые 0,5 км св.10 км. Подвозка грунта на 33 км | J56: т | K56: 3638.9088 | L56: -200.868 | P56: -200.868 | Y56: 0 | AA56: =(P56*$K$211) -> 0 | AB56: 0 | AD56: 0 | AE56: 0 | AF56: =Y56+AA56+AD56+AE56 -> 0
C57: 5D57A968-2E2D-47A8-B7F4-6C635AF194C3111 | D57: 101 | E57: s | F57: К | H57: вкл. п. 7 | I57: Перевозка грузов автомобилями-самосвалами грузоподъемностью 10 т работающих вне карьера на расстояние до 32 км 1 класс груза | J57: =J56 -> т | K57: =K56 -> 3638.9088 | L57: 162.5864452 | P57: 162.5864452 | Y57: 0 | Z57: =Z56*-1 -> 0 | AA57: =P57*$K$212 -> 0 | AB57: 0 | AC57: =AC56*-1 -> 0 | AD57: 0 | AE57: 0 | AF57: =Y57+AA57+AD57+AE57 -> 0
C58: 5D57A968-2E2D-47A8-B7F4-6C635AF194C3111 | D58: 100 | E58: f | H58: искл п. 12 | I58: Демонтаж лежневого настила | J58: м2 | K58: 7596 | L58: -172.709 | O58: -51.41 | P58: -46.123 | Q58: -6.867 | R58: -48.952 | S58: -26.224 | Y58: 0 | Z58: -1702 | AA58: =(P58*$K$211) -> 0 | AB58: 0 | AC58: -243 | AD58: 0 | AE58: 0 | AF58: =Y58+AA58+AD58+AE58 -> 0
C59: 5D57A968-2E2D-47A8-B7F4-6C635AF194C3111 | D59: 100 | E59: s | F59: Л | H59: вкл п. 12 | I59: =НМЦ!$I$231 -> Демонтаж лежневого настила | J59: =J58 -> м2 | K59: =K58 -> 7596 | L59: 0 | Y59: 0 | Z59: =K59*0.1834 -> 1393.1064 | AA59: 0 | AB59: 0 | AC59: =K59*0.0027 -> 20.5092 | AD59: 0 | AE59: 0 | AF59: =K59*НМЦ!$K$231/1000 -> 0
H60: ЛСР 08-04-01-01 | I60: Устройство зимника | J60: км | K60: 0.159 | L60: 3.292 | N60: 0.086 | O60: 0.112 | P60: 2.393 | Q60: 0.367 | R60: 0.466 | S60: 0.235 | Y60: 0 | Z60: 5 | AA60: 0 | AB60: 0 | AC60: 7 | AD60: 0 | AE60: 0 | AF60: =Y60+AA60+AD60+AE60 -> 0
H61: искл п. 2 | I61: Уборка снега со строительных площадок и дорог бульдозерами с перемещениями на расстояние до 20 м. Надвигание снега на дорожную полосу толщиной 50 см | J61: 1000м3 | K61: 0.7155 | L61: -0.449 | P61: -0.357 | Q61: -0.072 | R61: -0.06 | S61: -0.032 | Y61: 0 | AA61: 0 | AB61: 0 | AC61: -2 | AD61: 0 | AE61: 0 | AF61: =Y61+AA61+AD61+AE61 -> 0
H62: искл п.5 | I62: Уборка снега со строительных площадок и дорог бульдозерами с перемещениями на расстояние до 20 м. Устройство валков из снега | J62: 1000м3 | K62: 0.1352295 | L62: -0.084 | P62: -0.067 | Q62: -0.014 | R62: -0.011 | S62: -0.006 | Y62: 0 | AA62: 0 | AB62: 0 | AD62: 0 | AE62: 0 | AF62: 0
C63: 5D57A968-2E2D-47A8-B7F4-6C635AF194C3112 | H63: 08-04-01-03 К=5 | I63: Монтажная площадка из лежневого настила под анкерные опоры . На 1 шт. Всего 5 шт., ВЛ 6 кВ на куст 3129.1 (объект 017.170.001-01) | J63: шт | K63: 5 | L63: 1138.525 | M63: 0 | N63: 714.42 | O63: 68.65 | P63: 251.72 | Q63: 11.445 | R63: 67.595 | S63: 36.14 | Y63: 0 | Z63: 2275 | AA63: 0 | AB63: 0 | AC63: 380 | AD63: 0 | AE63: 0 | AF63: =Y63+AA63+AD63+AE63 -> 0
C64: 5D57A968-2E2D-47A8-B7F4-6C635AF194C3112 | D64: 103 | E64: f | H64: искл п. 1 | I64: Устройство лежневого настила | J64: м2 | K64: =5*900 -> 4500 | L64: -127.895 | O64: -38.07 | P64: -34.155 | Q64: -5.085 | R64: -36.25 | S64: -19.42 | Y64: 0 | Z64: -1260 | AA64: 0 | AB64: 0 | AC64: -180 | AD64: 0 | AE64: 0 | AF64: =Y64+AA64+AD64+AE64 -> 0
C65: 5D57A968-2E2D-47A8-B7F4-6C635AF194C3112 | D65: 103 | E65: s | F65: Л | H65: вкл п. 1 | I65: =НМЦ!$I$230 -> Устройство лежневого настила | J65: =J64 -> м2 | K65: =K64 -> 4500 | L65: 0 | Y65: 0 | Z65: =K65*0.229 -> 1030.5 | AA65: 0 | AB65: 0 | AC65: =K65*0.0036 -> 16.2 | AD65: 0 | AE65: 0 | AF65: =K65*НМЦ!$K$230/1000 -> 0
C66: 5D57A968-2E2D-47A8-B7F4-6C635AF194C3112 | D66: 102 | E66: n | H66: искл п. 3 | I66: Перевозка грузов автомобилями-самосвалами грузоподъемностью 10 т работающих из карьера на расстояние от 9,5 до 10,0 км | J66: т | K66: =5*436.32 -> 2181.6 | L66: -54.385 | P66: -54.385 | Y66: 0 | AA66: 0 | AB66: 0 | AD66: 0 | AE66: 0 | AF66: =Y66+AA66+AD66+AE66 -> 0
C67: 5D57A968-2E2D-47A8-B7F4-6C635AF194C3112 | D67: 101 | E67: f | H67: искл п.4 | I67: Перевозка грузов автомобилями-самосвалами грузоподъемностью 10 т работающих из карьера за каждые 0,5 км св.10 км. Подвозка грунта на 33 км | J67: т | K67: =5*436.32 -> 2181.6 | L67: -120.425 | P67: -120.425 | Y67: 0 | AA67: 0 | AB67: 0 | AD67: 0 | AE67: 0 | AF67: =Y67+AA67+AD67+AE67 -> 0
C68: 5D57A968-2E2D-47A8-B7F4-6C635AF194C3112 | D68: 101 | E68: s | F68: К | H68: вкл. п. 3 | I68: Перевозка грузов автомобилями-самосвалами грузоподъемностью 10 т работающих вне карьера на расстояние до 32 км 1 класс груза | J68: =J67 -> т | K68: =K67 -> 2181.6 | L68: 97.474 | P68: =97.474 -> 97.474 | Y68: 0 | Z68: =Z67*-1 -> 0 | AA68: =P68*$K$212 -> 0 | AB68: 0 | AC68: =AC67*-1 -> 0 | AD68: 0 | AE68: 0 | AF68: =Y68+AA68+AD68+AE68 -> 0
C69: 5D57A968-2E2D-47A8-B7F4-6C635AF194C3112 | D69: 100 | E69: f | H69: искл п. 8 | I69: Демонтаж лежневого настила | J69: м2 | K69: =5*900 -> 4500 | L69: -102.315 | O69: -30.455 | P69: -27.325 | Q69: -4.07 | R69: -29 | S69: -15.535 | Y69: 0 | Z69: -1010 | AA69: =(P69*$K$211) -> 0 | AB69: 0 | AC69: -145 | AD69: 0 | AE69: 0 | AF69: =Y69+AA69+AD69+AE69 -> 0
C70: 5D57A968-2E2D-47A8-B7F4-6C635AF194C3112 | D70: 100 | E70: s | F70: Л | H70: вкл п. 8 | I70: =НМЦ!$I$231 -> Демонтаж лежневого настила | J70: =J69 -> м2 | K70: =K69 -> 4500 | L70: 0 | Y70: 0 | Z70: =K70*0.1834 -> 825.3 | AA70: 0 | AB70: 0 | AC70: =K70*0.0027 -> 12.15 | AD70: 0 | AE70: 0 | AF70: =K70*НМЦ!$K$231/1000 -> 0
C71: 5D57A968-2E2D-47A8-B7F4-6C635AF194C3113 | H71: 08-04-01-04 К=7 | I71: Монтажная площадка из лежневого настила под промежуточные опоры . На 1 шт. Всего 7 шт., ВЛ 6 кВ на куст 3129.1 (объект 017.170.001-01 | J71: шт | K71: 7 | L71: 664.139 | M71: 0 | N71: 416.738 | O71: 40.047 | P71: 146.839 | Q71: 6.678 | R71: 39.431 | S71: 21.084 | Y71: 0 | Z71: 1323 | AA71: 0 | AB71: 0 | AC71: 217 | AD71: 0 | AE71: 0 | AF71: =Y71+AA71+AD71+AE71 -> 0
C72: 5D57A968-2E2D-47A8-B7F4-6C635AF194C3113 | D72: 103 | E72: f | H72: искл п.1 | I72: Устройство лежневого настила | J72: м2 | K72: =7*375 -> 2625 | L72: -74.606 | O72: -22.211 | P72: -19.922 | Q72: -2.968 | R72: -21.147 | S72: -11.326 | Y72: 0 | Z72: -735 | AA72: 0 | AB72: 0 | AC72: -105 | AD72: 0 | AE72: 0 | AF72: =Y72+AA72+AD72+AE72 -> 0
C73: 5D57A968-2E2D-47A8-B7F4-6C635AF194C3113 | D73: 103 | E73: s | F73: Л | H73: вкл п.1 | I73: =НМЦ!$I$230 -> Устройство лежневого настила | J73: =J72 -> м2 | K73: =K72 -> 2625 | L73: 0 | Y73: 0 | Z73: =K73*0.229 -> 601.125 | AA73: 0 | AB73: 0 | AC73: =K73*0.0036 -> 9.45 | AD73: 0 | AE73: 0 | AF73: =K73*НМЦ!$K$230/1000 -> 0
C74: 5D57A968-2E2D-47A8-B7F4-6C635AF194C3113 | D74: 102 | E74: n | H74: искл п.3 | I74: Перевозка грузов автомобилями-самосвалами грузоподъемностью 10 т работающих из карьера на расстояние от 9,5 до 10,0 км | J74: т | K74: =7*181.8 -> 1272.6 | L74: -31.724 | P74: -31.724 | Y74: 0 | AA74: 0 | AB74: 0 | AD74: 0 | AE74: 0 | AF74: =Y74+AA74+AD74+AE74 -> 0
C75: 5D57A968-2E2D-47A8-B7F4-6C635AF194C3113 | D75: 101 | E75: f | H75: искл п.4 | I75: Перевозка грузов автомобилями-самосвалами грузоподъемностью 10 т работающих из карьера за каждые 0,5 км св.10 км. Подвозка грунта на 33 км | J75: т | K75: =7*181.8 -> 1272.6 | L75: -70.245 | P75: -70.245 | Y75: 0 | AA75: 0 | AB75: 0 | AD75: 0 | AE75: 0 | AF75: =Y75+AA75+AD75+AE75 -> 0
C76: 5D57A968-2E2D-47A8-B7F4-6C635AF194C3113 | D76: 101 | E76: s | F76: К | H76: вкл.п.3 | I76: Перевозка грузов автомобилями-самосвалами грузоподъемностью 10 т работающих вне карьера на расстояние до 32 км 1 класс груза | J76: =J75 -> т | K76: =K75 -> 1272.6 | L76: 56.86 | P76: =56.86 -> 56.86 | Y76: 0 | Z76: =Z75*-1 -> 0 | AA76: =P76*$K$212 -> 0 | AB76: 0 | AC76: =AC75*-1 -> 0 | AD76: 0 | AE76: 0 | AF76: =Y76+AA76+AD76+AE76 -> 0
C77: 5D57A968-2E2D-47A8-B7F4-6C635AF194C3113 | D77: 100 | E77: f | H77: искл п.8 | I77: Демонтаж лежневого настила | J77: м2 | K77: =7*375 -> 2625 | L77: -59.689 | O77: -17.766 | P77: -15.939 | Q77: -2.373 | R77: -16.919 | S77: -9.065 | Y77: 0 | Z77: -588 | AA77: =(P77*$K$211) -> 0 | AB77: 0 | AC77: -84 | AD77: 0 | AE77: 0 | AF77: =Y77+AA77+AD77+AE77 -> 0
C78: 5D57A968-2E2D-47A8-B7F4-6C635AF194C3113 | D78: 100 | E78: s | F78: Л | H78: вкл п.8 | I78: =НМЦ!$I$231 -> Демонтаж лежневого настила | J78: =J77 -> м2 | K78: =K77 -> 2625 | L78: 0 | Y78: 0 | Z78: =K78*0.1834 -> 481.425 | AA78: =(P78*$K$211) -> 0 | AB78: 0 | AC78: =K78*0.0027 -> 7.0875 | AD78: 0 | AE78: 0 | AF78: =K78*НМЦ!$K$231/1000 -> 0
A79: Глава 8Объект | B79: AEEAB128-A9D6-4DE1-ACE9-6CD791FCF82A | G79: 2 | I79: ВЛ 6 кВ на куст 3129.2 (габ. 6 кВ) Приразломное м/р. Правдинский (КС00091313)
C80: AEEAB128-A9D6-4DE1-ACE9-6CD791FCF82A114 | H80: 08-04-02-01 | I80: Устройство лежневой дороги , ВЛ 6 кВ на куст 3129.2 (объект 017.170.001-02) | J80: км | K80: 0.52 | L80: =M80+N80+O80+P80+R80+S80 -> 923.659 | M80: 0 | N80: 518.424 | O80: 65.254 | P80: 239.876 | Q80: 11.442 | R80: 65.136 | S80: 34.969 | Y80: =(O80*$K$210) -> 0 | Z80: 2168 | AA80: =(P80*$K$211) -> 0 | AB80: =(Q80*$K$210) -> 0 | AC80: 373 | AD80: =(R80*$K$210*$K$215) -> 0 | AE80: =(S80*$K$210*$K$216) -> 0 | AF80: =Y80+AA80+AD80+AE80 -> 0
C81: AEEAB128-A9D6-4DE1-ACE9-6CD791FCF82A114 | D81: 105 | E81: f | H81: искл п. 1,2 | I81: Погрузка, разгрузка при автомобильных перевозках леса круглого | J81: т | K81: 131.98 | L81: -9.102 | O81: -1.76 | P81: -3.614 | Q81: -0.57 | R81: -2.33 | S81: -1.398 | Y81: =(O81*$K$210) -> 0 | Z81: -66 | AA81: =(P81*$K$211) -> 0 | AB81: =(Q81*$K$210) -> 0 | AC81: -16 | AD81: =(R81*$K$210*$K$215) -> 0 | AE81: =(S81*$K$210*$K$216) -> 0 | AF81: 0
C82: AEEAB128-A9D6-4DE1-ACE9-6CD791FCF82A114 | D82: 105 | E82: s | F82: Е | H82: вкл п. 1,2 | I82: =I81 -> Погрузка, разгрузка при автомобильных перевозках леса круглого | J82: =J81 -> т | K82: =K81 -> 131.98 | L82: 9.102 | P82: =-L81 -> 9.102 | Z82: 66 | AA82: =P82*$K$229 -> 0 | AC82: 16 | AF82: 0
C83: AEEAB128-A9D6-4DE1-ACE9-6CD791FCF82A114 | D83: 104 | E83: f | H83: искл п. 3 | I83: Перевозка грузов I класса автомобилями бортовыми грузоподъемностью до 15 т на расстояние до 1 км. Перевозка деловой древесины | J83: т | K83: 131.98 | L83: -2.249 | P83: -2.249 | Y83: =(O83*$K$210) -> 0 | AA83: =(P83*$K$211) -> 0 | AB83: =(Q83*$K$210) -> 0 | AD83: =(R83*$K$210*$K$215) -> 0 | AE83: =(S83*$K$210*$K$216) -> 0 | AF83: 0
C84: AEEAB128-A9D6-4DE1-ACE9-6CD791FCF82A114 | D84: 104 | E84: s | F84: К | H84: вкл п. 3 | I84: =I83 -> Перевозка грузов I класса автомобилями бортовыми грузоподъемностью до 15 т на расстояние до 1 км. Перевозка деловой древесины | J84: =J83 -> т | K84: =K83 -> 131.98 | L84: 2.249 | P84: 2.249 | Y84: 0 | Z84: =Z83*-1 -> 0 | AA84: =P84*$K$212 -> 0 | AB84: 0 | AC84: =AC83*-1 -> 0 | AD84: 0 | AE84: 0 | AF84: 0
C85: AEEAB128-A9D6-4DE1-ACE9-6CD791FCF82A114 | D85: 103 | E85: f | H85: искл п.4 | I85: Устройство лежневого настила | J85: м2 | K85: 4160 | L85: -118.231 | O85: -35.194 | P85: -31.574 | Q85: -4.701 | R85: -33.511 | S85: -17.952 | Y85: 0 | Z85: -1165 | AA85: =(P85*$K$211) -> 0 | AB85: 0 | AC85: -166 | AD85: 0 | AE85: 0 | AF85: 0
C86: AEEAB128-A9D6-4DE1-ACE9-6CD791FCF82A114 | D86: 103 | E86: s | F86: Л | H86: вкл п.4 | I86: =НМЦ!$I$230 -> Устройство лежневого настила | J86: =J85 -> м2 | K86: =K85 -> 4160 | L86: 0 | Y86: 0 | Z86: =K86*0.229 -> 952.64 | AA86: =(P86*$K$211) -> 0 | AB86: 0 | AC86: =K86*0.0036 -> 14.976 | AD86: 0 | AE86: 0 | AF86: =K86*НМЦ!$K$230/1000 -> 0
C87: AEEAB128-A9D6-4DE1-ACE9-6CD791FCF82A114 | D87: 102 | E87: n | H87: искл п.7 | I87: Перевозка грузов автомобилями-самосвалами грузоподъемностью 10 т работающих из карьера на расстояние от 9,5 до 10,0 км | J87: т | K87: 2016.768 | L87: -50.278 | P87: -50.278 | Y87: 0 | AA87: =(P87*$K$211) -> 0 | AB87: 0 | AD87: 0 | AE87: 0 | AF87: =Y87+AA87+AD87+AE87 -> 0
C88: AEEAB128-A9D6-4DE1-ACE9-6CD791FCF82A114 | D88: 101 | E88: f | H88: искл п.8 | I88: Перевозка грузов автомобилями-самосвалами грузоподъемностью 10 т работающих вне карьера на расстояние до 32 км 1 класс груза | J88: т | K88: 2016.768 | L88: -111.326 | P88: -111.326 | Y88: 0 | AA88: =(P88*$K$211) -> 0 | AB88: 0 | AD88: 0 | AE88: 0 | AF88: =Y88+AA88+AD88+AE88 -> 0
C89: AEEAB128-A9D6-4DE1-ACE9-6CD791FCF82A114 | D89: 101 | E89: s | F89: К | H89: вкл.п.7 | I89: Перевозка грузов автомобилями-самосвалами грузоподъемностью 10 т работающих вне карьера на расстояние до 32 км 1 класс груза | J89: =J88 -> т | K89: =K88 -> 2016.768 | L89: 90.109 | P89: 90.109 | Y89: 0 | Z89: =Z88*-1 -> 0 | AA89: =P89*$K$212 -> 0 | AB89: 0 | AC89: =AC88*-1 -> 0 | AD89: 0 | AE89: 0 | AF89: =Y89+AA89+AD89+AE89 -> 0
C90: AEEAB128-A9D6-4DE1-ACE9-6CD791FCF82A114 | D90: 100 | E90: f | H90: искл п.12 | I90: Демонтаж лежневого настила | J90: м2 | K90: 4160 | L90: -94.586 | O90: -28.155 | P90: -25.26 | Q90: -3.761 | R90: -26.809 | S90: -14.362 | Y90: 0 | Z90: -932 | AA90: =(P90*$K$211) -> 0 | AB90: 0 | AC90: -133 | AD90: 0 | AE90: 0 | AF90: =Y90+AA90+AD90+AE90 -> 0
C91: AEEAB128-A9D6-4DE1-ACE9-6CD791FCF82A114 | D91: 100 | E91: s | F91: Л | H91: вкл п.12 | I91: =НМЦ!$I$231 -> Демонтаж лежневого настила | J91: =J90 -> м2 | K91: =K90 -> 4160 | L91: 0 | Y91: 0 | Z91: =K91*0.1834 -> 762.944 | AA91: =(P91*$K$211) -> 0 | AB91: 0 | AC91: =K91*0.0027 -> 11.232 | AD91: 0 | AE91: 0 | AF91: =K91*НМЦ!$K$231/1000 -> 0
A92: Глава 8Итог | I92: ИТОГО ГЛАВА 8. Временные здания и сооружения | L92: =SUM(L45:L91) -> 3125.142445 | M92: 0 | N92: 2598.697 | O92: 0.713 | P92: 509.0484452 | Q92: 10.678 | R92: 11.083 | S92: 5.601 | Y92: =SUM(Y45:Y91) -> 0 | Z92: 7996.5244 | AA92: 0 | AB92: 0 | AC92: 412.9503 | AD92: 0 | AE92: 0 | AF92: =SUM(AF45:AF91) -> 0
A94: Глава 1-8 | I94: ИТОГО ГЛАВЫ 1-8 | L94: =L92+L38 -> 8798.409445 | M94: 76.904 | N94: 7170.132 | O94: 187.874 | P94: 943.3784452 | Q94: 59.587 | R94: 269.782 | S94: 150.339 | T94: 0 | U94: 0 | V94: 0 | W94: 0 | X94: 0 | Y94: 0 | Z94: 14328.5244 | AA94: 0 | AB94: 0 | AC94: 1679.9503 | AD94: 0 | AE94: 0 | AF94: 0
A96: БлокЛимитбазы2 | I96: Лимит базы 2001г МТР для начисления лимитированных | L96: =M94+N96+O94+P94+R94+S94 -> 8798.409445 | N96: =N94 -> 7170.132
H97: 1 | I97: ВЛ 6 кВ на куст 3129.1 (габ.110 кВ) Приразломное м/р. Правдинский (КС00091309) | L97: =M97+N97+O97+P97+R97+S97 -> 7309.491445 | M97: =M41+M48+M49+M50+M51+M52+M53+M54+M55+M56+M57+M58+M59+M61+M62+M63+M64+M65+M66+M67+M68+M69+M70+M71+M72+M73+M74+M75+M76+M77+M78 -> 42.002 | N97: =SUM(N48:N78)+N41 -> 6049.14 | O97: =O41+O48+O49+O53+O58+O60+O63+O64+O69+O71+O72+O77 -> 145.782 | P97: =P41+P48+P49+P50+P51+P52+P53+P55+P56+P57+P58+P60+P61+P62+P63+P64+P66+P67+P68+P69+P71+P72+P74+P75+P76+P77 -> 745.5054452 | Q97: =Q41+Q48+Q49+Q53+Q58+Q60+Q61+Q62+Q63+Q64+Q69+Q71+Q72+Q77 -> 45.4 | R97: =R41+R48+R49+R53+R58+R60+R61+R62+R63+R64+R69+R71+R72+R77 -> 211.122 | S97: =S41+S48+S49+S53+S58+S60+S61+S62+S63+S64+S69+S71+S72+S77 -> 115.94 | AF97: =SUM(AF48:AF78)+AF41+AF45 -> 0
H98: 2 | I98: ВЛ 6 кВ на куст 3129.2 (габ. 6 кВ) Приразломное м/р. Правдинский (КС00091313) | L98: =M98+N98+O98+P98+R98+S98 -> 1488.918 | M98: =M42+M80+M81+M82+M83+M84+M85+M87+M88+M89+M90 -> 34.902 | N98: =SUM(N80:N91)+N42 -> 1120.992 | O98: =O42+O80+O81+O82+O83+O84+O85+O87+O88+O89+O90 -> 42.092 | P98: 197.873 | Q98: 14.187 | R98: 58.66 | S98: 34.399 | AF98: =SUM(AF80:AF91)+AF46+AF42 -> 0
A100: БлокГлава9 | I100: ГЛАВА 9. Прочие работы и затраты
A101: БлокГлава9ПЗЗУОбъект | H101: ГСН 81-05-02-2007 | I101: Зимнее удорожание | K101: =$K$233 -> 0 | L101: =(L97-M97)*K101 -> 0 | AF101: =(AF97*K101)+(N97*K101*$K$213) -> 0
A102: БлокГлава9ПЗЗУОбъект | H102: ГСН 81-05-02-2007 | I102: Зимнее удорожание | K102: =$K$222 -> 0 | L102: =(L98-M98)*K102 -> 0 | AF102: =(AF98*K102)+(N98*K102*$K$213) -> 0
A103: БлокГлава9ПЗСОбъект | H103: ГСН 81-05-02-2007 | I103: Снегоборьба | K103: =$K$223 -> 0 | L103: =(L96-M94)*K103 -> 0 | AF103: =(AF94*K103)+(N96*K103*$K$213) -> 0
A104: БлокГлава9ПЗБГОбъект | H104: МДС 81-35.2004 | I104: Борьба с гнусом | K104: =$K$224 -> 0 | L104: =(L96-M94)*K104 -> 0 | AF104: =(AF94*K104)+(N96*K104*$K$213) -> 0
A106: Глава 9 | I106: ПРОЧИЕ РАБОТЫ
A107: Глава 9Объект | B107: 5D57A968-2E2D-47A8-B7F4-6C635AF194C3 | G107: 1 | I107: ВЛ 6 кВ на куст 3129.1 (габ.110 кВ) Приразломное м/р. Правдинский (КС00091309)
C108: 5D57A968-2E2D-47A8-B7F4-6C635AF194C3110 | H108: 08-04-01-01 | I108: Устройство зимника, ВЛ 6 кВ на куст 3129.1 (объект 017.170.001-01)
H109: вкл п. 2 | I109: Уборка снега со строительных площадок и дорог бульдозерами с перемещениями на расстояние до 20 м. Надвигание снега на дорожную полосу толщиной 50 см | J109: 1000м3 | K109: 0.7155 | L109: =M109+N109+O109+P109+R109+S109 -> 0.449 | P109: 0.357 | Q109: 0.072 | R109: 0.06 | S109: 0.032 | Y109: =(O109*$K$210) -> 0 | AA109: =(P109*$K$211) -> 0 | AB109: =(Q109*$K$210) -> 0 | AC109: 2 | AD109: =(R109*$K$210*$K$215) -> 0 | AE109: =(S109*$K$210*$K$216) -> 0 | AF109: =Y109+AA109+AD109+AE109 -> 0
H110: вкл п.5 | I110: Уборка снега со строительных площадок и дорог бульдозерами с перемещениями на расстояние до 20 м. Устройство валков из снега | J110: 1000м3 | K110: 0.1352295 | L110: 0.084 | P110: 0.067 | Q110: 0.014 | R110: 0.011 | S110: 0.006 | Y110: =(O110*$K$210) -> 0 | AA110: =(P110*$K$211) -> 0 | AB110: =(Q110*$K$210) -> 0 | AD110: =(R110*$K$210*$K$215) -> 0 | AE110: =(S110*$K$210*$K$216) -> 0 | AF110: 0
C111: 5D57A968-2E2D-47A8-B7F4-6C635AF194C3115 | H111: 09-04-01-01 | I111: Первоначальная очистка от снега территории строительства , ВЛ 6 кВ на куст 3029.1 (объект 017.170.001-01) | J111: комплекс работ | K111: 1 | L111: =M111+N111+O111+P111+R111+S111 -> 21.676 | M111: 0 | N111: 0 | O111: 0 | P111: 17.213 | Q111: 3.459 | R111: 2.906 | S111: 1.557 | Y111: =(O111*$K$210) -> 0 | AA111: =(P111*$K$211) -> 0 | AB111: =(Q111*$K$210) -> 0 | AC111: 79.75 | AD111: =(R111*$K$210*$K$215) -> 0 | AE111: =(S111*$K$210*$K$216) -> 0 | AF111: =Y111+AA111+AD111+AE111 -> 0
A112: Глава 9Итог | I112: ИТОГО ПРОЧИЕ РАБОТЫ | L112: =SUM(L107:L111) -> 22.209 | M112: 0 | N112: 0 | O112: 0 | P112: 17.637 | Q112: 3.545 | R112: 2.977 | S112: 1.595 | Y112: =SUM(Y107:Y111) -> 0 | Z112: 0 | AA112: 0 | AB112: 0 | AC112: 81.75 | AD112: 0 | AE112: 0 | AF112: 0
I114: ИТОГО С ПРОЧИМИ РАБОТАМИ | L114: =L112+SUM(L101:L104)+L94 -> 8820.618445 | M114: 76.904 | N114: 7170.132 | O114: 187.874 | P114: 961.0154452 | Q114: 63.132 | R114: 272.759 | S114: 151.934 | T114: 0 | U114: 0 | V114: 0 | W114: 0 | X114: 0 | Y114: 0 | Z114: 14328.5244 | AA114: 0 | AB114: 0 | AC114: 1761.7003 | AD114: 0 | AE114: 0 | AF114: 0
A116: ПНР | I116: ПНР
A117: ПНРОбъект | B117: 5D57A968-2E2D-47A8-B7F4-6C635AF194C3 | G117: 1 | I117: ВЛ 6 кВ на куст 3129.1 (габ.110 кВ) Приразломное м/р. Правдинский (КС00091309)
C118: 5D57A968-2E2D-47A8-B7F4-6C635AF194C3118 | H118: 09-04-01-02 | I118: Пусконаладочные работы ВЛ 6 кВ, ВЛ 6 кВ на куст 3129.1 (объект 017.170.001-01) | J118: комплекс работ | K118: 1 | L118: =M118+N118+O118+P118+R118+S118 -> 13.592 | M118: 0 | N118: 0 | O118: 6.535 | P118: 0 | Q118: 0 | R118: 4.443 | S118: 2.614 | Y118: =(O118*$K$214) -> 0 | Z118: 168 | AA118: =(P118*$K$211) -> 0 | AB118: =(Q118*$K$214) -> 0 | AD118: =(R118*$K$214) -> 0 | AE118: =(S118*$K$214) -> 0 | AF118: =Y118+AA118+AD118+AE118 -> 0
C119: 5D57A968-2E2D-47A8-B7F4-6C635AF194C3119 | H119: 09-04-01-03 | I119: Пусконаладочные работы КЛ 6 кВ, ВЛ 6 кВ на куст 3129.1 (объект 017.170.001-01) | J119: комплекс работ | K119: 1 | L119: =M119+N119+O119+P119+R119+S119 -> 2.697 | M119: 0 | N119: 0 | O119: 1.296 | P119: 0 | Q119: 0 | R119: 0.882 | S119: 0.519 | Y119: =(O119*$K$214) -> 0 | Z119: 36 | AA119: =(P119*$K$211) -> 0 | AB119: =(Q119*$K$214) -> 0 | AD119: =(R119*$K$214) -> 0 | AE119: =(S119*$K$214) -> 0 | AF119: =Y119+AA119+AD119+AE119 -> 0
A120: ПНРОбъект | B120: AEEAB128-A9D6-4DE1-ACE9-6CD791FCF82A | G120: 2 | I120: ВЛ 6 кВ на куст 3129.2 (габ. 6 кВ) Приразломное м/р. Правдинский (КС00091313)
C121: AEEAB128-A9D6-4DE1-ACE9-6CD791FCF82A116 | H121: 09-04-04-01 | I121: Пусконаладочные работы, ВЛ 6 кВ на куст 3129.2 (объект 017.170.001-02) | J121: комплекс работ | K121: 1 | L121: =M121+N121+O121+P121+R121+S121 -> 8.611 | M121: 0 | N121: 0 | O121: 4.14 | P121: 0 | Q121: 0 | R121: 2.815 | S121: 1.656 | Y121: =(O121*$K$214) -> 0 | Z121: 107 | AA121: =(P121*$K$211) -> 0 | AB121: =(Q121*$K$214) -> 0 | AD121: =(R121*$K$214) -> 0 | AE121: =(S121*$K$214) -> 0 | AF121: =Y121+AA121+AD121+AE121 -> 0
A122: ПНРИтог | I122: ИТОГО ПНР | L122: =SUM(L117:L121) -> 24.9 | M122: 0 | N122: 0 | O122: 11.971 | P122: 0 | Q122: 0 | R122: 8.14 | S122: 4.789 | Y122: =SUM(Y117:Y121) -> 0 | Z122: 311 | AA122: 0 | AB122: 0 | AC122: 0 | AD122: 0 | AE122: 0 | AF122: 0
I124: ИТОГО С ПНР | L124: =L122+L114 -> 8845.518445 | M124: 76.904 | N124: 7170.132 | O124: 199.845 | P124: 961.0154452 | Q124: 63.132 | R124: 280.899 | S124: 156.723 | T124: 0 | U124: 0 | V124: 0 | W124: 0 | X124: 0 | Y124: 0 | Z124: 14639.5244 | AA124: 0 | AB124: 0 | AC124: 1761.7003 | AD124: 0 | AE124: 0 | AF124: 0
A126: БлокГлава9ПТ | I126: Перебазировка техники сверх нормативной величины
A127: БлокГлава9ПТОбъект | B127: 5D57A968-2E2D-47A8-B7F4-6C635AF194C3 | G127: 1 | H127: ТЗ, ПОС | I127: ВЛ 6 кВ на куст 3129.1 (габ.110 кВ) Приразломное м/р. Правдинский (КС00091309) | AF127: =Перебазировка!$R$38/1000 -> 0
A128: БлокГлава9ПТОбъект | B128: AEEAB128-A9D6-4DE1-ACE9-6CD791FCF82A | G128: 2 | H128: ТЗ, ПОС | I128: ВЛ 6 кВ на куст 3129.2 (габ. 6 кВ) Приразломное м/р. Правдинский (КС00091313) | AF128: =Перебазировка!$R$63/1000 -> 0
A129: БлокГлава9ПТИтог | I129: Итого Перебазировка техники сверх нормативной величины | AF129: =SUM(AF127:AF128) -> 0
A131: БлокГлава9ВМ | I131: Затраты, связанные с осуществлением работ вахтовым методом
A132: БлокГлава9ВМОбъект | B132: 5D57A968-2E2D-47A8-B7F4-6C635AF194C3 | G132: 1 | H132: ТЗ, ПОС | I132: ВЛ 6 кВ на куст 3129.1 (габ.110 кВ) Приразломное м/р. Правдинский (КС00091309) | AF132: ='Ежеднев. возка и перевозка вахт'!$N$40/1000 -> 0
A133: БлокГлава9ВМОбъект | B133: AEEAB128-A9D6-4DE1-ACE9-6CD791FCF82A | G133: 2 | H133: ТЗ, ПОС | I133: ВЛ 6 кВ на куст 3129.2 (габ. 6 кВ) Приразломное м/р. Правдинский (КС00091313) | AF133: ='Ежеднев. возка и перевозка вахт'!$N$45/1000 -> 0
A134: БлокГлава9ВМИтог | I134: Итого Затраты, связанные с осуществлением работ вахтовым методом | AF134: =SUM(AF132:AF133) -> 0
I136: Выплаты, связанные с вахтовым методом выполнения работ
G137: 1 | H137: Затраты компенсируются по фактическим затратам на основании подтверждающих документов. | I137: ВЛ 6 кВ на куст 3129.1 (габ.110 кВ) Приразломное м/р. Правдинский (КС00091309) | AF137: ='вахтовая надбавка'!E43/1000 -> 
G138: 2 | I138: ВЛ 6 кВ на куст 3129.2 (габ. 6 кВ) Приразломное м/р. Правдинский (КС00091313) | AF138: ='вахтовая надбавка'!F43/1000 -> 
I139: Итого Выплаты, связанные с вахтовым методом выполнения работ | AF139: =AF137+AF138 -> 
A141: БлокГлава9Т | I141: Затраты по перевозке автомобильным транспортом работников строительно-монтажных организаций
A142: БлокГлава9ТОбъект | B142: 5D57A968-2E2D-47A8-B7F4-6C635AF194C3 | G142: 1 | H142: ТЗ, ПОС | I142: ВЛ 6 кВ на куст 3129.1 (габ.110 кВ) Приразломное м/р. Правдинский (КС00091309) | AF142: ='Ежеднев. возка и перевозка вахт'!$N$38/1000 -> 0
A143: БлокГлава9ТОбъект | B143: AEEAB128-A9D6-4DE1-ACE9-6CD791FCF82A | G143: 2 | H143: ТЗ, ПОС | I143: ВЛ 6 кВ на куст 3129.2 (габ. 6 кВ) Приразломное м/р. Правдинский (КС00091313) | AF143: ='Ежеднев. возка и перевозка вахт'!$N$43/1000 -> 0
A144: БлокГлава9ТИтог | I144: Итого Затраты по перевозке автомобильным транспортом работников строительно-монтажных организаций | AF144: =SUM(AF142:AF143) -> 0
I146: ИТОГО ПРОЧИЕ ЗАТРАТЫ | AF146: =AF129+AF134+AF144+AF139 -> 
I148: ИТОГО С ПРОЧИМИ ЗАТРАТАМИ | L148: =L146+L124 -> 8845.518445 | M148: 76.904 | N148: 7170.132 | O148: 199.845 | P148: 961.0154452 | Q148: 63.132 | R148: 280.899 | S148: 156.723 | T148: 0 | U148: 0 | V148: 0 | W148: 0 | X148: 0 | Y148: 0 | Z148: 14639.5244 | AA148: 0 | AB148: 0 | AC148: 1761.7003 | AD148: 0 | AE148: 0
A150: БлокМатериалыПП | C150: БлокМатериалыОПП | I150: Материалы и оборудование в текущем уровне цен согласно разделительной ведомости
A151: БлокМатериалыППОбъект | B151: 5D57A968-2E2D-47A8-B7F4-6C635AF194C3 | G151: 1 | I151: ВЛ 6 кВ на куст 3129.1 (габ.110 кВ) Приразломное м/р. Правдинский (КС00091309) | T151: =U151+V151+W151+X151 -> 23513.19763 | U151: ='РВ по лоту'!K396/1000 -> 132.76544 | V151: ='РВ по лоту'!K395/1000 -> 23380.43219 | W151: ='РВ по лоту'!M396/1000 -> 0 | X151: ='РВ по лоту'!M395/1000 -> 0 | AF151: =W151+X151 -> 0 | AG151: =T151 -> 23513.19763
A152: БлокМатериалыППОбъект | B152: AEEAB128-A9D6-4DE1-ACE9-6CD791FCF82A | G152: 2 | I152: ВЛ 6 кВ на куст 3129.2 (габ. 6 кВ) Приразломное м/р. Правдинский (КС00091313) | T152: =U152+V152+W152+X152 -> 3383.12479 | U152: ='РВ по лоту'!K399/1000 -> 125.98142 | V152: ='РВ по лоту'!K398/1000 -> 3257.14337 | W152: ='РВ по лоту'!M399/1000 -> 0 | X152: ='РВ по лоту'!M398/1000 -> 0 | AF152: =W152+X152 -> 0 | AG152: =T152 -> 3383.12479
A153: БлокМатериалыППИтог | I153: Итого Материалы и оборудование в текущем уровне цен согласно разделительной ведомости | T153: =SUM(T151:T152) -> 26896.32242 | U153: =SUM(U151:U152) -> 258.74686 | V153: =SUM(V151:V152) -> 26637.57556 | W153: =SUM(W151:W152) -> 0 | X153: =SUM(X151:X152) -> 0 | AF153: =SUM(AF151:AF152) -> 0 | AG153: =SUM(AG151:AG152) -> 26896.32242
A155: БлокМатериалыЗПог | I155: Дополнительные затраты на траспортировку и погрузку щебня поставки Заказчика
A156: БлокМатериалыЗПогОбъект | B156: 5D57A968-2E2D-47A8-B7F4-6C635AF194C3 | G156: 1 | I156: ВЛ 6 кВ на куст 3129.1 (габ.110 кВ) Приразломное м/р. Правдинский (КС00091309)
A157: БлокМатериалыЗПогОбъект | I157: Стоимость дополнительных затрат на погрузку материалов Заказчика (щебень) | J157: т | X157: =(N157+P157)*$K$229 -> 0 | AF157: =X157 -> 0 | AG157: =AF157 -> 0
A158: БлокМатериалыЗПогОбъект | B158: AEEAB128-A9D6-4DE1-ACE9-6CD791FCF82A | G158: 2 | I158: ВЛ 6 кВ на куст 3129.2 (габ. 6 кВ) Приразломное м/р. Правдинский (КС00091313)
A159: БлокМатериалыЗПогОбъект | I159: Стоимость дополнительных затрат на погрузку материалов Заказчика (щебень) | J159: т | X159: =(N159+P159)*$K$229 -> 0 | AF159: =X159 -> 0 | AG159: =AF159 -> 0
A160: БлокМатериалыЗПогИтог | I160: Итого Дополнительные затраты на траспортировку и погрузку щебня поставки Заказчика | X160: =SUM(X156:X159) -> 0 | AF160: =SUM(AF156:AF159) -> 0 | AG160: =SUM(AG156:AG159) -> 0
A162: БлокНЗОбъект | H162: МДС 81-35.2004 | I162: Непредвиденные затраты | K162: =$K$225 -> 0 | AF162: =(AF148+AF160)*K162+M148*K162*$K$228+N148*K162*$K$213 ->  | AG162: =(AF148+AF160)*K162+M148*K162*$K$228+N148*K162*$K$213+(AF148+AF160)*1.5%+M148*1.5%*$K$228+N148*1.5%*$K$213 -> 
I164: ИТОГО с учетом всех затрат | AF164: =AF160+AF153+AF162+AF148 ->  | AG164: =AG160+AG153+AG162+AF148 -> 
I165: - НДС | K165: =K220 -> 0 | AF165: =AF164*K165 ->  | AG165: =AG164*K165 -> 
I166: ИТОГО с учетом НДС | AF166: =AF164+AF165 ->  | AG166: =AG164+AG165 -> 
I167: Затраты на СМР без учета ТМЦ, ПНР, врезки | AF167: =AF166-AF168-AF169-AF170 ->  | AG167: =AG166-AG168-AG169-AG170-AG171 -> 
I168: Затраты на ТМЦ поставки подрядчика | AF168: =AF153*(1+nds) -> 0 | AG168: =AF168 -> 0
I169: Затраты на ПНР с учетом непредвиденных расходов | AF169: =AF122*(1+nds)+AF122*(1+nds)*1.5% -> 0 | AG169: =AF169 -> 0
I170: Затраты на врезку | AF170: 0 | AG170: =AF170 -> 0
I171: Справочно:МТР поставки Заказчика | AG171: =#REF!*1.2/1000 -> 
H173: Распределение суммы договора по объектам лота
H175: № п/п | I175: Наименование объекта | J175: Базовая стоимость МТР | O175: Материалы, текущий у/ц согласно РВ | S175: Текущий уровень цен
S176: ИТОГО СМР по гл.1-7, тыс. руб. | T176: Глава 8 | V176: ИТОГО СМР по гл.1-8, тыс. руб. без НДС | W176: Глава 9. Прочие работы и затраты | AE176: ИТОГО УСЛУГИ по гл.1-9, тыс. руб. без НДС | AF176: Затраты на испытание свай, тыс. руб. без НДС | AG176: Врезка | AH176: Разница в стоимости электроэнергии | AI176: Затраты на траспортировку и погрузку щебня поставки Заказчика, тыс. руб. без НДС | AJ176: Непредвиденные работы и затраты, тыс. руб. без НДС | AK176: Стоимость ВСЕГО без учета материалов и оборудования поставки Заказчика, тыс. руб. с НДС | AL176: Стоимость ВСЕГО с учетом материалов и оборудования поставки Заказчика с учетом прочих затрат и НДС
J177: ИТОГО главы 1-7, тыс. руб. | K177: ИТОГО глава 8, тыс. руб. | L177: ИТОГО по гл.1-8, тыс. руб. | M177: ИТОГО стоимость оборудования, тыс. руб. | N177: ИТОГО стоимость материалов, тыс. руб. | O177: Поставка Заказчика | Q177: Поставка Подрядчика | T177: Лимит затрат на ВЗиС, учтенный нормативом, тыс. руб. | U177: ВЗиС (ЛС) сверх лимита, учтенного нормативом, тыс. руб. | W177: Зимнее удорожание, тыс. руб. без НДС | X177: Снегоборьба, тыс. руб. без НДС | Y177: Борьба с гнусом, тыс. руб. без НДС | Z177: Первон.очистка от снега, тыс. руб. без НДС | AA177: ПНР, тыс. руб. без НДС | AB177: Мобилизация, тыс. руб. без НДС | AC177: Вахтовая перевозка, тыс. руб. без НДС | AD177: Ежедневная возка, тыс. руб. без НДС
O178: Стоимость оборудования, тыс. руб. | P178: Стоимость материалов, тыс. руб. | Q178: Стоимость оборудования, тыс. руб. | R178: Стоимость материалов, тыс. руб.
H179: 1 | I179: 2 | J179: 3 | K179: 4 | L179: 5 | M179: 5 | N179: 5 | O179: 6 | P179: 7 | Q179: 8 | R179: 9 | S179: 10 | T179: 11 | U179: 12 | V179: 13 | W179: 14 | X179: 15 | Y179: 16 | Z179: 17 | AA179: 18 | AB179: 19 | AC179: 20 | AD179: 21 | AE179: 22 | AF179: 23 | AG179: 24 | AH179: 25 | AI179: 26 | AJ179: 27 | AK179: 28 | AL179: 29
H180: C11 | I180: C12 | J180: C13 | K180: C14 | L180: C15 | M180: C42 | N180: C43 | O180: C16 | P180: C17 | Q180: C18 | R180: C19 | S180: C22 | T180: C23 | U180: C24 | V180: C25 | W180: C26 | X180: C27 | Y180: C28 | Z180: C29 | AA180: C30 | AB180: C31 | AC180: C32 | AD180: C33 | AE180: C34 | AF180: C36 | AG180: C40 | AH180: C41 | AI180: C37 | AJ180: C35 | AK180: C38 | AL180: C39
B181: 5D57A968-2E2D-47A8-B7F4-6C635AF194C3 | H181: ='Исходные данные'!$B$25 -> 1 | I181: ='Исходные данные'!$D$25 & " " & 'Исходные данные'!$E$25 & " (" & 'Исходные данные'!$F$25 & ")" -> ВЛ 6 кВ на куст 3129.1 (габ.110 кВ) Приразломное м/р. Правдинский (КС00091309) | J181: =SUM(N18:N28) -> 3968.867 | K181: =SUM(N48:N78) -> 2080.273 | L181: =J181+K181 -> 6049.14 | M181: =SUM(M18:M28)+SUM(M48:M78)+SUM(M108:M111)+SUM(M118:M119) -> 42.002 | N181: =SUM(N18:N28)+SUM(N48:N78)+SUM(N108:N111)+SUM(N118:N119) -> 6049.14 | O181: ='РВ по лоту'!K396/1000 -> 132.76544 | P181: ='РВ по лоту'!K395/1000 -> 23380.43219 | Q181: ='РВ по лоту'!M396/1000 -> 0 | R181: ='РВ по лоту'!M395/1000 -> 0 | S181: =SUM(AF18:AF28) -> 0 | T181: =(S181+(J181)*$K$213)*$K$45 -> 0 | U181: =SUM(AF48:AF78) -> 0 | V181: =S181+T181+U181 -> 0 | W181: =(V181+(L181)*$K$213)*$K$101 -> 0 | X181: =(V181+(L181)*$K$213)*$K$103 -> 0 | Y181: =(V181+(L181)*$K$213)*$K$104 -> 0 | Z181: =SUM(AF108:AF111) -> 0 | AA181: =SUM(AF118:AF119) -> 0 | AB181: =Перебазировка!$R$38/1000 -> 0 | AC181: ='Ежеднев. возка и перевозка вахт'!$N$40/1000+'вахтовая надбавка'!E43/1000 ->  | AD181: ='Ежеднев. возка и перевозка вахт'!$N$38/1000 -> 0 | AE181: =SUM(V181:AD181) ->  | AI181: =SUM(AF157:AF157) -> 0 | AJ181: =(AE181+AF181+AG181+AH181+AI181)*$K$162+M181*$K$228*$K$162+N181*$K$213*$K$162 ->  | AK181: =(SUM(Q181:R181)+SUM(AE181:AJ181))*(1+$K$165) ->  | AL181: =(SUM(O181:R181)+SUM(AE181:AI181)+(AE181+AF181+AG181+AH181+AI181)*$K$162+M181*$K$228*$K$162+N181*$K$213*$K$162+(AE181+AF181+AG181+AH181+AI181)*1.5%+M181*$K$228*1.5%+N181*$K$213*1.5%)*(1+$K$165) -> 
B182: AEEAB128-A9D6-4DE1-ACE9-6CD791FCF82A | H182: ='Исходные данные'!$B$26 -> 2 | I182: ='Исходные данные'!$D$26 & " " & 'Исходные данные'!$E$26 & " (" & 'Исходные данные'!$F$26 & ")" -> ВЛ 6 кВ на куст 3129.2 (габ. 6 кВ) Приразломное м/р. Правдинский (КС00091313) | J182: =SUM(N30:N37) -> 602.568 | K182: =SUM(N80:N91) -> 518.424 | L182: =J182+K182 -> 1120.992 | M182: =SUM(M30:M37)+SUM(M80:M91)+SUM(M121:M121) -> 34.902 | N182: =SUM(N30:N37)+SUM(N80:N91)+SUM(N121:N121) -> 1120.992 | O182: ='РВ по лоту'!K399/1000 -> 125.98142 | P182: ='РВ по лоту'!K398/1000 -> 3257.14337 | Q182: ='РВ по лоту'!M399/1000 -> 0 | R182: ='РВ по лоту'!M398/1000 -> 0 | S182: =SUM(AF30:AF37) -> 0 | T182: =(S182+(J182)*$K$213)*$K$46 -> 0 | U182: =SUM(AF80:AF91) -> 0 | V182: =S182+T182+U182 -> 0 | W182: =(V182+(L182)*$K$213)*$K$102 -> 0 | X182: =(V182+(L182)*$K$213)*$K$103 -> 0 | Y182: =(V182+(L182)*$K$213)*$K$104 -> 0 | AA182: =SUM(AF121:AF121) -> 0 | AB182: =Перебазировка!$R$63/1000 -> 0 | AC182: ='Ежеднев. возка и перевозка вахт'!$N$45/1000+'вахтовая надбавка'!F43/1000 ->  | AD182: ='Ежеднев. возка и перевозка вахт'!$N$43/1000 -> 0 | AE182: =SUM(V182:AD182) ->  | AI182: =SUM(AF159:AF159) -> 0 | AJ182: =(AE182+AF182+AG182+AH182+AI182)*$K$162+M182*$K$228*$K$162+N182*$K$213*$K$162 ->  | AK182: =(SUM(Q182:R182)+SUM(AE182:AJ182))*(1+$K$165) ->  | AL182: =(SUM(O182:R182)+SUM(AE182:AI182)+AJ182*2)*(1+$K$165) -> 
I183: ВСЕГО | J183: =SUM(J181:J182) -> 4571.435 | K183: 2598.697 | L183: 7170.132 | M183: 76.904 | N183: 7170.132 | O183: 258.74686 | P183: 26637.57556 | Q183: 0 | R183: 0 | S183: 0 | T183: 0 | U183: 0 | V183: 0 | W183: 0 | X183: 0 | Y183: 0 | Z183: 0 | AA183: 0 | AB183: 0 | AD183: 0 | AE183: =SUM(AE181:AE182) ->  | AF183: 0 | AG183: 0 | AH183: 0 | AI183: 0
J184: =J183-N38 -> 0 | K184: =K183-N92 -> 0 | L184: =L183-N94 -> 0 | O184: =O183-U153 -> 0 | P184: =P183-V153 -> 0 | Q184: =Q183-W153 -> 0 | R184: =R183-X153 -> 0 | S184: =S183-AF38 -> 0 | T184: =T183-(AF45+AF46) -> 0 | U184: =U183-(AF92-(AF45+AF46)) -> 0 | V184: =V183-AF94 -> 0 | W184: =W183-(AF101+AF102) -> 0 | X184: =X183-(AF103) -> 0 | Y184: =Y183-(AF104) -> 0 | Z184: =Z183-AF112 -> 0 | AA184: =AA183-AF122 -> 0 | AB184: =AB183-AF129 -> 0 | AC184: =AC183-AF134-AF139 ->  | AD184: =AD183-AF144 -> 0 | AE184: =AE183-(AF124+AF146) ->  | AI184: =AI183-AF160 -> 0 | AJ184: =AJ183-(AF162) ->  | AK184: =AK183-AF166 ->  | AL184: =AL183-AG166 -> 
A185: lastRow
H186: Стоимость строительства объекта в прогнозном уровне цен
H188: № п/п | I188: Наименование показателя | K188: ='Исходные данные'!V21 -> 2021 | O188: =K188+1 -> 2022 | S188: =O188+1 -> 2023 | W188: =S188+1 -> 2024 | AA188: Итоговый показатель
K189: I квартал | L189: II квартал | M189: III квартал | N189: IV квартал | O189: I квартал | P189: II квартал | Q189: III квартал | R189: IV квартал | S189: I квартал | T189: II квартал | U189: III квартал | V189: IV квартал | W189: I квартал | X189: II квартал | Y189: III квартал | Z189: IV квартал
A190: БлокПрогнозОбщий | H190: 1 | I190: Прогнозное распределение СМР без учета ТМЦ и ПНР | J190: % | K190: 0 | L190: 0 | M190: 0 | N190: 0.6 | O190: 0.4 | P190: 0 | Q190: 0 | R190: 0 | S190: 0 | T190: 0 | U190: 0 | V190: 0 | W190: 0 | X190: 0 | Y190: 0 | Z190: 0 | AA190: =IF((K190+L190+M190+N190+O190+P190+Q190+R190+S190+T190+U190+V190+W190+X190+Y190+Z190)<>100%,"ОШИБКА",1) -> 1
H191: 2 | I191: Прогнозное распределение ТМЦ поставки Подрядчика | J191: % | K191: =K190 -> 0 | L191: =L190 -> 0 | M191: 0 | N191: 0.6 | O191: 0.4 | P191: 0 | Q191: 0 | R191: 0 | S191: 0 | T191: 0 | U191: 0 | V191: 0 | W191: 0 | X191: 0 | Y191: 0 | Z191: 0 | AA191: =IF((K191+L191+M191+N191+O191+P191+Q191+R191+S191+T191+U191+V191+W191+X191+Y191+Z191)<>100%,"ОШИБКА",1) -> 1
H192: 3 | I192: Прогнозное распределение ПНР | J192: % | K192: =K190 -> 0 | L192: =L190 -> 0 | M192: 0 | N192: 0.6 | O192: 0.4 | P192: 0 | Q192: 0 | R192: 0 | S192: 0 | T192: 0 | U192: 0 | V192: 0 | W192: 0 | X192: 0 | Y192: 0 | Z192: 0 | AA192: =IF((K192+L192+M192+N192+O192+P192+Q192+R192+S192+T192+U192+V192+W192+X192+Y192+Z192)<>100%,"ОШИБКА",1) -> 1
H193: 4 | I193: Прогнозное распределение врезки | J193: % | K193: =K190 -> 0 | L193: =L190 -> 0 | M193: 0 | N193: 0.6 | O193: 0.4 | P193: 0 | Q193: 0 | R193: 0 | S193: 0 | T193: 0 | U193: 0 | V193: 0 | W193: 0 | X193: 0 | Y193: 0 | Z193: 0 | AA193: =IF((K193+L193+M193+N193+O193+P193+Q193+R193+S193+T193+U193+V193+W193+X193+Y193+Z193)<>100%,"ОШИБКА",1) -> 1
H194: 5 | I194: Стоимость СМР без учета ТМЦ и ПНР в прогнозном распределении | J194: тыс. руб. | K194: =K190*AF167 ->  | L194: =L190*AF167 ->  | M194: =M190*AF167 ->  | N194: =N190*AF167 ->  | O194: =O190*AF167 ->  | P194: =P190*AF167 ->  | Q194: =Q190*AF167 ->  | R194: =R190*AF167 ->  | S194: =S190*AF167 ->  | T194: =T190*AF167 ->  | U194: =U190*AF167 ->  | V194: =V190*AF167 ->  | W194: =W190*AF167 ->  | X194: =X190*AF167 ->  | Y194: =Y190*AF167 ->  | Z194: =Z190*AF167 ->  | AA194: =SUM(K194:Z194) -> 
H195: 6 | I195: Стоимость ТМЦ поставки Подрядчика в прогнозном распределении | J195: тыс. руб. | K195: =K191*AF168 -> 0 | L195: =L191*AF168 -> 0 | M195: =M191*AF168 -> 0 | N195: =N191*AF168 -> 0 | O195: =O191*AF168 -> 0 | P195: =P191*AF168 -> 0 | Q195: =Q191*AF168 -> 0 | R195: =R191*AF168 -> 0 | S195: =S191*AF168 -> 0 | T195: =T191*AF168 -> 0 | U195: =U191*AF168 -> 0 | V195: =V191*AF168 -> 0 | W195: =W191*AF168 -> 0 | X195: =X191*AF168 -> 0 | Y195: =Y191*AF168 -> 0 | Z195: =Z191*AF168 -> 0 | AA195: =SUM(K195:Z195) -> 0
H196: 7 | I196: Стоимость ПНР в прогнозном распределении | J196: тыс. руб. | K196: =K192*AF169 -> 0 | L196: =L192*AF169 -> 0 | M196: =M192*AF169 -> 0 | N196: =N192*AF169 -> 0 | O196: =O192*AF169 -> 0 | P196: =P192*AF169 -> 0 | Q196: =Q192*AF169 -> 0 | R196: =R192*AF169 -> 0 | S196: =S192*AF169 -> 0 | T196: =T192*AF169 -> 0 | U196: =U192*AF169 -> 0 | V196: =V192*AF169 -> 0 | W196: =W192*AF169 -> 0 | X196: =X192*AF169 -> 0 | Y196: =Y192*AF169 -> 0 | Z196: =Z192*AF169 -> 0 | AA196: =SUM(K196:Z196) -> 0
H197: 8 | I197: Стоимость врезки в прогнозном распределении | J197: тыс. руб. | K197: =K193*AF170 -> 0 | L197: =L193*AF170 -> 0 | M197: =M193*AF170 -> 0 | N197: =N193*AF170 -> 0 | O197: =O193*AF170 -> 0 | P197: =P193*AF170 -> 0 | Q197: =Q193*AF170 -> 0 | R197: =R193*AF170 -> 0 | S197: =S193*AF170 -> 0 | T197: =T193*AF170 -> 0 | U197: =U193*AF170 -> 0 | V197: =V193*AF170 -> 0 | W197: =W193*AF170 -> 0 | X197: =X193*AF170 -> 0 | Y197: =Y193*AF170 -> 0 | Z197: =Z193*AF170 -> 0 | AA197: =SUM(K197:Z197) -> 0
H198: 9 | I198: Всего стоимость СМР в прогнозном уровне цен | J198: тыс. руб. | K198: =K195+K194+K196+K197 ->  | L198: =L195+L194+L196+L197 ->  | M198: =M195+M194+M196+M197 ->  | AA198: =SUM(K198:Z198) -> 
I199: * Доля освоения в соответствующем квартале рассчитывается как выраженное в процентах отношение объема работ в стоимостном выражении, планируемого к выполнению в соответствующем квартале, к общему объему работ в стоимостном выражении
H201: Примечание : расчет должен быть выполнен на основании утвержденной ПСД и технического задания с включением в него всех работ и затрат, указанных в техническом задании и проектной документации
H203: Ценовые нормативы, применяемые при расчете Договорной цены
H205: № п/п | I205: Наименование | J205: Единица измерения | K205: Ценовые нормативы ТСНБ
H206: 1 | I206: 2 | J206: 3 | K206: 4
H207: C10 | I207: C11 | J207: C14 | K207: C12
H208: 1 | I208: Часовая тарифная ставка рабочего 4 разряда в уровне цен 2001г. | J208: руб./час | K208: 30.23
H209: =H208+1 -> 2 | I209: Часовая тарифная ставка рабочего 4 разряда в текущем уровне цен | J209: руб./час
G210: Price1 | H210: =H209+1 -> 3 | I210: Индекс оплаты труда основных рабочих и механизаторов СМР | K210: =ROUND(K209/K208,2) -> 0
G211: Price2 | H211: 4 | I211: Индекс эксплуатации машин и механизмов СМР
G212: Price3 | H212: 5 | I212: Индекс на перевозку грузов
G213: Price4 | H213: 6 | I213: Индекс МТР (для расчета лимитированных затрат) СМР
G214: Price5 | H214: 7 | I214: Индекс к оплате труда пусконаладочного персонала
G215: Price8 | H215: 8 | I215: Коэффициент к накладным расходам для СМР | K215: 1
G216: Price9 | H216: 9 | I216: Коэффициент к сметной прибыли для СМР | K216: 1
G217: Price10 | H217: 10 | I217: Коэффициент к накладным расходам для СМР (для работ по строительству мостов) | K217: 1
G218: Price11 | H218: 11 | I218: Коэффициент к сметной прибыли для СМР (для работ по строительству мостов) | K218: 1
G219: Price14 | H219: 12 | I219: Средневзвешенный курс евро 2013г. | J219: руб.
G220: Price15 | H220: 10 | I220: НДС | J220: %
G221: Price19 | H221: 11 | I221: Норма затрат на временные здания и сооружения | J221: %
G222: Price20 | H222: 12 | I222: Норма затрат на удорожание работ в зимний период | J222: %
G223: Price21 | H223: 13 | I223: Норма затрат на снегоборьбу | J223: %
G224: Price22 | H224: 14 | I224: Норма затрат на борьбу с гнусом | J224: %
G225: Price23 | H225: 15 | I225: Норматив непредвиденных расходов | J225: %
G226: Price25 | H226: 16 | I226: Индекс на динамическое испытание свай
G227: Price24 | H227: 16 | I227: Индекс МТР для определения текущей стоимости вспомогательных материалов поставки Подрядчика
G228: Price26 | H228: 17 | I228: Индекс МТР для определения текущей стоимости оборудования поставки Подрядчика
A229: lastRow2 | G229: Price27 | H229: 18 | I229: Индекс на погрузочно-разгрузочные работы
H230: 19 | I230: Устройство лежневого настила | J230: руб/м2
... 4 more rows

Sheet priceTemplate (hidden)
G4: Расчет стоимости стоительства объекта
G5: ='Исходные данные'!D19 -> Строительство объектов энергетики Правдинского региона
A6: 95B8996E-A92E-40F2-8A9B-251AB1F004D4 | M6: Шифр проекта | N6: ='Исходные данные'!projectcode -> 1980615/0880Д | S6: 5.50
M7: Разработчик проекта | N7: ='Исходные данные'!projectdeveloper -> ООО «РН-УфаНИПИнефть»
M8: Заказчик | N8: ООО "РН-Юганскнефтегаз"
N9: ='Исходные данные'!lotNumber -> 2000350438 (680-20-КС(ТЗ))
F11: № | G11: Обоснование (№ЛС) | H11: Наименование работ и затрат | I11: Единица измерения мощности (км, м3, шт и т.д.) | J11: Количество | K11: Базисный уровень цен 2001г. | S11: Текущий уровень цен
K12: Стоимость объекта всего, тыс. руб. | L12: в том числе: | S12: Стоимость МТР всего, тыс. руб. | T12: в том числе: | X12: Оплата труда основных рабочих, тыс.руб. | Y12: Трудозатраты основных рабочих, чел-час | Z12: Затраты на эксплуатацию машин и механизмов, тыс. руб. | AA12: Оплата труда механизаторов, тыс.руб. | AB12: Трудозатраты рабочих-механизаторов, чел-час | AC12: Накладные расходы, тыс. руб. | AD12: Сметная прибыль, тыс. руб. | AE12: Стоимость строительства объекта без учета затрат Заказчика, тыс. руб. | AF12: Общая стоимость строительства объекта (с учетом затрат Заказчика), тыс. руб. | AG12: Полная стоимость с учетом материалов и оборудования поставки Заказчика | AH12: Полная стоимость с учетом материалов и оборудования поставки Заказчика с учетом прочих затрат и НДС
L13: Стоимость оборудования всего, тыс. руб. | M13: Стоимость материалов всего, тыс. руб. | N13: Оплата труда основных рабочих, тыс. руб. | O13: Стоимость ЭММ, тыс. руб. | P13: в том числе оплата труда механизаторов, тыс. руб. | Q13: Накладные расходы, тыс. руб. | R13: Сметная прибыль, тыс. руб. | T13: Поставка Заказчика | V13: Поставка Подрядчика
T14: Стоимость оборудования, тыс. руб. | U14: Стоимость материалов, тыс. руб. | V14: Стоимость оборудования, тыс. руб. | W14: Стоимость материалов, тыс. руб.
F15: 1 | G15: 2 | H15: 3 | I15: 4 | J15: 5 | K15: 6 | L15: 7 | M15: 8 | N15: 9 | O15: 10 | P15: 11 | Q15: 12 | R15: 13 | S15: 14 | T15: 15 | U15: 16 | V15: 17 | W15: 18 | X15: 19 | Y15: 20 | Z15: 21 | AA15: 22 | AB15: 23 | AC15: 24 | AD15: 25 | AE15: 26 | AF15: 27 | AG15: 28 | AH15: 29
B16: outlay_code | C16: exception_code | D16: exception_type | E16: exception_mark | F16: C10 | G16: C11 | H16: C12 | I16: C13 | J16: C14 | K16: C15 | L16: C16 | M16: C17 | N16: C18 | O16: C19 | P16: C20 | Q16: C21 | R16: C22 | S16: C23 | T16: C24 | U16: C25 | V16: C26 | W16: C27 | X16: C28 | Y16: C29 | Z16: C30 | AA16: C31 | AB16: C32 | AC16: C33 | AD16: C34 | AE16: C35 | AF16: C36 | AG16: C37 | AH16: C38
A17: Глава 1 Лес | H17: ГЛАВА 1. Подготовка территории строительства
A18: Глава 1 ЛесШаблон | K18: =L18+M18+N18+O18+Q18+R18 -> 0 | X18: =N18*'Ценовые нормативы'!$E$17 -> 0 | Z18: =O18*'Ценовые нормативы'!$E$18 -> 0 | AA18: =P18*'Ценовые нормативы'!$E$17 -> 0 | AC18: =Q18*'Ценовые нормативы'!$E$17*'Ценовые нормативы'!$E$24 -> 0 | AD18: =R18*'Ценовые нормативы'!$E$17*'Ценовые нормативы'!$E$25 -> 0 | AE18: =X18+Z18+AC18+AD18 -> 0
A19: Глава 1 ЛесИтог | H19: Итог 1 Лес | K19: =SUM(K18) -> 0 | L19: 0 | M19: 0 | N19: 0 | O19: 0 | P19: 0 | Q19: 0 | R19: 0 | X19: =SUM(X18) -> 0 | Y19: 0 | Z19: 0 | AA19: 0 | AB19: 0 | AC19: 0 | AD19: 0 | AE19: 0
A20: Глава 1 Прочие
A21: Глава 1 ПрочиеШаблон | K21: =L21+M21+N21+O21+Q21+R21 -> 0 | X21: =N21*'Ценовые нормативы'!$E$17 -> 0 | Z21: =O21*'Ценовые нормативы'!$E$18 -> 0 | AA21: =P21*'Ценовые нормативы'!$E$17 -> 0 | AC21: =Q21*'Ценовые нормативы'!$E$17*'Ценовые нормативы'!$E$24 -> 0 | AD21: =R21*'Ценовые нормативы'!$E$17*'Ценовые нормативы'!$E$25 -> 0 | AE21: =X21+Z21+AC21+AD21 -> 0
A22: Глава 1 ПрочиеИтог | K22: =SUM(K21) -> 0 | L22: 0 | M22: 0 | N22: 0 | O22: 0 | P22: 0 | Q22: 0 | R22: 0 | X22: =SUM(X21) -> 0 | Y22: 0 | Z22: 0 | AA22: 0 | AB22: 0 | AC22: 0 | AD22: 0 | AE22: 0
A23: Глава 1Итог | H23: ИТОГО ГЛАВА 1. Подготовка территории строительства | K23: =K22+K19 -> 0 | L23: 0 | M23: 0 | N23: 0 | O23: 0 | P23: 0 | Q23: 0 | R23: 0 | X23: =X22+X19 -> 0 | Y23: 0 | Z23: 0 | AA23: 0 | AB23: 0 | AC23: 0 | AD23: 0 | AE23: 0
A25: Глава 2-7 | H25: ГЛАВЫ 2-7. Основные объекты строительства
A26: Глава 2-7Шаблон | K26: =L26+M26+N26+O26+Q26+R26 -> 0 | X26: =N26*'Ценовые нормативы'!$E$17 -> 0 | Z26: =O26*'Ценовые нормативы'!$E$18 -> 0 | AA26: =P26*'Ценовые нормативы'!$E$17 -> 0 | AC26: =Q26*'Ценовые нормативы'!$E$17*'Ценовые нормативы'!$E$24 -> 0 | AD26: =R26*'Ценовые нормативы'!$E$17*'Ценовые нормативы'!$E$25 -> 0 | AE26: =X26+Z26+AC26+AD26 -> 0
A27: Глава 2-7Итог | H27: ИТОГО ГЛАВЫ 2-7. Основные объекты строительства | K27: =SUM(K26) -> 0 | L27: 0 | M27: 0 | N27: 0 | O27: 0 | P27: 0 | Q27: 0 | R27: 0 | X27: =SUM(X26) -> 0 | Y27: 0 | Z27: 0 | AA27: 0 | AB27: 0 | AC27: 0 | AD27: 0 | AE27: 0
H29: ИТОГО ГЛАВЫ 1-7 | K29: =K27+K23 -> 0 | L29: 0 | M29: 0 | N29: 0 | O29: 0 | P29: 0 | Q29: 0 | R29: 0 | X29: =X27+X23 -> 0 | Y29: 0 | Z29: 0 | AA29: 0 | AB29: 0 | AC29: 0 | AD29: 0 | AE29: 0
H31: Лимит базы 2001г МТР для начисления лимитированных | K31: =L29+M31+N29+O29+Q29+R29 -> 0 | M31: =M29 -> 0
H33: ГЛАВА 8. Временные здания и сооружения
A34: Глава 8 ВЗиС | G34: ГСН 81-05-01-2001 | H34: Временные здания и сооружения | J34: ='Ценовые нормативы'!$E$35 -> 0.025 | K34: =(K31-L29)*J34 -> 0 | AE34: =(AE29*J34) + (M31*J34*'Ценовые нормативы'!$E$20) -> 0
A35: Глава 8 ВЗиСШаблон | K35: =L35+M35+N35+O35+Q35+R35 -> 0 | X35: =N35*'Ценовые нормативы'!$E$17 -> 0 | Z35: =O35*'Ценовые нормативы'!$E$18 -> 0 | AA35: =P35*'Ценовые нормативы'!$E$17 -> 0 | AC35: =Q35*'Ценовые нормативы'!$E$17*'Ценовые нормативы'!$E$24 -> 0 | AD35: =R35*'Ценовые нормативы'!$E$17*'Ценовые нормативы'!$E$25 -> 0 | AE35: =X35+Z35+AC35+AD35 -> 0
A36: Глава 8 ВЗиСИтог | K36: =SUM(K35) -> 0 | L36: 0 | M36: 0 | N36: 0 | O36: 0 | P36: 0 | Q36: 0 | R36: 0 | X36: =SUM(X35) -> 0 | Y36: 0 | Z36: 0 | AA36: 0 | AB36: 0 | AC36: 0 | AD36: 0 | AE36: 0
A37: Глава 8 Зимник
A38: Глава 8 ЗимникШаблон | K38: =L38+M38+N38+O38+Q38+R38 -> 0 | X38: =N38*'Ценовые нормативы'!$E$17 -> 0 | Z38: =O38*'Ценовые нормативы'!$E$18 -> 0 | AA38: =P38*'Ценовые нормативы'!$E$17 -> 0 | AC38: =Q38*'Ценовые нормативы'!$E$17*'Ценовые нормативы'!$E$24 -> 0 | AD38: =R38*'Ценовые нормативы'!$E$17*'Ценовые нормативы'!$E$25 -> 0 | AE38: =X38+Z38+AC38+AD38 -> 0
A39: Глава 8 ЗимникИтог | K39: =SUM(K38) -> 0 | L39: 0 | M39: 0 | N39: 0 | O39: 0 | P39: 0 | Q39: 0 | R39: 0 | X39: =SUM(X38) -> 0 | Y39: 0 | Z39: 0 | AA39: 0 | AB39: 0 | AC39: 0 | AD39: 0 | AE39: 0
A40: Глава 8Итог | H40: ИТОГО ГЛАВА 8. Временные здания и сооружения | K40: =K34+K36+K39 -> 0 | L40: 0 | M40: 0 | N40: 0 | O40: 0 | P40: 0 | Q40: 0 | R40: 0 | X40: =X34+X36+X39 -> 0 | Y40: 0 | Z40: 0 | AA40: 0 | AB40: 0 | AC40: 0 | AD40: 0 | AE40: 0
H42: ИТОГО ГЛАВЫ 1-8 | K42: =K29+K40 -> 0 | L42: 0 | M42: 0 | N42: 0 | O42: 0 | P42: 0 | Q42: 0 | R42: 0 | X42: =X29+X40 -> 0 | Y42: 0 | Z42: 0 | AA42: 0 | AB42: 0 | AC42: 0 | AD42: 0 | AE42: 0
H44: Лимит базы 2001г МТР для начисления лимитированных | K44: =L42+M44+N42+O42+Q42+R42 -> 0 | M44: =M42 -> 0
H46: ГЛАВА 9. Прочие работы и затраты
H47: Прочие затраты
G48: ГСН 81-05-02-2007 | H48: Зимнее удорожание | J48: ='Ценовые нормативы'!$E$36 -> 0.037 | K48: =(K44-L42)*J48 -> 0 | AE48: =(AE42*J48)+(M44*J48*'Ценовые нормативы'!$E$20) -> 0
F49: 1 | G49: ГСН 81-05-02-2007 | H49: Снегоборьба | J49: ='Ценовые нормативы'!$E$37 -> 0.004 | K49: =(K44-L42)*J49 -> 0 | AE49: =(AE42*J49)+(M44*J49*'Ценовые нормативы'!$E$20) -> 0
F50: =F49+1 -> 2 | G50: МДС 81-35.2004 | H50: Борьба с гнусом | J50: ='Ценовые нормативы'!$E$38 -> 0.001 | K50: =(K44-L42)*J50 -> 0 | AE50: =(AE42*J50)+(M44*J50*'Ценовые нормативы'!$E$20) -> 0
H51: Итого прочие затраты | K51: =SUM(K48:K50) -> 0 | L51: 0 | M51: 0 | N51: 0 | O51: 0 | P51: 0 | Q51: 0 | R51: 0 | X51: =SUM(X48:X50) -> 0 | Y51: 0 | Z51: 0 | AA51: 0 | AB51: 0 | AC51: 0 | AD51: 0 | AE51: 0
A53: Глава 9 | H53: Прочие работы
A54: Глава 9Шаблон | K54: =L54+M54+N54+O54+Q54+R54 -> 0 | X54: =N54*'Ценовые нормативы'!$E$17 -> 0 | Z54: =O54*'Ценовые нормативы'!$E$18 -> 0 | AA54: =P54*'Ценовые нормативы'!$E$17 -> 0 | AC54: =Q54*'Ценовые нормативы'!$E$17*'Ценовые нормативы'!$E$24 -> 0 | AD54: =R54*'Ценовые нормативы'!$E$17*'Ценовые нормативы'!$E$25 -> 0 | AE54: =X54+Z54+AC54+AD54 -> 0
A55: Глава 9Итог | H55: Итого Прочие | K55: =SUM(K54) -> 0 | L55: 0 | M55: 0 | N55: 0 | O55: 0 | P55: 0 | Q55: 0 | R55: 0 | X55: =SUM(X54) -> 0 | Y55: 0 | Z55: 0 | AA55: 0 | AB55: 0 | AC55: 0 | AD55: 0 | AE55: 0
A57: ПНР | H57: ПНР
A58: ПНРШаблон | K58: =L58+M58+N58+O58+Q58+R58 -> 0 | X58: =N58*'Ценовые нормативы'!$E$21 -> 0 | Z58: =O58*'Ценовые нормативы'!$E$18 -> 0 | AA58: =P58*'Ценовые нормативы'!$E$21 -> 0 | AC58: =Q58*'Ценовые нормативы'!$E$21 -> 0 | AD58: =R58*'Ценовые нормативы'!$E$21 -> 0 | AE58: =X58+Z58+AC58+AD58 -> 0
A59: ПНРИтог | H59: Итого ПНР | K59: =SUM(K58) -> 0 | L59: 0 | M59: 0 | N59: 0 | O59: 0 | P59: 0 | Q59: 0 | R59: 0 | X59: =SUM(X58) -> 0 | Y59: 0 | Z59: 0 | AA59: 0 | AB59: 0 | AC59: 0 | AD59: 0 | AE59: 0
A61: Врезка | H61: Врезка
A62: ВрезкаШаблон | AE62: =J62*K62*'Ценовые нормативы'!$E$30 -> 0
A63: ВрезкаИтог | H63: Итого Врезка | K63: =SUM(K62) -> 0 | L63: 0 | M63: 0 | N63: 0 | O63: 0 | P63: 0 | Q63: 0 | R63: 0 | X63: =SUM(X62) -> 0 | Y63: 0 | Z63: 0 | AA63: 0 | AB63: 0 | AC63: 0 | AD63: 0 | AE63: 0
A65: Разница в стоимости электроэнергии | H65: Разница в стоимости электроэнергии
A66: Разница в стоимости электроэнергииШаблон
A67: Разница в стоимости электроэнергииИтог | H67: Итого Разница в стоимости электроэнергии | K67: =SUM(K66) -> 0 | L67: 0 | M67: 0 | N67: 0 | O67: 0 | P67: 0 | Q67: 0 | R67: 0 | X67: =SUM(X66) -> 0 | Y67: 0 | Z67: 0 | AA67: 0 | AB67: 0 | AC67: 0 | AD67: 0 | AE67: 0
H69: Перебазировка техники сверх нормативной величины (учтенной в расценках на ЭММ)
H70: Затраты, связанные с осуществлением работ вахтовым методом
H71: Затраты по перевозке автомобильным транспортом работников строительно-монтажных организаций
H73: ИТОГО ГЛАВА 9. Прочие работы и затраты | K73: =K51+K55+K59+K63+K67+K69+K70+K71 -> 0 | L73: 0 | M73: 0 | N73: 0 | O73: 0 | P73: 0 | Q73: 0 | R73: 0 | X73: =X51+X55+X59+X63+X67+X69+X70+X71 -> 0 | Y73: 0 | Z73: 0 | AA73: 0 | AB73: 0 | AC73: 0 | AD73: 0 | AE73: 0
H75: ИТОГО ГЛАВЫ 1-9 | K75: =K42+K73 -> 0 | L75: 0 | M75: 0 | N75: 0 | O75: 0 | P75: 0 | Q75: 0 | R75: 0 | X75: =X42+X73 -> 0 | Y75: 0 | Z75: 0 | AA75: 0 | AB75: 0 | AC75: 0 | AD75: 0 | AE75: 0
H77: ГЛАВА 12. Проектные и изыскательские работы
A78: Испытание свай | H78: Испытание свай
A79: Испытание свайШаблон | AE79: =K79*'Ценовые нормативы'!$E$40 -> 0
A80: Испытание свайИтог | H80: Итого Испытание свай | K80: =SUM(K79) -> 0 | L80: 0 | M80: 0 | N80: 0 | O80: 0 | P80: 0 | Q80: 0 | R80: 0 | X80: =SUM(X79) -> 0 | Y80: 0 | Z80: 0 | AA80: 0 | AB80: 0 | AC80: 0 | AD80: 0 | AE80: 0
H81: ИТОГО ГЛАВА 12. Проектные и изыскательские работы | K81: =K80 -> 0 | L81: 0 | M81: 0 | N81: 0 | O81: 0 | P81: 0 | Q81: 0 | R81: 0 | X81: =X80 -> 0 | Y81: 0 | Z81: 0 | AA81: 0 | AB81: 0 | AC81: 0 | AD81: 0 | AE81: 0
H83: ИТОГО ГЛАВЫ 1-12 | K83: =K75+K81 -> 0 | L83: 0 | M83: 0 | N83: 0 | O83: 0 | P83: 0 | Q83: 0 | R83: 0 | X83: =X75+X81 -> 0 | Y83: 0 | Z83: 0 | AA83: 0 | AB83: 0 | AC83: 0 | AD83: 0 | AE83: 0
H85: МАТЕРИАЛЫ
H86: Стоимость материалов поставки Подрядчика с учетом транспортировки до объекта | AF86: =W86 -> 0
H87: Стоимость дополнительных затрат на погрузку материалов Заказчика (щебень) | I87: т | W87: =(M87+O87)*'Ценовые нормативы'!E43 -> 0 | AF87: =W87 -> 0
A88: move_template | H88: Стоимость дополнительных затрат на перевозку материалов Заказчика (щебень) | I88: т | W88: =(M88+O88)*'Ценовые нормативы'!transportationStandard -> 0 | AF88: =W88 -> 0
H89: Стоимость оборудования поставки Подрядчика с учетом транспортировки до объекта | AF89: =V89 -> 0
H90: ИТОГО МАТЕРИАЛЫ | AF90: =SUM(AF86:AF89) -> 0
G92: МДС 81-35.2004 | H92: Непредвиденные затраты | J92: ='Ценовые нормативы'!$E$39 -> 0.015 | K92: =K83*J92 -> 0 | AE92: =(AE83+AF90-AF86-AF89)*J92+L83*J92*'Ценовые нормативы'!transitionIndex2+M83*J92*'Ценовые нормативы'!$E$20 -> 0
H94: ИТОГО с учетом всех затрат | AF94: =AE83+AF90+AE92 -> 0
H95: - НДС | J95: ='Ценовые нормативы'!$E$31 -> 0.2 | AF95: =AF94*J95 -> 0
H97: ИТОГО с учетом НДС | AF97: =AF94+AF95 -> 0
H98: Затраты на СМР без учета ТМЦ, ПНР, врезки | AF98: =AF97-AF99-AF100-AF101 -> 0
H99: Затраты на ТМЦ поставки подрядчика без учета страхования | AF99: =(AF86+AF89)+(AF86+AF89)*J95 -> 0
H100: Затраты на ПНР с учетом непредвиденных расходов | AF100: =(AE59*J95+AE59)+(AE59*J95+AE59)*J92 -> 0
H101: Врезка | AF101: =AE63+AE63*J95 -> 0
H103: СПРАВОЧНО:
H104: Затраты на Материалы поставки Заказчика без НДС
H105: Затраты на Оборудование поставки Заказчика без НДС
H106: Непредвиденные затраты Заказчика без НДС | AF106: =AE92 -> 0
H108: ВСЕГО с учетом всех затрат в прогнозном уровне цен с НДС | AF108: =(AF103+custMaterialsTotal+custEquipmentTotal+AF106)*(1+J95)+Z122 -> 0
H110: Стоимость строительства объекта в прогнозном уровне цен
F112: № п/п | H112: Наименование показателя | J112: ='Исходные данные'!V21 -> 2021 | N112: =J112+1 -> 2022 | R112: =N112+1 -> 2023 | V112: =R112+1 -> 2024 | Z112: Итоговый показатель
J113: I квартал | K113: II квартал | L113: III квартал | M113: IV квартал | N113: I квартал | O113: II квартал | P113: III квартал | Q113: IV квартал | R113: I квартал | S113: II квартал | T113: III квартал | U113: IV квартал | V113: I квартал | W113: II квартал | X113: III квартал | Y113: IV квартал
F114: 1 | H114: Прогнозное распределение СМР без учета ТМЦ и ПНР | I114: % | Z114: =IF((J114+K114+L114+M114+N114+O114+P114+Q114+R114+S114+T114+U114+V114+W114+X114+Y114)<>100%,"ОШИБКА",1) -> ОШИБКА
F115: 2 | H115: Прогнозное распределение ТМЦ поставки Подрядчика | I115: % | J115: =J114 -> 0 | K115: =K114 -> 0 | L115: 0 | M115: 0 | N115: 0 | O115: 0 | P115: 0 | Q115: 0 | R115: 0 | S115: 0 | T115: 0 | U115: 0 | V115: 0 | W115: 0 | X115: 0 | Y115: 0 | Z115: =IF((J115+K115+L115+M115+N115+O115+P115+Q115+R115+S115+T115+U115+V115+W115+X115+Y115)<>100%,"ОШИБКА",1) -> ОШИБКА
F116: 3 | H116: Прогнозное распределение ПНР | I116: % | J116: =J114 -> 0 | K116: =K114 -> 0 | L116: 0 | M116: 0 | N116: 0 | O116: 0 | P116: 0 | Q116: 0 | R116: 0 | S116: 0 | T116: 0 | U116: 0 | V116: 0 | W116: 0 | X116: 0 | Y116: 0 | Z116: =IF((J116+K116+L116+M116+N116+O116+P116+Q116+R116+S116+T116+U116+V116+W116+X116+Y116)<>100%,"ОШИБКА",1) -> ОШИБКА
F117: 4 | H117: Прогнозное распределение врезки | I117: % | J117: =J114 -> 0 | K117: =K114 -> 0 | L117: 0 | M117: 0 | N117: 0 | O117: 0 | P117: 0 | Q117: 0 | R117: 0 | S117: 0 | T117: 0 | U117: 0 | V117: 0 | W117: 0 | X117: 0 | Y117: 0 | Z117: =IF((J117+K117+L117+M117+N117+O117+P117+Q117+R117+S117+T117+U117+V117+W117+X117+Y117)<>100%,"ОШИБКА",1) -> ОШИБКА
F118: 5 | H118: Стоимость СМР без учета ТМЦ и ПНР в прогнозном распределении | I118: тыс. руб. | J118: =J114*AF98 -> 0 | K118: =K114*AF98 -> 0 | L118: =L114*AF98 -> 0 | M118: =M114*AF98 -> 0 | N118: =N114*AF98 -> 0 | O118: =O114*AF98 -> 0 | P118: =P114*AF98 -> 0 | Q118: =Q114*AF98 -> 0 | R118: =R114*AF98 -> 0 | S118: =S114*AF98 -> 0 | T118: =T114*AF98 -> 0 | U118: =U114*AF98 -> 0 | V118: =V114*AF98 -> 0 | W118: =W114*AF98 -> 0 | X118: =X114*AF98 -> 0 | Y118: =Y114*AF98 -> 0 | Z118: =SUM(J118:Y118) -> 0
F119: 6 | H119: Стоимость ТМЦ поставки Подрядчика в прогнозном распределении | I119: тыс. руб. | J119: =J115*AF99 -> 0 | K119: =K115*AF99 -> 0 | L119: =L115*AF99 -> 0 | M119: =M115*AF99 -> 0 | N119: =N115*AF99 -> 0 | O119: =O115*AF99 -> 0 | P119: =P115*AF99 -> 0 | Q119: =Q115*AF99 -> 0 | R119: =R115*AF99 -> 0 | S119: =S115*AF99 -> 0 | T119: =T115*AF99 -> 0 | U119: =U115*AF99 -> 0 | V119: =V115*AF99 -> 0 | W119: =W115*AF99 -> 0 | X119: =X115*AF99 -> 0 | Y119: =Y115*AF99 -> 0 | Z119: =SUM(J119:Y119) -> 0
F120: 7 | H120: Стоимость ПНР в прогнозном распределении | I120: тыс. руб. | J120: =J116*AF100 -> 0 | K120: =K116*AF100 -> 0 | L120: =L116*AF100 -> 0 | M120: =M116*AF100 -> 0 | N120: =N116*AF100 -> 0 | O120: =O116*AF100 -> 0 | P120: =P116*AF100 -> 0 | Q120: =Q116*AF100 -> 0 | R120: =R116*AF100 -> 0 | S120: =S116*AF100 -> 0 | T120: =T116*AF100 -> 0 | U120: =U116*AF100 -> 0 | V120: =V116*AF100 -> 0 | W120: =W116*AF100 -> 0 | X120: =X116*AF100 -> 0 | Y120: =Y116*AF100 -> 0 | Z120: =SUM(J120:Y120) -> 0
F121: 8 | H121: Стоимость врезки в прогнозном распределении | I121: тыс. руб. | J121: =J117*AF101 -> 0 | K121: =K117*AF101 -> 0 | L121: =L117*AF101 -> 0 | M121: =M117*AF101 -> 0 | N121: =N117*AF101 -> 0 | O121: =O117*AF101 -> 0 | P121: =P117*AF101 -> 0 | Q121: =Q117*AF101 -> 0 | R121: =R117*AF101 -> 0 | S121: =S117*AF101 -> 0 | T121: =T117*AF101 -> 0 | U121: =U117*AF101 -> 0 | V121: =V117*AF101 -> 0 | W121: =W117*AF101 -> 0 | X121: =X117*AF101 -> 0 | Y121: =Y117*AF101 -> 0 | Z121: =SUM(J121:Y121) -> 0
F122: 9 | H122: Всего стоимость СМР в прогнозном уровне цен | I122: тыс. руб. | J122: =J119+J118+J120+J121 -> 0 | K122: =K119+K118+K120+K121 -> 0 | L122: =L119+L118+L120+L121 -> 0 | M122: 0 | N122: 0 | O122: 0 | P122: 0 | Q122: 0 | R122: 0 | S122: 0 | T122: 0 | U122: 0 | V122: 0 | W122: 0 | X122: 0 | Y122: 0 | Z122: =SUM(J122:Y122) -> 0
H123: * Доля освоения в соответствующем квартале рассчитывается как выраженное в процентах отношение объема работ в стоимостном выражении, планируемого к выполнению в соответствующем квартале, к общему объему работ в стоимостном выражении
G125: Примечание : расчет должен быть выполнен на основании утвержденной ПСД и технического задания с включением в него всех работ и затрат, указанных в техническом задании и проектной документации
I128: ='Исходные данные'!executor2 -> Ответственный исполнитель ОЦП по КВ | L128: ='Исходные данные'!executor2Position -> Ведущий специалист | N128: ='Исходные данные'!executor2Fio -> Берестова А.В.
L129: должность | N129: Ф.И.О.
I131: ='Сопроводительная записка'!executor6 -> Начальник ОЦП по КВ | N131: ='Сопроводительная записка'!executor6Fio -> И.А. Овсянникова
L132: должность | N132: Ф.И.О.

Sheet materialMetadata (hidden)
A1: code | B1: formula | C1: contractor | E1: contractor | F1: materialType | I1: contractor | J1: editable_columns | M1: unit | P1: column_code | Q1: replace_value | R1: original_value
A2: C17 | B2: ОКРУГЛ(C15R#*C16R#;2) | E2: Заказчик | F2: Материалы | I2: Подрядчик | J2: C21|C22|C25|C28|C31|C36|C39|C40|C42|C55|C65|C70 | M2: кг | P2: C12 | Q2: <=^ | R2: 408-0015
A3: C32 | B3: ЕСЛИ(C30R#<>"";ЕСЛИ(C31R#<>"";"Ошибка";ОКРУГЛ(C16R#*C30R#;2));ОКРУГЛ(C31R#;2)) | C3: Подрядчик | E3: Заказчик (ДО) | F3: Оборудование | I3: Подрядчик (от Заказчика) | J3: C21|C22|C25|C28|C31|C36|C39|C40|C42|C55|C65|C70 | M3: т
A4: C38 | B4: ЕСЛИ(И(C22R#="";C25R#="");ОКРУГЛ((C32R#+C54R#)*C39R#;2);ОКРУГЛ(C22R#*C25R#*'Ценовые нормативы'!transportationStandard;2)) | C4: Подрядчик | E4: Заказчик (РОС) | F4: Металлоконструкции | I4: Заказчик | M4: км
A5: C54 | B5: ЕСЛИ(И(C22R#="";C25R#="");ОКРУГЛ(C32R#*C55R#;2);ОКРУГЛ((C32R#+C36R#+C38R#+C40R#+C42R#)*C55R#;2)) | C5: Подрядчик | E5: Заказчик (ЦАУК) | I5: Заказчик (ДО) | M5: м
A6: C56 | B6: ОКРУГЛ(C32R#+C36R#+C38R#+C40R#+C42R#+C54R#;2) | C6: Подрядчик | E6: Заказчик (ОГ) | I6: Заказчик (РОС) | M6: 10 м
A7: C57 | B7: ОКРУГЛ(C15R#*C56R#;2) | C7: Подрядчик | E7: Заказчик (ЕОС ИТ) | I7: Заказчик (ЦАУК) | M7: 100 м
A8: C63 | B8: ОКРУГЛ(C15R#*C62R#;2) | C8: Заказчик | E8: Подрядчик | I8: Заказчик (ОГ) | M8: 1000 м
A9: C30 | B9: 'Ценовые нормативы'!transitionIndex | C9: Подрядчик | E9: Подрядчик (от Заказчика) | I9: Заказчик (ЕОС ИТ) | M9: м2
M10: 10 м2
M11: 100 м2
M12: 1000 м2
M13: шт.
M14: 10 шт.
M15: 100 шт.
M16: 1000 шт.
M17: кВт-ч
M18: л
M19: м3
M20: 10 м3
M21: 100 м3
M22: 1000 м3
M23: комплект
M24: рулон
M25: уп.
M26: дм2
M27: пог. м

Sheet priceTemplate_round (hidden)
G4: Расчет стоимости стоительства объекта
G5: ='Исходные данные'!D19 -> Строительство объектов энергетики Правдинского региона
A6: 95B8996E-A92E-40F2-8A9B-251AB1F004D4 | M6: Шифр проекта | N6: ='Исходные данные'!projectcode -> 1980615/0880Д | S6: 5.50
M7: Разработчик проекта | N7: ='Исходные данные'!projectdeveloper -> ООО «РН-УфаНИПИнефть»
M8: Заказчик | N8: ООО "РН-Юганскнефтегаз"
N9: ='Исходные данные'!lotNumber -> 2000350438 (680-20-КС(ТЗ))
F11: № | G11: Обоснование (№ЛС) | H11: Наименование работ и затрат | I11: Единица измерения мощности (км, м3, шт и т.д.) | J11: Количество | K11: Базисный уровень цен 2001г. | S11: Текущий уровень цен
K12: Стоимость объекта всего, тыс. руб. | L12: в том числе: | S12: Стоимость МТР всего, тыс. руб. | T12: в том числе: | X12: Оплата труда основных рабочих, тыс.руб. | Y12: Трудозатраты основных рабочих, чел-час | Z12: Затраты на эксплуатацию машин и механизмов, тыс. руб. | AA12: Оплата труда механизаторов, тыс.руб. | AB12: Трудозатраты рабочих-механизаторов, чел-час | AC12: Накладные расходы, тыс. руб. | AD12: Сметная прибыль, тыс. руб. | AE12: Стоимость строительства объекта без учета затрат Заказчика, тыс. руб. | AF12: Общая стоимость строительства объекта (с учетом затрат Заказчика), тыс. руб. | AG12: Полная стоимость с учетом материалов и оборудования поставки Заказчика | AH12: Полная стоимость с учетом материалов и оборудования поставки Заказчика с учетом прочих затрат и НДС
L13: Стоимость оборудования всего, тыс. руб. | M13: Стоимость материалов всего, тыс. руб. | N13: Оплата труда основных рабочих, тыс. руб. | O13: Стоимость ЭММ, тыс. руб. | P13: в том числе оплата труда механизаторов, тыс. руб. | Q13: Накладные расходы, тыс. руб. | R13: Сметная прибыль, тыс. руб. | T13: Поставка Заказчика | V13: Поставка Подрядчика
T14: Стоимость оборудования, тыс. руб. | U14: Стоимость материалов, тыс. руб. | V14: Стоимость оборудования, тыс. руб. | W14: Стоимость материалов, тыс. руб.
F15: 1 | G15: 2 | H15: 3 | I15: 4 | J15: 5 | K15: 6 | L15: 7 | M15: 8 | N15: 9 | O15: 10 | P15: 11 | Q15: 12 | R15: 13 | S15: 14 | T15: 15 | U15: 16 | V15: 17 | W15: 18 | X15: 19 | Y15: 20 | Z15: 21 | AA15: 22 | AB15: 23 | AC15: 24 | AD15: 25 | AE15: 26 | AF15: 27 | AG15: 28 | AH15: 29
B16: outlay_code | C16: exception_code | D16: exception_type | E16: exception_mark | F16: C10 | G16: C11 | H16: C12 | I16: C13 | J16: C14 | K16: C15 | L16: C16 | M16: C17 | N16: C18 | O16: C19 | P16: C20 | Q16: C21 | R16: C22 | S16: C23 | T16: C24 | U16: C25 | V16: C26 | W16: C27 | X16: C28 | Y16: C29 | Z16: C30 | AA16: C31 | AB16: C32 | AC16: C33 | AD16: C34 | AE16: C35 | AF16: C36 | AG16: C37 | AH16: C38
A17: Глава 1 Лес | H17: ГЛАВА 1. Подготовка территории строительства
A18: Глава 1 ЛесШаблон | K18: =L18+M18+N18+O18+Q18+R18 -> 0 | X18: =N18*'Ценовые нормативы'!$E$17 -> 0 | Z18: =O18*'Ценовые нормативы'!$E$18 -> 0 | AA18: =P18*'Ценовые нормативы'!$E$17 -> 0 | AC18: =Q18*'Ценовые нормативы'!$E$17*'Ценовые нормативы'!$E$24 -> 0 | AD18: =R18*'Ценовые нормативы'!$E$17*'Ценовые нормативы'!$E$25 -> 0 | AE18: =X18+Z18+AC18+AD18 -> 0
A19: Глава 1 ЛесИтог | H19: Итог 1 Лес | K19: =ROUND(SUM(K18),5) -> 0 | L19: =ROUND(SUM(L18),5) -> 0 | M19: 0 | N19: 0 | O19: 0 | P19: 0 | Q19: 0 | R19: 0 | X19: =ROUND(SUM(X18),5) -> 0 | Y19: =ROUND(SUM(Y18),5) -> 0 | Z19: 0 | AA19: 0 | AB19: 0 | AC19: 0 | AD19: 0 | AE19: 0
A20: Глава 1 Прочие
A21: Глава 1 ПрочиеШаблон | K21: =L21+M21+N21+O21+Q21+R21 -> 0 | X21: =N21*'Ценовые нормативы'!$E$17 -> 0 | Z21: =O21*'Ценовые нормативы'!$E$18 -> 0 | AA21: =P21*'Ценовые нормативы'!$E$17 -> 0 | AC21: =Q21*'Ценовые нормативы'!$E$17*'Ценовые нормативы'!$E$24 -> 0 | AD21: =R21*'Ценовые нормативы'!$E$17*'Ценовые нормативы'!$E$25 -> 0 | AE21: =X21+Z21+AC21+AD21 -> 0
A22: Глава 1 ПрочиеИтог | K22: =ROUND(SUM(K21),5) -> 0 | L22: =ROUND(SUM(L21),5) -> 0 | M22: 0 | N22: 0 | O22: 0 | P22: 0 | Q22: 0 | R22: 0 | X22: =ROUND(SUM(X21),5) -> 0 | Y22: =ROUND(SUM(Y21),5) -> 0 | Z22: 0 | AA22: 0 | AB22: 0 | AC22: 0 | AD22: 0 | AE22: 0
A23: Глава 1Итог | H23: ИТОГО ГЛАВА 1. Подготовка территории строительства | K23: =ROUND(K22+K19,5) -> 0 | L23: 0 | M23: 0 | N23: 0 | O23: 0 | P23: 0 | Q23: 0 | R23: 0 | X23: =ROUND(X22+X19,5) -> 0 | Y23: 0 | Z23: 0 | AA23: 0 | AB23: 0 | AC23: 0 | AD23: 0 | AE23: 0
A25: Глава 2-7 | H25: ГЛАВЫ 2-7. Основные объекты строительства
A26: Глава 2-7Шаблон | K26: =L26+M26+N26+O26+Q26+R26 -> 0 | X26: =N26*'Ценовые нормативы'!$E$17 -> 0 | Z26: =O26*'Ценовые нормативы'!$E$18 -> 0 | AA26: =P26*'Ценовые нормативы'!$E$17 -> 0 | AC26: =Q26*'Ценовые нормативы'!$E$17*'Ценовые нормативы'!$E$24 -> 0 | AD26: =R26*'Ценовые нормативы'!$E$17*'Ценовые нормативы'!$E$25 -> 0 | AE26: =X26+Z26+AC26+AD26 -> 0
A27: Глава 2-7Итог | H27: ИТОГО ГЛАВЫ 2-7. Основные объекты строительства | K27: =ROUND(SUM(K26),5) -> 0 | L27: =ROUND(SUM(L26),5) -> 0 | M27: 0 | N27: 0 | O27: 0 | P27: 0 | Q27: 0 | R27: 0 | X27: =ROUND(SUM(X26),5) -> 0 | Y27: =ROUND(SUM(Y26),5) -> 0 | Z27: 0 | AA27: 0 | AB27: 0 | AC27: 0 | AD27: 0 | AE27: 0
H29: ИТОГО ГЛАВЫ 1-7 | K29: =ROUND(K27+K23,5) -> 0 | L29: 0 | M29: 0 | N29: 0 | O29: 0 | P29: 0 | Q29: 0 | R29: 0 | X29: =ROUND(X27+X23,5) -> 0 | Y29: 0 | Z29: 0 | AA29: 0 | AB29: 0 | AC29: 0 | AD29: 0 | AE29: 0
H31: Лимит базы 2001г МТР для начисления лимитированных | K31: =ROUND(L29+M31+N29+O29+Q29+R29,5) -> 0 | M31: =M29 -> 0
H33: ГЛАВА 8. Временные здания и сооружения
A34: Глава 8 ВЗиС | G34: ГСН 81-05-01-2001 | H34: Временные здания и сооружения | J34: ='Ценовые нормативы'!$E$35 -> 0.025 | K34: =ROUND((K31-L29)*J34,5) -> 0 | AE34: =ROUND((AE29*J34) + (M31*J34*'Ценовые нормативы'!$E$20),5) -> 0
A35: Глава 8 ВЗиСШаблон | K35: =L35+M35+N35+O35+Q35+R35 -> 0 | X35: =N35*'Ценовые нормативы'!$E$17 -> 0 | Z35: =O35*'Ценовые нормативы'!$E$18 -> 0 | AA35: =P35*'Ценовые нормативы'!$E$17 -> 0 | AC35: =Q35*'Ценовые нормативы'!$E$17*'Ценовые нормативы'!$E$24 -> 0 | AD35: =R35*'Ценовые нормативы'!$E$17*'Ценовые нормативы'!$E$25 -> 0 | AE35: =X35+Z35+AC35+AD35 -> 0
A36: Глава 8 ВЗиСИтог | K36: =ROUND(SUM(K35),5) -> 0 | L36: =ROUND(SUM(L35),5) -> 0 | M36: 0 | N36: 0 | O36: 0 | P36: 0 | Q36: 0 | R36: 0 | X36: =ROUND(SUM(X35),5) -> 0 | Y36: =ROUND(SUM(Y35),5) -> 0 | Z36: 0 | AA36: 0 | AB36: 0 | AC36: 0 | AD36: 0 | AE36: 0
A37: Глава 8 Зимник
A38: Глава 8 ЗимникШаблон | K38: =L38+M38+N38+O38+Q38+R38 -> 0 | X38: =N38*'Ценовые нормативы'!$E$17 -> 0 | Z38: =O38*'Ценовые нормативы'!$E$18 -> 0 | AA38: =P38*'Ценовые нормативы'!$E$17 -> 0 | AC38: =Q38*'Ценовые нормативы'!$E$17*'Ценовые нормативы'!$E$24 -> 0 | AD38: =R38*'Ценовые нормативы'!$E$17*'Ценовые нормативы'!$E$25 -> 0 | AE38: =X38+Z38+AC38+AD38 -> 0
A39: Глава 8 ЗимникИтог | K39: =ROUND(SUM(K38),5) -> 0 | L39: =ROUND(SUM(L38),5) -> 0 | M39: 0 | N39: 0 | O39: 0 | P39: 0 | Q39: 0 | R39: 0 | X39: =ROUND(SUM(X38),5) -> 0 | Y39: =ROUND(SUM(Y38),5) -> 0 | Z39: 0 | AA39: 0 | AB39: 0 | AC39: 0 | AD39: 0 | AE39: 0
A40: Глава 8Итог | H40: ИТОГО ГЛАВА 8. Временные здания и сооружения | K40: =ROUND(K34+K36+K39,5) -> 0 | L40: =ROUND(L34+L36+L39,5) -> 0 | M40: 0 | N40: 0 | O40: 0 | P40: 0 | Q40: 0 | R40: 0 | X40: =ROUND(X34+X36+X39,5) -> 0 | Y40: 0 | Z40: 0 | AA40: 0 | AB40: 0 | AC40: 0 | AD40: 0 | AE40: 0
H42: ИТОГО ГЛАВЫ 1-8 | K42: =ROUND(K29+K40,5) -> 0 | L42: 0 | M42: 0 | N42: 0 | O42: 0 | P42: 0 | Q42: 0 | R42: 0 | X42: =ROUND(X29+X40,5) -> 0 | Y42: 0 | Z42: 0 | AA42: 0 | AB42: 0 | AC42: 0 | AD42: 0 | AE42: 0
H44: Лимит базы 2001г МТР для начисления лимитированных | K44: =ROUND(L42+M44+N42+O42+Q42+R42,5) -> 0 | M44: =M42 -> 0
H46: ГЛАВА 9. Прочие работы и затраты
H47: Прочие затраты
G48: ГСН 81-05-02-2007 | H48: Зимнее удорожание | J48: ='Ценовые нормативы'!$E$36 -> 0.037 | K48: =ROUND((K44-L42)*J48,5) -> 0 | AE48: =ROUND((AE42*J48)+(M44*J48*'Ценовые нормативы'!$E$20),5) -> 0
F49: 1 | G49: ГСН 81-05-02-2007 | H49: Снегоборьба | J49: ='Ценовые нормативы'!$E$37 -> 0.004 | K49: =ROUND((K44-L42)*J49,5) -> 0 | AE49: =ROUND((AE42*J49)+(M44*J49*'Ценовые нормативы'!$E$20),5) -> 0
F50: =F49+1 -> 2 | G50: МДС 81-35.2004 | H50: Борьба с гнусом | J50: ='Ценовые нормативы'!$E$38 -> 0.001 | K50: =ROUND((K44-L42)*J50,5) -> 0 | AE50: =ROUND((AE42*J50)+(M44*J50*'Ценовые нормативы'!$E$20),5) -> 0
H51: Итого прочие затраты | K51: =ROUND(SUM(K48:K50),5) -> 0 | L51: =ROUND(SUM(L48:L50),5) -> 0 | M51: 0 | N51: 0 | O51: 0 | P51: 0 | Q51: 0 | R51: 0 | X51: =ROUND(SUM(X48:X50),5) -> 0 | Y51: 0 | Z51: 0 | AA51: 0 | AB51: 0 | AC51: 0 | AD51: 0 | AE51: 0
A53: Глава 9 | H53: Прочие работы
A54: Глава 9Шаблон | K54: =L54+M54+N54+O54+Q54+R54 -> 0 | X54: =N54*'Ценовые нормативы'!$E$17 -> 0 | Z54: =O54*'Ценовые нормативы'!$E$18 -> 0 | AA54: =P54*'Ценовые нормативы'!$E$17 -> 0 | AC54: =Q54*'Ценовые нормативы'!$E$17*'Ценовые нормативы'!$E$24 -> 0 | AD54: =R54*'Ценовые нормативы'!$E$17*'Ценовые нормативы'!$E$25 -> 0 | AE54: =X54+Z54+AC54+AD54 -> 0
A55: Глава 9Итог | H55: Итого Прочие | K55: =ROUND(SUM(K54),5) -> 0 | L55: =ROUND(SUM(L54),5) -> 0 | M55: 0 | N55: 0 | O55: 0 | P55: 0 | Q55: 0 | R55: 0 | X55: =ROUND(SUM(X54),5) -> 0 | Y55: 0 | Z55: 0 | AA55: 0 | AB55: 0 | AC55: 0 | AD55: 0 | AE55: 0
A57: ПНР | H57: ПНР
A58: ПНРШаблон | K58: =L58+M58+N58+O58+Q58+R58 -> 0 | X58: =N58*'Ценовые нормативы'!$E$21 -> 0 | Z58: =O58*'Ценовые нормативы'!$E$18 -> 0 | AA58: =P58*'Ценовые нормативы'!$E$21 -> 0 | AC58: =Q58*'Ценовые нормативы'!$E$21 -> 0 | AD58: =R58*'Ценовые нормативы'!$E$21 -> 0 | AE58: =X58+Z58+AC58+AD58 -> 0
A59: ПНРИтог | H59: Итого ПНР | K59: =ROUND(SUM(K58),5) -> 0 | L59: =ROUND(SUM(L58),5) -> 0 | M59: 0 | N59: 0 | O59: 0 | P59: 0 | Q59: 0 | R59: 0 | X59: =ROUND(SUM(X58),5) -> 0 | Y59: =ROUND(SUM(Y58),5) -> 0 | Z59: 0 | AA59: 0 | AB59: 0 | AC59: 0 | AD59: 0 | AE59: 0
A61: Врезка | H61: Врезка
A62: ВрезкаШаблон | AE62: =J62*K62*'Ценовые нормативы'!$E$30 -> 0
A63: ВрезкаИтог | H63: Итого Врезка | K63: =ROUND(SUM(K62),5) -> 0 | L63: =ROUND(SUM(L62),5) -> 0 | M63: 0 | N63: 0 | O63: 0 | P63: 0 | Q63: 0 | R63: 0 | X63: =ROUND(SUM(X62),5) -> 0 | Y63: =ROUND(SUM(Y62),5) -> 0 | Z63: 0 | AA63: 0 | AB63: 0 | AC63: 0 | AD63: 0 | AE63: 0
A65: Разница в стоимости электроэнергии | H65: Разница в стоимости электроэнергии
A66: Разница в стоимости электроэнергииШаблон
A67: Разница в стоимости электроэнергииИтог | H67: Итого Разница в стоимости электроэнергии | K67: =ROUND(SUM(K66),5) -> 0 | L67: =ROUND(SUM(L66),5) -> 0 | M67: 0 | N67: 0 | O67: 0 | P67: 0 | Q67: 0 | R67: 0 | X67: =ROUND(SUM(X66),5) -> 0 | Y67: =ROUND(SUM(Y66),5) -> 0 | Z67: 0 | AA67: 0 | AB67: 0 | AC67: 0 | AD67: 0 | AE67: 0
H69: Перебазировка техники сверх нормативной величины (учтенной в расценках на ЭММ)
H70: Затраты, связанные с осуществлением работ вахтовым методом
H71: Затраты по перевозке автомобильным транспортом работников строительно-монтажных организаций
H73: ИТОГО ГЛАВА 9. Прочие работы и затраты | K73: =ROUND(K51+K55+K59+K63+K67+K69+K70+K71,5) -> 0 | L73: 0 | M73: 0 | N73: 0 | O73: 0 | P73: 0 | Q73: 0 | R73: 0 | X73: =ROUND(X51+X55+X59+X63+X67+X69+X70+X71,5) -> 0 | Y73: 0 | Z73: 0 | AA73: 0 | AB73: 0 | AC73: 0 | AD73: 0 | AE73: 0
H75: ИТОГО ГЛАВЫ 1-9 | K75: =ROUND(K42+K73,5) -> 0 | L75: 0 | M75: 0 | N75: 0 | O75: 0 | P75: 0 | Q75: 0 | R75: 0 | X75: =ROUND(X42+X73,5) -> 0 | Y75: 0 | Z75: 0 | AA75: 0 | AB75: 0 | AC75: 0 | AD75: 0 | AE75: 0
H77: ГЛАВА 12. Проектные и изыскательские работы
A78: Испытание свай | H78: Испытание свай
A79: Испытание свайШаблон | AE79: =K79*'Ценовые нормативы'!$E$40 -> 0
A80: Испытание свайИтог | H80: Итого Испытание свай | K80: =ROUND(SUM(K79),5) -> 0 | L80: =ROUND(SUM(L79),5) -> 0 | M80: 0 | N80: 0 | O80: 0 | P80: 0 | Q80: 0 | R80: 0 | X80: =ROUND(SUM(X79),5) -> 0 | Y80: =ROUND(SUM(Y79),5) -> 0 | Z80: 0 | AA80: 0 | AB80: 0 | AC80: 0 | AD80: 0 | AE80: 0
H81: ИТОГО ГЛАВА 12. Проектные и изыскательские работы | K81: =ROUND(K80,5) -> 0 | L81: =ROUND(L80,5) -> 0 | M81: 0 | N81: 0 | O81: 0 | P81: 0 | Q81: 0 | R81: 0 | X81: =ROUND(X80,5) -> 0 | Y81: =ROUND(Y80,5) -> 0 | Z81: 0 | AA81: 0 | AB81: 0 | AC81: 0 | AD81: 0 | AE81: 0
H83: ИТОГО ГЛАВЫ 1-12 | K83: =ROUND(K75+K81,5) -> 0 | L83: =ROUND(L75+L81,5) -> 0 | M83: 0 | N83: 0 | O83: 0 | P83: 0 | Q83: 0 | R83: 0 | X83: =ROUND(X75+X81,5) -> 0 | Y83: =ROUND(Y75+Y81,5) -> 0 | Z83: 0 | AA83: 0 | AB83: 0 | AC83: 0 | AD83: 0 | AE83: 0
H85: МАТЕРИАЛЫ
H86: Стоимость материалов поставки Подрядчика с учетом транспортировки до объекта | AF86: =W86 -> 0
H87: Стоимость дополнительных затрат на погрузку материалов Заказчика (щебень) | I87: т | W87: =ROUND((M87+O87)*'Ценовые нормативы'!E43,5) -> 0 | AF87: =W87 -> 0
A88: move_template | H88: Стоимость дополнительных затрат на перевозку материалов Заказчика (щебень) | I88: т | W88: =ROUND((M88+O88)*'Ценовые нормативы'!transportationStandard,5) -> 0 | AF88: =W88 -> 0
H89: Стоимость оборудования поставки Подрядчика с учетом транспортировки до объекта | AF89: =V89 -> 0
H90: ИТОГО МАТЕРИАЛЫ | AF90: =ROUND(SUM(AF86:AF89),5) -> 0
G92: МДС 81-35.2004 | H92: Непредвиденные затраты | J92: ='Ценовые нормативы'!$E$39 -> 0.015 | K92: =ROUND(K83*J92,5) -> 0 | AE92: =ROUND((AE83+AF90-AF86-AF89)*J92+L83*J92*'Ценовые нормативы'!transitionIndex2+M83*J92*'Ценовые нормативы'!$E$20,5) -> 0
H94: ИТОГО с учетом всех затрат | AF94: =ROUND(AE83+AF90+AE92,5) -> 0
H95: - НДС | J95: ='Ценовые нормативы'!$E$31 -> 0.2 | AF95: =ROUND(AF94*J95,5) -> 0
H97: ИТОГО с учетом НДС | AF97: =ROUND(AF94+AF95,5) -> 0
H98: Затраты на СМР без учета ТМЦ, ПНР, врезки | AF98: =ROUND(AF97-AF99-AF100-AF101,5) -> 0
H99: Затраты на ТМЦ поставки подрядчика без учета страхования | AF99: =ROUND((AF86+AF89)+(AF86+AF89)*J95,5) -> 0
H100: Затраты на ПНР с учетом непредвиденных расходов | AF100: =ROUND((AE59*J95+AE59)+(AE59*J95+AE59)*J92,5) -> 0
H101: Врезка | AF101: =ROUND(AE63+AE63*J95,5) -> 0
H103: СПРАВОЧНО:
H104: Затраты на Материалы поставки Заказчика без НДС
H105: Затраты на Оборудование поставки Заказчика без НДС
H106: Непредвиденные затраты Заказчика без НДС | AF106: =ROUND(AE92,5) -> 0
H108: ВСЕГО с учетом всех затрат в прогнозном уровне цен с НДС | AF108: =ROUND((AF103+custMaterialsTotal+custEquipmentTotal+AF106)*(1+J95)+Z122,5) -> 0
H110: Стоимость строительства объекта в прогнозном уровне цен
F112: № п/п | H112: Наименование показателя | J112: ='Исходные данные'!V21 -> 2021 | N112: =J112+1 -> 2022 | R112: =N112+1 -> 2023 | V112: =R112+1 -> 2024 | Z112: Итоговый показатель
J113: I квартал | K113: II квартал | L113: III квартал | M113: IV квартал | N113: I квартал | O113: II квартал | P113: III квартал | Q113: IV квартал | R113: I квартал | S113: II квартал | T113: III квартал | U113: IV квартал | V113: I квартал | W113: II квартал | X113: III квартал | Y113: IV квартал
F114: 1 | H114: Прогнозное распределение СМР без учета ТМЦ и ПНР | I114: % | Z114: =IF((J114+K114+L114+M114+N114+O114+P114+Q114+R114+S114+T114+U114+V114+W114+X114+Y114)<>100%,"ОШИБКА",1) -> ОШИБКА
F115: 2 | H115: Прогнозное распределение ТМЦ поставки Подрядчика | I115: % | J115: =J114 -> 0 | K115: =K114 -> 0 | L115: 0 | M115: 0 | N115: 0 | O115: 0 | P115: 0 | Q115: 0 | R115: 0 | S115: 0 | T115: 0 | U115: 0 | V115: 0 | W115: 0 | X115: 0 | Y115: 0 | Z115: =IF((J115+K115+L115+M115+N115+O115+P115+Q115+R115+S115+T115+U115+V115+W115+X115+Y115)<>100%,"ОШИБКА",1) -> ОШИБКА
F116: 3 | H116: Прогнозное распределение ПНР | I116: % | J116: =J114 -> 0 | K116: =K114 -> 0 | L116: 0 | M116: 0 | N116: 0 | O116: 0 | P116: 0 | Q116: 0 | R116: 0 | S116: 0 | T116: 0 | U116: 0 | V116: 0 | W116: 0 | X116: 0 | Y116: 0 | Z116: =IF((J116+K116+L116+M116+N116+O116+P116+Q116+R116+S116+T116+U116+V116+W116+X116+Y116)<>100%,"ОШИБКА",1) -> ОШИБКА
F117: 4 | H117: Прогнозное распределение врезки | I117: % | J117: =J114 -> 0 | K117: =K114 -> 0 | L117: 0 | M117: 0 | N117: 0 | O117: 0 | P117: 0 | Q117: 0 | R117: 0 | S117: 0 | T117: 0 | U117: 0 | V117: 0 | W117: 0 | X117: 0 | Y117: 0 | Z117: =IF((J117+K117+L117+M117+N117+O117+P117+Q117+R117+S117+T117+U117+V117+W117+X117+Y117)<>100%,"ОШИБКА",1) -> ОШИБКА
F118: 5 | H118: Стоимость СМР без учета ТМЦ и ПНР в прогнозном распределении | I118: тыс. руб. | J118: =ROUND(J114*AF98,5) -> 0 | K118: =ROUND(K114*AF98,5) -> 0 | L118: =ROUND(L114*AF98,5) -> 0 | M118: =ROUND(M114*AF98,5) -> 0 | N118: =ROUND(N114*AF98,5) -> 0 | O118: =ROUND(O114*AF98,5) -> 0 | P118: =ROUND(P114*AF98,5) -> 0 | Q118: =ROUND(Q114*AF98,5) -> 0 | R118: =ROUND(R114*AF98,5) -> 0 | S118: =ROUND(S114*AF98,5) -> 0 | T118: =ROUND(T114*AF98,5) -> 0 | U118: =ROUND(U114*AF98,5) -> 0 | V118: =ROUND(V114*AF98,5) -> 0 | W118: =ROUND(W114*AF98,5) -> 0 | X118: =ROUND(X114*AF98,5) -> 0 | Y118: =ROUND(Y114*AF98,5) -> 0 | Z118: =SUM(J118:Y118) -> 0
F119: 6 | H119: Стоимость ТМЦ поставки Подрядчика в прогнозном распределении | I119: тыс. руб. | J119: =ROUND(J115*AF99,5) -> 0 | K119: =ROUND(K115*AF99,5) -> 0 | L119: =ROUND(L115*AF99,5) -> 0 | M119: =ROUND(M115*AF99,5) -> 0 | N119: =ROUND(N115*AF99,5) -> 0 | O119: =ROUND(O115*AF99,5) -> 0 | P119: =ROUND(P115*AF99,5) -> 0 | Q119: =ROUND(Q115*AF99,5) -> 0 | R119: =ROUND(R115*AF99,5) -> 0 | S119: =ROUND(S115*AF99,5) -> 0 | T119: =ROUND(T115*AF99,5) -> 0 | U119: =ROUND(U115*AF99,5) -> 0 | V119: =ROUND(V115*AF99,5) -> 0 | W119: =ROUND(W115*AF99,5) -> 0 | X119: =ROUND(X115*AF99,5) -> 0 | Y119: =ROUND(Y115*AF99,5) -> 0 | Z119: =SUM(J119:Y119) -> 0
F120: 7 | H120: Стоимость ПНР в прогнозном распределении | I120: тыс. руб. | J120: =ROUND(J116*AF100,5) -> 0 | K120: =ROUND(K116*AF100,5) -> 0 | L120: =ROUND(L116*AF100,5) -> 0 | M120: =ROUND(M116*AF100,5) -> 0 | N120: =ROUND(N116*AF100,5) -> 0 | O120: =ROUND(O116*AF100,5) -> 0 | P120: =ROUND(P116*AF100,5) -> 0 | Q120: =ROUND(Q116*AF100,5) -> 0 | R120: =ROUND(R116*AF100,5) -> 0 | S120: =ROUND(S116*AF100,5) -> 0 | T120: =ROUND(T116*AF100,5) -> 0 | U120: =ROUND(U116*AF100,5) -> 0 | V120: =ROUND(V116*AF100,5) -> 0 | W120: =ROUND(W116*AF100,5) -> 0 | X120: =ROUND(X116*AF100,5) -> 0 | Y120: =ROUND(Y116*AF100,5) -> 0 | Z120: =SUM(J120:Y120) -> 0
F121: 8 | H121: Стоимость врезки в прогнозном распределении | I121: тыс. руб. | J121: =ROUND(J117*AF101,5) -> 0 | K121: =ROUND(K117*AF101,5) -> 0 | L121: =ROUND(L117*AF101,5) -> 0 | M121: =ROUND(M117*AF101,5) -> 0 | N121: =ROUND(N117*AF101,5) -> 0 | O121: =ROUND(O117*AF101,5) -> 0 | P121: =ROUND(P117*AF101,5) -> 0 | Q121: =ROUND(Q117*AF101,5) -> 0 | R121: =ROUND(R117*AF101,5) -> 0 | S121: =ROUND(S117*AF101,5) -> 0 | T121: =ROUND(T117*AF101,5) -> 0 | U121: =ROUND(U117*AF101,5) -> 0 | V121: =ROUND(V117*AF101,5) -> 0 | W121: =ROUND(W117*AF101,5) -> 0 | X121: =ROUND(X117*AF101,5) -> 0 | Y121: =ROUND(Y117*AF101,5) -> 0 | Z121: =SUM(J121:Y121) -> 0
F122: 9 | H122: Всего стоимость СМР в прогнозном уровне цен | I122: тыс. руб. | J122: =J119+J118+J120+J121 -> 0 | K122: =K119+K118+K120+K121 -> 0 | L122: =L119+L118+L120+L121 -> 0 | M122: 0 | N122: 0 | O122: 0 | P122: 0 | Q122: 0 | R122: 0 | S122: 0 | T122: 0 | U122: 0 | V122: 0 | W122: 0 | X122: 0 | Y122: 0 | Z122: =SUM(J122:Y122) -> 0
H123: * Доля освоения в соответствующем квартале рассчитывается как выраженное в процентах отношение объема работ в стоимостном выражении, планируемого к выполнению в соответствующем квартале, к общему объему работ в стоимостном выражении
G125: Примечание : расчет должен быть выполнен на основании утвержденной ПСД и технического задания с включением в него всех работ и затрат, указанных в техническом задании и проектной документации
I128: ='Исходные данные'!executor2 -> Ответственный исполнитель ОЦП по КВ | L128: ='Исходные данные'!executor2Position -> Ведущий специалист | N128: ='Исходные данные'!executor2Fio -> Берестова А.В.
L129: должность | N129: Ф.И.О.
I131: ='Сопроводительная записка'!executor6 -> Начальник ОЦП по КВ | N131: ='Сопроводительная записка'!executor6Fio -> И.А. Овсянникова
L132: должность | N132: Ф.И.О.

Sheet smrTemplate_common (hidden)
B4: 95B8996E-A92E-40F2-8A9B-251AB1F004D4 | C4: Расчет стоимости СМР
C5: ='Исходные данные'!D19 -> Строительство объектов энергетики Правдинского региона
D7: Шифр проекта | E7: ='Исходные данные'!projectcode -> 1980615/0880Д | F7: ='Исходные данные'!lotNumber -> 2000350438 (680-20-КС(ТЗ))
D8: Разработчик проекта | E8: ='Исходные данные'!projectdeveloper -> ООО «РН-УфаНИПИнефть» | F8: Срок строительства:
D9: Заказчик | E9: ООО "РН-Юганскнефтегаз" | F9: ='Исходные данные'!termconstruction -> 10.03.2021 - 30.06.2021
C11: № п/п | D11: Наименование работ и затрат | E11: Ед.изм. | F11: Стоимость в текущих ценах
C12: 1 | D12: 2 | E12: 3 | F12: 4
C13: C10 | D13: C11 | E13: C12 | F13: C14
A14: smr1 | C14: 1 | D14: Услуги подрядчика | E14: руб.
A15: smr2 | C15: 2 | D15: Стоимость ТМЦ поставки подрядчика, в.т.ч. | E15: руб.
A16: smr3 | C16: 3 | D16: Стоимость ТМЦ обеспечения Заказчика | E16: руб.
A17: smr4 | C17: 4 | D17: Прочие затраты Закзчика | E17: руб.
A18: smr5 | C18: 5 | D18: Итого затраты Подрядчика, с учетом НДС | E18: руб.
A19: smr6 | C19: 6 | D19: Итого затраты Заказчика, с учетом НДС | E19: руб.
A20: smr7 | C20: 7 | D20: ВСЕГО, с учетом НДС | E20: руб.
D22: Примечание:
C23: 1.Размер затрат на временные здания и сооружения следует определять расчетом с документальным подтверждением в пределах лимита, установленного договором строительного подряда.
C24: 2. При расчетах за выполненные работы затраты, связанные с удорожанием работ в зимний период, следует принимать не более норматива, предусмотренного договором строительного подряда. При производстве работ только в летний период начисление норм дополнительных затрат на производство в зимнее время запрещается.
C25: 3. Затраты, связанные с перевозкой рабочих автотранспортом, следует определять расчетом с документальным подтверждением в пределах лимита, установленного договором строительного подряда.
C26: 4. Компенсацию непредвиденных расходов следует осуществлять в пределах лимита, установленного договором строительного подряда, на основании подтверждающих документов.
C27: 5. Затраты по разделу "Прочие работы и затраты" подлежат возмещению по факту произведенных затрат, с обязательным предоставлением подтверждающих документов.
C28: 6. При завершении работ по наладке в соответствии с проектной документацией и нормативами производится паспортизация оборудования, за которую отвечает организация, проводящая его пусконаладку.
D32: ='Исходные данные'!executor2 &" _____________________________ " -> Ответственный исполнитель ОЦП по КВ _____________________________ | E32: ='Исходные данные'!executor2Position -> Ведущий специалист | F32: ='Исходные данные'!executor2Fio -> Берестова А.В.
E33: должность | F33: Ф.И.О.

Sheet priceTemplate_common (hidden)
A5: 95B8996E-A92E-40F2-8A9B-251AB1F004D4 | H5: Расчет стоимости строительства по лоту | N5: Шифр проекта | O5: ='Исходные данные'!projectcode -> 1980615/0880Д | T5: 5.50
H6: ='Исходные данные'!D19 -> Строительство объектов энергетики Правдинского региона | N6: Разработчик проекта | O6: ='Исходные данные'!projectdeveloper -> ООО «РН-УфаНИПИнефть»
N7: Заказчик | O7: ООО "РН-Юганскнефтегаз"
O8: ='Исходные данные'!lotNumber -> 2000350438 (680-20-КС(ТЗ))
G10: № | H10: Обоснование (№ЛС) | I10: Наименование работ и затрат | J10: Единица измерения мощности (км, м3, шт и т.д.) | K10: Количество | L10: Базисный уровень цен 2001г. | T10: Текущий уровень цен
L11: Стоимость объекта всего, тыс. руб. | M11: в том числе: | T11: Стоимость МТР всего, тыс. руб. | U11: в том числе: | Y11: Оплата труда основных рабочих, тыс.руб. | Z11: Трудозатраты основных рабочих, чел-час | AA11: Затраты на эксплуатацию машин и механизмов, тыс. руб. | AB11: Оплата труда механизаторов, тыс.руб. | AC11: Трудозатраты рабочих-механизаторов, чел-час | AD11: Накладные расходы, тыс. руб. | AE11: Сметная прибыль, тыс. руб. | AF11: Стоимость строительства объекта без учета затрат Заказчика, тыс. руб. | AG11: Общая стоимость строительства объекта (с учетом затрат Заказчика), тыс. руб. | AH11: Полная стоимость с учетом материалов и оборудования поставки Заказчика | AI11: Полная стоимость с учетом материалов и оборудования поставки Заказчика с учетом прочих затрат и НДС
M12: Стоимость оборудования всего, тыс. руб. | N12: Стоимость материалов всего, тыс. руб. | O12: Оплата труда основных рабочих, тыс. руб. | P12: Стоимость ЭММ, тыс. руб. | Q12: в том числе оплата труда механизаторов, тыс. руб. | R12: Накладные расходы, тыс. руб. | S12: Сметная прибыль, тыс. руб. | U12: Поставка Заказчика | W12: Поставка Подрядчика
U13: Стоимость оборудования, тыс. руб. | V13: Стоимость материалов, тыс. руб. | W13: Стоимость оборудования, тыс. руб. | X13: Стоимость материалов, тыс. руб.
G14: 1 | H14: 2 | I14: 3 | J14: 4 | K14: 5 | L14: 6 | M14: 7 | N14: 8 | O14: 9 | P14: 10 | Q14: 11 | R14: 12 | S14: 13 | T14: 14 | U14: 15 | V14: 16 | W14: 17 | X14: 18 | Y14: 19 | Z14: 20 | AA14: 21 | AB14: 22 | AC14: 23 | AD14: 24 | AE14: 25 | AF14: 26 | AG14: 27 | AH14: 28 | AI14: 29
B15: object_code | C15: outlay_code | D15: exception_code | E15: exception_type | F15: exception_mark | G15: C10 | H15: C11 | I15: C12 | J15: C13 | K15: C14 | L15: C15 | M15: C16 | N15: C17 | O15: C18 | P15: C19 | Q15: C20 | R15: C21 | S15: C22 | T15: C23 | U15: C24 | V15: C25 | W15: C26 | X15: C27 | Y15: C28 | Z15: C29 | AA15: C30 | AB15: C31 | AC15: C32 | AD15: C33 | AE15: C34 | AF15: C35 | AG15: C36 | AH15: C37 | AI15: C38
A16: Глава 1-7 | I16: ГЛАВА 1-7. Подготовка территории и основные объекты строительства
A17: Глава 1-7Итог | I17: ИТОГО ГЛАВЫ 1-7 Подготовка территории и основные объекты строительства
A19: БлокЛимитбазы1 | I19: Лимит базы 2001г МТР для начисления лимитированных | L19: =M17+N19+O17+P17+R17+S17 -> 0 | N19: =N17 -> 0
A21: Глава 8 | I21: ГЛАВА 8. Временные здания и сооружения
A22: Глава 8Итог | I22: ИТОГО ГЛАВА 8. Временные здания и сооружения
A24: Глава 1-8 | I24: ИТОГО ГЛАВЫ 1-8 | L24: =L17+L22 -> 0 | M24: 0 | N24: 0 | O24: 0 | P24: 0 | Q24: 0 | R24: 0 | S24: 0 | Y24: =Y17+Y22 -> 0 | Z24: 0 | AA24: 0 | AB24: 0 | AC24: 0 | AD24: 0 | AE24: 0 | AF24: 0
A26: БлокЛимитбазы2 | I26: Лимит базы 2001г МТР для начисления лимитированных | L26: =M24+N26+O24+P24+R24+S24 -> 0 | N26: =N24 -> 0
A28: БлокГлава9 | I28: ГЛАВА 9. Прочие работы и затраты
A29: БлокГлава9ПЗЗУ | I29: Зимнее удорожание
A30: БлокГлава9ПЗС | I30: Снегоборьба
A31: БлокГлава9ПЗБГ | I31: Борьба с гнусом
A33: Глава 9 | I33: ПРОЧИЕ РАБОТЫ
A34: Глава 9Итог | I34: ИТОГО ПРОЧИЕ РАБОТЫ
I36: ИТОГО С ПРОЧИМИ РАБОТАМИ | L36: =L24+L29+L30+L31+L34 -> 0 | M36: 0 | N36: 0 | O36: 0 | P36: 0 | Q36: 0 | R36: 0 | S36: 0 | Y36: =Y24+Y29+Y30+Y31+Y34 -> 0 | Z36: 0 | AA36: 0 | AB36: 0 | AC36: 0 | AD36: 0 | AE36: 0 | AF36: 0
A38: ПНР | I38: ПНР
A39: ПНРИтог | I39: ИТОГО ПНР
I41: ИТОГО С ПНР | L41: =L36+L39 -> 0 | M41: 0 | N41: 0 | O41: 0 | P41: 0 | Q41: 0 | R41: 0 | S41: 0 | Y41: =Y36+Y39 -> 0 | Z41: 0 | AA41: 0 | AB41: 0 | AC41: 0 | AD41: 0 | AE41: 0 | AF41: 0
A43: Врезка | I43: ВРЕЗКА
A44: ВрезкаИтог | I44: ИТОГО ВРЕЗКА
I46: ИТОГО С ВРЕЗКА | L46: =L41+L44 -> 0 | M46: 0 | N46: 0 | O46: 0 | P46: 0 | Q46: 0 | R46: 0 | S46: 0 | Y46: =Y41+Y44 -> 0 | Z46: 0 | AA46: 0 | AB46: 0 | AC46: 0 | AD46: 0 | AE46: 0 | AF46: 0
A48: Разница в стоимости электроэнергии | I48: Разница в стоимости электроэнергии
A49: Разница в стоимости электроэнергииИтог | I49: ИТОГО Разница в стоимости электроэнергии
I51: ИТОГО С Разницей в стоимости электроэнергии | L51: =L46+L49 -> 0 | M51: 0 | N51: 0 | O51: 0 | P51: 0 | Q51: 0 | R51: 0 | S51: 0 | Y51: =Y46+Y49 -> 0 | Z51: 0 | AA51: 0 | AB51: 0 | AC51: 0 | AD51: 0 | AE51: 0 | AF51: 0
A53: БлокГлава9ПТ | I53: Перебазировка техники сверх нормативной величины
A54: БлокГлава9ПТИтог | I54: Итого Перебазировка техники сверх нормативной величины
A56: БлокГлава9ВМ | I56: Затраты, связанные с осуществлением работ вахтовым методом
A57: БлокГлава9ВМИтог | I57: Итого Затраты, связанные с осуществлением работ вахтовым методом
A59: БлокГлава9Т | I59: Затраты по перевозке автомобильным транспортом работников строительно-монтажных организаций
A60: БлокГлава9ТИтог | I60: Итого Затраты по перевозке автомобильным транспортом работников строительно-монтажных организаций
I62: ИТОГО ПРОЧИЕ ЗАТРАТЫ | AF62: =AF54+AF57+AF60 -> 0
I64: ИТОГО С ПРОЧИМИ ЗАТРАТАМИ | AF64: =AF51+AF62 -> 0
A66: Испытание свай | I66: ИСПЫТАНИЕ СВАЙ
A67: Испытание свайИтог | I67: ИТОГО ИСПЫТАНИЕ СВАЙ
I69: ИТОГО С ИСПЫТАНИЕМ СВАЙ | AF69: =AF64+AF67 -> 0
A71: БлокМатериалыПП | C71: БлокМатериалыОПП | I71: Материалы и оборудование в текущем уровне цен согласно разделительной ведомости
A72: БлокМатериалыППИтог | I72: Итого Материалы и оборудование в текущем уровне цен согласно разделительной ведомости
A74: БлокМатериалыЗПог | I74: Дополнительные затраты на траспортировку и погрузку щебня поставки Заказчика
A75: БлокМатериалыЗПогИтог | I75: Итого Дополнительные затраты на траспортировку и погрузку щебня поставки Заказчика
A77: БлокНЗ | I77: Непредвиденные затраты
I79: ИТОГО с учетом всех затрат | AF79: =AF69+AF72+AF75+AF77 -> 0 | AG79: =AG69+AG77/2+AG72+AG75 -> 0
I80: - НДС | K80: =K136 -> 0.2 | AF80: =AF79*K80 -> 0 | AG80: =AG79*K80 -> 0
I81: ИТОГО с учетом НДС | AF81: =AF79+AF80 -> 0 | AG81: =AG79+AG80 -> 0
I82: Затраты на СМР без учета ТМЦ, ПНР, врезки | AF82: =AF81-AF83-AF84-AF85 -> 0 | AG82: =AG81-AG83-AG84-AG85-AG86 -> 0
I83: Затраты на ТМЦ поставки подрядчика | AF83: =AF72*(1+nds) -> 0 | AG83: =AF83 -> 0
I84: Затраты на ПНР с учетом непредвиденных расходов | AF84: =AF39*(1+nds)+AF39*(1+nds)*K141 -> 0 | AG84: =AF84 -> 0
I85: Затраты на врезку | AF85: =AF44*(1+nds) -> 0 | AG85: =AF85 -> 0
I86: Справочно:МТР поставки Заказчика | AG86: =AG72-AF72 -> 0
H88: Распределение суммы договора по объектам лота
H90: № п/п | I90: Наименование объекта | J90: Базовая стоимость МТР | O90: Материалы, текущий у/ц согласно РВ | S90: Текущий уровень цен
S91: ИТОГО СМР по гл.1-7, тыс. руб. | T91: Глава 8 | V91: ИТОГО СМР по гл.1-8, тыс. руб. без НДС | W91: Глава 9. Прочие работы и затраты | AE91: ИТОГО УСЛУГИ по гл.1-9, тыс. руб. без НДС | AF91: Затраты на испытание свай, тыс. руб. без НДС | AG91: Врезка | AH91: Разница в стоимости электроэнергии | AI91: Затраты на траспортировку и погрузку щебня поставки Заказчика, тыс. руб. без НДС | AJ91: Непредвиденные работы и затраты, тыс. руб. без НДС | AK91: Стоимость ВСЕГО без учета материалов и оборудования поставки Заказчика, тыс. руб. с НДС | AL91: Стоимость ВСЕГО с учетом материалов и оборудования поставки Заказчика с учетом прочих затрат и НДС
J92: ИТОГО главы 1-7, тыс. руб. | K92: ИТОГО глава 8, тыс. руб. | L92: ИТОГО по гл.1-8, тыс. руб. | M92: ИТОГО стоимость оборудования, тыс. руб. | N92: ИТОГО стоимость материалов, тыс. руб. | O92: Поставка Заказчика | Q92: Поставка Подрядчика | T92: Лимит затрат на ВЗиС, учтенный нормативом, тыс. руб. | U92: ВЗиС (ЛС) сверх лимита, учтенного нормативом, тыс. руб. | W92: Зимнее удорожание, тыс. руб. без НДС | X92: Снегоборьба, тыс. руб. без НДС | Y92: Борьба с гнусом, тыс. руб. без НДС | Z92: Первон.очистка от снега, тыс. руб. без НДС | AA92: ПНР, тыс. руб. без НДС | AB92: Мобилизация, тыс. руб. без НДС | AC92: Вахтовая перевозка, тыс. руб. без НДС | AD92: Ежедневная возка, тыс. руб. без НДС
O93: Стоимость оборудования, тыс. руб. | P93: Стоимость материалов, тыс. руб. | Q93: Стоимость оборудования, тыс. руб. | R93: Стоимость материалов, тыс. руб.
H94: 1 | I94: 2 | J94: 3 | K94: 4 | L94: 5 | M94: 5 | N94: 5 | O94: 6 | P94: 7 | Q94: 8 | R94: 9 | S94: 10 | T94: 11 | U94: 12 | V94: 13 | W94: 14 | X94: 15 | Y94: 16 | Z94: 17 | AA94: 18 | AB94: 19 | AC94: 20 | AD94: 21 | AE94: 22 | AF94: 23 | AG94: 24 | AH94: 25 | AI94: 26 | AJ94: 27 | AK94: 28 | AL94: 29
H95: C11 | I95: C12 | J95: C13 | K95: C14 | L95: C15 | M95: C42 | N95: C43 | O95: C16 | P95: C17 | Q95: C18 | R95: C19 | S95: C22 | T95: C23 | U95: C24 | V95: C25 | W95: C26 | X95: C27 | Y95: C28 | Z95: C29 | AA95: C30 | AB95: C31 | AC95: C32 | AD95: C33 | AE95: C34 | AF95: C36 | AG95: C40 | AH95: C41 | AI95: C37 | AJ95: C35 | AK95: C38 | AL95: C39
I96: ВСЕГО
J97: =J96-N17 -> 0 | K97: =K96-N22 -> 0 | L97: =L96-N24 -> 0 | O97: =O96-U72 -> 0 | P97: =P96-V72 -> 0 | Q97: =Q96-W72 -> 0 | R97: =R96-X72 -> 0 | S97: =S96-AF17 -> 0 | V97: =V96-AF24 -> 0 | Z97: =Z96-AF34 -> 0 | AA97: =AA96-AF39 -> 0 | AB97: =AB96-AF54 -> 0 | AC97: =AC96-AF57 -> 0 | AD97: =AD96-AF60 -> 0 | AE97: =AE96-(AF41+AF62) -> 0 | AF97: =AF96-AF67 -> 0 | AG97: =AG96-AF44 -> 0 | AH97: =AH96-AF49 -> 0 | AI97: =AI96-AF75 -> 0 | AK97: =AK96-AF81 -> 0 | AL97: =AL96-AG81 -> 0
H98: Стоимость строительства объекта в прогнозном уровне цен
H100: № п/п | I100: Наименование показателя | K100: ='Исходные данные'!V21 -> 2021 | O100: =K100+1 -> 2022 | S100: =O100+1 -> 2023 | W100: =S100+1 -> 2024 | AA100: Итоговый показатель
A101: БлокПрогноз | K101: I квартал | L101: II квартал | M101: III квартал | N101: IV квартал | O101: I квартал | P101: II квартал | Q101: III квартал | R101: IV квартал | S101: I квартал | T101: II квартал | U101: III квартал | V101: IV квартал | W101: I квартал | X101: II квартал | Y101: III квартал | Z101: IV квартал
A102: БлокПрогнозИтог | I102: ВСЕГО
A103: lastRow
H104: Стоимость строительства объекта в прогнозном уровне цен
H106: № п/п | I106: Наименование показателя | K106: ='Исходные данные'!V21 -> 2021 | O106: =K106+1 -> 2022 | S106: =O106+1 -> 2023 | W106: =S106+1 -> 2024 | AA106: Итоговый показатель
K107: I квартал | L107: II квартал | M107: III квартал | N107: IV квартал | O107: I квартал | P107: II квартал | Q107: III квартал | R107: IV квартал | S107: I квартал | T107: II квартал | U107: III квартал | V107: IV квартал | W107: I квартал | X107: II квартал | Y107: III квартал | Z107: IV квартал
A108: БлокПрогнозОбщий | H108: 1 | I108: Прогнозное распределение СМР без учета ТМЦ и ПНР | J108: % | AA108: =IF((K108+L108+M108+N108+O108+P108+Q108+R108+S108+T108+U108+V108+W108+X108+Y108+Z108)<>100%,"ОШИБКА",1) -> ОШИБКА
H109: 2 | I109: Прогнозное распределение ТМЦ поставки Подрядчика | J109: % | K109: =K108 -> 0 | L109: =L108 -> 0 | M109: 0 | N109: 0 | O109: 0 | P109: 0 | Q109: 0 | R109: 0 | S109: 0 | T109: 0 | U109: 0 | V109: 0 | W109: 0 | X109: 0 | Y109: 0 | Z109: 0 | AA109: =IF((K109+L109+M109+N109+O109+P109+Q109+R109+S109+T109+U109+V109+W109+X109+Y109+Z109)<>100%,"ОШИБКА",1) -> ОШИБКА
H110: 3 | I110: Прогнозное распределение ПНР | J110: % | K110: =K108 -> 0 | L110: =L108 -> 0 | M110: 0 | N110: 0 | O110: 0 | P110: 0 | Q110: 0 | R110: 0 | S110: 0 | T110: 0 | U110: 0 | V110: 0 | W110: 0 | X110: 0 | Y110: 0 | Z110: 0 | AA110: =IF((K110+L110+M110+N110+O110+P110+Q110+R110+S110+T110+U110+V110+W110+X110+Y110+Z110)<>100%,"ОШИБКА",1) -> ОШИБКА
H111: 4 | I111: Прогнозное распределение врезки | J111: % | K111: =K108 -> 0 | L111: =L108 -> 0 | M111: 0 | N111: 0 | O111: 0 | P111: 0 | Q111: 0 | R111: 0 | S111: 0 | T111: 0 | U111: 0 | V111: 0 | W111: 0 | X111: 0 | Y111: 0 | Z111: 0 | AA111: =IF((K111+L111+M111+N111+O111+P111+Q111+R111+S111+T111+U111+V111+W111+X111+Y111+Z111)<>100%,"ОШИБКА",1) -> ОШИБКА
H112: 5 | I112: Стоимость СМР без учета ТМЦ и ПНР в прогнозном распределении | J112: тыс. руб. | K112: =K108*AF82 -> 0 | L112: =L108*AF82 -> 0 | M112: =M108*AF82 -> 0 | N112: =N108*AF82 -> 0 | O112: =O108*AF82 -> 0 | P112: =P108*AF82 -> 0 | Q112: =Q108*AF82 -> 0 | R112: =R108*AF82 -> 0 | S112: =S108*AF82 -> 0 | T112: =T108*AF82 -> 0 | U112: =U108*AF82 -> 0 | V112: =V108*AF82 -> 0 | W112: =W108*AF82 -> 0 | X112: =X108*AF82 -> 0 | Y112: =Y108*AF82 -> 0 | Z112: =Z108*AF82 -> 0 | AA112: =SUM(K112:Z112) -> 0
H113: 6 | I113: Стоимость ТМЦ поставки Подрядчика в прогнозном распределении | J113: тыс. руб. | K113: =K109*AF83 -> 0 | L113: =L109*AF83 -> 0 | M113: =M109*AF83 -> 0 | N113: =N109*AF83 -> 0 | O113: =O109*AF83 -> 0 | P113: =P109*AF83 -> 0 | Q113: =Q109*AF83 -> 0 | R113: =R109*AF83 -> 0 | S113: =S109*AF83 -> 0 | T113: =T109*AF83 -> 0 | U113: =U109*AF83 -> 0 | V113: =V109*AF83 -> 0 | W113: =W109*AF83 -> 0 | X113: =X109*AF83 -> 0 | Y113: =Y109*AF83 -> 0 | Z113: =Z109*AF83 -> 0 | AA113: =SUM(K113:Z113) -> 0
H114: 7 | I114: Стоимость ПНР в прогнозном распределении | J114: тыс. руб. | K114: =K110*AF84 -> 0 | L114: =L110*AF84 -> 0 | M114: =M110*AF84 -> 0 | N114: =N110*AF84 -> 0 | O114: =O110*AF84 -> 0 | P114: =P110*AF84 -> 0 | Q114: =Q110*AF84 -> 0 | R114: =R110*AF84 -> 0 | S114: =S110*AF84 -> 0 | T114: =T110*AF84 -> 0 | U114: =U110*AF84 -> 0 | V114: =V110*AF84 -> 0 | W114: =W110*AF84 -> 0 | X114: =X110*AF84 -> 0 | Y114: =Y110*AF84 -> 0 | Z114: =Z110*AF84 -> 0 | AA114: =SUM(K114:Z114) -> 0
H115: 8 | I115: Стоимость врезки в прогнозном распределении | J115: тыс. руб. | K115: =K111*AF85 -> 0 | L115: =L111*AF85 -> 0 | M115: =M111*AF85 -> 0 | N115: =N111*AF85 -> 0 | O115: =O111*AF85 -> 0 | P115: =P111*AF85 -> 0 | Q115: =Q111*AF85 -> 0 | R115: =R111*AF85 -> 0 | S115: =S111*AF85 -> 0 | T115: =T111*AF85 -> 0 | U115: =U111*AF85 -> 0 | V115: =V111*AF85 -> 0 | W115: =W111*AF85 -> 0 | X115: =X111*AF85 -> 0 | Y115: =Y111*AF85 -> 0 | Z115: =Z111*AF85 -> 0 | AA115: =SUM(K115:Z115) -> 0
H116: 9 | I116: Всего стоимость СМР в прогнозном уровне цен | J116: тыс. руб. | K116: =K113+K112+K114+K115 -> 0 | L116: =L113+L112+L114+L115 -> 0 | M116: =M113+M112+M114+M115 -> 0 | N116: 0 | O116: 0 | P116: 0 | Q116: 0 | R116: 0 | S116: 0 | T116: 0 | U116: 0 | V116: 0 | W116: 0 | X116: 0 | Y116: 0 | Z116: 0 | AA116: =SUM(K116:Z116) -> 0
I117: * Доля освоения в соответствующем квартале рассчитывается как выраженное в процентах отношение объема работ в стоимостном выражении, планируемого к выполнению в соответствующем квартале, к общему объему работ в стоимостном выражении
H119: Примечание : расчет должен быть выполнен на основании утвержденной ПСД и технического задания с включением в него всех работ и затрат, указанных в техническом задании и проектной документации
H121: Ценовые нормативы, применяемые при расчете Договорной цены
H123: № п/п | I123: Наименование | J123: Единица измерения | K123: Ценовые нормативы
H124: 1 | I124: 2 | J124: 3 | K124: 4
H125: C10 | I125: C11 | J125: C14 | K125: C12
G126: Price1 | H126: 1 | I126: Индекс оплаты труда основных рабочих и механизаторов СМР | K126: ='Ценовые нормативы'!E17 -> 14.29
G127: Price2 | H127: 2 | I127: Индекс эксплуатации машин и механизмов СМР | K127: ='Ценовые нормативы'!E18 -> 7.86
G128: Price3 | H128: 3 | I128: Индекс на перевозку грузов | K128: ='Ценовые нормативы'!E19 -> 6.41
G129: Price4 | H129: 4 | I129: Индекс МТР (для расчета лимитированных затрат) СМР | K129: ='Ценовые нормативы'!E20 -> 4.16
G130: Price5 | H130: 5 | I130: Индекс к оплате труда пусконаладочного персонала | K130: ='Ценовые нормативы'!E21 -> 14.29
G131: Price8 | H131: 6 | I131: Коэффициент к накладным расходам для СМР (кроме работ по строительству мостов) | K131: ='Ценовые нормативы'!E24 -> 1
G132: Price9 | H132: 7 | I132: Коэффициент к сметной прибыли для СМР (кроме работ по строительству мостов) | K132: ='Ценовые нормативы'!E25 -> 1
G133: Price10 | H133: 8 | I133: Коэффициент к накладным расходам для СМР (для работ по строительству мостов) | K133: ='Ценовые нормативы'!E26 -> 1
G134: Price11 | H134: 9 | I134: Коэффициент к сметной прибыли для СМР (для работ по строительству мостов) | K134: ='Ценовые нормативы'!E27 -> 1
G135: Price14 | H135: 10 | I135: Средневзвешенный курс евро 2013г. | J135: руб. | K135: ='Ценовые нормативы'!E30 -> 42.19
G136: Price15 | H136: 11 | I136: НДС | J136: % | K136: ='Ценовые нормативы'!E31 -> 0.2
G137: Price19 | H137: 12 | I137: Норма затрат на временные здания и сооружения | J137: % | K137: ='Ценовые нормативы'!E35 -> 0.025
G138: Price20 | H138: 13 | I138: Норма затрат на удорожание работ в зимний период | J138: % | K138: ='Ценовые нормативы'!E36 -> 0.037
G139: Price21 | H139: 14 | I139: Норма затрат на снегоборьбу | J139: % | K139: ='Ценовые нормативы'!E37 -> 0.004
G140: Price22 | H140: 15 | I140: Норма затрат на борьбу с гнусом | J140: % | K140: ='Ценовые нормативы'!E38 -> 0.001
G141: Price23 | H141: 16 | I141: Норматив непредвиденных расходов | J141: % | K141: ='Ценовые нормативы'!E39 -> 0.015
G142: Price25 | H142: 17 | I142: Индекс на динамическое испытание свай | K142: ='Ценовые нормативы'!E40 -> 2.595
G143: Price24 | H143: 18 | I143: Индекс МТР для определения текущей стоимости вспомогательных материалов поставки Подрядчика | K143: ='Ценовые нормативы'!E41 -> 4.16
G144: Price26 | H144: 19 | I144: Индекс МТР для определения текущей стоимости оборудования поставки Подрядчика | K144: ='Ценовые нормативы'!E42 -> 5.01
A145: lastRow2 | G145: Price27 | H145: 20 | I145: Индекс на погрузочно-разгрузочные работы | K145: ='Ценовые нормативы'!E43 -> 9.53
J149: ='Исходные данные'!executor2 -> Ответственный исполнитель ОЦП по КВ | M149: ='Исходные данные'!executor2Position -> Ведущий специалист | O149: ='Исходные данные'!executor2Fio -> Берестова А.В.
M150: должность | O150: Ф.И.О.
J152: ='Сопроводительная записка'!executor6 -> Начальник ОЦП по КВ | O152: ='Сопроводительная записка'!executor6Fio -> И.А. Овсянникова
M153: должность | O153: Ф.И.О.

Sheet priceTemplate_common_round (hidden)
A5: 95B8996E-A92E-40F2-8A9B-251AB1F004D4 | H5: Расчет стоимости строительства по лоту | N5: Шифр проекта | O5: ='Исходные данные'!projectcode -> 1980615/0880Д | T5: 5.50
H6: ='Исходные данные'!D19 -> Строительство объектов энергетики Правдинского региона | N6: Разработчик проекта | O6: ='Исходные данные'!projectdeveloper -> ООО «РН-УфаНИПИнефть»
N7: Заказчик | O7: ООО "РН-Юганскнефтегаз"
O8: ='Исходные данные'!lotNumber -> 2000350438 (680-20-КС(ТЗ))
G10: № | H10: Обоснование (№ЛС) | I10: Наименование работ и затрат | J10: Единица измерения мощности (км, м3, шт и т.д.) | K10: Количество | L10: Базисный уровень цен 2001г. | T10: Текущий уровень цен
L11: Стоимость объекта всего, тыс. руб. | M11: в том числе: | T11: Стоимость МТР всего, тыс. руб. | U11: в том числе: | Y11: Оплата труда основных рабочих, тыс.руб. | Z11: Трудозатраты основных рабочих, чел-час | AA11: Затраты на эксплуатацию машин и механизмов, тыс. руб. | AB11: Оплата труда механизаторов, тыс.руб. | AC11: Трудозатраты рабочих-механизаторов, чел-час | AD11: Накладные расходы, тыс. руб. | AE11: Сметная прибыль, тыс. руб. | AF11: Стоимость строительства объекта без учета затрат Заказчика, тыс. руб. | AG11: Общая стоимость строительства объекта (с учетом затрат Заказчика), тыс. руб. | AH11: Полная стоимость с учетом материалов и оборудования поставки Заказчика | AI11: Полная стоимость с учетом материалов и оборудования поставки Заказчика с учетом прочих затрат и НДС
M12: Стоимость оборудования всего, тыс. руб. | N12: Стоимость материалов всего, тыс. руб. | O12: Оплата труда основных рабочих, тыс. руб. | P12: Стоимость ЭММ, тыс. руб. | Q12: в том числе оплата труда механизаторов, тыс. руб. | R12: Накладные расходы, тыс. руб. | S12: Сметная прибыль, тыс. руб. | U12: Поставка Заказчика | W12: Поставка Подрядчика
U13: Стоимость оборудования, тыс. руб. | V13: Стоимость материалов, тыс. руб. | W13: Стоимость оборудования, тыс. руб. | X13: Стоимость материалов, тыс. руб.
G14: 1 | H14: 2 | I14: 3 | J14: 4 | K14: 5 | L14: 6 | M14: 7 | N14: 8 | O14: 9 | P14: 10 | Q14: 11 | R14: 12 | S14: 13 | T14: 14 | U14: 15 | V14: 16 | W14: 17 | X14: 18 | Y14: 19 | Z14: 20 | AA14: 21 | AB14: 22 | AC14: 23 | AD14: 24 | AE14: 25 | AF14: 26 | AG14: 27 | AH14: 28 | AI14: 29
B15: object_code | C15: outlay_code | D15: exception_code | E15: exception_type | F15: exception_mark | G15: C10 | H15: C11 | I15: C12 | J15: C13 | K15: C14 | L15: C15 | M15: C16 | N15: C17 | O15: C18 | P15: C19 | Q15: C20 | R15: C21 | S15: C22 | T15: C23 | U15: C24 | V15: C25 | W15: C26 | X15: C27 | Y15: C28 | Z15: C29 | AA15: C30 | AB15: C31 | AC15: C32 | AD15: C33 | AE15: C34 | AF15: C35 | AG15: C36 | AH15: C37 | AI15: C38
A16: Глава 1-7 | I16: ГЛАВА 1-7. Подготовка территории и основные объекты строительства
A17: Глава 1-7Итог | I17: ИТОГО ГЛАВЫ 1-7 Подготовка территории и основные объекты строительства
A19: БлокЛимитбазы1 | I19: Лимит базы 2001г МТР для начисления лимитированных | L19: =ROUND(M17+N19+O17+P17+R17+S17,5) -> 0 | N19: =N17 -> 0
A21: Глава 8 | I21: ГЛАВА 8. Временные здания и сооружения
A22: Глава 8Итог | I22: ИТОГО ГЛАВА 8. Временные здания и сооружения
A24: Глава 1-8 | I24: ИТОГО ГЛАВЫ 1-8 | L24: =ROUND(L17+L22,5) -> 0 | M24: =ROUND(M17+M22,5) -> 0 | N24: =ROUND(N17+N22,5) -> 0 | O24: 0 | P24: 0 | Q24: 0 | R24: 0 | S24: 0 | Y24: =ROUND(Y17+Y22,5) -> 0 | Z24: 0 | AA24: 0 | AB24: 0 | AC24: 0 | AD24: 0 | AE24: 0 | AF24: 0
A26: БлокЛимитбазы2 | I26: Лимит базы 2001г МТР для начисления лимитированных | L26: =ROUND(M24+N26+O24+P24+R24+S24,5) -> 0 | N26: =N24 -> 0
A28: БлокГлава9 | I28: ГЛАВА 9. Прочие работы и затраты
A29: БлокГлава9ПЗЗУ | I29: Зимнее удорожание
A30: БлокГлава9ПЗС | I30: Снегоборьба
A31: БлокГлава9ПЗБГ | I31: Борьба с гнусом
A33: Глава 9 | I33: ПРОЧИЕ РАБОТЫ
A34: Глава 9Итог | I34: ИТОГО ПРОЧИЕ РАБОТЫ
I36: ИТОГО С ПРОЧИМИ РАБОТАМИ | L36: =ROUND(L24+L29+L30+L31+L34,5) -> 0 | M36: =ROUND(M24+M29+M30+M31+M34,5) -> 0 | N36: 0 | O36: 0 | P36: 0 | Q36: 0 | R36: 0 | S36: 0 | Y36: =ROUND(Y24+Y29+Y30+Y31+Y34,5) -> 0 | Z36: 0 | AA36: 0 | AB36: 0 | AC36: 0 | AD36: 0 | AE36: 0 | AF36: 0
A38: ПНР | I38: ПНР
A39: ПНРИтог | I39: ИТОГО ПНР
I41: ИТОГО С ПНР | L41: =ROUND(L36+L39,5) -> 0 | M41: =ROUND(M36+M39,5) -> 0 | N41: 0 | O41: 0 | P41: 0 | Q41: 0 | R41: 0 | S41: 0 | Y41: =ROUND(Y36+Y39,5) -> 0 | Z41: 0 | AA41: 0 | AB41: 0 | AC41: 0 | AD41: 0 | AE41: 0 | AF41: 0
A43: Врезка | I43: ВРЕЗКА
A44: ВрезкаИтог | I44: ИТОГО ВРЕЗКА
I46: ИТОГО С ВРЕЗКА | L46: =ROUND(L41+L44,5) -> 0 | M46: 0 | N46: 0 | O46: 0 | P46: 0 | Q46: 0 | R46: 0 | S46: 0 | Y46: =ROUND(Y41+Y44,5) -> 0 | Z46: 0 | AA46: 0 | AB46: 0 | AC46: 0 | AD46: 0 | AE46: 0 | AF46: 0
A48: Разница в стоимости электроэнергии | I48: Разница в стоимости электроэнергии
A49: Разница в стоимости электроэнергииИтог | I49: ИТОГО Разница в стоимости электроэнергии
I51: ИТОГО С Разницей в стоимости электроэнергии | L51: =ROUND(L46+L49,5) -> 0 | M51: =ROUND(M46+M49,5) -> 0 | N51: 0 | O51: 0 | P51: 0 | Q51: 0 | R51: 0 | S51: 0 | Y51: =ROUND(Y46+Y49,5) -> 0 | Z51: 0 | AA51: 0 | AB51: 0 | AC51: 0 | AD51: 0 | AE51: 0 | AF51: 0
A53: БлокГлава9ПТ | I53: Перебазировка техники сверх нормативной величины
A54: БлокГлава9ПТИтог | I54: Итого Перебазировка техники сверх нормативной величины
A56: БлокГлава9ВМ | I56: Затраты, связанные с осуществлением работ вахтовым методом
A57: БлокГлава9ВМИтог | I57: Итого Затраты, связанные с осуществлением работ вахтовым методом
A59: БлокГлава9Т | I59: Затраты по перевозке автомобильным транспортом работников строительно-монтажных организаций
A60: БлокГлава9ТИтог | I60: Итого Затраты по перевозке автомобильным транспортом работников строительно-монтажных организаций
I62: ИТОГО ПРОЧИЕ ЗАТРАТЫ | AF62: =ROUND(AF54+AF57+AF60,5) -> 0
I64: ИТОГО С ПРОЧИМИ ЗАТРАТАМИ | AF64: =ROUND(AF51+AF62,5) -> 0
A66: Испытание свай | I66: ИСПЫТАНИЕ СВАЙ
A67: Испытание свайИтог | I67: ИТОГО ИСПЫТАНИЕ СВАЙ
I69: ИТОГО С ИСПЫТАНИЕМ СВАЙ | AF69: =ROUND(AF64+AF67,5) -> 0
A71: БлокМатериалыПП | C71: БлокМатериалыОПП | I71: Материалы и оборудование в текущем уровне цен согласно разделительной ведомости
A72: БлокМатериалыППИтог | I72: Итого Материалы и оборудование в текущем уровне цен согласно разделительной ведомости
A74: БлокМатериалыЗПог | I74: Дополнительные затраты на траспортировку и погрузку щебня поставки Заказчика
A75: БлокМатериалыЗПогИтог | I75: Итого Дополнительные затраты на траспортировку и погрузку щебня поставки Заказчика
A77: БлокНЗ | I77: Непредвиденные затраты
I79: ИТОГО с учетом всех затрат | AF79: =ROUND(AF69+AF72+AF75+AF77,5) -> 0 | AG79: =ROUND(AG69+AG77/2+AG72+AG75,5) -> 0
I80: - НДС | K80: =K136 -> 0.2 | AF80: =ROUND(AF79*K80,5) -> 0 | AG80: =ROUND(AG79*K80,5) -> 0
I81: ИТОГО с учетом НДС | AF81: =ROUND(AF79+AF80,5) -> 0 | AG81: =ROUND(AG79+AG80,5) -> 0
I82: Затраты на СМР без учета ТМЦ, ПНР, врезки | AF82: =ROUND(AF81-AF83-AF84-AF85,5) -> 0 | AG82: =ROUND(AG81-AG83-AG84-AG85-AG86,5) -> 0
I83: Затраты на ТМЦ поставки подрядчика | AF83: =ROUND(AF72*(1+nds),5) -> 0 | AG83: =ROUND(AF83,5) -> 0
I84: Затраты на ПНР с учетом непредвиденных расходов | AF84: =ROUND(AF39*(1+nds)+AF39*(1+nds)*K141,5) -> 0 | AG84: =ROUND(AF84,5) -> 0
I85: Затраты на врезку | AF85: =ROUND(AF44*(1+nds),5) -> 0 | AG85: =ROUND(AF85,5) -> 0
I86: Справочно:МТР поставки Заказчика | AG86: =ROUND(AG72-AF72,5) -> 0
H88: Распределение суммы договора по объектам лота
H90: № п/п | I90: Наименование объекта | J90: Базовая стоимость МТР | O90: Материалы, текущий у/ц согласно РВ | S90: Текущий уровень цен
S91: ИТОГО СМР по гл.1-7, тыс. руб. | T91: Глава 8 | V91: ИТОГО СМР по гл.1-8, тыс. руб. без НДС | W91: Глава 9. Прочие работы и затраты | AE91: ИТОГО УСЛУГИ по гл.1-9, тыс. руб. без НДС | AF91: Затраты на испытание свай, тыс. руб. без НДС | AG91: Врезка | AH91: Разница в стоимости электроэнергии | AI91: Затраты на траспортировку и погрузку щебня поставки Заказчика, тыс. руб. без НДС | AJ91: Непредвиденные работы и затраты, тыс. руб. без НДС | AK91: Стоимость ВСЕГО без учета материалов и оборудования поставки Заказчика, тыс. руб. с НДС | AL91: Стоимость ВСЕГО с учетом материалов и оборудования поставки Заказчика с учетом прочих затрат и НДС
J92: ИТОГО главы 1-7, тыс. руб. | K92: ИТОГО глава 8, тыс. руб. | L92: ИТОГО по гл.1-8, тыс. руб. | M92: ИТОГО стоимость оборудования, тыс. руб. | N92: ИТОГО стоимость материалов, тыс. руб. | O92: Поставка Заказчика | Q92: Поставка Подрядчика | T92: Лимит затрат на ВЗиС, учтенный нормативом, тыс. руб. | U92: ВЗиС (ЛС) сверх лимита, учтенного нормативом, тыс. руб. | W92: Зимнее удорожание, тыс. руб. без НДС | X92: Снегоборьба, тыс. руб. без НДС | Y92: Борьба с гнусом, тыс. руб. без НДС | Z92: Первон.очистка от снега, тыс. руб. без НДС | AA92: ПНР, тыс. руб. без НДС | AB92: Мобилизация, тыс. руб. без НДС | AC92: Вахтовая перевозка, тыс. руб. без НДС | AD92: Ежедневная возка, тыс. руб. без НДС
O93: Стоимость оборудования, тыс. руб. | P93: Стоимость материалов, тыс. руб. | Q93: Стоимость оборудования, тыс. руб. | R93: Стоимость материалов, тыс. руб.
H94: 1 | I94: 2 | J94: 3 | K94: 4 | L94: 5 | M94: 5 | N94: 5 | O94: 6 | P94: 7 | Q94: 8 | R94: 9 | S94: 10 | T94: 11 | U94: 12 | V94: 13 | W94: 14 | X94: 15 | Y94: 16 | Z94: 17 | AA94: 18 | AB94: 19 | AC94: 20 | AD94: 21 | AE94: 22 | AF94: 23 | AG94: 24 | AH94: 25 | AI94: 26 | AJ94: 27 | AK94: 28 | AL94: 29
H95: C11 | I95: C12 | J95: C13 | K95: C14 | L95: C15 | M95: C42 | N95: C43 | O95: C16 | P95: C17 | Q95: C18 | R95: C19 | S95: C22 | T95: C23 | U95: C24 | V95: C25 | W95: C26 | X95: C27 | Y95: C28 | Z95: C29 | AA95: C30 | AB95: C31 | AC95: C32 | AD95: C33 | AE95: C34 | AF95: C36 | AG95: C40 | AH95: C41 | AI95: C37 | AJ95: C35 | AK95: C38 | AL95: C39
I96: ВСЕГО
J97: =J96-N17 -> 0 | K97: =K96-N22 -> 0 | L97: =L96-N24 -> 0 | O97: =O96-U72 -> 0 | P97: =P96-V72 -> 0 | Q97: =Q96-W72 -> 0 | R97: =R96-X72 -> 0 | S97: =S96-AF17 -> 0 | V97: =V96-AF24 -> 0 | Z97: =Z96-AF34 -> 0 | AA97: =AA96-AF39 -> 0 | AB97: =AB96-AF54 -> 0 | AC97: =AC96-AF57 -> 0 | AD97: =AD96-AF60 -> 0 | AE97: =AE96-(AF41+AF62) -> 0 | AF97: =AF96-AF67 -> 0 | AG97: =AG96-AF44 -> 0 | AH97: =AH96-AF49 -> 0 | AI97: =AI96-AF75 -> 0 | AK97: =AK96-AF81 -> 0 | AL97: =AL96-AG81 -> 0
H98: Стоимость строительства объекта в прогнозном уровне цен
H100: № п/п | I100: Наименование показателя | K100: ='Исходные данные'!V21 -> 2021 | O100: =K100+1 -> 2022 | S100: =O100+1 -> 2023 | W100: =S100+1 -> 2024 | AA100: Итоговый показатель
A101: БлокПрогноз | K101: I квартал | L101: II квартал | M101: III квартал | N101: IV квартал | O101: I квартал | P101: II квартал | Q101: III квартал | R101: IV квартал | S101: I квартал | T101: II квартал | U101: III квартал | V101: IV квартал | W101: I квартал | X101: II квартал | Y101: III квартал | Z101: IV квартал
A102: БлокПрогнозИтог | I102: ВСЕГО
A103: lastRow
H104: Стоимость строительства объекта в прогнозном уровне цен
H106: № п/п | I106: Наименование показателя | K106: ='Исходные данные'!V21 -> 2021 | O106: =K106+1 -> 2022 | S106: =O106+1 -> 2023 | W106: =S106+1 -> 2024 | AA106: Итоговый показатель
K107: I квартал | L107: II квартал | M107: III квартал | N107: IV квартал | O107: I квартал | P107: II квартал | Q107: III квартал | R107: IV квартал | S107: I квартал | T107: II квартал | U107: III квартал | V107: IV квартал | W107: I квартал | X107: II квартал | Y107: III квартал | Z107: IV квартал
A108: БлокПрогнозОбщий | H108: 1 | I108: Прогнозное распределение СМР без учета ТМЦ и ПНР | J108: % | AA108: =IF((K108+L108+M108+N108+O108+P108+Q108+R108+S108+T108+U108+V108+W108+X108+Y108+Z108)<>100%,"ОШИБКА",1) -> ОШИБКА
H109: 2 | I109: Прогнозное распределение ТМЦ поставки Подрядчика | J109: % | K109: =K108 -> 0 | L109: =L108 -> 0 | M109: 0 | N109: 0 | O109: 0 | P109: 0 | Q109: 0 | R109: 0 | S109: 0 | T109: 0 | U109: 0 | V109: 0 | W109: 0 | X109: 0 | Y109: 0 | Z109: 0 | AA109: =IF((K109+L109+M109+N109+O109+P109+Q109+R109+S109+T109+U109+V109+W109+X109+Y109+Z109)<>100%,"ОШИБКА",1) -> ОШИБКА
H110: 3 | I110: Прогнозное распределение ПНР | J110: % | K110: =K108 -> 0 | L110: =L108 -> 0 | M110: 0 | N110: 0 | O110: 0 | P110: 0 | Q110: 0 | R110: 0 | S110: 0 | T110: 0 | U110: 0 | V110: 0 | W110: 0 | X110: 0 | Y110: 0 | Z110: 0 | AA110: =IF((K110+L110+M110+N110+O110+P110+Q110+R110+S110+T110+U110+V110+W110+X110+Y110+Z110)<>100%,"ОШИБКА",1) -> ОШИБКА
H111: 4 | I111: Прогнозное распределение врезки | J111: % | K111: =K108 -> 0 | L111: =L108 -> 0 | M111: 0 | N111: 0 | O111: 0 | P111: 0 | Q111: 0 | R111: 0 | S111: 0 | T111: 0 | U111: 0 | V111: 0 | W111: 0 | X111: 0 | Y111: 0 | Z111: 0 | AA111: =IF((K111+L111+M111+N111+O111+P111+Q111+R111+S111+T111+U111+V111+W111+X111+Y111+Z111)<>100%,"ОШИБКА",1) -> ОШИБКА
H112: 5 | I112: Стоимость СМР без учета ТМЦ и ПНР в прогнозном распределении | J112: тыс. руб. | K112: =K108*AF82 -> 0 | L112: =L108*AF82 -> 0 | M112: =M108*AF82 -> 0 | N112: =N108*AF82 -> 0 | O112: =O108*AF82 -> 0 | P112: =P108*AF82 -> 0 | Q112: =Q108*AF82 -> 0 | R112: =R108*AF82 -> 0 | S112: =S108*AF82 -> 0 | T112: =T108*AF82 -> 0 | U112: =U108*AF82 -> 0 | V112: =V108*AF82 -> 0 | W112: =W108*AF82 -> 0 | X112: =X108*AF82 -> 0 | Y112: =Y108*AF82 -> 0 | Z112: =Z108*AF82 -> 0 | AA112: =SUM(K112:Z112) -> 0
H113: 6 | I113: Стоимость ТМЦ поставки Подрядчика в прогнозном распределении | J113: тыс. руб. | K113: =K109*AF83 -> 0 | L113: =L109*AF83 -> 0 | M113: =M109*AF83 -> 0 | N113: =N109*AF83 -> 0 | O113: =O109*AF83 -> 0 | P113: =P109*AF83 -> 0 | Q113: =Q109*AF83 -> 0 | R113: =R109*AF83 -> 0 | S113: =S109*AF83 -> 0 | T113: =T109*AF83 -> 0 | U113: =U109*AF83 -> 0 | V113: =V109*AF83 -> 0 | W113: =W109*AF83 -> 0 | X113: =X109*AF83 -> 0 | Y113: =Y109*AF83 -> 0 | Z113: =Z109*AF83 -> 0 | AA113: =SUM(K113:Z113) -> 0
H114: 7 | I114: Стоимость ПНР в прогнозном распределении | J114: тыс. руб. | K114: =K110*AF84 -> 0 | L114: =L110*AF84 -> 0 | M114: =M110*AF84 -> 0 | N114: =N110*AF84 -> 0 | O114: =O110*AF84 -> 0 | P114: =P110*AF84 -> 0 | Q114: =Q110*AF84 -> 0 | R114: =R110*AF84 -> 0 | S114: =S110*AF84 -> 0 | T114: =T110*AF84 -> 0 | U114: =U110*AF84 -> 0 | V114: =V110*AF84 -> 0 | W114: =W110*AF84 -> 0 | X114: =X110*AF84 -> 0 | Y114: =Y110*AF84 -> 0 | Z114: =Z110*AF84 -> 0 | AA114: =SUM(K114:Z114) -> 0
H115: 8 | I115: Стоимость врезки в прогнозном распределении | J115: тыс. руб. | K115: =K111*AF85 -> 0 | L115: =L111*AF85 -> 0 | M115: =M111*AF85 -> 0 | N115: =N111*AF85 -> 0 | O115: =O111*AF85 -> 0 | P115: =P111*AF85 -> 0 | Q115: =Q111*AF85 -> 0 | R115: =R111*AF85 -> 0 | S115: =S111*AF85 -> 0 | T115: =T111*AF85 -> 0 | U115: =U111*AF85 -> 0 | V115: =V111*AF85 -> 0 | W115: =W111*AF85 -> 0 | X115: =X111*AF85 -> 0 | Y115: =Y111*AF85 -> 0 | Z115: =Z111*AF85 -> 0 | AA115: =SUM(K115:Z115) -> 0
H116: 9 | I116: Всего стоимость СМР в прогнозном уровне цен | J116: тыс. руб. | K116: =K113+K112+K114+K115 -> 0 | L116: =L113+L112+L114+L115 -> 0 | M116: =M113+M112+M114+M115 -> 0 | N116: 0 | O116: 0 | P116: 0 | Q116: 0 | R116: 0 | S116: 0 | T116: 0 | U116: 0 | V116: 0 | W116: 0 | X116: 0 | Y116: 0 | Z116: 0 | AA116: =SUM(K116:Z116) -> 0
I117: * Доля освоения в соответствующем квартале рассчитывается как выраженное в процентах отношение объема работ в стоимостном выражении, планируемого к выполнению в соответствующем квартале, к общему объему работ в стоимостном выражении
H119: Примечание : расчет должен быть выполнен на основании утвержденной ПСД и технического задания с включением в него всех работ и затрат, указанных в техническом задании и проектной документации
H121: Ценовые нормативы, применяемые при расчете Договорной цены
H123: № п/п | I123: Наименование | J123: Единица измерения | K123: Ценовые нормативы
H124: 1 | I124: 2 | J124: 3 | K124: 4
H125: C10 | I125: C11 | J125: C14 | K125: C12
G126: Price1 | H126: 1 | I126: Индекс оплаты труда основных рабочих и механизаторов СМР | K126: ='Ценовые нормативы'!E17 -> 14.29
G127: Price2 | H127: 2 | I127: Индекс эксплуатации машин и механизмов СМР | K127: ='Ценовые нормативы'!E18 -> 7.86
G128: Price3 | H128: 3 | I128: Индекс на перевозку грузов | K128: ='Ценовые нормативы'!E19 -> 6.41
G129: Price4 | H129: 4 | I129: Индекс МТР (для расчета лимитированных затрат) СМР | K129: ='Ценовые нормативы'!E20 -> 4.16
G130: Price5 | H130: 5 | I130: Индекс к оплате труда пусконаладочного персонала | K130: ='Ценовые нормативы'!E21 -> 14.29
G131: Price8 | H131: 6 | I131: Коэффициент к накладным расходам для СМР (кроме работ по строительству мостов) | K131: ='Ценовые нормативы'!E24 -> 1
G132: Price9 | H132: 7 | I132: Коэффициент к сметной прибыли для СМР (кроме работ по строительству мостов) | K132: ='Ценовые нормативы'!E25 -> 1
G133: Price10 | H133: 8 | I133: Коэффициент к накладным расходам для СМР (для работ по строительству мостов) | K133: ='Ценовые нормативы'!E26 -> 1
G134: Price11 | H134: 9 | I134: Коэффициент к сметной прибыли для СМР (для работ по строительству мостов) | K134: ='Ценовые нормативы'!E27 -> 1
G135: Price14 | H135: 10 | I135: Средневзвешенный курс евро 2013г. | J135: руб. | K135: ='Ценовые нормативы'!E30 -> 42.19
G136: Price15 | H136: 11 | I136: НДС | J136: % | K136: ='Ценовые нормативы'!E31 -> 0.2
G137: Price19 | H137: 12 | I137: Норма затрат на временные здания и сооружения | J137: % | K137: ='Ценовые нормативы'!E35 -> 0.025
G138: Price20 | H138: 13 | I138: Норма затрат на удорожание работ в зимний период | J138: % | K138: ='Ценовые нормативы'!E36 -> 0.037
G139: Price21 | H139: 14 | I139: Норма затрат на снегоборьбу | J139: % | K139: ='Ценовые нормативы'!E37 -> 0.004
G140: Price22 | H140: 15 | I140: Норма затрат на борьбу с гнусом | J140: % | K140: ='Ценовые нормативы'!E38 -> 0.001
G141: Price23 | H141: 16 | I141: Норматив непредвиденных расходов | J141: % | K141: ='Ценовые нормативы'!E39 -> 0.015
G142: Price25 | H142: 17 | I142: Индекс на динамическое испытание свай | K142: ='Ценовые нормативы'!E40 -> 2.595
G143: Price24 | H143: 18 | I143: Индекс МТР для определения текущей стоимости вспомогательных материалов поставки Подрядчика | K143: ='Ценовые нормативы'!E41 -> 4.16
G144: Price26 | H144: 19 | I144: Индекс МТР для определения текущей стоимости оборудования поставки Подрядчика | K144: ='Ценовые нормативы'!E42 -> 5.01
A145: lastRow2 | G145: Price27 | H145: 20 | I145: Индекс на погрузочно-разгрузочные работы | K145: ='Ценовые нормативы'!E43 -> 9.53
J149: ='Исходные данные'!executor2 -> Ответственный исполнитель ОЦП по КВ | M149: ='Исходные данные'!executor2Position -> Ведущий специалист | O149: ='Исходные данные'!executor2Fio -> Берестова А.В.
M150: должность | O150: Ф.И.О.
J152: ='Сопроводительная записка'!executor6 -> Начальник ОЦП по КВ | O152: ='Сопроводительная записка'!executor6Fio -> И.А. Овсянникова
M153: должность | O153: Ф.И.О.

Sheet priceChapterTemplates (hidden)
C4: Глава 1-7Объект | K4: Объект
C5: Глава 1-7Шаблон | N5: =O5+P5+Q5+R5+T5+U5 -> 0 | AH5: =AA5+AC5+AF5+AG5 -> 0
C6: Глава 1-7ОбъектИтог | K6: Итог Объект | N6: =ROUND(SUM(N5),5) -> 0 | O6: =ROUND(SUM(O5),5) -> 0 | P6: 0 | Q6: 0 | R6: 0 | S6: 0 | T6: 0 | U6: 0 | AA6: =ROUND(SUM(AA5),5) -> 0 | AB6: =ROUND(SUM(AB5),5) -> 0 | AC6: 0 | AD6: 0 | AE6: 0 | AF6: 0 | AG6: 0 | AH6: 0
C11: БлокЛимитбазы1Объект | K11: Объект
C16: Глава 8Объект | K16: Объект
C17: Глава 8 ВЗиС | J17: ГСН 81-05-01-2001 | K17: Временные здания и сооружения
C18: Глава 8Шаблон | N18: =O18+P18+Q18+R18+T18+U18 -> 0 | AH18: =AA18+AC18+AF18+AG18 -> 0
C19: Глава 8ОбъектИтог | K19: Итог Объект | N19: =ROUND(SUM(N17:N18),5) -> 0 | O19: =ROUND(SUM(O17:O18),5) -> 0 | P19: 0 | Q19: 0 | R19: 0 | S19: 0 | T19: 0 | U19: 0 | AA19: =ROUND(SUM(AA17:AA18),5) -> 0 | AB19: =ROUND(SUM(AB17:AB18),5) -> 0 | AC19: 0 | AD19: 0 | AE19: 0 | AF19: 0 | AG19: 0 | AH19: 0
C24: БлокЛимитбазы2Объект | K24: Объект
C29: БлокГлава9ПЗЗУОбъект | J29: ГСН 81-05-02-2007 | K29: Объект
C34: БлокГлава9ПЗСОбъект | I34: 1 | J34: ГСН 81-05-02-2007 | K34: Объект
C39: БлокГлава9ПЗБГОбъект | I39: 2 | J39: МДС 81-35.2004 | K39: Объект
C44: Глава 9Объект | K44: Объект
C45: Глава 9Шаблон | N45: =O45+P45+Q45+R45+T45+U45 -> 0 | AH45: =AA45+AC45+AF45+AG45 -> 0
C46: Глава 9ОбъектИтог | K46: Итог Объект | N46: =ROUND(SUM(N45),5) -> 0 | O46: =ROUND(SUM(O45),5) -> 0 | P46: 0 | Q46: 0 | R46: 0 | S46: 0 | T46: 0 | U46: 0 | AA46: =ROUND(SUM(AA45),5) -> 0 | AB46: =ROUND(SUM(AB45),5) -> 0 | AC46: 0 | AD46: 0 | AE46: 0 | AF46: 0 | AG46: 0 | AH46: 0
C51: ПНРОбъект | K51: Объект
C52: ПНРШаблон | N52: =O52+P52+Q52+R52+T52+U52 -> 0 | AH52: =AA52+AC52+AF52+AG52 -> 0
C53: ПНРОбъектИтог | K53: Итог Объект | N53: =ROUND(SUM(N52),5) -> 0 | O53: =ROUND(SUM(O52),5) -> 0 | P53: 0 | Q53: 0 | R53: 0 | S53: 0 | T53: 0 | U53: 0 | AA53: =ROUND(SUM(AA52),5) -> 0 | AB53: 0 | AC53: 0 | AD53: 0 | AE53: 0 | AF53: 0 | AG53: 0 | AH53: 0
C58: ВрезкаОбъект | K58: Объект
C59: ВрезкаШаблон
C60: ВрезкаОбъектИтог | K60: Итого Объект | N60: =ROUND(SUM(N59),5) -> 0 | O60: =ROUND(SUM(O59),5) -> 0 | P60: 0 | Q60: 0 | R60: 0 | S60: 0 | T60: 0 | U60: 0 | AA60: =ROUND(SUM(AA59),5) -> 0 | AB60: =ROUND(SUM(AB59),5) -> 0 | AC60: 0 | AD60: 0 | AE60: 0 | AF60: 0 | AG60: 0 | AH60: 0
C65: Разница в стоимости электроэнергииОбъект | K65: Объект
C66: Разница в стоимости электроэнергииШаблон
C67: Разница в стоимости электроэнергииОбъектИтог | K67: Итого Объект | N67: =ROUND(SUM(N66),5) -> 0 | O67: =ROUND(SUM(O66),5) -> 0 | P67: 0 | Q67: 0 | R67: 0 | S67: 0 | T67: 0 | U67: 0 | AA67: =ROUND(SUM(AA66),5) -> 0 | AB67: =ROUND(SUM(AB66),5) -> 0 | AC67: 0 | AD67: 0 | AE67: 0 | AF67: 0 | AG67: 0 | AH67: 0
C72: БлокГлава9ПТОбъект | K72: Объект
C77: БлокГлава9ВМОбъект | K77: Объект
C82: БлокГлава9ТОбъект | K82: Объект
C87: Испытание свайОбъект | K87: Объект
C88: Испытание свайШаблон
C89: Испытание свайОбъектИтог | K89: Итого Объект | N89: =ROUND(SUM(N88),5) -> 0 | O89: =ROUND(SUM(O88),5) -> 0 | P89: 0 | Q89: 0 | R89: 0 | S89: 0 | T89: 0 | U89: 0 | AA89: =ROUND(SUM(AA88),5) -> 0 | AB89: =ROUND(SUM(AB88),5) -> 0 | AC89: 0 | AD89: 0 | AE89: 0 | AF89: 0 | AG89: 0 | AH89: 0
C94: БлокМатериалыППОбъект | K94: Объект | V94: =W94+X94+Y94+Z94 -> 0 | AH94: =Y94+Z94 -> 0 | AI94: =V94 -> 0
C99: БлокМатериалыЗПогОбъект | K99: Объект
C100: БлокМатериалыЗПогОбъект | K100: Стоимость дополнительных затрат на погрузку материалов Заказчика (щебень) | L100: т | AH100: =Z100 -> 0 | AI100: =AH100 -> 0
C101: move_template | K101: Стоимость дополнительных затрат на перевозку материалов Заказчика (щебень) | L101: т | AH101: =Z101 -> 0 | AI101: =AH101 -> 0
C102: БлокМатериалыЗПогОбъектИтог | K102: Итого Объект | L102: т | Z102: =ROUND(SUM(Z100:Z101),5) -> 0 | AH102: =ROUND(SUM(AH100:AH101),5) -> 0 | AI102: =ROUND(SUM(AI100:AI101),5) -> 0
C107: БлокМатериалыОППОбъект | K107: Объект | AI107: =Y107 -> 0
C112: БлокНЗОбъект | J112: МДС 81-35.2004 | K112: Объект | AI112: =AH112*2 -> 0
C116: БлокЗМПЗБНОбъект | K116: Объект
C120: БлокЗМПЗНОбъект | K120: Объект
C124: БлокЗОПЗБНОбъект | K124: Объект
C128: БлокЗОПЗНОбъект | K128: Объект
C132: БлокНЗЗОбъект | K132: Объект
C135: БлокВсегоОбъект | K135: Объект
C139: БлокПрогнозОбъект | K139: Прогнозное распределение* | L139: % | AC139: =IF((M139+N139+O139+P139+Q139+R139+S139+T139+U139+V139+W139+X139+Y139+Z139+AA139+AB139)<>100%,"ОШИБКА",1) -> ОШИБКА
K140: Стоимость в прогнозном распределении | L140: тыс. руб. | M140: =ROUND(M139*$AG114,5) -> 0 | N140: 0 | O140: 0 | P140: 0 | Q140: 0 | R140: 0 | S140: 0 | T140: 0 | U140: 0 | V140: 0 | W140: 0 | X140: 0 | Y140: 0 | Z140: 0 | AA140: 0 | AB140: 0 | AC140: =SUM(M140:AB140) -> 0
C144: БлокИтогоОбъект | K144: Объект
C148: БлокИтогоСМРОбъект | K148: Объект
C152: БлокИтогоТМЦОбъект | K152: Объект
C156: БлокИтогоПНРОбъект | K156: Объект
C160: БлокИтогоВрезкаОбъект | K160: Объект
C164: БлокСправочноОБъект
N169: =L169+M169 -> 0 | X169: =U169+V169+W169 -> 0 | AG169: =SUM(X169:AF169) -> 0

Sheet workTypes (hidden)
A1: work_type | B1: editable_columns | C1: C21 | D1: C22 | E1: C23 | F1: C24 | G1: C25
A2: Ежедневная возка рабочих | B2: C26 | C2: ОКРУГЛ(((C15R#*2)/$J$27)*$G$27+C15R#*2*$H$27;2) | D2: ОКРУГЛ(C21R#/$I$27;2) | E2: ОКРУГЛ(C22R#*$E$14*$E$17*$E$18;2) | F2: C18R#/$E$16 | G2: ОКРУГЛ(C24R#*C23R#;2)
A3: Ежедневная возка ПН персонала | B3: C16|C26 | C3: ОКРУГЛ(((C15R#*2)/$J$28)*$G$28+C15R#*2*$H$28;2) | G3: ОКРУГЛ(C21R#*($E$14*C16R#);2)
A4: Перевозка вахт рабочих | B4: C26 | C4: ОКРУГЛ(((C15R#*2)/$J$29)*$G$29+C15R#*2*$H$29;2) | D4: ОКРУГЛ(C21R#/$I$29;2) | E4: ОКРУГЛ(C22R#*$E$15*$E$17;2) | F4: C18R#/$E$16 | G4: ОКРУГЛ(C24R#*C23R#;2)
A5: Перевозка вахт ПН персонала | B5: C17|C26 | C5: ОКРУГЛ(((C15R#*2)/$J$30)*$G$30+C15R#*2*$H$30;2) | G5: ОКРУГЛ(C21R#*(C17R#*$E$15);2)
A8: 1 | B8: Ежедневная возка рабочих
A9: 2 | B9: Ежедневная возка ПН персонала
A10: 3 | B10: Перевозка вахт рабочих
A11: 4 | B11: Перевозка вахт ПН персонала
A14: Марка автобуса-вахты | автомобиля | B14: Шифр | C14: Стоимость 1 машино-часа, руб. | D14: Стоимость 1 км пробега, руб. | E14: Вместимость автобуса-вахты, чел. | F14: Средняя скорость движения, км/ч
A15: Не предусмотрено | B15: - | C15: - | D15: - | E15: - | F15: -
A16: ГАЗ-3221 м/а | B16: 19 | C16: 229.56 | D16: 5.95 | E16: 12 | F16: 50
A17: УРАЛ-4320 НЗАС | B17: 282 | C17: 363.27 | D17: 11.77 | E17: 21 | F17: 60
A18: УРАЛ-42112 НЗАС | B18: 266 | C18: 363.27 | D18: 11.77 | E18: 27 | F18: 40
A19: УАЗ-3909 Фургон | B19: 252 | C19: 236.61 | D19: 7.46 | E19: 6 | F19: 50

Sheet Ежеднев. возка и перевозка вахт
A3: 95B8996E-A92E-40F2-8A9B-251AB1F004D4
B4: Ежедневная возка и перевозка вахт
B5: ='Исходные данные'!D19 -> Строительство объектов энергетики Правдинского региона
C6: Шифр проекта | D6: 1980615/0880Д | N6: 2000350438 (680-20-КС(ТЗ))
C7: Разработчик проекта | D7: ООО «РН-УфаНИПИнефть»
C8: Заказчик | D8: ООО "РН-Юганскнефтегаз"
B10: Параметры перевозки
B12: № п/п | C12: Наименование | E12: Значение
B13: 1 | C13: 2 | E13: 3
B14: 1 | C14: Количество рейсов в день (Ежедневная возка) | E14: 1
B15: 2 | C15: Количество перевозок в месяц (Перевозка вахт) | E15: 2
B16: 3 | C16: Количество рабочих часов в году, ч. | E16: 2920
B17: 4 | C17: Количество месяцев в году | E17: 12
B18: 5 | C18: Среднее количество календарных дней в месяце | E18: 30
B19: 6 | C19: Перевозка вахт автотранспортом | E19: 1
B20: 7 | C20: Перевозка вахт водным транспортом | E20: 0
B21: 8 | C21: Перевозка вахт воздушным транспортом | E21: 0
B23: Параметры техники
B25: № п/п | C25: Параметры | D25: Шифр | E25: Марка автобуса-вахты | автомобиля | G25: Стоимость 1 машино-часа, руб. | H25: Стоимость 1 км пробега, руб. | I25: Вместимость автобуса-вахты, чел. | J25: Средняя скорость движения, км/ч
B26: 1 | C26: 2 | D26: 3 | E26: 4 | G26: 5 | H26: 6 | I26: 7 | J26: 8
B27: 1 | C27: Ежедневная возка рабочих | D27: 282 | E27: УРАЛ-4320 НЗАС | I27: 21 | J27: 40
B28: 2 | C28: Ежедневная возка ПН персонала | D28: 19 | E28: ГАЗ-3221 м/а | I28: 12 | J28: 40
B29: 3 | C29: Перевозка вахт рабочих | D29: 282 | E29: УРАЛ-4320 НЗАС | I29: 21 | J29: 60
B30: 4 | C30: Перевозка вахт ПН персонала | D30: 19 | E30: ГАЗ-3221 м/а | I30: 12 | J30: 60
B32: Расчет стоимости
B34: № п/п | C34: Вид работ | D34: Расстояние перевозки, км | E34: Продолжительность ПНР (согласно графика), дней | F34: Продолжительность ПНР, месяцев | G34: Трудоемкость СМР(осн. рабочие + механизаторы) | H34: Стоимость транспорта в течение рейса, руб. | I34: Стоимость транспортировки 1 рабочего, руб. | J34: Стоимость перевозки 1 рабочего в год, руб. | K34: Количество лет строительства на 1 рабочего | L34: Стоимость перевозки, руб. | M34: Лимит, руб. | N34: Стоимость в расчет, руб.
B35: 1 | C35: 2 | D35: 3 | E35: 4 | F35: 5 | G35: 6 | H35: 7 | I35: 8 | J35: 9 | K35: 10 | L35: 11 | M35: 12 | N35: 13
A36: object_code | B36: C10 | C36: C11 | D36: C15 | E36: C16 | F36: C17 | G36: C18 | H36: C21 | I36: C22 | J36: C23 | K36: C24 | L36: C25 | M36: C26 | N36: C27
A37: 5D57A968-2E2D-47A8-B7F4-6C635AF194C3 | B37: ВЛ 6 кВ на куст 3129.1 (габ.110 кВ) Приразломное м/р. Правдинский (КС00091309) | C37: ВЛ 6 кВ на куст 3129.1 (габ.110 кВ) Приразломное м/р. Правдинский (КС00091309) | D37: ВЛ 6 кВ на куст 3129.1 (габ.110 кВ) Приразломное м/р. Правдинский (КС00091309) | E37: ВЛ 6 кВ на куст 3129.1 (габ.110 кВ) Приразломное м/р. Правдинский (КС00091309) | F37: ВЛ 6 кВ на куст 3129.1 (габ.110 кВ) Приразломное м/р. Правдинский (КС00091309) | G37: ВЛ 6 кВ на куст 3129.1 (габ.110 кВ) Приразломное м/р. Правдинский (КС00091309) | H37: ВЛ 6 кВ на куст 3129.1 (габ.110 кВ) Приразломное м/р. Правдинский (КС00091309) | I37: ВЛ 6 кВ на куст 3129.1 (габ.110 кВ) Приразломное м/р. Правдинский (КС00091309) | J37: ВЛ 6 кВ на куст 3129.1 (габ.110 кВ) Приразломное м/р. Правдинский (КС00091309) | K37: ВЛ 6 кВ на куст 3129.1 (габ.110 кВ) Приразломное м/р. Правдинский (КС00091309) | L37: ВЛ 6 кВ на куст 3129.1 (габ.110 кВ) Приразломное м/р. Правдинский (КС00091309) | M37: ВЛ 6 кВ на куст 3129.1 (габ.110 кВ) Приразломное м/р. Правдинский (КС00091309) | N37: ВЛ 6 кВ на куст 3129.1 (габ.110 кВ) Приразломное м/р. Правдинский (КС00091309)
B38: 1 | C38: Ежедневная возка рабочих | D38: 52 | E38: - | F38: - | G38: =SUM(НМЦ!$Z18:$Z28)+SUM(НМЦ!$AC18:$AC28)+SUM(НМЦ!$Z108:$Z111)+SUM(НМЦ!$AC108:$AC111)+SUM(НМЦ!$Z48:$Z78)+SUM(НМЦ!$AC48:$AC78) -> 12449.4327 | H38: =ROUND(((D38*2)/$J$27)*$G$27+D38*2*$H$27,2) -> 0 | I38: =ROUND(H38/$I$27,2) -> 0 | J38: =ROUND(I38*$E$14*$E$17*$E$18,2) -> 0 | K38: =G38/$E$16 -> 4.263504349 | L38: =ROUND(K38*J38,2) -> 0 | M38: =(НМЦ!V181+НМЦ!N181*НМЦ!K213)*1.25%*1000 -> 0 | N38: =ROUND(MIN(SUM(L38:L39),M38),2) -> 0
B39: 2 | C39: Ежедневная возка ПН персонала | D39: 52 | E39: 15 | F39: - | G39: - | H39: =ROUND(((D39*2)/$J$28)*$G$28+D39*2*$H$28,2) -> 0 | I39: - | J39: - | K39: - | L39: =ROUND(H39*($E$14*E39),2) -> 0
B40: 3 | C40: Перевозка вахт рабочих | D40: 195 | E40: - | F40: - | G40: =SUM(НМЦ!$Z18:$Z28)+SUM(НМЦ!$AC18:$AC28)+SUM(НМЦ!$Z108:$Z111)+SUM(НМЦ!$AC108:$AC111)+SUM(НМЦ!$Z48:$Z78)+SUM(НМЦ!$AC48:$AC78) -> 12449.4327 | H40: =ROUND(((D40*2)/$J$29)*$G$29+D40*2*$H$29,2) -> 0 | I40: =ROUND(H40/$I$29,2) -> 0 | J40: =ROUND(I40*$E$15*$E$17,2) -> 0 | K40: =G40/$E$16 -> 4.263504349 | L40: =ROUND(K40*J40,2) -> 0 | M40: =(НМЦ!V181+НМЦ!N181*НМЦ!K213)*0.21%*1000 -> 0 | N40: =ROUND(MIN(SUM(L40:L41),M40),2) -> 0
B41: 4 | C41: Перевозка вахт ПН персонала | D41: 195 | E41: - | F41: 0.5 | G41: - | H41: =ROUND(((D41*2)/$J$30)*$G$30+D41*2*$H$30,2) -> 0 | I41: - | J41: - | K41: - | L41: =ROUND(H41*(F41*$E$15),2) -> 0
A42: AEEAB128-A9D6-4DE1-ACE9-6CD791FCF82A | B42: ВЛ 6 кВ на куст 3129.2 (габ. 6 кВ) Приразломное м/р. Правдинский (КС00091313) | C42: ВЛ 6 кВ на куст 3129.2 (габ. 6 кВ) Приразломное м/р. Правдинский (КС00091313) | D42: ВЛ 6 кВ на куст 3129.2 (габ. 6 кВ) Приразломное м/р. Правдинский (КС00091313) | E42: ВЛ 6 кВ на куст 3129.2 (габ. 6 кВ) Приразломное м/р. Правдинский (КС00091313) | F42: ВЛ 6 кВ на куст 3129.2 (габ. 6 кВ) Приразломное м/р. Правдинский (КС00091313) | G42: ВЛ 6 кВ на куст 3129.2 (габ. 6 кВ) Приразломное м/р. Правдинский (КС00091313) | H42: ВЛ 6 кВ на куст 3129.2 (габ. 6 кВ) Приразломное м/р. Правдинский (КС00091313) | I42: ВЛ 6 кВ на куст 3129.2 (габ. 6 кВ) Приразломное м/р. Правдинский (КС00091313) | J42: ВЛ 6 кВ на куст 3129.2 (габ. 6 кВ) Приразломное м/р. Правдинский (КС00091313) | K42: ВЛ 6 кВ на куст 3129.2 (габ. 6 кВ) Приразломное м/р. Правдинский (КС00091313) | L42: ВЛ 6 кВ на куст 3129.2 (габ. 6 кВ) Приразломное м/р. Правдинский (КС00091313) | M42: ВЛ 6 кВ на куст 3129.2 (габ. 6 кВ) Приразломное м/р. Правдинский (КС00091313) | N42: ВЛ 6 кВ на куст 3129.2 (габ. 6 кВ) Приразломное м/р. Правдинский (КС00091313)
B43: 1 | C43: Ежедневная возка рабочих | D43: 52 | E43: - | F43: - | G43: =SUM(НМЦ!$Z30:$Z37)+SUM(НМЦ!$AC30:$AC37)+SUM(НМЦ!$Z80:$Z91)+SUM(НМЦ!$AC80:$AC91) -> 3640.792 | H43: =ROUND(((D43*2)/$J$27)*$G$27+D43*2*$H$27,2) -> 0 | I43: =ROUND(H43/$I$27,2) -> 0 | J43: =ROUND(I43*$E$14*$E$17*$E$18,2) -> 0 | K43: =G43/$E$16 -> 1.246846575 | L43: =ROUND(K43*J43,2) -> 0 | M43: =(НМЦ!V182+НМЦ!N182*НМЦ!K213)*1.28%*1000 -> 0 | N43: =ROUND(MIN(SUM(L43:L44),M43),2) -> 0
B44: 2 | C44: Ежедневная возка ПН персонала | D44: 52 | E44: 15 | F44: - | G44: - | H44: =ROUND(((D44*2)/$J$28)*$G$28+D44*2*$H$28,2) -> 0 | I44: - | J44: - | K44: - | L44: =ROUND(H44*($E$14*E44),2) -> 0
B45: 3 | C45: Перевозка вахт рабочих | D45: 195 | E45: - | F45: - | G45: =SUM(НМЦ!$Z30:$Z37)+SUM(НМЦ!$AC30:$AC37)+SUM(НМЦ!$Z80:$Z91)+SUM(НМЦ!$AC80:$AC91) -> 3640.792 | H45: =ROUND(((D45*2)/$J$29)*$G$29+D45*2*$H$29,2) -> 0 | I45: =ROUND(H45/$I$29,2) -> 0 | J45: =ROUND(I45*$E$15*$E$17,2) -> 0 | K45: =G45/$E$16 -> 1.246846575 | L45: =ROUND(K45*J45,2) -> 0 | M45: =(НМЦ!V182+НМЦ!N182*НМЦ!K213)*0.22%*1000 -> 0 | N45: =ROUND(MIN(SUM(L45:L46),M45),2) -> 0
B46: 4 | C46: Перевозка вахт ПН персонала | D46: 195 | E46: - | F46: 0.5 | G46: - | H46: =ROUND(((D46*2)/$J$30)*$G$30+D46*2*$H$30,2) -> 0 | I46: - | J46: - | K46: - | L46: =ROUND(H46*(F46*$E$15),2) -> 0

Sheet relocationTemplate (hidden)
A1: code | B1: formula | D1: d | E1: Расстояние перебазировки до объекта
A2: C21 | B2: C15R#/C18R# | D2: q | E2: 1. Эксплуатация седельного тягача
A3: C22 | B3: C21R#*C16R# | D3: i | E3: 1.1. Эксплуатация седельного тягача (под погрузкой/разгрузкой)
A4: C23 | B4: C15R#*C16R# | D4: w | E4: 2. Строительная техника при перебазировке на трале (седельном тягаче)
A5: C24 | B5: ОКРУГЛ(C22R#*C19R#;2) | D5: e | E5: 3. Перебазировка техники своим ходом
A6: C25 | B6: ОКРУГЛ(C23R#*C20R#;2) | D6: r | E6: 4. Сопровождение груза до объекта
A7: C26 | B7: ОКРУГЛ(C24R#+C25R#;2) | D7: d | E7: Расстояние перебазировки до объекта на обвязку
A8: C12 | B8: ВПР(C11R#;paramRange;2;0) | D8: q | E8: 1. Эксплуатация седельного тягача
A9: C13 | B9: ВПР(C11R#;paramRange;5;0) | D9: i | E9: 1.1. Эксплуатация седельного тягача (под погрузкой/разгрузкой)
A10: C19 | B10: ВПР(C11R#;paramRange;3;0) | D10: w | E10: 2. Строительная техника при перебазировке на трале (седельном тягаче)
A11: C20 | B11: ВПР(C11R#;paramRange;4;0) | D11: ee | E11: 3. Перебазировка техники своим ходом
D12: r | E12: 4. Сопровождение груза до объекта
D13: t | E13: ИТОГО перебазировка техники на объект | U13: =U2+U3+U4+U5+U6+U8+U9+U10+U11+U12 -> 0
D14: u | E14: ВСЕГО с учетом удельного веса затрат на перебазировку, учтенный в индексе к ЭММ с учетом зимнего удорожания | R14: ='Ценовые нормативы'!$E$36 -> 0.037 | U14: =U13-T14 -> 0
D15: y | E15: ВСЕГО перебазировка техники на объект с учетом лимита | U15: =ROUND(IF(U14<0,0,MIN(U14,T15)),2) -> 0
E22: Наименование показателя | F22: Шифр норматива | G22: Тариф за 1 м-часа, руб. | H22: Тариф за 1 км пробега, руб. | I22: Грузоподъемность, т | M22: Наименование показателя | N22: Шифр норматива | O22: Тариф за 1 м-часа, руб. | P22: Тариф за 1 км пробега, руб. | Q22: Грузоподъемность, т
E23: BV-206 AMT | F23: 1 | G23: 1504.61 | H23: 0 | I23: - | M23: Автобетоносмесители на базе автомобиля МАЗ-5549 вместимостью барабана 2,7 м3 | N23: 160100 | O23: 266.76 | P23: 0 | Q23: -
E24: DAEWOO SOLAR 140LC-V | F24: 2 | G24: 636.8 | H24: 0 | I24: - | M24: Автогидроподъемники высотой подъема 12 м | N24: 31001 | O24: 260.81 | P24: 0 | Q24: -
E25: FORD TRANSIT VAN | F25: 3 | G25: 417.37 | H25: 9.64 | I25: - | M25: Автогидроподъемники высотой подъема 18 м | N25: 31002 | O25: 379.22 | P25: 0 | Q25: -
E26: Hitachi-200-5 ЕХ-200-5 | F26: 4 | G26: 629.99 | H26: 0 | I26: - | M26: Автогидроподъемники высотой подъема 22 м | N26: 31003 | O26: 535.8 | P26: 0 | Q26: -
E27: HYUNDAI R160LC-7 | F27: 5 | G27: 614.17 | H27: 0 | I27: - | M27: Автогидроподъемники высотой подъема 28 м | N27: 31004 | O27: 634.13 | P27: 0 | Q27: -
E28: KOMATSU PC200-7 | F28: 6 | G28: 834.17 | H28: 0 | I28: - | M28: Автогидроподъемники высотой подъема свыше 35 м | N28: 31005 | O28: 1063.8 | P28: 0 | Q28: -
E29: KR-500 S-КАТО | F29: 7 | G29: 1451.98 | H29: 79.76 | I29: - | M29: Автогрейдеры легкого типа 66,2 (90) кВт (л.с.) | N29: 120201 | O29: 307.66 | P29: 0 | Q29: -
E30: MAN TGS 33.440 с/т с ЧМЗАП-990640 | F30: 8 | G30: 845.01 | H30: 42.87 | I30: - | M30: Автогрейдеры среднего типа 99 (135) кВт (л.с.) | N30: 120202 | O30: 248.44 | P30: 0 | Q30: -
E31: REMU BF 12.24 экскав.амфибия | F31: 9 | G31: 3261.99 | H31: 0 | I31: - | M31: Автоматы для сварки мостовых конструкций типа АДФ | N31: 40310 | O31: 29.18 | P31: 0 | Q31: -
E32: АТ-990 ГРОВЕ | F32: 10 | G32: 1415 | H32: 94.54 | I32: - | M32: Автоматы сварочные с номинальным сварочным током 450-1250 А | N32: 40300 | O32: 25.83 | P32: 0 | Q32: -
E33: Б-10. М0102-1Е БУЛЬДОЗЕР | F33: 11 | G33: 655.24 | H33: 0 | I33: - | M33: Автопогрузчики 5 т | N33: 30101 | O33: 205.73 | P33: 0 | Q33: -
E34: БОЛОТОХОД ВV 206 D | F34: 12 | G34: 1504.61 | H34: 0 | I34: - | M34: Автопогрузчики специальные со стрелой и выдвижным крюком 1,5 т | N34: 30150 | O34: 353.4 | P34: 0 | Q34: -
E35: В-138 С замена | F35: 13 | G35: 489.3 | H35: 0 | I35: - | M35: Автопогрузчики специальные со стрелой и передвижным крюком 3 т | N35: 30140 | O35: 327.41 | P35: 0 | Q35: -
E36: ВАЗ-21310 | F36: 14 | G36: 234.46 | H36: 4.67 | I36: - | M36: Агрегаты копровые без дизельмолота на базе трактора 80 (108) кВт (л.с.) | N36: 140110 | O36: 478.36 | P36: 0 | Q36: -
E37: ВАЗ-2329 | F37: 15 | G37: 234.46 | H37: 3.48 | I37: - | M37: Агрегаты копровые без дизельмолота на базе экскаватора 0,65 м3 | N37: 140101 | O37: 388.32 | P37: 0 | Q37: -
E38: ГАЗ-22171 | F38: 16 | G38: 229.56 | H38: 5.95 | I38: - | M38: Агрегаты копровые без дизельмолота на базе экскаватора 1 м3 | N38: 140102 | O38: 412.66 | P38: 0 | Q38: -
E39: ГАЗ-2705 фур. | F39: 17 | G39: 242.57 | H39: 7 | I39: - | M39: Агрегаты копровые без дизельмолота на базе экскаватора 1,25 м3 | N39: 140103 | O39: 458.44 | P39: 0 | Q39: -
E40: ГАЗ-27057 | F40: 18 | G40: 242.57 | H40: 7 | I40: - | M40: Агрегаты сварочные однопостовые для ручной электродуговой сварки | N40: 40251 | O40: 26.09 | P40: 0 | Q40: -
E41: ГАЗ-3221 м/а | F41: 19 | G41: 229.56 | H41: 5.95 | I41: - | M41: Агрегаты сварочные передвижные с номинальным сварочным током 250-400 А с бензиновым двигателем | N41: 40201 | O41: 8.1 | P41: 0 | Q41: -
E42: ГАЗ-3302 | F42: 20 | G42: 237.45 | H42: 8.36 | I42: - | M42: Агрегаты сварочные передвижные с номинальным сварочным током 250-400 А с дизельным двигателем | N42: 40202 | O42: 8.09 | P42: 0 | Q42: -
E43: ГАЗ-33023 б | F43: 21 | G43: 237.45 | H43: 8.36 | I43: - | M43: Аппараты для воздушной плазменной резки металла | N43: 40700 | O43: 89.36 | P43: 0 | Q43: -
E44: ГАЗ-33081 с КМУ Егерь-2 | F44: 22 | G44: 346.76 | H44: 10.24 | I44: - | M44: Аппараты для газовой сварки и резки | N44: 40504 | O44: 1.99 | P44: 0 | Q44: -
E45: ГАЗ-33081-70 б Егерь | F45: 23 | G45: 333.07 | H45: 9.95 | I45: - | M45: Аппараты смазочный тросовый | N45: 161100 | O45: 8.11 | P45: 0 | Q45: -
E46: ГАЗ-340031 | F46: 24 | G46: 568.07 | H46: 0 | I46: - | M46: Бензопилы дисковые "Партнер" | N46: 390541 | O46: 222.43 | P46: 0 | Q46: -
E47: ГАЗ-34031 | F47: 25 | G47: 546.49 | H47: 0 | I47: - | M47: Бороны дисковые мелиоративные (без трактора) | N47: 90102 | O47: 95.95 | P47: 0 | Q47: -
E48: ГАЗ-34037-11П спец.тягач | F48: 26 | G48: 568.07 | H48: 0 | I48: - | M48: Бороны зубовые | N48: 90111 | O48: 2.51 | P48: 0 | Q48: -
E49: ГАЗ-34039 | F49: 27 | G49: 372.23 | H49: 29.84 | I49: - | M49: Бороны корчевальные (без трактора) | N49: 90101 | O49: 14.68 | P49: 0 | Q49: -
E50: ГАЗ-3897 фургон | F50: 28 | G50: 242.4 | H50: 8.71 | I50: - | M50: Бульдозеры на базе трактора 121 (165) кВт (л.с.) | N50: 160901 | O50: 322.18 | P50: 0 | Q50: -
E51: ГАЗ-71 | F51: 29 | G51: 616.47 | H51: 0 | I51: - | M51: Бульдозеры при работе на других видах строительства (кроме водохозяйственного) 118 (160) кВт (л.с.) | N51: 70151 | O51: 265.72 | P51: 0 | Q51: -
E52: ГАЗ-71 ЛСВ-6 | F52: 30 | G52: 616.47 | H52: 0 | I52: - | M52: Бульдозеры при работе на других видах строительства (кроме водохозяйственного) 121 (165) кВт (л.с.) | N52: 70152 | O52: 287.98 | P52: 0 | Q52: -
E53: ГАЗЕЛЬ-32213 | F53: 31 | G53: 299.87 | H53: 6.02 | I53: - | M53: Бульдозеры при работе на других видах строительства (кроме водохозяйственного) 132 (180) кВт (л.с.) | N53: 70153 | O53: 273.61 | P53: 0 | Q53: -
E54: ГАЗЕЛЬ-32217 | F54: 32 | G54: 299.87 | H54: 5.13 | I54: - | M54: Бульдозеры при работе на других видах строительства (кроме водохозяйственного) 243 (330) кВт (л.с.) | N54: 70154 | O54: 302.62 | P54: 0 | Q54: -
E55: ГТТ | F55: 33 | G55: 738.57 | H55: 0 | I55: - | M55: Бульдозеры при работе на других видах строительства (кроме водохозяйственного) 37 (50) кВт (л.с.) | N55: 70147 | O55: 248.99 | P55: 0 | Q55: -
E56: ГТ-ТБ | F56: 34 | G56: 738.57 | H56: 0 | I56: - | M56: Бульдозеры при работе на других видах строительства (кроме водохозяйственного) 59 (80) кВт (л.с.) | N56: 70148 | O56: 231.48 | P56: 0 | Q56: -
E57: ЕК-14 экскаватор | F57: 35 | G57: 382.17 | H57: 0 | I57: - | M57: Бульдозеры при работе на других видах строительства (кроме водохозяйственного) 79 (108) кВт (л.с.) | N57: 70149 | O57: 241.23 | P57: 0 | Q57: -
E58: ЕК-270 субаренда | F58: 36 | G58: 403.95 | H58: 0 | I58: - | M58: Бульдозеры при работе на других видах строительства (кроме водохозяйственного) 96 (130) кВт (л.с.) | N58: 70150 | O58: 230.97 | P58: 0 | Q58: -
E59: ЕТ-25 | F59: 37 | G59: 382.17 | H59: 0 | I59: - | M59: Бульдозеры при работе на сооружении магистральных трубопроводов 121 (165) кВт (л.с.) | N59: 70118 | O59: 330.05 | P59: 0 | Q59: -
E60: ЗИЛ-130 ТЦ-10 | F60: 38 | G60: 443.46 | H60: 12.28 | I60: - | M60: Бульдозеры при работе на сооружении магистральных трубопроводов 132 (180) кВт (л.с.) | N60: 70119 | O60: 348.68 | P60: 0 | Q60: -
E61: ЗИЛ-131 АЗА-3 | F61: 39 | G61: 431.28 | H61: 14.17 | I61: - | M61: Бульдозеры при работе на сооружении магистральных трубопроводов 228 (310) кВт (л.с.) | N61: 70120 | O61: 781.33 | P61: 0 | Q61: -
E62: ЗИЛ-131 б | F62: 40 | G62: 262.27 | H62: 13.44 | I62: - | M62: Бульдозеры при работе на сооружении магистральных трубопроводов 303 (410) кВт (л.с.) | N62: 70121 | O62: 391.97 | P62: 0 | Q62: -
E63: ЗИЛ-131 ЛС-6 | F63: 41 | G63: 450.33 | H63: 14.2 | I63: - | M63: Бульдозеры при работе на сооружении магистральных трубопроводов 340 (450) кВт (л.с.) | N63: 70122 | O63: 436.88 | P63: 0 | Q63: -
E64: ЗИЛ-131 НА б | F64: 42 | G64: 262.27 | H64: 13.44 | I64: - | M64: Бульдозеры при работе на сооружении магистральных трубопроводов 96 (130) кВт (л.с.) | N64: 70117 | O64: 304.16 | P64: 0 | Q64: -
E65: ЗИЛ-131 НМТО-АТ | F65: 43 | G65: 320.19 | H65: 15.79 | I65: - | M65: Бульдозеры при работе на сооружении магистральных трубопроводов до 59 (80) кВт (л.с.) | N65: 70116 | O65: 267.05 | P65: 0 | Q65: -
E66: ЗИЛ-131 ПРМ | F66: 44 | G66: 356.32 | H66: 16.5 | I66: - | M66: Бульдозеры-рыхлители на тракторе при работе на водохозяйственном строительстве мощностью 121 (165) кВт (л.с.) | N66: 70202 | O66: 382.18 | P66: 0 | Q66: -
E67: ЗИЛ-131 ПРМА-531 | F67: 45 | G67: 356.32 | H67: 16.5 | I67: - | M67: Бульдозеры-рыхлители на тракторе при работе на водохозяйственном строительстве мощностью 132 (180) кВт (л.с.) | N67: 70203 | O67: 405.5 | P67: 0 | Q67: -
E68: ЗИЛ-131 т/в | F68: 46 | G68: 310.29 | H68: 16.62 | I68: - | M68: Бульдозеры-рыхлители на тракторе при работе на водохозяйственном строительстве мощностью 79 (108) кВт (л.с.) | N68: 70201 | O68: 255.57 | P68: 0 | Q68: -
E69: ЗИЛ-131 УМП-350 | F69: 47 | G69: 818.92 | H69: 14.73 | I69: - | M69: Бульдозеры-рыхлители на тракторе при работе на других видах строительства (кроме водохозяйственного) мощностью 121 (165) кВт (л.с.) | N69: 70224 | O69: 256.56 | P69: 0 | Q69: -
E70: ЗИЛ-413412 АЦПТ-5 | F70: 48 | G70: 330.34 | H70: 11.25 | I70: - | M70: Бульдозеры-рыхлители на тракторе при работе на других видах строительства (кроме водохозяйственного) мощностью 132 (180) кВт (л.с.) | N70: 70225 | O70: 243.97 | P70: 0 | Q70: -
E71: ЗИЛ-431410 б 6Т. | F71: 49 | G71: 322.85 | H71: 9.78 | I71: - | M71: Бульдозеры-рыхлители на тракторе при работе на других видах строительства (кроме водохозяйственного) мощностью 79 (108) кВт (л.с.) | N71: 70223 | O71: 205.11 | P71: 0 | Q71: -
E72: ЗИЛ-431412 б | F72: 50 | G72: 322.85 | H72: 9.78 | I72: - | M72: Бульдозеры-рыхлители на тракторе при работе на транспортном строительстве мощностью 132 (180) кВт (л.с.) | N72: 70213 | O72: 385.12 | P72: 0 | Q72: -
E73: ЗИЛ-433360 | F73: 51 | G73: 322.85 | H73: 10.05 | I73: - | M73: Валкователи древесных остатков (без трактора) | N73: 81800 | O73: 70.16 | P73: 0 | Q73: -
E74: ЗИЛ-433362 | F74: 52 | G74: 322.85 | H74: 10.05 | I74: - | M74: Вибропогружатели высокочастотные для погружения шпунтов и свай до 1,5 т | N74: 140401 | O74: 105.12 | P74: 0 | Q74: -
E75: ЗИЛ-433362 КО-520 | F75: 53 | G75: 327.52 | H75: 10.85 | I75: - | M75: Вибропогружатели низкочастотные для погружения металлических и железобетонных свай до 3 т | N75: 140406 | O75: 155.43 | P75: 0 | Q75: -
E76: ЗИЛ-433362 КО-713 замена | F76: 54 | G76: 327.52 | H76: 10.85 | I76: - | M76: Вибропогружатели низкочастотные для погружения свай-оболочек | N76: 140411 | O76: 220.83 | P76: 0 | Q76: -
E77: ЗИЛ-433362 МК-5,8 замена | F77: 55 | G77: 327.52 | H77: 10.85 | I77: - | M77: Выпрямители сварочные многопостовые с количеством постов до 30 | N77: 40801 | O77: 18.31 | P77: 0 | Q77: -
E78: ЗИЛ-4334 УМП-350 | F78: 56 | G78: 911.18 | H78: 12.41 | I78: - | M78: Выпрямители сварочные однопостовые с номинальным сварочным током 315-500 А | N78: 40802 | O78: 4.88 | P78: 0 | Q78: -
E79: ЗИЛ-ММЗ-4505 | F79: 57 | G79: 301.97 | H79: 13.03 | I79: - | M79: Вышки телескопические 25 м | N79: 31050 | O79: 476.67 | P79: 0 | Q79: -
E80: Ивеко-190-36 с/тяг с ЮКИ-П21АЛ-5 б | F80: 58 | G80: 387.77 | H80: 28.44 | I80: - | M80: Грабли кустарниковые навесные (без трактора) | N80: 90200 | O80: 18.11 | P80: 0 | Q80: -
E81: К-700 Бульдозер | F81: 59 | G81: 854.54 | H81: 0 | I81: - | M81: Грейдеры прицепные среднего типа | N81: 120301 | O81: 197.61 | P81: 0 | Q81: -
E82: К-701 | F82: 60 | G82: 854.54 | H82: 0 | I82: - | M82: Грейдеры прицепные тяжелого типа | N82: 120302 | O82: 180.65 | P82: 0 | Q82: -
E83: К-701 бульдозер | F83: 61 | G83: 854.54 | H83: 0 | I83: - | M83: Дизель-молоты 0,5 т | N83: 140501 | O83: 16.84 | P83: 0 | Q83: -
E84: К-702 МБА-УДМ-2 | F84: 62 | G84: 831.47 | H84: 0 | I84: - | M84: Дизель-молоты 1,25 т | N84: 140502 | O84: 29.12 | P84: 0 | Q84: -
E85: К-703 МА-ДМ-15 | F85: 63 | G85: 854.54 | H85: 0 | I85: - | M85: Дизель-молоты 1,8 т | N85: 140503 | O85: 38.22 | P85: 0 | Q85: -
E86: К-703 МА-ДМ-15 лизинговый | F86: 64 | G86: 818.51 | H86: 0 | I86: - | M86: Дизель-молоты 2,5 т | N86: 140504 | O86: 58.01 | P86: 0 | Q86: -
E87: КАВЗ-3976 | F87: 65 | G87: 336.6 | H87: 7.68 | I87: - | M87: Дизель-молоты 3,5 т | N87: 140505 | O87: 80.76 | P87: 0 | Q87: -
E88: КАВЗ-3976-011-020 | F88: 66 | G88: 336.6 | H88: 7.68 | I88: - | M88: Дизель-молоты 5 т | N88: 140506 | O88: 89.47 | P88: 0 | Q88: -
E89: КАВЗ-397652 | F89: 67 | G89: 378.62 | H89: 8.24 | I89: - | M89: Кабелеукладчики колесные прицепные для прокладки коаксиального кабеля КУК-5М | N89: 170102 | O89: 403.72 | P89: 0 | Q89: -
E90: КАМАЗ НЕФАЗ-4208 | F90: 68 | G90: 363.27 | H90: 10.02 | I90: - | M90: Кабелеукладчики колесные прицепные КУК-4Б | N90: 170105 | O90: 403.04 | P90: 0 | Q90: -
E91: КАМАЗ НЗАС-4951 | F91: 69 | G91: 363.27 | H91: 10.02 | I91: - | M91: Кабелеукладчики колесные прицепные легкие для прокладки малогабаритных кабелей связи - КУ-120 В | N91: 170101 | O91: 174.96 | P91: 0 | Q91: -
E92: КАМАЗ-42112 НЗАС | F92: 70 | G92: 363.27 | H92: 10.02 | I92: - | M92: Кабелеукладчики навесные вибрационные для прокладки оптического кабеля КНВ-2К | N92: 170103 | O92: 1959.68 | P92: 0 | Q92: -
E93: КАМАЗ-4310 АКH-6,6 | F93: 71 | G93: 416.26 | H93: 15.76 | I93: - | M93: Кабелеукладчики прицепные легкие для сельской и зоновой связи ЛПК-20-2 | N93: 170104 | O93: 167.47 | P93: 0 | Q93: -
E94: КамАЗ-4310 ИФ-300 | F94: 72 | G94: 506.24 | H94: 15.57 | I94: - | M94: Канавокопатели фрезерные (на тракторе) | N94: 90303 | O94: 396.78 | P94: 0 | Q94: -
E95: КАМАЗ-4310 К-140 ЛИВ замена | F95: 73 | G95: 509.91 | H95: 15.57 | I95: - | M95: Катки дорожные прицепные кулачковые 17 т | N95: 120702 | O95: 46.22 | P95: 0 | Q95: -
E96: Камаз-4310 НЗАС-4208 | F96: 74 | G96: 363.27 | H96: 10.02 | I96: - | M96: Катки дорожные прицепные кулачковые 28 т | N96: 120703 | O96: 55.25 | P96: 0 | Q96: -
E97: КАМАЗ-4310 ПВ 95 | F97: 75 | G97: 401.14 | H97: 19.29 | I97: - | M97: Катки дорожные прицепные кулачковые 8 т | N97: 120701 | O97: 10.11 | P97: 0 | Q97: -
E98: КАМАЗ-4310 ТЕХПОМОЩЬ | F98: 76 | G98: 409.05 | H98: 15.83 | I98: - | M98: Катки дорожные прицепные на пневмоколесном ходу 12,5 т | N98: 120710 | O98: 46.55 | P98: 0 | Q98: -
E99: КАМАЗ-43101 | F99: 77 | G99: 296.55 | H99: 14.2 | I99: - | M99: Катки дорожные прицепные на пневмоколесном ходу 25 т | N99: 120711 | O99: 63.15 | P99: 0 | Q99: -
E100: КАМАЗ-43101 АКН-6,6 | F100: 78 | G100: 416.26 | H100: 15.76 | I100: - | M100: Катки дорожные прицепные на пневмоколесном ходу 50 т | N100: 120712 | O100: 107.35 | P100: 0 | Q100: -
E101: КАМАЗ-43101 НЗАС | F101: 79 | G101: 363.27 | H101: 10.02 | I101: - | M101: Катки дорожные самоходные вибрационные 2,2 т | N101: 120901 | O101: 126.99 | P101: 0 | Q101: -
E102: КАМАЗ-43101 ПВ-96 | F102: 80 | G102: 401.14 | H102: 19.29 | I102: - | M102: Катки дорожные самоходные вибрационные, масса более 8 т | N102: 120952 | O102: 247.93 | P102: 0 | Q102: -
E103: КамАЗ-43101 ППЦ-16 замена | F103: 81 | G103: 377.67 | H103: 21.99 | I103: - | M103: Катки дорожные самоходные вибрационные, масса до 8 т | N103: 120951 | O103: 168.35 | P103: 0 | Q103: -
E104: КАМАЗ-43101 ТГМ-10 | F104: 82 | G104: 417.01 | H104: 19.21 | I104: - | M104: Катки дорожные самоходные гладкие 10 т | N104: 153102 | O104: 327.34 | P104: 0 | Q104: -
E105: КАМАЗ-43114 | F105: 83 | G105: 296.55 | H105: 15.89 | I105: - | M105: Катки дорожные самоходные гладкие 13 т | N105: 120907 | O105: 365.38 | P105: 0 | Q105: -
E106: КамАЗ-43114 680102 ИМ-20 замена | F106: 84 | G106: 490.79 | H106: 25.69 | I106: - | M106: Катки дорожные самоходные гладкие 18 т | N106: 120908 | O106: 476.73 | P106: 0 | Q106: -
E107: КАМАЗ-43114 тех.помощь | F107: 85 | G107: 427.09 | H107: 15.92 | I107: - | M107: Катки дорожные самоходные гладкие 5 т | N107: 153101 | O107: 432.28 | P107: 0 | Q107: -
E108: КамАЗ-43114-15 АДПМ-12/150-2 замена | F108: 86 | G108: 479.45 | H108: 16.12 | I108: - | M108: Катки дорожные самоходные гладкие 8 т | N108: 120906 | O108: 240.5 | P108: 0 | Q108: -
E109: КамАЗ-43114-15 АРОК-2 замена | F109: 87 | G109: 463.49 | H109: 15.86 | I109: - | M109: Катки дорожные самоходные на пневмоколесном ходу 16 т | N109: 120910 | O109: 279.59 | P109: 0 | Q109: -
E110: КАМАЗ-43114-15 б замена | F110: 88 | G110: 327.97 | H110: 15.89 | I110: - | M110: Катки дорожные самоходные на пневмоколесном ходу 30 т | N110: 120911 | O110: 440.4 | P110: 0 | Q110: -
E111: КАМАЗ-43118 3902Р1 с КМУ гар.4271 | F111: 89 | G111: 567.2 | H111: 16.56 | I111: - | M111: Катки полуприцепные на пневмоколесном ходу с тягачом 15 т | N111: 120801 | O111: 294.14 | P111: 0 | Q111: -
E112: Камаз-43118 АДПМ-12/150-2 гар.8183 | F112: 90 | G112: 547.78 | H112: 15.82 | I112: - | M112: Катки полуприцепные на пневмоколесном ходу с тягачом 25 т | N112: 120802 | O112: 428.79 | P112: 0 | Q112: -
E113: КАМАЗ-43118 АКН-10 | F113: 91 | G113: 452.95 | H113: 19.04 | I113: - | M113: Катки полуприцепные на пневмоколесном ходу с тягачом 35 т | N113: 120803 | O113: 462.79 | P113: 0 | Q113: -
E114: Камаз-43118 АКН-10 гар.8225,9485,9489,9490,9491 | F114: 92 | G114: 603.82 | H114: 18.73 | I114: - | M114: Компрессоры "XANS-175Dd" | N114: 391711 | O114: 606.2 | P114: 0 | Q114: -
E115: КамАЗ-43118 АКНС-10 замена | F115: 93 | G115: 458.57 | H115: 19.01 | I115: - | M115: Компрессоры передвижные "АТLАS СОРСО" XRHS-485 или аналогичного типа, давление до 2,0 МПа, производительность до 60 м3/мин | N115: 391751 | O115: 1227.46 | P115: 0 | Q115: -
E116: КамАЗ-43118 АЦН-10 | F116: 94 | G116: 460.58 | H116: 19.01 | I116: - | M116: Компрессоры передвижные с двигателем внутреннего сгорания 800 кПа (8 ат) 10 м3/мин | N116: 50201 | O116: 175.76 | P116: 0 | Q116: -
E117: КАМАЗ-43118 ИМ-150 с ПП-9370 | F117: 95 | G117: 490.79 | H117: 25.69 | I117: - | M117: Компрессоры передвижные с двигателем внутреннего сгорания давлением до 686 кПа (7 ат) 11,2 м3/мин | N117: 152800 | O117: 252.54 | P117: 0 | Q117: -
E118: КамАЗ-43118 к/м Palfinger АНРВ | F118: 96 | G118: 658.69 | H118: 16.24 | I118: - | M118: Компрессоры передвижные с двигателем внутреннего сгорания давлением до 686 кПа (7 ат) 2,2 м3/мин | N118: 50101 | O118: 242.78 | P118: 0 | Q118: -
E119: КамАЗ-43118 КС-35714 замена | F119: 97 | G119: 677.43 | H119: 19.8 | I119: - | M119: Компрессоры передвижные с двигателем внутреннего сгорания давлением до 686 кПа (7 ат) 5 м3/мин | N119: 50102 | O119: 231.64 | P119: 0 | Q119: -
E120: КамАЗ-43118 НефАЗ-66062 т/з замена | F120: 98 | G120: 521.08 | H120: 18.44 | I120: - | M120: Компрессоры передвижные с электродвигателем давлением 600 кПа (6 ат), производительность до 0,5 м3/мин | N120: 50401 | O120: 1.16 | P120: 0 | Q120: -
E121: Камаз-43118 ППУ-1600/100 гар.2091,8254,9341,9342 | F121: 99 | G121: 496.88 | H121: 16.85 | I121: - | M121: Компрессоры передвижные с электродвигателем давлением 600 кПа (6 ат), производительность до 3,5 м3/мин | N121: 50402 | O121: 49.78 | P121: 0 | Q121: -
E122: КамАЗ-43118 ППУ-1600/100 замена | F122: 100 | G122: 457.68 | H122: 17.12 | I122: - | M122: Компрессоры самоходные с двигателем внутреннего сгорания давлением 800 кПа (8 ат), производительность 6,3 м3/мин | N122: 50301 | O122: 241.94 | P122: 0 | Q122: -
E123: КамАЗ-43118 спец. авт. заправщик | F123: 101 | G123: 521.08 | H123: 18.44 | I123: - | M123: Копры гусеничные для свай длиной до 12 м | N123: 140201 | O123: 423.46 | P123: 0 | Q123: -
E124: КамАЗ-43118 тех.помощь замена | F124: 102 | G124: 427.09 | H124: 15.92 | I124: - | M124: Копры гусеничные для свай длиной до 20 м | N124: 140202 | O124: 539.41 | P124: 0 | Q124: -
E125: КАМАЗ-43118 ХИАБ-200 | F125: 103 | G125: 503.5 | H125: 17.95 | I125: - | M125: Копры универсальные с дизельмолотом 2,5 т | N125: 140301 | O125: 357.75 | P125: 0 | Q125: -
E126: КамАЗ-43118 ЦА-32 замена | F126: 104 | G126: 385.74 | H126: 17.29 | I126: - | M126: Копры универсальные с пневматическим молотом 6 т | N126: 140310 | O126: 217.37 | P126: 0 | Q126: -
E127: КАМАЗ-43118-15 АЦ-32 гар.8249,8253,9168 | F127: 105 | G127: 450.43 | H127: 17.03 | I127: - | M127: Копры универсальные с пневматическим молотом 8 т | N127: 140311 | O127: 361.82 | P127: 0 | Q127: -
E128: КамАЗ-43118-15 КС-45719-7А 20т | F128: 106 | G128: 692.21 | H128: 21.22 | I128: - | M128: Корчеватели роторные (без трактора) | N128: 90400 | O128: 122.29 | P128: 0 | Q128: -
E129: КамАЗ-4326 УМП-4326 | F129: 107 | G129: 999.41 | H129: 14.11 | I129: - | M129: Корчеватели-собиратели с трактором 118 (160) кВт (л.с.) | N129: 90503 | O129: 223.58 | P129: 0 | Q129: -
E130: КамАЗ-44108 ППЦ-16 замена | F130: 108 | G130: 391.1 | H130: 23.77 | I130: - | M130: Корчеватели-собиратели с трактором 59 (80) кВт (л.с.) | N130: 90504 | O130: 129.97 | P130: 0 | Q130: -
E131: КамАЗ-44108 ППЦ-23 замена | F131: 109 | G131: 400.94 | H131: 37.86 | I131: - | M131: Корчеватели-собиратели с трактором 79 (108) кВт (л.с.) | N131: 90501 | O131: 148.99 | P131: 0 | Q131: -
E132: КамАЗ-44108 с/т с ОДАЗ замена | F132: 110 | G132: 372.76 | H132: 23.21 | I132: - | M132: Корчеватели-собиратели с трактором 96 (130) кВт (л.с.) | N132: 90502 | O132: 369.13 | P132: 0 | Q132: -
E133: КАМАЗ-44108-10 ППЦ-18 с НЕФАЗ-96742-04 гар.8197, 9486 | F133: 111 | G133: 452.98 | H133: 20.8 | I133: - | M133: Краны башенные при работе на монтаже технологического оборудования 10 т | N133: 20103 | O133: 384.52 | P133: 0 | Q133: -
E134: КамАЗ-44108-10 с/т НЕФАЗ-96742 17,3т | F134: 112 | G134: 372.76 | H134: 23.21 | I134: - | M134: Краны башенные при работе на монтаже технологического оборудования 12.5 т | N134: 20104 | O134: 535.92 | P134: 0 | Q134: -
E135: КАМАЗ-44108-10 с/т ТСП-9417, СЗАП-9328, HLS-200 17,3т | F135: 113 | G135: 372.76 | H135: 23.21 | I135: - | M135: Краны башенные при работе на монтаже технологического оборудования 25 т | N135: 20105 | O135: 757.75 | P135: 0 | Q135: -
E136: КАМАЗ-4426 т/в | F136: 114 | G136: 409.07 | H136: 18.61 | I136: - | M136: Краны на автомобильном ходу 10 т | N136: 161001 | O136: 272.86 | P136: 0 | Q136: -
E137: КАМАЗ-44260 т/в гар.3001,3002 | F137: 115 | G137: 524.73 | H137: 18.88 | I137: - | M137: Краны на автомобильном ходу 16 т | N137: 161002 | O137: 292.09 | P137: 0 | Q137: -
E138: КАМАЗ-44260 ТГМ-10 | F138: 116 | G138: 409.07 | H138: 18.61 | I138: - | M138: Краны на автомобильном ходу при работе на других видах строительства (кроме магистральных трубопроводов) 10 т | N138: 21141 | O138: 248.28 | P138: 0 | Q138: -
E139: КамАЗ-47610 АРОК-2 замена | F139: 117 | G139: 463.49 | H139: 15.86 | I139: - | M139: Краны на автомобильном ходу при работе на других видах строительства (кроме магистральных трубопроводов) 12,5 т | N139: 21142 | O139: 250.14 | P139: 0 | Q139: -
E140: КАМАЗ-5320 | F140: 118 | G140: 284.05 | H140: 12.08 | I140: - | M140: Краны на автомобильном ходу при работе на других видах строительства (кроме магистральных трубопроводов) 16 т | N140: 21143 | O140: 275.62 | P140: 0 | Q140: -
E141: КАМАЗ-5320 АЦ-7,5 | F141: 119 | G141: 397.64 | H141: 14.11 | I141: - | M141: Краны на автомобильном ходу при работе на других видах строительства (кроме магистральных трубопроводов) 25 т | N141: 21144 | O141: 672.45 | P141: 0 | Q141: -
E142: КАМАЗ-5320 АЦ-8 | F142: 120 | G142: 397.64 | H142: 14.11 | I142: - | M142: Краны на автомобильном ходу при работе на других видах строительства (кроме магистральных трубопроводов) 40 т | N142: 21145 | O142: 1130.65 | P142: 0 | Q142: -
E143: КамАЗ-5320 МКТ-253 25т | F143: 121 | G143: 811.35 | H143: 21.56 | I143: - | M143: Краны на автомобильном ходу при работе на других видах строительства (кроме магистральных трубопроводов) 6,3 т | N143: 21140 | O143: 216.9 | P143: 0 | Q143: -
E144: КАМАЗ-53212 | F144: 122 | G144: 308.09 | H144: 12.24 | I144: - | M144: Краны на автомобильном ходу при работе на других видах строительства (кроме магистральных трубопроводов) 63 т | N144: 21146 | O144: 1189.98 | P144: 0 | Q144: -
E145: КАМАЗ-53212 АЦ-10 | F145: 123 | G145: 414.39 | H145: 14.69 | I145: - | M145: Краны на автомобильном ходу при работе на монтаже технологического оборудования 10 т | N145: 21102 | O145: 290.43 | P145: 0 | Q145: -
E146: КамАЗ-53212 АЦ-9 замена | F146: 124 | G146: 414.39 | H146: 14.69 | I146: - | M146: Краны на автомобильном ходу при работе на монтаже технологического оборудования 12,5 т | N146: 21103 | O146: 290.06 | P146: 0 | Q146: -
E147: КамАЗ-53212 ЦА-320 замена | F147: 125 | G147: 384.03 | H147: 17.29 | I147: - | M147: Краны на автомобильном ходу при работе на монтаже технологического оборудования 16 т | N147: 21104 | O147: 312.37 | P147: 0 | Q147: -
E148: КамАЗ-53215 КС-45717 с/аренда | F148: 126 | G148: 811.35 | H148: 21.56 | I148: - | M148: Краны на автомобильном ходу при работе на монтаже технологического оборудования 25 т | N148: 21105 | O148: 719.33 | P148: 0 | Q148: -
E149: КАМАЗ-53228 HIAB-300 | F149: 127 | G149: 524.81 | H149: 21.86 | I149: - | M149: Краны на автомобильном ходу при работе на монтаже технологического оборудования 40 т | N149: 21106 | O149: 1128.58 | P149: 0 | Q149: -
E150: КАМАЗ-53228 N экскаватор (УДС) | F150: 128 | G150: 707.3 | H150: 27.38 | I150: - | M150: Краны на автомобильном ходу при работе на монтаже технологического оборудования 6,3 т | N150: 21101 | O150: 230.11 | P150: 0 | Q150: -
E151: КАМАЗ-53228 ИМ-240П | F151: 129 | G151: 523.85 | H151: 24.71 | I151: - | M151: Краны на автомобильном ходу при работе на монтаже технологического оборудования 63 т | N151: 21107 | O151: 1167.51 | P151: 0 | Q151: -
E152: КАМАЗ-53228 КС-45717 | F152: 130 | G152: 811.35 | H152: 21.56 | I152: - | M152: Краны на автомобильном ходу при работе на сооружении магистральных трубопроводов 10 т | N152: 21129 | O152: 293.34 | P152: 0 | Q152: -
E153: КамАЗ-53228R АЦ-15 НЕФАЗ | F153: 131 | G153: 377.66 | H153: 21.65 | I153: - | M153: Краны на автомобильном ходу при работе на сооружении магистральных трубопроводов 12,5 т | N153: 21130 | O153: 316.11 | P153: 0 | Q153: -
E154: КАМАЗ-5410 АЦ-8 | F154: 132 | G154: 414.39 | H154: 14.12 | I154: - | M154: Краны на автомобильном ходу при работе на сооружении магистральных трубопроводов 6,3 т | N154: 21128 | O154: 234.01 | P154: 0 | Q154: -
E155: КАМАЗ-5410 с ОДАЗ-9370 | F155: 133 | G155: 372.76 | H155: 16.5 | I155: - | M155: Краны на гусеничном ходу при работе на других видах строительства (кроме магистральных трубопроводов) 100 т | N155: 21247 | O155: 1050.31 | P155: 0 | Q155: -
E156: КАМАЗ-5410 с/т МАЗ-9397 21т замена | F156: 134 | G156: 400.82 | H156: 19.93 | I156: - | M156: Краны на гусеничном ходу при работе на других видах строительства (кроме магистральных трубопроводов) 125 т | N156: 21248 | O156: 1711.98 | P156: 0 | Q156: -
E157: КАМАЗ-5410 с/т с ЮКИ-П21АЛ 22 т | F157: 135 | G157: 400.82 | H157: 19.93 | I157: - | M157: Краны на гусеничном ходу при работе на других видах строительства (кроме магистральных трубопроводов) 25 т | N157: 21244 | O157: 305.51 | P157: 0 | Q157: -
E158: КАМАЗ-54112 с ОДАЗ-9370 | F158: 136 | G158: 372.76 | H158: 16.5 | I158: - | M158: Краны на гусеничном ходу при работе на других видах строительства (кроме магистральных трубопроводов) 40 т | N158: 21245 | O158: 399.55 | P158: 0 | Q158: -
E159: КАМАЗ-54112 с ПП-9370 | F159: 137 | G159: 372.76 | H159: 16.5 | I159: - | M159: Краны на гусеничном ходу при работе на других видах строительства (кроме магистральных трубопроводов) 50-63 т | N159: 21246 | O159: 663.02 | P159: 0 | Q159: -
E160: КАМАЗ-55111 | F160: 138 | G160: 344.09 | H160: 15.61 | I160: - | M160: Краны на гусеничном ходу при работе на других видах строительства (кроме магистральных трубопроводов) до 16 т | N160: 21243 | O160: 278.31 | P160: 0 | Q160: -
E161: КАМАЗ-56071 АЦ-9 | F161: 139 | G161: 414.39 | H161: 14.12 | I161: - | M161: Краны на гусеничном ходу при работе на монтаже технологического оборудования 100 т | N161: 21205 | O161: 1189.96 | P161: 0 | Q161: -
E162: КамАЗ-56071 КС-45711-1 25т | F162: 140 | G162: 811.35 | H162: 21.56 | I162: - | M162: Краны на гусеничном ходу при работе на монтаже технологического оборудования 125 т | N162: 21206 | O162: 1956.25 | P162: 0 | Q162: -
E163: КамАЗ-56247 АЦ-10 замена | F163: 141 | G163: 463.31 | H163: 19.01 | I163: - | M163: Краны на гусеничном ходу при работе на монтаже технологического оборудования 25 т | N163: 21202 | O163: 338.14 | P163: 0 | Q163: -
E164: КамАЗ-56684 АТЗ-7,5 | F164: 142 | G164: 428.17 | H164: 14.12 | I164: - | M164: Краны на гусеничном ходу при работе на монтаже технологического оборудования 40 т | N164: 21203 | O164: 434.1 | P164: 0 | Q164: -
E165: КамАЗ-63501 ПКС | F165: 143 | G165: 4058.29 | H165: 28.2 | I165: - | M165: Краны на гусеничном ходу при работе на монтаже технологического оборудования 50-63 т | N165: 21204 | O165: 695.12 | P165: 0 | Q165: -
E166: КАМАЗ-64061 ИФ-300 ТСП-9417 | F166: 144 | G166: 524.02 | H166: 25.06 | I166: - | M166: Краны на гусеничном ходу при работе на монтаже технологического оборудования до 16 т | N166: 21201 | O166: 292.47 | P166: 0 | Q166: -
E167: КамАЗ-65111 EW-25-М1.103 | F167: 145 | G167: 768.21 | H167: 26.37 | I167: - | M167: Краны на гусеничном ходу при работе на сооружении магистральных трубопроводов 25 т | N167: 21232 | O167: 481.1 | P167: 0 | Q167: -
E168: КАМАЗ-65111-62 EW25М1.103 гар.9069 | F168: 146 | G168: 1122.51 | H168: 20.61 | I168: - | M168: Краны на гусеничном ходу при работе на сооружении магистральных трубопроводов 63 т | N168: 21233 | O168: 626.37 | P168: 0 | Q168: -
E169: КамАЗ-65115-62 КС-55713 (25 т) замена | F169: 147 | G169: 811.35 | H169: 21.56 | I169: - | M169: Краны на гусеничном ходу при работе на сооружении магистральных трубопроводов до 16 т | N169: 21231 | O169: 298.9 | P169: 0 | Q169: -
E170: КамАЗ-65221 ППЦ-НефАЗ-96742 с/т замена | F170: 148 | G170: 375.89 | H170: 19.74 | I170: - | M170: Краны на пневмоколесном ходу при работе на гидроэнергетическом строительстве 100 т | N170: 21417 | O170: 894.79 | P170: 0 | Q170: -
E171: КАМАЗ-65225 с ТСП-94161-000050 гар.3299 | F171: 149 | G171: 573.49 | H171: 31.38 | I171: - | M171: Краны на пневмоколесном ходу при работе на гидроэнергетическом строительстве 16 т | N171: 21413 | O171: 302.3 | P171: 0 | Q171: -
E172: КамАЗ-65225-22 с/т 39т | F172: 150 | G172: 402.14 | H172: 33.5 | I172: - | M172: Краны на пневмоколесном ходу при работе на гидроэнергетическом строительстве 25 т | N172: 21414 | O172: 352 | P172: 0 | Q172: -
E173: КАМАЗ-690650 ИФ-300С-1с п/п НЕФАЗ-9334 | F173: 151 | G173: 413.88 | H173: 27.37 | I173: - | M173: Краны на пневмоколесном ходу при работе на гидроэнергетическом строительстве 40 т | N173: 21415 | O173: 426.84 | P173: 0 | Q173: -
E174: Кароса С-735 | F174: 152 | G174: 384.7 | H174: 17.15 | I174: - | M174: Краны на пневмоколесном ходу при работе на гидроэнергетическом строительстве 63 т | N174: 21416 | O174: 475.9 | P174: 0 | Q174: -
E175: Кароса Ц-934 | F175: 153 | G175: 370.81 | H175: 15.91 | I175: - | M175: Краны на пневмоколесном ходу при работе на других видах строительства (кроме магистральных трубопроводов) 100 т | N175: 21442 | O175: 905.44 | P175: 0 | Q175: -
E176: КЗКТ-7428-0011 ЧМЗАП -9990 72 тн | F176: 154 | G176: 654.2 | H176: 83.51 | I176: - | M176: Краны на пневмоколесном ходу при работе на других видах строительства (кроме магистральных трубопроводов) 16 т | N176: 21438 | O176: 347.71 | P176: 0 | Q176: -
E177: КЗКТ-7428-011 с/т с КЗКТ-9101 замена 53,5 т | F177: 155 | G177: 620.75 | H177: 81.3 | I177: - | M177: Краны на пневмоколесном ходу при работе на других видах строительства (кроме магистральных трубопроводов) 25 т | N177: 21439 | O177: 322.56 | P177: 0 | Q177: -
E178: КРАЗ-250 | F178: 156 | G178: 313.08 | H178: 16.1 | I178: - | M178: Краны на пневмоколесном ходу при работе на других видах строительства (кроме магистральных трубопроводов) 40 т | N178: 21440 | O178: 517.8 | P178: 0 | Q178: -
E179: КРАЗ-250 АНЦ -320 | F179: 157 | G179: 410.65 | H179: 18.67 | I179: - | M179: Краны на пневмоколесном ходу при работе на других видах строительства (кроме магистральных трубопроводов) 63 т | N179: 21441 | O179: 562.82 | P179: 0 | Q179: -
E180: КРАЗ-250 АЦ-12 | F180: 158 | G180: 358.73 | H180: 18.73 | I180: - | M180: Краны на пневмоколесном ходу при работе на монтаже технологического оборудования 100 т | N180: 21405 | O180: 922.56 | P180: 0 | Q180: -
E181: КРАЗ-250 АЦН-12С | F181: 159 | G181: 358.73 | H181: 18.73 | I181: - | M181: Краны на пневмоколесном ходу при работе на монтаже технологического оборудования 16 т | N181: 21401 | O181: 342.9 | P181: 0 | Q181: -
E182: КРАЗ-250 ППУ-1600/100 | F182: 160 | G182: 465.38 | H182: 18.18 | I182: - | M182: Краны на пневмоколесном ходу при работе на монтаже технологического оборудования 25 т | N182: 21402 | O182: 410.95 | P182: 0 | Q182: -
E183: КРАЗ-250 СД-9/101 | F183: 161 | G183: 502.88 | H183: 20.84 | I183: - | M183: Краны на пневмоколесном ходу при работе на монтаже технологического оборудования 40 т | N183: 21403 | O183: 497.43 | P183: 0 | Q183: -
E184: КРАЗ-250 СКС-10/111 | F184: 162 | G184: 502.88 | H184: 20.84 | I184: - | M184: Краны на пневмоколесном ходу при работе на монтаже технологического оборудования 63 т | N184: 21404 | O184: 585.64 | P184: 0 | Q184: -
E185: КРАЗ-250 УНБ-160/32 | F185: 163 | G185: 410.65 | H185: 18.81 | I185: - | M185: Краны на пневмоколесном ходу при работе на сооружении магистральных трубопроводов 16 т | N185: 21427 | O185: 382.22 | P185: 0 | Q185: -
E186: КРАЗ-250 УНБ-160/40 | F186: 164 | G186: 410.65 | H186: 18.81 | I186: - | M186: Краны на пневмоколесном ходу при работе на сооружении магистральных трубопроводов 25 т | N186: 21428 | O186: 452.63 | P186: 0 | Q186: -
E187: КРАЗ-250 фискарс замена | F187: 165 | G187: 534.28 | H187: 18.28 | I187: - | M187: Краны на пневмоколесном ходу при работе на сооружении магистральных трубопроводов 40 т | N187: 21429 | O187: 538.71 | P187: 0 | Q187: -
E188: КРАЗ-250 ЦА-320 | F188: 166 | G188: 410.65 | H188: 18.67 | I188: - | M188: Краны на тракторе 121 (165) кВт (л.с.) 10 т (прицепные) | N188: 160202 | O188: 185.01 | P188: 0 | Q188: -
E189: КРАЗ-255 АДПМ-12/150 | F189: 167 | G189: 447.9 | H189: 20.11 | I189: - | M189: Краны на тракторе 121 (165) кВт (л.с.) 5 т | N189: 160201 | O189: 324.22 | P189: 0 | Q189: -
E190: КРАЗ-255 АНР-1 | F190: 168 | G190: 350.19 | H190: 21.71 | I190: - | M190: Краны установщики на тракторе 121 (165) кВт (л.с.) 12 т | N190: 160301 | O190: 347.39 | P190: 0 | Q190: -
E191: КРАЗ-255 бал.тягач. замена | F191: 169 | G191: 387.19 | H191: 25.79 | I191: - | M191: Краны-трубоукладчики грузоподъемностью 12,5 т | N191: 150702 | O191: 314.41 | P191: 0 | Q191: -
E192: КРАЗ-255 ППУ-1600/100 | F192: 170 | G192: 462.83 | H192: 20.43 | I192: - | M192: Краны-трубоукладчики грузоподъемностью 35 т | N192: 150703 | O192: 368.21 | P192: 0 | Q192: -
E193: КРАЗ-255 фискарс | F193: 171 | G193: 507.55 | H193: 20.43 | I193: - | M193: Краны-трубоукладчики грузоподъемностью 50 т | N193: 150704 | O193: 1204.44 | P193: 0 | Q193: -
E194: КРАЗ-255Б1 с/т 39,9 тн | F194: 172 | G194: 387.19 | H194: 25.79 | I194: - | M194: Краны-трубоукладчики грузоподъемностью 6,3 т | N194: 150701 | O194: 356.1 | P194: 0 | Q194: -
E195: КРАЗ-260 LIV-24.81 | F195: 173 | G195: 539.73 | H195: 20.43 | I195: - | M195: Краны-трубоукладчики грузоподъемностью 63-90 т | N195: 150705 | O195: 977.15 | P195: 0 | Q195: -
E196: КРАЗ-260 К-120 гидроман. замена | F196: 174 | G196: 544.02 | H196: 18.3 | I196: - | M196: Кусторезы навесные на тракторе 118 (160) кВт (л.с.) с гидравлическим управлением | N196: 90602 | O196: 168.32 | P196: 0 | Q196: -
E197: КРАЗ-260 ППУ-1600/100 | F197: 175 | G197: 462.83 | H197: 20.43 | I197: - | M197: Кусторезы навесные на тракторе 79 (108) кВт (л.с.) с гидравлическим управлением | N197: 90601 | O197: 220.63 | P197: 0 | Q197: -
E198: КРАЗ-260 ППЦ-23 | F198: 176 | G198: 410.44 | H198: 28.8 | I198: - | M198: Лебедки тяговым усилием 1471,5 (150) кН (т) | N198: 153200 | O198: 2139.02 | P198: 0 | Q198: -
E199: КРАЗ-260 с ЧМЗАП-99865 Е | F199: 177 | G199: 407.69 | H199: 28.51 | I199: - | M199: Лыжи самосвал прицепные | N199: 81900 | O199: 22.95 | P199: 0 | Q199: -
E200: КРАЗ-260 с/т ЧМЗАП-93853 | F200: 178 | G200: 387.19 | H200: 25.79 | I200: - | M200: Машины бурильно-крановые на автомобиле глубиной бурения 3,5 м | N200: 160402 | O200: 290.49 | P200: 0 | Q200: -
E201: КРАЗ-260 фискарс | F201: 179 | G201: 507.55 | H201: 20.43 | I201: - | M201: Машины бурильно-крановые на тракторе 66 (90) кВт (л.с.) глубиной бурения 1,5-3 м | N201: 160401 | O201: 339.79 | P201: 0 | Q201: -
E202: КРАЗ-260Г ИФ-300 АТ-8 | F202: 180 | G202: 539.73 | H202: 20.43 | I202: - | M202: Машины бурильные на тракторе 85 (115) кВт (л.с.) глубиной бурения 3,5 м | N202: 160501 | O202: 350.46 | P202: 0 | Q202: -
E203: КРАЗ-260Г ИФ-300С | F203: 181 | G203: 523.64 | H203: 20.43 | I203: - | M203: Машины для установки столбиков ограждения | N203: 90800 | O203: 197.52 | P203: 0 | Q203: -
E204: КРАЗ-63221 АТЭ-8 М HIAB-200 C | F204: 182 | G204: 539.73 | H204: 20.43 | I204: - | M204: Машины камнеуборочные | N204: 90900 | O204: 29.07 | P204: 0 | Q204: -
E205: КРАЗ-63221 ИФ-300С-08 замена | F205: 183 | G205: 507.56 | H205: 20.43 | I205: - | M205: Машины лесопосадочные (без трактора) | N205: 91000 | O205: 19.96 | P205: 0 | Q205: -
E206: КРАЗ-6446 с ЧМЗАП-99865 Е | F206: 184 | G206: 407.69 | H206: 28.51 | I206: - | M206: Мотокусторезы 2,6 (3,5) кВт (л.с.) | N206: 90700 | O206: 200.49 | P206: 0 | Q206: -
... 194 more rows

Sheet вахтовая надбавка
A1: 25 | B1: 50 | C1: 275 | D1: 125 | E1: 125
A2: 19FE1FB4-CB97-4F03-8416-E94F392A4DB0 | E2: ='Ежеднев. возка и перевозка вахт'!N6 -> 2000350438 (680-20-КС(ТЗ))
A3: 3EA88FC0-1291-4E86-B96F-F502A2C6EA3D | B3: Выплаты, связанные с вахтовым методом выполнения работ
B4: Строительство объектов энергетики Правдинского региона
C6: Заказчик ООО "РН-Юганскнефтегаз"
B8: Исходные данные
B10: № п/п | C10: Наименование показателя/статьи затрат (обозначение) | D10: Ед. изм | E10: Основные данные с ПОС, ТЗ ВЛ 6 кВ на куст 3129.1 (габ.110 кВ) | F10: Основные данные с ПОС, ТЗ ВЛ 6 кВ на куст 3129.2 (габ.6 кВ)
E11: Значение | F11: Значение
B12: 1 | C12: 2 | D12: 3 | E12: 4 | F12: 4
B13: 1 | C13: Данные ПОС
B14: 1.1. | C14: Продолжительность строительства, (Тдн) | D14: календ. дни | E14: 43 | F14: 41
B15: 1.2. | C15: Общее количество дней нахождения работников в пути в обе стороны, (Тдн.п.) | D15: календ. дни | E15: 2 | F15: 2
B16: 1.3. | C16: Среднесписочная численность вахтовых работников, единовременно находящихся на вахте, за исключением персонала, обслуживающих вахтовый поселок (Счел) | D16: чел. | E16: 7 | F16: 4
B17: 1.4. | C17: Продолжительность вахты (Вдн) (вахта 15 дней х 15 дней) | D17: календ. дни | E17: 15 | F17: 15
B18: 1.5. | C18: Продолжнительность рабочей смены на вахте (Вр.с.) | D18: час | E18: 11 | F18: 11
B19: 1.6. | C19: Продолжнительность рабочей недели на вахте (Вр.н.) | D19: раб.дни | E19: 6 | F19: 6
B20: 1.7. | C20: Количество вахтовых потоков (Nв.п.) | D20: поток | E20: 2 | F20: 2
B21: 2 | C21: Производственный календарь
B22: 2.1. | C22: Нормальная продолжительность рабочего дня (Вн.р.д.) | D22: раб.час | E22: 8 | F22: 8
B23: 2.2. | C23: Нормальная продолжительность рабочего времени в году, количество рабочих часов (Вн.год) | D23: раб.час | E23: =1972/12*(Param1_1/(365/12)) -> 232.3178082 | F23: =1972/12*(Param1_1/(365/12)) -> 232.3178082
B24: 3 | C24: Налоговый кодекс РФ
B25: 3.1. | C25: Обязательные отчисления страховых взносов (Ос.в.) | D25: %
B26: 4 | C26: Исходные данные Заказчика для составления сметной документации
B27: 4.1. | C27: Размер суточных в период нахождения работников в пути, (Цсут) | D27: руб/сутки
B28: 4.2. | C28: Учетный период | D28: год | E28: 1 | F28: 1
B29: 4.3. | C29: Индекс перевода в текущие цены на прочие работы и затраты | E29: =НМЦ!K234 -> 0 | F29: =НМЦ!K234 -> 0
B30: 4.4. | C30: Размер средней дневной тарифной ставки вахтовых работников исходя из 8-часовой продолжительности рабочего дня (ТСср.дн.) | D30: руб/день
B32: Расчет затрат
B34: № п/п | C34: Наименование показателя/статьи затрат (обозначение) | D34: Ед. изм | E34: Значение | F34: Значение
B35: 1 | C35: 2 | D35: 3 | E35: 4 | F35: 4
B36: 1 | C36: Продолжительность вахты с учетом времени отдыха, приходящегося на данный период (Внед) | D36: неделя | E36: =ROUND(E17/7,2) -> 2.14 | F36: =ROUND(F17/7,2) -> 2.14
B37: 2 | C37: Количество вахтовых циклов (ВЦ) | D37: вахтовый цикл | E37: =12*(Param1_1/12)/E17 -> 2.866666667 | F37: =12*(Param1_1/12)/F17 -> 2.866666667
B38: 3 | C38: Надбавка за вахтовый метод работы (Нвм) | D38: руб. | E38: =ROUND(E27*E16*(E14+E15*E37),0) -> 0 | F38: =ROUND(F27*F16*(F14+F15*F37),0) -> 0
B39: 4 | C39: Затраты на выплаты за каждый день нахождения в пути от пункта сбора до места выполнения работ и обратно (Звп) | D39: руб. | E39: =ROUND(E30*E16*E37*E15,0) -> 0 | F39: =ROUND(F30*F16*F37*F15,0) -> 0
B40: 5 | C40: Затраты на оплату дней междувахтового отдыха (Змо) | D40: руб. | E40: =IF(E16*E30*((E19*E18*E36*E37-E23*E20)/E22)>0, E16*E30*((E19*E18*E36*E37-E23*E20)/E22), 0) -> 0 | F40: =IF(F16*F30*((F19*F18*F36*F37-F23*F20)/F22)>0, F16*F30*((F19*F18*F36*F37-F23*F20)/F22), 0) -> 0
B41: 6 | C41: Затраты на оплату дней междувахтового отдыха с учетом обязательных отчислений страховых взносов (Змо.с.в.) | D41: руб. | E41: =E40+E40*E25 -> 0 | F41: =F40+F40*F25 -> 0
B42: 7 | C42: Всего по расчету в ценах на 01.01.2000 | D42: руб. | E42: =(E38+E39+E41)/E29 ->  | F42: =(F38+F39+F41)/F29 -> 
B43: 8 | C43: Всего по расчету в текущем уровне цен | D43: руб. | E43: =E42*E29 ->  | F43: =F42*F29 -> 
C45: Затраты компенсируются по фактическим затратам на основании подтверждающих документов.

Sheet Перебазировка
S2: 25
A3: 95B8996E-A92E-40F2-8A9B-251AB1F004D4
B4: Перебазировка
B5: ='Исходные данные'!D19 -> Строительство объектов энергетики Правдинского региона
C6: Шифр проекта | D6: 1980615/0880Д | R6: 2000350438 (680-20-КС(ТЗ))
C7: Разработчик проекта | D7: ООО «РН-УфаНИПИнефть»
C8: Заказчик | D8: ООО "РН-Юганскнефтегаз"
B10: № п/п | C10: Наименование показателя | D10: Шифр норматива | E10: Грузоподъемность, т | F10: Количество техники | G10: Расстояние перебазировки до объекта, км | H10: Количество рейсов для завоза техники на объект | I10: Средняя скорость движения автомобиля , км/ч | K10: Тариф за 1 м-часа, руб. | L10: Тариф за 1 км пробега, руб. | M10: Время затраченное на 1 рейс, ч | N10: Время затраченное на все рейсы, ч | O10: Суммарный пробег, км | P10: Стоимость м-часов, руб. | Q10: Стоимость км., руб. | R10: Итого, руб.
I11: при порожнем пробеге (для сед. тягача) | J11: при движении с грузом (для сед. тягача)
B12: 1 | C12: 2 | D12: 3 | E12: 4 | F12: 5 | G12: 6 | H12: 7 | I12: 8 | J12: 9 | K12: 10 | L12: 11 | M12: 12 | N12: 13 | O12: 14 | P12: 15 | Q12: 16 | R12: 17
A13: object_code | B13: C10 | C13: C11 | D13: C12 | E13: C13 | F13: C14 | G13: C15 | H13: C16 | I13: C17 | J13: C18 | K13: C19 | L13: C20 | M13: C21 | N13: C22 | O13: C23 | P13: C24 | Q13: C25 | R13: C26
A14: 5D57A968-2E2D-47A8-B7F4-6C635AF194C3 | B14: ВЛ 6 кВ на куст 3129.1 (габ.110 кВ) Приразломное м/р. Правдинский (КС00091309) | C14: ВЛ 6 кВ на куст 3129.1 (габ.110 кВ) Приразломное м/р. Правдинский (КС00091309) | D14: ВЛ 6 кВ на куст 3129.1 (габ.110 кВ) Приразломное м/р. Правдинский (КС00091309) | E14: ВЛ 6 кВ на куст 3129.1 (габ.110 кВ) Приразломное м/р. Правдинский (КС00091309) | F14: ВЛ 6 кВ на куст 3129.1 (габ.110 кВ) Приразломное м/р. Правдинский (КС00091309) | G14: ВЛ 6 кВ на куст 3129.1 (габ.110 кВ) Приразломное м/р. Правдинский (КС00091309) | H14: ВЛ 6 кВ на куст 3129.1 (габ.110 кВ) Приразломное м/р. Правдинский (КС00091309) | I14: ВЛ 6 кВ на куст 3129.1 (габ.110 кВ) Приразломное м/р. Правдинский (КС00091309) | J14: ВЛ 6 кВ на куст 3129.1 (габ.110 кВ) Приразломное м/р. Правдинский (КС00091309) | K14: ВЛ 6 кВ на куст 3129.1 (габ.110 кВ) Приразломное м/р. Правдинский (КС00091309) | L14: ВЛ 6 кВ на куст 3129.1 (габ.110 кВ) Приразломное м/р. Правдинский (КС00091309) | M14: ВЛ 6 кВ на куст 3129.1 (габ.110 кВ) Приразломное м/р. Правдинский (КС00091309) | N14: ВЛ 6 кВ на куст 3129.1 (габ.110 кВ) Приразломное м/р. Правдинский (КС00091309) | O14: ВЛ 6 кВ на куст 3129.1 (габ.110 кВ) Приразломное м/р. Правдинский (КС00091309) | P14: ВЛ 6 кВ на куст 3129.1 (габ.110 кВ) Приразломное м/р. Правдинский (КС00091309) | Q14: ВЛ 6 кВ на куст 3129.1 (габ.110 кВ) Приразломное м/р. Правдинский (КС00091309) | R14: ВЛ 6 кВ на куст 3129.1 (габ.110 кВ) Приразломное м/р. Правдинский (КС00091309)
A15: d | B15: Расстояние перебазировки до объекта | G15: 221
A16: q | B16: 1. Эксплуатация седельного тягача | R16: =ROUND(SUM(R17:R18),2) -> 0
B17: 1 | C17: КЗКТ-7428-0011 ЧМЗАП -9990 72 тн | D17: 154 | E17: - | F17: 1 | G17: =G15 -> 221 | H17: 3 | I17: 60 | J17: 38 | M17: =G17/I17+G17/J17 -> 9.499122807 | N17: =M17*H17 -> 28.49736842 | O17: =G17*H17*2 -> 1326 | P17: =ROUND(N17*K17,2) -> 0 | Q17: =ROUND(O17*L17,2) -> 0 | R17: =ROUND(P17+Q17,2) -> 0
B18: 2 | C18: УРАЛ-44202 с ЧМЗАП-9906, УАТ-99402 18,5 тн | D18: 334 | E18: - | F18: 1 | G18: =G15 -> 221 | H18: 1 | I18: 60 | J18: 38 | M18: =G18/I18+G18/J18 -> 9.499122807 | N18: =M18*H18 -> 9.499122807 | O18: =G18*H18*2 -> 442 | P18: =ROUND(N18*K18,2) -> 0 | Q18: =ROUND(O18*L18,2) -> 0 | R18: =ROUND(P18+Q18,2) -> 0
A19: i | B19: 1.1. Эксплуатация седельного тягача (под погрузкой/разгрузкой)
A20: w | B20: 2. Строительная техника при перебазировке на трале (седельном тягаче) | R20: =ROUND(SUM(R21:R25),2) -> 0
B21: 1 | C21: Копры гусеничные для свай длиной до 12 м | D21: 140201 | E21: - | F21: 1 | G21: =G15 -> 221 | H21: =F21 -> 1 | I21: 0 | J21: 38 | M21: =G21/J21 -> 5.815789474 | N21: =M21*H21 -> 5.815789474 | O21: =G21*H21 -> 221 | P21: =ROUND(N21*K21,2) -> 0 | Q21: 0 | R21: =ROUND(P21+Q21,2) -> 0
B22: 2 | C22: Дизель-молоты 3,5 т | D22: 140505 | E22: - | F22: 1 | G22: =G15 -> 221 | H22: =F22 -> 1 | I22: 0 | J22: 38 | M22: 5.815789474 | N22: 5.815789474 | O22: 221 | P22: 0 | Q22: 0 | R22: 0
B23: 3 | C23: Бульдозеры при работе на других видах строительства (кроме водохозяйственного) 96 (130) кВт (л.с.) | D23: 70150 | E23: - | F23: 2 | G23: =G15 -> 221 | H23: 1 | I23: 0 | J23: 38 | M23: 5.815789474 | N23: 5.815789474 | O23: 221 | P23: 0 | Q23: 0 | R23: 0
B24: 4 | C24: Экскаваторы одноковшовые дизельные на гусеничном ходу при работе на других видах строительства (кроме водохозяйственного) 0,4 м3 | D24: 60246 | E24: - | F24: 1 | G24: =G15 -> 221 | H24: =F24 -> 1 | I24: 0 | J24: 38 | M24: 5.815789474 | N24: 5.815789474 | O24: 221 | P24: 0 | Q24: 0 | R24: 0
B25: 5 | C25: Агрегаты сварочные передвижные с номинальным сварочным током 250-400 А с дизельным двигателем | D25: 40202 | E25: - | F25: 2 | G25: =G15 -> 221 | H25: 1 | I25: 0 | J25: 38 | M25: 5.815789474 | N25: 5.815789474 | O25: 221 | P25: 0 | Q25: 0 | R25: 0
A26: e | B26: 3. Перебазировка техники своим ходом | R26: =ROUND(SUM(R27:R27),2) -> 0
B27: 1 | C27: КАМАЗ-55111 | D27: 138 | E27: - | F27: 1 | G27: =G15 -> 221 | H27: 1 | I27: 0 | J27: 49 | M27: =G27/J27 -> 4.510204082 | N27: =M27*H27 -> 4.510204082 | O27: =G27*H27 -> 221 | P27: =ROUND(N27*K27,2) -> 0 | Q27: 0 | R27: =ROUND(P27+Q27,2) -> 0
A28: r | B28: 4. Сопровождение груза до объекта | R28: =ROUND(SUM(R29:R29),2) -> 0
B29: 1 | C29: ВАЗ-21310 | D29: 14 | E29: - | F29: 1 | G29: =G15 -> 221 | H29: 3 | I29: 60 | J29: 38 | M29: =G29/I29+G29/J29 -> 9.499122807 | N29: =M29*H29 -> 28.49736842 | O29: =G29*H29*2 -> 1326 | P29: =ROUND(N29*K29,2) -> 0 | Q29: =ROUND(O29*L29,2) -> 0 | R29: =ROUND(P29+Q29,2) -> 0
A30: d | B30: Расстояние перебазировки до объекта на обвязку | G30: 0
A31: q | B31: 1. Эксплуатация седельного тягача
A32: i | B32: 1.1. Эксплуатация седельного тягача (под погрузкой/разгрузкой)
A33: w | B33: 2. Строительная техника при перебазировке на трале (седельном тягаче)
A34: ee | B34: 3. Перебазировка техники своим ходом
A35: r | B35: 4. Сопровождение груза до объекта
A36: t | B36: ИТОГО перебазировка техники на объект | R36: =R16+R19+R20+R26+R28+R31+R32+R33+R34+R35 -> 0
A37: u | B37: ВСЕГО с учетом удельного веса затрат на перебазировку, учтенный в индексе к ЭММ с учетом зимнего удорожания | O37: =НМЦ!$K$101 -> 0 | P37: ='Исходные данные'!$AL$25 -> 0.0809 | Q37: =IF($G$15=0,0,((SUM(НМЦ!$AA18:$AA28)+SUM(НМЦ!$AA48:$AA78))*(1+$O$37)+(SUM(НМЦ!$AA108:$AA111)))*$P$37)*1000 -> 0 | R37: =R36-Q37 -> 0
A38: y | B38: ВСЕГО перебазировка техники на объект с учетом лимита | Q38: =(НМЦ!V181+НМЦ!N181*НМЦ!K213)*0.2%*1000 -> 0 | R38: =ROUND(IF(R37<0,0,MIN(R37,Q38)),2) -> 0
A39: AEEAB128-A9D6-4DE1-ACE9-6CD791FCF82A | B39: ВЛ 6 кВ на куст 3129.2 (габ. 6 кВ) Приразломное м/р. Правдинский (КС00091313) | C39: ВЛ 6 кВ на куст 3129.2 (габ. 6 кВ) Приразломное м/р. Правдинский (КС00091313) | D39: ВЛ 6 кВ на куст 3129.2 (габ. 6 кВ) Приразломное м/р. Правдинский (КС00091313) | E39: ВЛ 6 кВ на куст 3129.2 (габ. 6 кВ) Приразломное м/р. Правдинский (КС00091313) | F39: ВЛ 6 кВ на куст 3129.2 (габ. 6 кВ) Приразломное м/р. Правдинский (КС00091313) | G39: ВЛ 6 кВ на куст 3129.2 (габ. 6 кВ) Приразломное м/р. Правдинский (КС00091313) | H39: ВЛ 6 кВ на куст 3129.2 (габ. 6 кВ) Приразломное м/р. Правдинский (КС00091313) | I39: ВЛ 6 кВ на куст 3129.2 (габ. 6 кВ) Приразломное м/р. Правдинский (КС00091313) | J39: ВЛ 6 кВ на куст 3129.2 (габ. 6 кВ) Приразломное м/р. Правдинский (КС00091313) | K39: ВЛ 6 кВ на куст 3129.2 (габ. 6 кВ) Приразломное м/р. Правдинский (КС00091313) | L39: ВЛ 6 кВ на куст 3129.2 (габ. 6 кВ) Приразломное м/р. Правдинский (КС00091313) | M39: ВЛ 6 кВ на куст 3129.2 (габ. 6 кВ) Приразломное м/р. Правдинский (КС00091313) | N39: ВЛ 6 кВ на куст 3129.2 (габ. 6 кВ) Приразломное м/р. Правдинский (КС00091313) | O39: ВЛ 6 кВ на куст 3129.2 (габ. 6 кВ) Приразломное м/р. Правдинский (КС00091313) | P39: ВЛ 6 кВ на куст 3129.2 (габ. 6 кВ) Приразломное м/р. Правдинский (КС00091313) | Q39: ВЛ 6 кВ на куст 3129.2 (габ. 6 кВ) Приразломное м/р. Правдинский (КС00091313) | R39: ВЛ 6 кВ на куст 3129.2 (габ. 6 кВ) Приразломное м/р. Правдинский (КС00091313)
A40: d | B40: Расстояние перебазировки до объекта | G40: 221
A41: q | B41: 1. Эксплуатация седельного тягача | R41: =ROUND(SUM(R42:R43),2) -> 0
B42: 1 | C42: КЗКТ-7428-0011 ЧМЗАП -9990 72 тн | D42: 154 | E42: - | F42: 1 | G42: =G40 -> 221 | H42: 1 | I42: 60 | J42: 38 | M42: =G42/I42+G42/J42 -> 9.499122807 | N42: =M42*H42 -> 9.499122807 | O42: =G42*H42*2 -> 442 | P42: =ROUND(N42*K42,2) -> 0 | Q42: =ROUND(O42*L42,2) -> 0 | R42: =ROUND(P42+Q42,2) -> 0
B43: 2 | C43: УРАЛ-44202 с ЧМЗАП-9906, УАТ-99402 18,5 тн | D43: 334 | E43: - | F43: 1 | G43: =G40 -> 221 | H43: 3 | I43: 60 | J43: 38 | M43: =G43/I43+G43/J43 -> 9.499122807 | N43: =M43*H43 -> 28.49736842 | O43: =G43*H43*2 -> 1326 | P43: =ROUND(N43*K43,2) -> 0 | Q43: =ROUND(O43*L43,2) -> 0 | R43: =ROUND(P43+Q43,2) -> 0
A44: i | B44: 1.1. Эксплуатация седельного тягача (под погрузкой/разгрузкой)
A45: w | B45: 2. Строительная техника при перебазировке на трале (седельном тягаче) | R45: =ROUND(SUM(R46:R50),2) -> 0
B46: 1 | C46: Копры гусеничные для свай длиной до 12 м | D46: 140201 | E46: - | F46: 1 | G46: =G40 -> 221 | H46: =F46 -> 1 | I46: 0 | J46: 38 | M46: =G46/J46 -> 5.815789474 | N46: =M46*H46 -> 5.815789474 | O46: =G46*H46 -> 221 | P46: =ROUND(N46*K46,2) -> 0 | Q46: 0 | R46: =ROUND(P46+Q46,2) -> 0
B47: 2 | C47: Дизель-молоты 3,5 т | D47: 140505 | E47: - | F47: 1 | G47: =G40 -> 221 | H47: =F47 -> 1 | I47: 0 | J47: 38 | M47: 5.815789474 | N47: 5.815789474 | O47: 221 | P47: 0 | Q47: 0 | R47: 0
B48: 3 | C48: Бульдозеры при работе на других видах строительства (кроме водохозяйственного) 96 (130) кВт (л.с.) | D48: 70150 | E48: - | F48: 2 | G48: =G40 -> 221 | H48: 1 | I48: 0 | J48: 38 | M48: 5.815789474 | N48: 5.815789474 | O48: 221 | P48: 0 | Q48: 0 | R48: 0
B49: 4 | C49: Экскаваторы одноковшовые дизельные на гусеничном ходу при работе на других видах строительства (кроме водохозяйственного) 0,4 м3 | D49: 60246 | E49: - | F49: 1 | G49: =G40 -> 221 | H49: =F49 -> 1 | I49: 0 | J49: 38 | M49: 5.815789474 | N49: 5.815789474 | O49: 221 | P49: 0 | Q49: 0 | R49: 0
B50: 5 | C50: Агрегаты сварочные передвижные с номинальным сварочным током 250-400 А с дизельным двигателем | D50: 40202 | E50: - | F50: 2 | G50: =G40 -> 221 | H50: 1 | I50: 0 | J50: 38 | M50: 5.815789474 | N50: 5.815789474 | O50: 221 | P50: 0 | Q50: 0 | R50: 0
A51: e | B51: 3. Перебазировка техники своим ходом | R51: =ROUND(SUM(R52:R52),2) -> 0
B52: 1 | C52: КАМАЗ-55111 | D52: 138 | E52: - | F52: 1 | G52: =G40 -> 221 | H52: =F52 -> 1 | I52: 0 | J52: 49 | M52: =G52/J52 -> 4.510204082 | N52: =M52*H52 -> 4.510204082 | O52: =G52*H52 -> 221 | P52: =ROUND(N52*K52,2) -> 0 | Q52: 0 | R52: =ROUND(P52+Q52,2) -> 0
A53: r | B53: 4. Сопровождение груза до объекта | R53: =ROUND(SUM(R54:R54),2) -> 0
B54: 1 | C54: ВАЗ-21310 | D54: 14 | E54: - | F54: 1 | G54: =G40 -> 221 | H54: 3 | I54: 60 | J54: 38 | M54: =G54/I54+G54/J54 -> 9.499122807 | N54: =M54*H54 -> 28.49736842 | O54: =G54*H54*2 -> 1326 | P54: =ROUND(N54*K54,2) -> 0 | Q54: =ROUND(O54*L54,2) -> 0 | R54: =ROUND(P54+Q54,2) -> 0
A55: d | B55: Расстояние перебазировки до объекта на обвязку | G55: 0
A56: q | B56: 1. Эксплуатация седельного тягача
A57: i | B57: 1.1. Эксплуатация седельного тягача (под погрузкой/разгрузкой)
A58: w | B58: 2. Строительная техника при перебазировке на трале (седельном тягаче)
A59: ee | B59: 3. Перебазировка техники своим ходом
A60: r | B60: 4. Сопровождение груза до объекта
A61: t | B61: ИТОГО перебазировка техники на объект | R61: =R41+R44+R45+R51+R53+R56+R57+R58+R59+R60 -> 0
A62: u | B62: ВСЕГО с учетом удельного веса затрат на перебазировку, учтенный в индексе к ЭММ с учетом зимнего удорожания | O62: =НМЦ!$K$102 -> 0 | P62: ='Исходные данные'!$AL$26 -> 0.0809 | Q62: =IF($G$40=0,0,((SUM(НМЦ!$AA30:$AA37)+SUM(НМЦ!$AA80:$AA91))*(1+$O$62)+(0))*$P$62)*1000 -> 0 | R62: =R61-Q62 -> 0
A63: y | B63: ВСЕГО перебазировка техники на объект с учетом лимита | Q63: =(НМЦ!V182+НМЦ!N182*НМЦ!K213)*0.21%*1000 -> 0 | R63: =ROUND(IF(R62<0,0,MIN(R62,Q63)),2) -> 0

Sheet materialTemplate (hidden)
A2: 95B8996E-A92E-40F2-8A9B-251AB1F004D4 | C2: ='Исходные данные'!lotNumber -> 2000350438 (680-20-КС(ТЗ)) | AB2: Ценообразующие | AY2: 5.50
C3: Реестр стоимости основных материалов и оборудования | AB3: Минимум | AC3: 0.8
C4: ='Исходные данные'!D19 -> Строительство объектов энергетики Правдинского региона | AB4: Максимум | AC4: 0.8
B6: № п/п | C6: Тех. номер объекта | D6: Наименование объекта | E6: Индекс перехода | F6: % Транс. расх. Авто | H6: % Загот. склад. расх. | K6: Сумма Заказчика | L6: Сумма заказчика РВ | M6: Сумма подрядчика | N6: Сумма Подрядчика РВ | O6: Сумма ЦО подрядчик | P6: Доля ЦО в чистых МТР подрядчик | Q6: Сумма не ЦО подрядчик | R6: Сумма чистые подрядчик | S6: Сумма перенесенные МТР в ПП | T6: Сумма ЦО в чистых МТР подрядчик
F7: Рыночные (Ц) | G7: ССЦ (В) | H7: Материалы | I7: Металоконстр. | J7: Оборудование
B8: C10 | C8: C11 | D8: C12 | E8: C13 | F8: C14 | G8: C15 | H8: C16 | I8: C17 | J8: C18 | K8: C19 | L8: C20 | M8: C21 | N8: C22 | O8: C23 | P8: C24 | Q8: C25 | R8: C26 | S8: C27 | T8: C28
B9: Итого:
B11: № п/п | C11: Тех. номер объекта | D11: Наименование объекта | E11: № ЛСР | F11: Шифр ресурсов | Код ФСНБ1 | G11: Наименование материалов | Наименование материала/оборудования | H11: Ед. изм. | I11: Количество | J11: Цена за ед. | Сметная цена за ед.изм. в руб., без НДС в базовом уровне цен | K11: Сумма, руб. | L11: Поставщик | Заказчик/Подрядчик | M11: Цена за единицу заказчика, руб. | N11: Сумма заказчика, руб. | O11: Вид МТР | Материалы / Оборудование / Металлоконструкции | P11: Примечание | Q11: Наименование МТР входящих в состав комплектной поставки2 | R11: Класс груза | S11: Масса, тн | U11: Цена определена на основании (с указанием номера и даты обосновывающего документа) 3: | Y11: Наименование поставщика и его месторасположение | Z11: Наименование изготовителя и его месторасположение | AA11: Расчет отпускной цены | AC11: Отпускная цена за ед.изм. в руб., без НДС в текущем уровне цен | AD11: Ценообразующие | Вспомогательные | AE11: Дата установления цены | AF11: Базис поставки (в соответствии с Инкотермс-2010) | AG11: Наименование ст. отправления | AH11: Транспортные расходы, на ед. изм., руб. без НДС | AM11: Страхование, на ед. изм., в руб., без НДС | AN11: Тара, упаковка, реквизит4, на ед. изм., в руб., без НДС | AO11: Снабженческо-сбытовая надбавка 5, на ед. изм., в руб., без НДС | AP11: Таможенные расходы, на ед. изм., в руб., без НДС | AQ11: Комиссионные и агентские вознаграждения, на ед. изм., в руб., без НДС | AR11: Дополнительные расходы связанные с поставкой оборудования | AW11: Заготовительно-складские расходы, на ед. изм., в руб., без НДС8 | AX11: % | AY11: ИТОГО , за ед. изм., в руб., без НДС в текущем уровне цен | AZ11: ВСЕГО, в руб., без НДС | BA11: Справочно ВСЕГО по материалу, в руб., без НДС | BB11: Справочно ВСЕГО % по материалу | BC11: № страницы обосновывающего документа | BD11: Индикатор отношения текущей цены к уровню цен базового периода | BE11: Справочно: по данным Регионального ЦЦС9 | BG11: Примечание УЦП
S12: масса за ед.изм (тн) | T12: брутто | U12: Аналог | V12: Сметная цена на перевозку 1 тн груза в базисном уровне цен | W12: Тендерная документация | X12: Прайс-лист, коммерческое предложение, счет-фактура | AA12: Индекс перехода стоимости МТР в текущий уровень цен | AB12: Отпускная цена | AH12: ж/д | AI12: авто | AJ12: % | AK12: авиа | AL12: Водный транспорт | AR12: Комплектация оборудования, в руб., на ед. изм., без НДС6 | AS12: Комплект запасных частей оборудования, на ед. изм., в руб., без НДС6 | AT12: Шеф монтаж, на ед. изм., в руб., без НДС | AU12: Продление гарантии, на ед. изм., в руб., без НДС | AV12: Прочие расходы, на ед. изм., в руб., без НДС7 | BE12: Сметная цена за ед.изм. в руб., без НДС в уровне цен на дату разработки ССР | BF12: Сметная цена за ед.изм. в руб., без НДС в уровне цен на дату заполнения опросного листа
B13: Подрядчик
B14: Заказчик
B15: C10 | C15: C66 | D15: C67 | E15: C11 | F15: C12 | G15: C13 | H15: C14 | I15: C15 | J15: C16 | K15: C17 | L15: C18 | M15: C62 | N15: C63 | O15: C19 | P15: C64 | Q15: C20 | R15: C21 | S15: C22 | T15: C23 | U15: C24 | V15: C25 | W15: C26 | X15: C27 | Y15: C28 | Z15: C29 | AA15: C30 | AB15: C31 | AC15: C32 | AD15: C65 | AE15: C33 | AF15: C34 | AG15: C35 | AH15: C36 | AI15: C38 | AJ15: C39 | AK15: C40 | AL15: C42 | AM15: C44 | AN15: C45 | AO15: C46 | AP15: C47 | AQ15: C48 | AR15: C49 | AS15: C50 | AT15: C51 | AU15: C52 | AV15: C53 | AW15: C54 | AX15: C55 | AY15: C56 | AZ15: C57 | BA15: C68 | BB15: C69 | BC15: C58 | BD15: C59 | BE15: C60 | BF15: C61 | BG15: C70
C17: Примечание:
C18: 1.
C19: 2.
C20: 3.
C21: 4.
C22: 5.
C23: 6.
C24: 7.
I26: ='Исходные данные'!executor -> Ответственный исполнитель | K26: ='Исходные данные'!executorPosition -> Вед. Специалист ОСОЭ УКС | M26: ='Исходные данные'!executorFio -> Волостников Н.А.
K27: должность | M27: Ф.И.О.
I29: ='Исходные данные'!executor4 -> Ответственный исполнитель ОСП | K29: ='Исходные данные'!executor4Position -> Главный специалист | M29: ='Исходные данные'!executor4Fio -> Еременко С.В.
K30: должность | M30: Ф.И.О.
I32: ='Исходные данные'!executor3 -> Ответственный исполнитель ОЦП по КВ ТМЦ Подрядчика | K32: ='Исходные данные'!executor3Position -> Главный специалист | M32: ='Исходные данные'!executor3Fio -> Федотов Е.А.
K33: должность | M33: Ф.И.О.

Sheet ВМП по лоту
A3: 95B8996E-A92E-40F2-8A9B-251AB1F004D4
A4: 8F193146-8A78-4229-9809-46BC8B1F2ABB | F4: Расчет стоимости по МТР Подрядчика
D5: ='Исходные данные'!D19 -> Строительство объектов энергетики Правдинского региона
D6: Шифр проекта | E6: 1980615/0880Д
D7: Разработчик проекта | E7: ООО «РН-УфаНИПИнефть» | AS7: 2000350438 (680-20-КС(ТЗ))
D8: Заказчик | E8: ООО "РН-Юганскнефтегаз"
B10: № п/п | C10: Наименование объекта | D10: № ЛСР | E10: Шифр ресурсов | Код ФСНБ1 | F10: Наименование материалов | Наименование материала/оборудования | G10: Наименование МТР входящих в состав комплектной поставки2 | H10: Класс груза | I10: Ед. изм. | J10: Масса, тн | L10: Количество | M10: Цена определена на основании (с указанием номера и даты обосновывающего документа) 3: | Q10: Наименование поставщика и его месторасположение | R10: Наименование изготовителя и его месторасположение | S10: Цена за ед. | Сметная цена за ед.изм. в руб., без НДС в базовом уровне цен | T10: Расчет отпускной цены | U10: Отпускная цена за ед.изм. в руб., без НДС в текущем уровне цен | V10: Дата установления цены | W10: Базис поставки (в соответствии с Инкотермс-2010) | X10: Наименование ст. отправления | Y10: Транспортные расходы, на ед. изм., руб. без НДС | AC10: Страхование, на ед. изм., в руб., без НДС | AD10: Тара, упаковка, реквизит4, на ед. изм., в руб., без НДС | AE10: Снабженческо-сбытовая надбавка 5, на ед. изм., в руб., без НДС | AF10: Таможенные расходы, на ед. изм., в руб., без НДС | AG10: Комиссионные и агентские вознаграждения, на ед. изм., в руб., без НДС | AH10: Дополнительные расходы связанные с поставкой оборудования | AM10: Заготовительно-складские расходы, на ед. изм., в руб., без НДС8 | AN10: ИТОГО , за ед. изм., в руб., без НДС в текущем уровне цен | AO10: ВСЕГО, в руб., без НДС | AP10: № страницы обосновывающего документа | AQ10: Индикатор отношения текущей цены к уровню цен базового периода | AR10: Справочно: по данным Регионального ЦЦС9
J11: масса за ед.изм (тн) | K11: брутто | M11: Аналог | N11: Сметная цена на перевозку 1 тн груза в базисном уровне цен | O11: Тендерная документация | P11: Прайс-лист, коммерческое предложение, счет-фактура | T11: Индекс перехода стоимости МТР в текущий уровень цен | Y11: ж/д | Z11: авто | AA11: авиа | AB11: Водный транспорт | AH11: Комплектация оборудования, в руб., на ед. изм., без НДС6 | AI11: Комплект запасных частей оборудования, на ед. изм., в руб., без НДС6 | AJ11: Шеф монтаж, на ед. изм., в руб., без НДС | AK11: Продление гарантии, на ед. изм., в руб., без НДС | AL11: Прочие расходы, на ед. изм., в руб., без НДС7 | AR11: Сметная цена за ед.изм. в руб., без НДС в уровне цен на дату разработки ССР | AS11: Сметная цена за ед.изм. в руб., без НДС в уровне цен на дату заполнения опросного листа
B12: 1 | C12: 2 | D12: 3 | E12: 4 | F12: 5 | G12: 6 | H12: 7 | I12: 8 | J12: 9 | K12: 10 | L12: 11 | M12: 12 | N12: 13 | O12: 14 | P12: 15 | Q12: 16 | R12: 17 | S12: 18 | T12: 19 | U12: 20 | V12: 21 | W12: 22 | X12: 23 | Y12: 24 | Z12: 25 | AA12: 26 | AB12: 27 | AC12: 28 | AD12: 29 | AE12: 30 | AF12: 31 | AG12: 32 | AH12: 33 | AI12: 34 | AJ12: 35 | AK12: 36 | AL12: 37 | AM12: 38 | AN12: 39 | AO12: 40 | AP12: 41 | AQ12: 42 | AR12: 43 | AS12: 44
B13: C10 | C13: C67 | D13: C11 | E13: C12 | F13: C13 | G13: C20 | H13: C21 | I13: C14 | J13: C22 | K13: C23 | L13: C15 | M13: C24 | N13: C25 | O13: C26 | P13: C27 | Q13: C28 | R13: C29 | S13: C16 | T13: C30 | U13: C32 | V13: C33 | W13: C34 | X13: C35 | Y13: C36 | Z13: C38 | AA13: C40 | AB13: C42 | AC13: C44 | AD13: C45 | AE13: C46 | AF13: C47 | AG13: C48 | AH13: C49 | AI13: C50 | AJ13: C51 | AK13: C52 | AL13: C53 | AM13: C54 | AN13: C56 | AO13: C57 | AP13: C58 | AQ13: C59 | AR13: C60 | AS13: C61
B15: Раздел I. Ценообразующие материалы
A16: main_materials | B16: Материалы
B17: 1 | E17: 102-0008 | F17: Лесоматериалы круглые хвойных пород для строительства диаметром 14-24 см, длиной 3-6,5 м | I17: м3 | L17: =SUM(L18:L24) -> 3528.237844 | AO17: =SUM(AO18:AO24) -> 0
B18: 1 | C18: ВЛ 6 кВ на куст 3129.1 (габ.110 кВ) Приразломное м/р. Правдинский (КС00091309) | D18: ЛС 08-04-01-02 | E18: 102-0008 | F18: Лесоматериалы круглые хвойных пород для строительства диаметром 14-24 см, длиной 3-6,5 м | G18: - | I18: м3 | K18: - | L18: 1281.916615 | M18: - | O18: - | P18: - | R18: - | S18: 699.42 | V18: - | W18: - | X18: - | Z18: 0 | AC18: - | AD18: - | AE18: - | AF18: - | AG18: - | AH18: - | AI18: - | AJ18: - | AK18: - | AL18: - | AM18: 0 | AN18: =ROUND(U18+Y18+Z18+AA18+AB18+AM18,2) -> 0 | AO18: =ROUND(L18*AN18,2) -> 0 | AP18: - | AQ18: - | AR18: - | AS18: -
B19: 2 | C19: ВЛ 6 кВ на куст 3129.2 (габ. 6 кВ) Приразломное м/р. Правдинский (КС00091313) | D19: ЛС 08-04-02-01 | E19: 102-0008 | F19: Лесоматериалы круглые хвойных пород для строительства диаметром 14-24 см, длиной 3-6,5 м | G19: - | I19: м3 | K19: - | L19: 699.6738462 | M19: - | O19: - | P19: - | R19: - | S19: 699.42 | V19: - | W19: - | X19: - | Z19: 0 | AC19: - | AD19: - | AE19: - | AF19: - | AG19: - | AH19: - | AI19: - | AJ19: - | AK19: - | AL19: - | AM19: 0 | AN19: 0 | AO19: 0 | AP19: - | AQ19: - | AR19: - | AS19: -
B20: 3 | C20: ВЛ 6 кВ на куст 3129.1 (габ.110 кВ) Приразломное м/р. Правдинский (КС00091309) | D20: ЛС 08-04-01-03 | E20: 102-0008 | F20: Лесоматериалы круглые хвойных пород для строительства диаметром 14-24 см, длиной 3-6,5 м | G20: - | I20: м3 | K20: - | L20: 976.5 | M20: - | O20: - | P20: - | R20: - | S20: 699.42 | V20: - | W20: - | X20: - | Z20: 0 | AC20: - | AD20: - | AE20: - | AF20: - | AG20: - | AH20: - | AI20: - | AJ20: - | AK20: - | AL20: - | AM20: 0 | AN20: 0 | AO20: 0 | AP20: - | AQ20: - | AR20: - | AS20: -
B21: 4 | C21: ВЛ 6 кВ на куст 3129.1 (габ.110 кВ) Приразломное м/р. Правдинский (КС00091309) | D21: ЛС 08-04-01-04 | E21: 102-0008 | F21: Лесоматериалы круглые хвойных пород для строительства диаметром 14-24 см, длиной 3-6,5 м | G21: - | I21: м3 | K21: - | L21: 569.625 | M21: - | O21: - | P21: - | R21: - | S21: 699.42 | V21: - | W21: - | X21: - | Z21: 0 | AC21: - | AD21: - | AE21: - | AF21: - | AG21: - | AH21: - | AI21: - | AJ21: - | AK21: - | AL21: - | AM21: 0 | AN21: 0 | AO21: 0 | AP21: - | AQ21: - | AR21: - | AS21: -
B22: 5 | C22: ВЛ 6 кВ на куст 3129.1 (габ.110 кВ) Приразломное м/р. Правдинский (КС00091309) | D22: ЛС 04-01-01 | E22: 102-0008 | F22: Лесоматериалы круглые хвойных пород для строительства диаметром 14-24 см, длиной 3-6,5 м | G22: - | I22: м3 | K22: - | L22: 0.3758 | M22: - | O22: - | P22: - | R22: - | S22: 699.42 | V22: - | W22: - | X22: - | Z22: 0 | AC22: - | AD22: - | AE22: - | AF22: - | AG22: - | AH22: - | AI22: - | AJ22: - | AK22: - | AL22: - | AM22: 0 | AN22: 0 | AO22: 0 | AP22: - | AQ22: - | AR22: - | AS22: -
B23: 6 | C23: ВЛ 6 кВ на куст 3129.2 (габ. 6 кВ) Приразломное м/р. Правдинский (КС00091313) | D23: ЛС 04-02-01 | E23: 102-0008 | F23: Лесоматериалы круглые хвойных пород для строительства диаметром 14-24 см, длиной 3-6,5 м | G23: - | I23: м3 | K23: - | L23: 0.142086 | M23: - | O23: - | P23: - | R23: - | S23: 699.42 | V23: - | W23: - | X23: - | Z23: 0 | AC23: - | AD23: - | AE23: - | AF23: - | AG23: - | AH23: - | AI23: - | AJ23: - | AK23: - | AL23: - | AM23: 0 | AN23: 0 | AO23: 0 | AP23: - | AQ23: - | AR23: - | AS23: -
B24: 7 | C24: ВЛ 6 кВ на куст 3129.1 (габ.110 кВ) Приразломное м/р. Правдинский (КС00091309) | D24: ЛС 04-01-02 | E24: 102-0008 | F24: Лесоматериалы круглые хвойных пород для строительства диаметром 14-24 см, длиной 3-6,5 м | G24: - | I24: м3 | K24: - | L24: 0.004496 | M24: - | O24: - | P24: - | R24: - | S24: 699.42 | V24: - | W24: - | X24: - | Z24: 0 | AC24: - | AD24: - | AE24: - | AF24: - | AG24: - | AH24: - | AI24: - | AJ24: - | AK24: - | AL24: - | AM24: 0 | AN24: 0 | AO24: 0 | AP24: - | AQ24: - | AR24: - | AS24: -
B25: Итого Материалы | AO25: =AO17 -> 0
A26: main_metal | B26: Металлоконструкции
B27: 1 | E27: 110-0179 | F27: Конструкции стальные порталов ОРУ, сталь 345-3, неогрунтовано | I27: т | L27: =SUM(L28:L29) -> 17.30606 | AO27: =SUM(AO28:AO29) -> 0
B28: 1 | C28: ВЛ 6 кВ на куст 3129.2 (габ. 6 кВ) Приразломное м/р. Правдинский (КС00091313) | D28: ЛС 04-02-01 | E28: 110-0179 | F28: Конструкции стальные порталов ОРУ, сталь 345-3, неогрунтовано | G28: - | I28: т | K28: - | L28: 12.9471 | M28: - | O28: - | P28: - | R28: - | S28: 15564.36 | V28: - | W28: - | X28: - | Z28: =ROUND((U28+AM28)*0.0659,2) -> 0 | AC28: - | AD28: - | AE28: - | AF28: - | AG28: - | AH28: - | AI28: - | AJ28: - | AK28: - | AL28: - | AM28: =ROUND(U28*0.0075,2) -> 0 | AN28: =ROUND(U28+Y28+Z28+AA28+AB28+AM28,2) -> 0 | AO28: =ROUND(L28*AN28,2) -> 0 | AP28: - | AQ28: - | AR28: - | AS28: -
B29: 2 | C29: ВЛ 6 кВ на куст 3129.1 (габ.110 кВ) Приразломное м/р. Правдинский (КС00091309) | D29: ЛС 04-01-01 | E29: 110-0179 | F29: Конструкции стальные порталов ОРУ, сталь 345-3, неогрунтовано | G29: - | I29: т | K29: - | L29: 4.35896 | M29: - | O29: - | P29: - | R29: - | S29: 15564.36 | V29: - | W29: - | X29: - | Z29: =ROUND((U29+AM29)*0.0659,2) -> 0 | AC29: - | AD29: - | AE29: - | AF29: - | AG29: - | AH29: - | AI29: - | AJ29: - | AK29: - | AL29: - | AM29: =ROUND(U29*0.0075,2) -> 0 | AN29: =ROUND(U29+Y29+Z29+AA29+AB29+AM29,2) -> 0 | AO29: =ROUND(L29*AN29,2) -> 0 | AP29: - | AQ29: - | AR29: - | AS29: -
B30: 2 | E30: 201-0764 | F30: Отдельные конструктивные элементы зданий и сооружений с преобладанием гнутосварных профилей и круглых труб, средняя масса сборочной единицы от 0,1 до 0,5 т, сталь 345-3, неогрунтовано | I30: т | L30: =SUM(L31:L32) -> 2.222 | AO30: =SUM(AO31:AO32) -> 0
B31: 1 | C31: ВЛ 6 кВ на куст 3129.2 (габ. 6 кВ) Приразломное м/р. Правдинский (КС00091313) | D31: ЛС 04-02-01 | E31: 201-0764 | F31: Отдельные конструктивные элементы зданий и сооружений с преобладанием гнутосварных профилей и круглых труб, средняя масса сборочной единицы от 0,1 до 0,5 т, сталь 345-3, неогрунтовано | G31: - | I31: т | K31: - | L31: 1.333 | M31: - | O31: - | P31: - | R31: - | S31: 19476.22 | V31: - | W31: - | X31: - | Z31: =ROUND((U31+AM31)*0.0659,2) -> 0 | AC31: - | AD31: - | AE31: - | AF31: - | AG31: - | AH31: - | AI31: - | AJ31: - | AK31: - | AL31: - | AM31: =ROUND(U31*0.0075,2) -> 0 | AN31: =ROUND(U31+Y31+Z31+AA31+AB31+AM31,2) -> 0 | AO31: =ROUND(L31*AN31,2) -> 0 | AP31: - | AQ31: - | AR31: - | AS31: -
B32: 2 | C32: ВЛ 6 кВ на куст 3129.1 (габ.110 кВ) Приразломное м/р. Правдинский (КС00091309) | D32: ЛС 04-01-01 | E32: 201-0764 | F32: Отдельные конструктивные элементы зданий и сооружений с преобладанием гнутосварных профилей и круглых труб, средняя масса сборочной единицы от 0,1 до 0,5 т, сталь 345-3, неогрунтовано | G32: - | I32: т | K32: - | L32: 0.889 | M32: - | O32: - | P32: - | R32: - | S32: 19476.22 | V32: - | W32: - | X32: - | Z32: =ROUND((U32+AM32)*0.0659,2) -> 0 | AC32: - | AD32: - | AE32: - | AF32: - | AG32: - | AH32: - | AI32: - | AJ32: - | AK32: - | AL32: - | AM32: =ROUND(U32*0.0075,2) -> 0 | AN32: =ROUND(U32+Y32+Z32+AA32+AB32+AM32,2) -> 0 | AO32: =ROUND(L32*AN32,2) -> 0 | AP32: - | AQ32: - | AR32: - | AS32: -
B33: 3 | E33: 201-0755 | F33: Отдельные конструктивные элементы зданий и сооружений с преобладанием горячекатаных профилей, средняя масса сборочной единицы до 0,1 т, сталь 345-3, неогрунтовано | I33: т | L33: =SUM(L34) -> 0.762 | AO33: =SUM(AO34) -> 0
B34: 1 | C34: ВЛ 6 кВ на куст 3129.1 (габ.110 кВ) Приразломное м/р. Правдинский (КС00091309) | D34: ЛС 04-01-02 | E34: 201-0755 | F34: Отдельные конструктивные элементы зданий и сооружений с преобладанием горячекатаных профилей, средняя масса сборочной единицы до 0,1 т, сталь 345-3, неогрунтовано | G34: - | I34: т | K34: - | L34: 0.762 | M34: - | O34: - | P34: - | R34: - | S34: 14938.94 | V34: - | W34: - | X34: - | Z34: =ROUND((U34+AM34)*0.0659,2) -> 0 | AC34: - | AD34: - | AE34: - | AF34: - | AG34: - | AH34: - | AI34: - | AJ34: - | AK34: - | AL34: - | AM34: =ROUND(U34*0.0075,2) -> 0 | AN34: =ROUND(U34+Y34+Z34+AA34+AB34+AM34,2) -> 0 | AO34: =ROUND(L34*AN34,2) -> 0 | AP34: - | AQ34: - | AR34: - | AS34: -
B35: 4 | E35: 201-0777 | F35: Конструктивные элементы вспомогательного назначения с преобладанием профильного проката собираемые из двух и более деталей, с отверстиями и без отверстий, соединяемые на сварке, сталь 345-3, неогрунтовано | I35: т | L35: =SUM(L36:L37) -> 0.3 | AO35: =SUM(AO36:AO37) -> 0
B36: 1 | C36: ВЛ 6 кВ на куст 3129.2 (габ. 6 кВ) Приразломное м/р. Правдинский (КС00091313) | D36: ЛС 04-02-01 | E36: 201-0777 | F36: Конструктивные элементы вспомогательного назначения с преобладанием профильного проката собираемые из двух и более деталей, с отверстиями и без отверстий, соединяемые на сварке, сталь 345-3, неогрунтовано | G36: - | I36: т | K36: - | L36: 0.223 | M36: - | O36: - | P36: - | R36: - | S36: 18618.06 | V36: - | W36: - | X36: - | Z36: =ROUND((U36+AM36)*0.0659,2) -> 0 | AC36: - | AD36: - | AE36: - | AF36: - | AG36: - | AH36: - | AI36: - | AJ36: - | AK36: - | AL36: - | AM36: =ROUND(U36*0.0075,2) -> 0 | AN36: =ROUND(U36+Y36+Z36+AA36+AB36+AM36,2) -> 0 | AO36: =ROUND(L36*AN36,2) -> 0 | AP36: - | AQ36: - | AR36: - | AS36: -
B37: 2 | C37: ВЛ 6 кВ на куст 3129.1 (габ.110 кВ) Приразломное м/р. Правдинский (КС00091309) | D37: ЛС 04-01-01 | E37: 201-0777 | F37: Конструктивные элементы вспомогательного назначения с преобладанием профильного проката собираемые из двух и более деталей, с отверстиями и без отверстий, соединяемые на сварке, сталь 345-3, неогрунтовано | G37: - | I37: т | K37: - | L37: 0.077 | M37: - | O37: - | P37: - | R37: - | S37: 18618.06 | V37: - | W37: - | X37: - | Z37: =ROUND((U37+AM37)*0.0659,2) -> 0 | AC37: - | AD37: - | AE37: - | AF37: - | AG37: - | AH37: - | AI37: - | AJ37: - | AK37: - | AL37: - | AM37: =ROUND(U37*0.0075,2) -> 0 | AN37: =ROUND(U37+Y37+Z37+AA37+AB37+AM37,2) -> 0 | AO37: =ROUND(L37*AN37,2) -> 0 | AP37: - | AQ37: - | AR37: - | AS37: -
B38: 5 | E38: 201-0772 | F38: Конструктивные элементы вспомогательного назначения массой не более 50 кг с преобладанием толстолистовой стали без отверстий и сборосварочных операций, сталь 345-3, неогрунтовано | I38: т | L38: =SUM(L39) -> 0.18 | AO38: =SUM(AO39) -> 0
B39: 1 | C39: ВЛ 6 кВ на куст 3129.1 (габ.110 кВ) Приразломное м/р. Правдинский (КС00091309) | D39: ЛС 04-01-02 | E39: 201-0772 | F39: Конструктивные элементы вспомогательного назначения массой не более 50 кг с преобладанием толстолистовой стали без отверстий и сборосварочных операций, сталь 345-3, неогрунтовано | G39: - | I39: т | K39: - | L39: 0.18 | M39: - | O39: - | P39: - | R39: - | S39: 12140.21 | V39: - | W39: - | X39: - | Z39: =ROUND((U39+AM39)*0.0659,2) -> 0 | AC39: - | AD39: - | AE39: - | AF39: - | AG39: - | AH39: - | AI39: - | AJ39: - | AK39: - | AL39: - | AM39: =ROUND(U39*0.0075,2) -> 0 | AN39: =ROUND(U39+Y39+Z39+AA39+AB39+AM39,2) -> 0 | AO39: =ROUND(L39*AN39,2) -> 0 | AP39: - | AQ39: - | AR39: - | AS39: -
B40: 6 | E40: 201-0774 | F40: Конструктивные элементы вспомогательного назначения массой не более 50 кг с преобладанием толстолистовой стали собираемые из двух и более деталей, с отверстиями и без отверстий, соединяемые на сварке, С345-3, неогрунтовано | I40: т | L40: =SUM(L41:L43) -> 0.1752965 | AO40: =SUM(AO41:AO43) -> 0
B41: 1 | C41: ВЛ 6 кВ на куст 3129.1 (габ.110 кВ) Приразломное м/р. Правдинский (КС00091309) | D41: ЛС 04-01-01 | E41: 201-0774 | F41: Конструктивные элементы вспомогательного назначения массой не более 50 кг с преобладанием толстолистовой стали собираемые из двух и более деталей, с отверстиями и без отверстий, соединяемые на сварке, С345-3, неогрунтовано | G41: - | I41: т | K41: - | L41: 0.1466325 | M41: - | O41: - | P41: - | R41: - | S41: 20908.8 | V41: - | W41: - | X41: - | Z41: =ROUND((U41+AM41)*0.0659,2) -> 0 | AC41: - | AD41: - | AE41: - | AF41: - | AG41: - | AH41: - | AI41: - | AJ41: - | AK41: - | AL41: - | AM41: =ROUND(U41*0.0075,2) -> 0 | AN41: =ROUND(U41+Y41+Z41+AA41+AB41+AM41,2) -> 0 | AO41: =ROUND(L41*AN41,2) -> 0 | AP41: - | AQ41: - | AR41: - | AS41: -
B42: 2 | C42: ВЛ 6 кВ на куст 3129.2 (габ. 6 кВ) Приразломное м/р. Правдинский (КС00091313) | D42: ЛС 04-02-01 | E42: 201-0774 | F42: Конструктивные элементы вспомогательного назначения массой не более 50 кг с преобладанием толстолистовой стали собираемые из двух и более деталей, с отверстиями и без отверстий, соединяемые на сварке, С345-3, неогрунтовано | G42: - | I42: т | K42: - | L42: 0.028102 | M42: - | O42: - | P42: - | R42: - | S42: 20908.8 | V42: - | W42: - | X42: - | Z42: =ROUND((U42+AM42)*0.0659,2) -> 0 | AC42: - | AD42: - | AE42: - | AF42: - | AG42: - | AH42: - | AI42: - | AJ42: - | AK42: - | AL42: - | AM42: =ROUND(U42*0.0075,2) -> 0 | AN42: =ROUND(U42+Y42+Z42+AA42+AB42+AM42,2) -> 0 | AO42: =ROUND(L42*AN42,2) -> 0 | AP42: - | AQ42: - | AR42: - | AS42: -
B43: 3 | C43: ВЛ 6 кВ на куст 3129.1 (габ.110 кВ) Приразломное м/р. Правдинский (КС00091309) | D43: ЛС 04-01-02 | E43: 201-0774 | F43: Конструктивные элементы вспомогательного назначения массой не более 50 кг с преобладанием толстолистовой стали собираемые из двух и более деталей, с отверстиями и без отверстий, соединяемые на сварке, С345-3, неогрунтовано | G43: - | I43: т | K43: - | L43: 0.000562 | M43: - | O43: - | P43: - | R43: - | S43: 20908.8 | V43: - | W43: - | X43: - | Z43: =ROUND((U43+AM43)*0.0659,2) -> 0 | AC43: - | AD43: - | AE43: - | AF43: - | AG43: - | AH43: - | AI43: - | AJ43: - | AK43: - | AL43: - | AM43: =ROUND(U43*0.0075,2) -> 0 | AN43: =ROUND(U43+Y43+Z43+AA43+AB43+AM43,2) -> 0 | AO43: =ROUND(L43*AN43,2) -> 0 | AP43: - | AQ43: - | AR43: - | AS43: -
B44: 7 | E44: 201-0763 | F44: Отдельные конструктивные элементы зданий и сооружений с преобладанием гнутосварных профилей и круглых труб, средняя масса сборочной единицы до 0,1 т, сталь 345-3, неогрунтовано | I44: т | L44: =SUM(L45) -> 0.14 | AO44: =SUM(AO45) -> 0
B45: 1 | C45: ВЛ 6 кВ на куст 3129.1 (габ.110 кВ) Приразломное м/р. Правдинский (КС00091309) | D45: ЛС 04-01-02 | E45: 201-0763 | F45: Отдельные конструктивные элементы зданий и сооружений с преобладанием гнутосварных профилей и круглых труб, средняя масса сборочной единицы до 0,1 т, сталь 345-3, неогрунтовано | G45: - | I45: т | K45: - | L45: 0.14 | M45: - | O45: - | P45: - | R45: - | S45: 20860.75 | V45: - | W45: - | X45: - | Z45: =ROUND((U45+AM45)*0.0659,2) -> 0 | AC45: - | AD45: - | AE45: - | AF45: - | AG45: - | AH45: - | AI45: - | AJ45: - | AK45: - | AL45: - | AM45: =ROUND(U45*0.0075,2) -> 0 | AN45: =ROUND(U45+Y45+Z45+AA45+AB45+AM45,2) -> 0 | AO45: =ROUND(L45*AN45,2) -> 0 | AP45: - | AQ45: - | AR45: - | AS45: -
B46: 8 | E46: 201-0756 | F46: Отдельные конструктивные элементы зданий и сооружений с преобладанием горячекатаных профилей, средняя масса сборочной единицы от 0,1 до 0,5 т, С345-3, неогрунтовано | I46: т | L46: =SUM(L47:L49) -> 0.0013538 | AO46: =SUM(AO47:AO49) -> 0
B47: 1 | C47: ВЛ 6 кВ на куст 3129.1 (габ.110 кВ) Приразломное м/р. Правдинский (КС00091309) | D47: ЛС 04-01-02 | E47: 201-0756 | F47: Отдельные конструктивные элементы зданий и сооружений с преобладанием горячекатаных профилей, средняя масса сборочной единицы от 0,1 до 0,5 т, С345-3, неогрунтовано | G47: - | I47: т | K47: - | L47: 0.0008561 | M47: - | O47: - | P47: - | R47: - | S47: 14293.92 | V47: - | W47: - | X47: - | Z47: =ROUND((U47+AM47)*0.0659,2) -> 0 | AC47: - | AD47: - | AE47: - | AF47: - | AG47: - | AH47: - | AI47: - | AJ47: - | AK47: - | AL47: - | AM47: =ROUND(U47*0.0075,2) -> 0 | AN47: =ROUND(U47+Y47+Z47+AA47+AB47+AM47,2) -> 0 | AO47: =ROUND(L47*AN47,2) -> 0 | AP47: - | AQ47: - | AR47: - | AS47: -
B48: 2 | C48: ВЛ 6 кВ на куст 3129.2 (габ. 6 кВ) Приразломное м/р. Правдинский (КС00091313) | D48: ЛС 04-02-01 | E48: 201-0756 | F48: Отдельные конструктивные элементы зданий и сооружений с преобладанием горячекатаных профилей, средняя масса сборочной единицы от 0,1 до 0,5 т, С345-3, неогрунтовано | G48: - | I48: т | K48: - | L48: 0.0002986 | M48: - | O48: - | P48: - | R48: - | S48: 14293.92 | V48: - | W48: - | X48: - | Z48: =ROUND((U48+AM48)*0.0659,2) -> 0 | AC48: - | AD48: - | AE48: - | AF48: - | AG48: - | AH48: - | AI48: - | AJ48: - | AK48: - | AL48: - | AM48: =ROUND(U48*0.0075,2) -> 0 | AN48: =ROUND(U48+Y48+Z48+AA48+AB48+AM48,2) -> 0 | AO48: =ROUND(L48*AN48,2) -> 0 | AP48: - | AQ48: - | AR48: - | AS48: -
B49: 3 | C49: ВЛ 6 кВ на куст 3129.1 (габ.110 кВ) Приразломное м/р. Правдинский (КС00091309) | D49: ЛС 04-01-01 | E49: 201-0756 | F49: Отдельные конструктивные элементы зданий и сооружений с преобладанием горячекатаных профилей, средняя масса сборочной единицы от 0,1 до 0,5 т, С345-3, неогрунтовано | G49: - | I49: т | K49: - | L49: 0.0001991 | M49: - | O49: - | P49: - | R49: - | S49: 14293.92 | V49: - | W49: - | X49: - | Z49: =ROUND((U49+AM49)*0.0659,2) -> 0 | AC49: - | AD49: - | AE49: - | AF49: - | AG49: - | AH49: - | AI49: - | AJ49: - | AK49: - | AL49: - | AM49: =ROUND(U49*0.0075,2) -> 0 | AN49: =ROUND(U49+Y49+Z49+AA49+AB49+AM49,2) -> 0 | AO49: =ROUND(L49*AN49,2) -> 0 | AP49: - | AQ49: - | AR49: - | AS49: -
B50: Итого Металлоконструкции | AO50: =AO27+AO30+AO33+AO35+AO38+AO40+AO44+AO46 -> 0
A51: main_equipment | B51: Оборудование
B52: Итого Оборудование
B53: Итого по Разделу I. Ценообразующие материалы | AO53: =AO50+AO52+AO25 -> 0
B54: Раздел II. Вспомогательные материалы
A55: other_materials | B55: Материалы
B56: 1 | E56: 113-0240 | F56: Эмаль ХС-759 белая | I56: т | L56: =SUM(L57:L59) -> 2.239796 | AO56: =SUM(AO57:AO59) -> 0
B57: 1 | C57: ВЛ 6 кВ на куст 3129.1 (габ.110 кВ) Приразломное м/р. Правдинский (КС00091309) | D57: ЛС 04-01-01 | E57: 113-0240 | F57: Эмаль ХС-759 белая | G57: - | I57: т | K57: - | L57: 1.773384 | M57: - | O57: - | P57: - | R57: - | S57: 36209.3 | V57: - | W57: - | X57: - | Z57: =ROUND((U57+AM57)*0.0659,2) -> 0 | AC57: - | AD57: - | AE57: - | AF57: - | AG57: - | AH57: - | AI57: - | AJ57: - | AK57: - | AL57: - | AM57: =ROUND(U57*0.02,2) -> 0 | AN57: =ROUND(U57+Y57+Z57+AA57+AB57+AM57,2) -> 0 | AO57: =ROUND(L57*AN57,2) -> 0 | AP57: - | AQ57: - | AR57: - | AS57: -
B58: 2 | C58: ВЛ 6 кВ на куст 3129.2 (габ. 6 кВ) Приразломное м/р. Правдинский (КС00091313) | D58: ЛС 04-02-01 | E58: 113-0240 | F58: Эмаль ХС-759 белая | G58: - | I58: т | K58: - | L58: 0.452276 | M58: - | O58: - | P58: - | R58: - | S58: 36209.3 | V58: - | W58: - | X58: - | Z58: =ROUND((U58+AM58)*0.0659,2) -> 0 | AC58: - | AD58: - | AE58: - | AF58: - | AG58: - | AH58: - | AI58: - | AJ58: - | AK58: - | AL58: - | AM58: =ROUND(U58*0.02,2) -> 0 | AN58: =ROUND(U58+Y58+Z58+AA58+AB58+AM58,2) -> 0 | AO58: =ROUND(L58*AN58,2) -> 0 | AP58: - | AQ58: - | AR58: - | AS58: -
B59: 3 | C59: ВЛ 6 кВ на куст 3129.1 (габ.110 кВ) Приразломное м/р. Правдинский (КС00091309) | D59: ЛС 04-01-02 | E59: 113-0240 | F59: Эмаль ХС-759 белая | G59: - | I59: т | K59: - | L59: 0.014136 | M59: - | O59: - | P59: - | R59: - | S59: 36209.3 | V59: - | W59: - | X59: - | Z59: =ROUND((U59+AM59)*0.0659,2) -> 0 | AC59: - | AD59: - | AE59: - | AF59: - | AG59: - | AH59: - | AI59: - | AJ59: - | AK59: - | AL59: - | AM59: =ROUND(U59*0.02,2) -> 0 | AN59: =ROUND(U59+Y59+Z59+AA59+AB59+AM59,2) -> 0 | AO59: =ROUND(L59*AN59,2) -> 0 | AP59: - | AQ59: - | AR59: - | AS59: -
B60: 2 | E60: 101-1305 | F60: Портландцемент общестроительного назначения бездобавочный марки 400 | I60: т | L60: =SUM(L61:L63) -> 30.906 | AO60: =SUM(AO61:AO63) -> 0
B61: 1 | C61: ВЛ 6 кВ на куст 3129.1 (габ.110 кВ) Приразломное м/р. Правдинский (КС00091309) | D61: ЛС 04-01-01 | E61: 101-1305 | F61: Портландцемент общестроительного назначения бездобавочный марки 400 | G61: - | I61: т | K61: - | L61: 27.224 | M61: - | O61: - | P61: - | R61: - | S61: 545.51 | V61: - | W61: - | X61: - | Z61: =ROUND((U61+AM61)*0.0659,2) -> 0 | AC61: - | AD61: - | AE61: - | AF61: - | AG61: - | AH61: - | AI61: - | AJ61: - | AK61: - | AL61: - | AM61: =ROUND(U61*0.02,2) -> 0 | AN61: =ROUND(U61+Y61+Z61+AA61+AB61+AM61,2) -> 0 | AO61: =ROUND(L61*AN61,2) -> 0 | AP61: - | AQ61: - | AR61: - | AS61: -
B62: 2 | C62: ВЛ 6 кВ на куст 3129.2 (габ. 6 кВ) Приразломное м/р. Правдинский (КС00091313) | D62: ЛС 04-02-01 | E62: 101-1305 | F62: Портландцемент общестроительного назначения бездобавочный марки 400 | G62: - | I62: т | K62: - | L62: 3.584 | M62: - | O62: - | P62: - | R62: - | S62: 545.51 | V62: - | W62: - | X62: - | Z62: =ROUND((U62+AM62)*0.0659,2) -> 0 | AC62: - | AD62: - | AE62: - | AF62: - | AG62: - | AH62: - | AI62: - | AJ62: - | AK62: - | AL62: - | AM62: =ROUND(U62*0.02,2) -> 0 | AN62: =ROUND(U62+Y62+Z62+AA62+AB62+AM62,2) -> 0 | AO62: =ROUND(L62*AN62,2) -> 0 | AP62: - | AQ62: - | AR62: - | AS62: -
B63: 3 | C63: ВЛ 6 кВ на куст 3129.1 (габ.110 кВ) Приразломное м/р. Правдинский (КС00091309) | D63: ЛС 04-01-02 | E63: 101-1305 | F63: Портландцемент общестроительного назначения бездобавочный марки 400 | G63: - | I63: т | K63: - | L63: 0.098 | M63: - | O63: - | P63: - | R63: - | S63: 545.51 | V63: - | W63: - | X63: - | Z63: =ROUND((U63+AM63)*0.0659,2) -> 0 | AC63: - | AD63: - | AE63: - | AF63: - | AG63: - | AH63: - | AI63: - | AJ63: - | AK63: - | AL63: - | AM63: =ROUND(U63*0.02,2) -> 0 | AN63: =ROUND(U63+Y63+Z63+AA63+AB63+AM63,2) -> 0 | AO63: =ROUND(L63*AN63,2) -> 0 | AP63: - | AQ63: - | AR63: - | AS63: -
B64: 3 | E64: Цена завода | F64: Гаситель вибрации ГВП-1,6-11-400, цена 956,2:4,03.1,13 | I64: шт. | L64: =SUM(L65) -> 135 | AO64: =SUM(AO65) -> 0
B65: 1 | C65: ВЛ 6 кВ на куст 3129.1 (габ.110 кВ) Приразломное м/р. Правдинский (КС00091309) | D65: ЛС 04-01-01 | E65: Цена завода | F65: Гаситель вибрации ГВП-1,6-11-400, цена 956,2:4,03.1,13 | G65: - | I65: шт. | K65: - | L65: 135 | M65: - | O65: - | P65: - | R65: - | S65: 268.12 | T65: =НМЦ!$K$227 -> 0 | U65: =ROUND(S65*T65,2) -> 0 | V65: - | W65: - | X65: - | Z65: 0 | AC65: - | AD65: - | AE65: - | AF65: - | AG65: - | AH65: - | AI65: - | AJ65: - | AK65: - | AL65: - | AM65: 0 | AN65: =ROUND(U65+Y65+Z65+AA65+AB65+AM65,2) -> 0 | AO65: =ROUND(L65*AN65,2) -> 0 | AP65: - | AQ65: - | AR65: - | AS65: -
B66: 4 | E66: 509-8110 | F66: Трос грозозащитный. МЗ-9,2-ОЖ-Н-Р | I66: т | L66: =SUM(L67) -> 1.1 | AO66: =SUM(AO67) -> 0
B67: 1 | C67: ВЛ 6 кВ на куст 3129.1 (габ.110 кВ) Приразломное м/р. Правдинский (КС00091309) | D67: ЛС 04-01-01 | E67: 509-8110 | F67: Трос грозозащитный. МЗ-9,2-ОЖ-Н-Р | G67: - | I67: т | K67: - | L67: 1.1 | M67: - | O67: - | P67: - | R67: - | S67: 18075.88 | T67: =НМЦ!$K$227 -> 0 | U67: =ROUND(S67*T67,2) -> 0 | V67: - | W67: - | X67: - | Z67: =ROUND((U67+AM67)*0.0569,2) -> 0 | AC67: - | AD67: - | AE67: - | AF67: - | AG67: - | AH67: - | AI67: - | AJ67: - | AK67: - | AL67: - | AM67: 0 | AN67: =ROUND(U67+Y67+Z67+AA67+AB67+AM67,2) -> 0 | AO67: =ROUND(L67*AN67,2) -> 0 | AP67: - | AQ67: - | AR67: - | AS67: -
B68: 5 | E68: 113-0449 | F68: Грунтовка полиуретановая цинконаполненая, композиция ЦИНОТАН | I68: кг | L68: =SUM(L69:L71) -> 148.434 | AO68: =SUM(AO69:AO71) -> 0
B69: 1 | C69: ВЛ 6 кВ на куст 3129.2 (габ. 6 кВ) Приразломное м/р. Правдинский (КС00091313) | D69: ЛС 04-02-01 | E69: 113-0449 | F69: Грунтовка полиуретановая цинконаполненая, композиция ЦИНОТАН | G69: - | I69: кг | K69: - | L69: 95.004 | M69: - | O69: - | P69: - | R69: - | S69: 4.11 | V69: - | W69: - | X69: - | Z69: =ROUND((U69+AM69)*0.0659,2) -> 0 | AC69: - | AD69: - | AE69: - | AF69: - | AG69: - | AH69: - | AI69: - | AJ69: - | AK69: - | AL69: - | AM69: =ROUND(U69*0.02,2) -> 0 | AN69: =ROUND(U69+Y69+Z69+AA69+AB69+AM69,2) -> 0 | AO69: =ROUND(L69*AN69,2) -> 0 | AP69: - | AQ69: - | AR69: - | AS69: -
B70: 2 | C70: ВЛ 6 кВ на куст 3129.1 (габ.110 кВ) Приразломное м/р. Правдинский (КС00091309) | D70: ЛС 04-01-01 | E70: 113-0449 | F70: Грунтовка полиуретановая цинконаполненая, композиция ЦИНОТАН | G70: - | I70: кг | K70: - | L70: 38.493 | M70: - | O70: - | P70: - | R70: - | S70: 4.11 | V70: - | W70: - | X70: - | Z70: =ROUND((U70+AM70)*0.0659,2) -> 0 | AC70: - | AD70: - | AE70: - | AF70: - | AG70: - | AH70: - | AI70: - | AJ70: - | AK70: - | AL70: - | AM70: =ROUND(U70*0.02,2) -> 0 | AN70: =ROUND(U70+Y70+Z70+AA70+AB70+AM70,2) -> 0 | AO70: =ROUND(L70*AN70,2) -> 0 | AP70: - | AQ70: - | AR70: - | AS70: -
B71: 3 | C71: ВЛ 6 кВ на куст 3129.1 (габ.110 кВ) Приразломное м/р. Правдинский (КС00091309) | D71: ЛС 04-01-02 | E71: 113-0449 | F71: Грунтовка полиуретановая цинконаполненая, композиция ЦИНОТАН | G71: - | I71: кг | K71: - | L71: 14.937 | M71: - | O71: - | P71: - | R71: - | S71: 4.11 | V71: - | W71: - | X71: - | Z71: =ROUND((U71+AM71)*0.0659,2) -> 0 | AC71: - | AD71: - | AE71: - | AF71: - | AG71: - | AH71: - | AI71: - | AJ71: - | AK71: - | AL71: - | AM71: =ROUND(U71*0.02,2) -> 0 | AN71: =ROUND(U71+Y71+Z71+AA71+AB71+AM71,2) -> 0 | AO71: =ROUND(L71*AN71,2) -> 0 | AP71: - | AQ71: - | AR71: - | AS71: -
B72: 6 | E72: 113-0030 | F72: Грунтовка ХС-059 красно-коричневая | I72: т | L72: =SUM(L73:L75) -> 0.471536 | AO72: =SUM(AO73:AO75) -> 0
B73: 1 | C73: ВЛ 6 кВ на куст 3129.1 (габ.110 кВ) Приразломное м/р. Правдинский (КС00091309) | D73: ЛС 04-01-01 | E73: 113-0030 | F73: Грунтовка ХС-059 красно-коричневая | G73: - | I73: т | K73: - | L73: 0.373344 | M73: - | O73: - | P73: - | R73: - | S73: 28666.34 | T73: =НМЦ!$K$227 -> 0 | U73: =ROUND(S73*T73,2) -> 0 | V73: - | W73: - | X73: - | Z73: =ROUND((U73+AM73)*0.0569,2) -> 0 | AC73: - | AD73: - | AE73: - | AF73: - | AG73: - | AH73: - | AI73: - | AJ73: - | AK73: - | AL73: - | AM73: 0 | AN73: =ROUND(U73+Y73+Z73+AA73+AB73+AM73,2) -> 0 | AO73: =ROUND(L73*AN73,2) -> 0 | AP73: - | AQ73: - | AR73: - | AS73: -
B74: 2 | C74: ВЛ 6 кВ на куст 3129.2 (габ. 6 кВ) Приразломное м/р. Правдинский (КС00091313) | D74: ЛС 04-02-01 | E74: 113-0030 | F74: Грунтовка ХС-059 красно-коричневая | G74: - | I74: т | K74: - | L74: 0.095216 | M74: - | O74: - | P74: - | R74: - | S74: 28666.34 | T74: =НМЦ!$K$227 -> 0 | U74: =ROUND(S74*T74,2) -> 0 | V74: - | W74: - | X74: - | Z74: =ROUND((U74+AM74)*0.0569,2) -> 0 | AC74: - | AD74: - | AE74: - | AF74: - | AG74: - | AH74: - | AI74: - | AJ74: - | AK74: - | AL74: - | AM74: 0 | AN74: =ROUND(U74+Y74+Z74+AA74+AB74+AM74,2) -> 0 | AO74: =ROUND(L74*AN74,2) -> 0 | AP74: - | AQ74: - | AR74: - | AS74: -
B75: 3 | C75: ВЛ 6 кВ на куст 3129.1 (габ.110 кВ) Приразломное м/р. Правдинский (КС00091309) | D75: ЛС 04-01-02 | E75: 113-0030 | F75: Грунтовка ХС-059 красно-коричневая | G75: - | I75: т | K75: - | L75: 0.002976 | M75: - | O75: - | P75: - | R75: - | S75: 28666.34 | T75: =НМЦ!$K$227 -> 0 | U75: =ROUND(S75*T75,2) -> 0 | V75: - | W75: - | X75: - | Z75: =ROUND((U75+AM75)*0.0569,2) -> 0 | AC75: - | AD75: - | AE75: - | AF75: - | AG75: - | AH75: - | AI75: - | AJ75: - | AK75: - | AL75: - | AM75: 0 | AN75: =ROUND(U75+Y75+Z75+AA75+AB75+AM75,2) -> 0 | AO75: =ROUND(L75*AN75,2) -> 0 | AP75: - | AQ75: - | AR75: - | AS75: -
B76: 7 | E76: 113-8098 | F76: Эмаль полиуретановая защитно-декоративная "Политон-УР" | I76: кг | L76: =SUM(L77:L79) -> 128.4525 | AO76: =SUM(AO77:AO79) -> 0
B77: 1 | C77: ВЛ 6 кВ на куст 3129.2 (габ. 6 кВ) Приразломное м/р. Правдинский (КС00091313) | D77: ЛС 04-02-01 | E77: 113-8098 | F77: Эмаль полиуретановая защитно-декоративная "Политон-УР" | G77: - | I77: кг | K77: - | L77: 82.215 | M77: - | O77: - | P77: - | R77: - | S77: 139.39 | V77: - | W77: - | X77: - | Z77: =ROUND((U77+AM77)*0.0659,2) -> 0 | AC77: - | AD77: - | AE77: - | AF77: - | AG77: - | AH77: - | AI77: - | AJ77: - | AK77: - | AL77: - | AM77: =ROUND(U77*0.02,2) -> 0 | AN77: =ROUND(U77+Y77+Z77+AA77+AB77+AM77,2) -> 0 | AO77: =ROUND(L77*AN77,2) -> 0 | AP77: - | AQ77: - | AR77: - | AS77: -
B78: 2 | C78: ВЛ 6 кВ на куст 3129.1 (габ.110 кВ) Приразломное м/р. Правдинский (КС00091309) | D78: ЛС 04-01-01 | E78: 113-8098 | F78: Эмаль полиуретановая защитно-декоративная "Политон-УР" | G78: - | I78: кг | K78: - | L78: 33.31125 | M78: - | O78: - | P78: - | R78: - | S78: 139.39 | V78: - | W78: - | X78: - | Z78: =ROUND((U78+AM78)*0.0659,2) -> 0 | AC78: - | AD78: - | AE78: - | AF78: - | AG78: - | AH78: - | AI78: - | AJ78: - | AK78: - | AL78: - | AM78: =ROUND(U78*0.02,2) -> 0 | AN78: =ROUND(U78+Y78+Z78+AA78+AB78+AM78,2) -> 0 | AO78: =ROUND(L78*AN78,2) -> 0 | AP78: - | AQ78: - | AR78: - | AS78: -
B79: 3 | C79: ВЛ 6 кВ на куст 3129.1 (габ.110 кВ) Приразломное м/р. Правдинский (КС00091309) | D79: ЛС 04-01-02 | E79: 113-8098 | F79: Эмаль полиуретановая защитно-декоративная "Политон-УР" | G79: - | I79: кг | K79: - | L79: 12.92625 | M79: - | O79: - | P79: - | R79: - | S79: 139.39 | V79: - | W79: - | X79: - | Z79: =ROUND((U79+AM79)*0.0659,2) -> 0 | AC79: - | AD79: - | AE79: - | AF79: - | AG79: - | AH79: - | AI79: - | AJ79: - | AK79: - | AL79: - | AM79: =ROUND(U79*0.02,2) -> 0 | AN79: =ROUND(U79+Y79+Z79+AA79+AB79+AM79,2) -> 0 | AO79: =ROUND(L79*AN79,2) -> 0 | AP79: - | AQ79: - | AR79: - | AS79: -
B80: 8 | E80: Цена завода | F80: Зажим натяжной НБ-2-6 | I80: шт. | L80: =SUM(L81) -> 86 | AO80: =SUM(AO81) -> 0
B81: 1 | C81: ВЛ 6 кВ на куст 3129.1 (габ.110 кВ) Приразломное м/р. Правдинский (КС00091309) | D81: ЛС 04-01-01 | E81: Цена завода | F81: Зажим натяжной НБ-2-6 | G81: - | I81: шт. | K81: - | L81: 86 | M81: - | O81: - | P81: - | R81: - | S81: 149.41 | T81: =НМЦ!$K$227 -> 0 | U81: =ROUND(S81*T81,2) -> 0 | V81: - | W81: - | X81: - | Z81: 0 | AC81: - | AD81: - | AE81: - | AF81: - | AG81: - | AH81: - | AI81: - | AJ81: - | AK81: - | AL81: - | AM81: 0 | AN81: =ROUND(U81+Y81+Z81+AA81+AB81+AM81,2) -> 0 | AO81: =ROUND(L81*AN81,2) -> 0 | AP81: - | AQ81: - | AR81: - | AS81: -
B82: 9 | E82: 101-2467 | F82: Растворитель марки Р-4 | I82: т | L82: =SUM(L83:L85) -> 0.70874 | AO82: =SUM(AO83:AO85) -> 0
